{"text_format":"1","workbook":"xlsx","n_sheets":3,"sheets":["BdD","Virement","Autres"],"not_rendered":{"charts":0,"images":0,"macros":0,"external_links":0,"defined_names":2,"comments":0,"pivot_tables":0},"unopened":[],"bounds":{"document_bytes":16777216,"sheet_cells":100000,"rows_first":2000,"rows_last":500,"rows_between":2000,"halvings":0,"cell_chars":16384,"cell_head_chars":4096},"cells_cut":0,"cells_raw":0,"read":"whole","date_system":"1900"}

{"sheet":"BdD","index":0,"n_rows":1093,"n_cols":24,"rows_kept":1093,"cut":false,"hidden":false,"merged":[]}
[]
[]
[null,null,null,null,null,null,null,null,null,null,null,null,null,null,null,null,null,null,null,null,null,null,"liste évolutive nommée VIR","liste évolutive nommée AUT"]
[]
[]
[]
[null,null,null,null,null,null,null,null,null,null,null,null,null,null,null,null,null,null,null,null,null,"CODE","Liste Virement","Listes autres"]
["2015-12-03","Virement__AA66",null,null,null,null,null,null,null,null,null,null,null,null,null,null,null,null,null,null,null,{"$f":"IF(COUNTIF(B8,\"*Virement*\"),\"VIR\"&COUNTIF($V$7:V7,\"VIR*\"),IF(COUNTIF($B$8:B8,B8)=1,\"AUT\"&COUNTIF($V$7:V7,\"AUT*\"),\"\"))","v":"VIR0"},{"$f":"IFERROR(INDEX($B:$B,MATCH(\"VIR\"&ROW()-8,$V:$V,0)),\"\")","v":"Virement__AA66"},{"$f":"IFERROR(INDEX($B:$B,MATCH(\"AUT\"&ROW()-8,$V:$V,0)),\"\")","v":"Lucas"}]
["2015-12-10","Virement__AA39",null,null,null,null,null,null,null,null,null,null,null,null,null,null,null,null,null,null,null,{"$f":"IF(COUNTIF(B9,\"*Virement*\"),\"VIR\"&COUNTIF($V$7:V8,\"VIR*\"),IF(COUNTIF($B$8:B9,B9)=1,\"AUT\"&COUNTIF($V$7:V8,\"AUT*\"),\"\"))","v":"VIR1"},{"$f":"IFERROR(INDEX(B:B,MATCH(\"VIR\"&ROW()-8,V:V,0)),\"\")","v":"Virement__AA39"},{"$f":"IFERROR(INDEX($B:$B,MATCH(\"AUT\"&ROW()-8,$V:$V,0)),\"\")","v":"Pierrette"}]
["2015-08-18","Lucas",null,null,null,null,null,null,null,null,null,null,null,null,null,null,null,null,null,null,null,{"$f":"IF(COUNTIF(B10,\"*Virement*\"),\"VIR\"&COUNTIF($V$7:V9,\"VIR*\"),IF(COUNTIF($B$8:B10,B10)=1,\"AUT\"&COUNTIF($V$7:V9,\"AUT*\"),\"\"))","v":"AUT0"},"Virement__AA78","Eric"]
["2015-09-15","Pierrette",null,null,null,null,null,null,null,null,null,null,null,null,null,null,null,null,null,null,null,{"$f":"IF(COUNTIF(B11,\"*Virement*\"),\"VIR\"&COUNTIF($V$7:V10,\"VIR*\"),IF(COUNTIF($B$8:B11,B11)=1,\"AUT\"&COUNTIF($V$7:V10,\"AUT*\"),\"\"))","v":"AUT1"},"Virement__AA43","Léa"]
["2015-06-06","Virement__AA78",null,null,null,null,null,null,null,null,null,null,null,null,null,null,null,null,null,null,null,{"$f":"IF(COUNTIF(B12,\"*Virement*\"),\"VIR\"&COUNTIF($V$7:V11,\"VIR*\"),IF(COUNTIF($B$8:B12,B12)=1,\"AUT\"&COUNTIF($V$7:V11,\"AUT*\"),\"\"))","v":"VIR2"},"Virement__AA42","Monique"]
["2015-06-29","Eric",null,null,null,null,null,null,null,null,null,null,null,null,null,null,null,null,null,null,null,{"$f":"IF(COUNTIF(B13,\"*Virement*\"),\"VIR\"&COUNTIF($V$7:V12,\"VIR*\"),IF(COUNTIF($B$8:B13,B13)=1,\"AUT\"&COUNTIF($V$7:V12,\"AUT*\"),\"\"))","v":"AUT2"},"Virement__AA14","Patrick"]
["2015-12-11","Léa",null,null,null,null,null,null,null,null,null,null,null,null,null,null,null,null,null,null,null,{"$f":"IF(COUNTIF(B14,\"*Virement*\"),\"VIR\"&COUNTIF($V$7:V13,\"VIR*\"),IF(COUNTIF($B$8:B14,B14)=1,\"AUT\"&COUNTIF($V$7:V13,\"AUT*\"),\"\"))","v":"AUT3"},"Virement__AA63","Chrystel"]
["2016-01-19","Monique",null,null,null,null,null,null,null,null,null,null,null,null,null,null,null,null,null,null,null,{"$f":"IF(COUNTIF(B15,\"*Virement*\"),\"VIR\"&COUNTIF($V$7:V14,\"VIR*\"),IF(COUNTIF($B$8:B15,B15)=1,\"AUT\"&COUNTIF($V$7:V14,\"AUT*\"),\"\"))","v":"AUT4"},"Virement__AA12","Philippe"]
["2015-11-24","Patrick",null,null,null,null,null,null,null,null,null,null,null,null,null,null,null,null,null,null,null,{"$f":"IF(COUNTIF(B16,\"*Virement*\"),\"VIR\"&COUNTIF($V$7:V15,\"VIR*\"),IF(COUNTIF($B$8:B16,B16)=1,\"AUT\"&COUNTIF($V$7:V15,\"AUT*\"),\"\"))","v":"AUT5"},"Virement__AA48","Eloide"]
["2016-01-26","Pierrette",null,null,null,null,null,null,null,null,null,null,null,null,null,null,null,null,null,null,null,{"$f":"IF(COUNTIF(B17,\"*Virement*\"),\"VIR\"&COUNTIF($V$7:V16,\"VIR*\"),IF(COUNTIF($B$8:B17,B17)=1,\"AUT\"&COUNTIF($V$7:V16,\"AUT*\"),\"\"))","v":""},"Virement__AA51","Simone"]
["2015-12-31","Léa",null,null,null,null,null,null,null,null,null,null,null,null,null,null,null,null,null,null,null,{"$f":"IF(COUNTIF(B18,\"*Virement*\"),\"VIR\"&COUNTIF($V$7:V17,\"VIR*\"),IF(COUNTIF($B$8:B18,B18)=1,\"AUT\"&COUNTIF($V$7:V17,\"AUT*\"),\"\"))","v":""},"Virement__AA64","André"]
["2015-10-11","Virement__AA43",null,null,null,null,null,null,null,null,null,null,null,null,null,null,null,null,null,null,null,{"$f":"IF(COUNTIF(B19,\"*Virement*\"),\"VIR\"&COUNTIF($V$7:V18,\"VIR*\"),IF(COUNTIF($B$8:B19,B19)=1,\"AUT\"&COUNTIF($V$7:V18,\"AUT*\"),\"\"))","v":"VIR3"},"Virement__AA71","Francette"]
["2015-11-19","Eric",null,null,null,null,null,null,null,null,null,null,null,null,null,null,null,null,null,null,null,{"$f":"IF(COUNTIF(B20,\"*Virement*\"),\"VIR\"&COUNTIF($V$7:V19,\"VIR*\"),IF(COUNTIF($B$8:B20,B20)=1,\"AUT\"&COUNTIF($V$7:V19,\"AUT*\"),\"\"))","v":""},"Virement__AA19","Jean-pierre"]
["2015-07-28","Pierrette",null,null,null,null,null,null,null,null,null,null,null,null,null,null,null,null,null,null,null,{"$f":"IF(COUNTIF(B21,\"*Virement*\"),\"VIR\"&COUNTIF($V$7:V20,\"VIR*\"),IF(COUNTIF($B$8:B21,B21)=1,\"AUT\"&COUNTIF($V$7:V20,\"AUT*\"),\"\"))","v":""},"Virement__AA40","Corinne"]
["2016-01-09","Chrystel",null,null,null,null,null,null,null,null,null,null,null,null,null,null,null,null,null,null,null,{"$f":"IF(COUNTIF(B22,\"*Virement*\"),\"VIR\"&COUNTIF($V$7:V21,\"VIR*\"),IF(COUNTIF($B$8:B22,B22)=1,\"AUT\"&COUNTIF($V$7:V21,\"AUT*\"),\"\"))","v":"AUT6"},"Virement__AA61","Ewan"]
["2015-11-26","Philippe",null,null,null,null,null,null,null,null,null,null,null,null,null,null,null,null,null,null,null,{"$f":"IF(COUNTIF(B23,\"*Virement*\"),\"VIR\"&COUNTIF($V$7:V22,\"VIR*\"),IF(COUNTIF($B$8:B23,B23)=1,\"AUT\"&COUNTIF($V$7:V22,\"AUT*\"),\"\"))","v":"AUT7"},"Virement__AA45","Renè"]
["2015-09-30","Virement__AA42",null,null,null,null,null,null,null,null,null,null,null,null,null,null,null,null,null,null,null,{"$f":"IF(COUNTIF(B24,\"*Virement*\"),\"VIR\"&COUNTIF($V$7:V23,\"VIR*\"),IF(COUNTIF($B$8:B24,B24)=1,\"AUT\"&COUNTIF($V$7:V23,\"AUT*\"),\"\"))","v":"VIR4"},"Virement__AA32","Madeleine"]
["2015-12-13","Virement__AA14",null,null,null,null,null,null,null,null,null,null,null,null,null,null,null,null,null,null,null,{"$f":"IF(COUNTIF(B25,\"*Virement*\"),\"VIR\"&COUNTIF($V$7:V24,\"VIR*\"),IF(COUNTIF($B$8:B25,B25)=1,\"AUT\"&COUNTIF($V$7:V24,\"AUT*\"),\"\"))","v":"VIR5"},"Virement__AA77","Michel"]
["2015-09-03","Eloide",null,null,null,null,null,null,null,null,null,null,null,null,null,null,null,null,null,null,null,{"$f":"IF(COUNTIF(B26,\"*Virement*\"),\"VIR\"&COUNTIF($V$7:V25,\"VIR*\"),IF(COUNTIF($B$8:B26,B26)=1,\"AUT\"&COUNTIF($V$7:V25,\"AUT*\"),\"\"))","v":"AUT8"},"Virement__AA38","Jaqueline"]
["2016-01-23","Monique",null,null,null,null,null,null,null,null,null,null,null,null,null,null,null,null,null,null,null,{"$f":"IF(COUNTIF(B27,\"*Virement*\"),\"VIR\"&COUNTIF($V$7:V26,\"VIR*\"),IF(COUNTIF($B$8:B27,B27)=1,\"AUT\"&COUNTIF($V$7:V26,\"AUT*\"),\"\"))","v":""},"Virement__AA28","Carla"]
["2015-09-26","Simone",null,null,null,null,null,null,null,null,null,null,null,null,null,null,null,null,null,null,null,{"$f":"IF(COUNTIF(B28,\"*Virement*\"),\"VIR\"&COUNTIF($V$7:V27,\"VIR*\"),IF(COUNTIF($B$8:B28,B28)=1,\"AUT\"&COUNTIF($V$7:V27,\"AUT*\"),\"\"))","v":"AUT9"},"Virement__AA04","Paul"]
["2015-10-28","André",null,null,null,null,null,null,null,null,null,null,null,null,null,null,null,null,null,null,null,{"$f":"IF(COUNTIF(B29,\"*Virement*\"),\"VIR\"&COUNTIF($V$7:V28,\"VIR*\"),IF(COUNTIF($B$8:B29,B29)=1,\"AUT\"&COUNTIF($V$7:V28,\"AUT*\"),\"\"))","v":"AUT10"},"Virement__AA34","Rémi"]
["2015-09-02","Virement__AA63",null,null,null,null,null,null,null,null,null,null,null,null,null,null,null,null,null,null,null,{"$f":"IF(COUNTIF(B30,\"*Virement*\"),\"VIR\"&COUNTIF($V$7:V29,\"VIR*\"),IF(COUNTIF($B$8:B30,B30)=1,\"AUT\"&COUNTIF($V$7:V29,\"AUT*\"),\"\"))","v":"VIR6"},"Virement__AA70","Anne-Marie"]
["2015-08-22","Virement__AA12",null,null,null,null,null,null,null,null,null,null,null,null,null,null,null,null,null,null,null,{"$f":"IF(COUNTIF(B31,\"*Virement*\"),\"VIR\"&COUNTIF($V$7:V30,\"VIR*\"),IF(COUNTIF($B$8:B31,B31)=1,\"AUT\"&COUNTIF($V$7:V30,\"AUT*\"),\"\"))","v":"VIR7"},"Virement__AA24","Marcel"]
["2015-11-18","Francette",null,null,null,null,null,null,null,null,null,null,null,null,null,null,null,null,null,null,null,{"$f":"IF(COUNTIF(B32,\"*Virement*\"),\"VIR\"&COUNTIF($V$7:V31,\"VIR*\"),IF(COUNTIF($B$8:B32,B32)=1,\"AUT\"&COUNTIF($V$7:V31,\"AUT*\"),\"\"))","v":"AUT11"},"Virement__AA47",""]
["2015-07-12","Simone",null,null,null,null,null,null,null,null,null,null,null,null,null,null,null,null,null,null,null,{"$f":"IF(COUNTIF(B33,\"*Virement*\"),\"VIR\"&COUNTIF($V$7:V32,\"VIR*\"),IF(COUNTIF($B$8:B33,B33)=1,\"AUT\"&COUNTIF($V$7:V32,\"AUT*\"),\"\"))","v":""},"Virement__AA22",""]
["2016-01-29","Pierrette",null,null,null,null,null,null,null,null,null,null,null,null,null,null,null,null,null,null,null,{"$f":"IF(COUNTIF(B34,\"*Virement*\"),\"VIR\"&COUNTIF($V$7:V33,\"VIR*\"),IF(COUNTIF($B$8:B34,B34)=1,\"AUT\"&COUNTIF($V$7:V33,\"AUT*\"),\"\"))","v":""},"Virement__AA06",""]
["2015-07-05","Patrick",null,null,null,null,null,null,null,null,null,null,null,null,null,null,null,null,null,null,null,{"$f":"IF(COUNTIF(B35,\"*Virement*\"),\"VIR\"&COUNTIF($V$7:V34,\"VIR*\"),IF(COUNTIF($B$8:B35,B35)=1,\"AUT\"&COUNTIF($V$7:V34,\"AUT*\"),\"\"))","v":""},"Virement__AA16",""]
["2015-05-24","Chrystel",null,null,null,null,null,null,null,null,null,null,null,null,null,null,null,null,null,null,null,{"$f":"IF(COUNTIF(B36,\"*Virement*\"),\"VIR\"&COUNTIF($V$7:V35,\"VIR*\"),IF(COUNTIF($B$8:B36,B36)=1,\"AUT\"&COUNTIF($V$7:V35,\"AUT*\"),\"\"))","v":""},"Virement__AA52",""]
["2015-05-23","Virement__AA48",null,null,null,null,null,null,null,null,null,null,null,null,null,null,null,null,null,null,null,{"$f":"IF(COUNTIF(B37,\"*Virement*\"),\"VIR\"&COUNTIF($V$7:V36,\"VIR*\"),IF(COUNTIF($B$8:B37,B37)=1,\"AUT\"&COUNTIF($V$7:V36,\"AUT*\"),\"\"))","v":"VIR8"},"Virement__AA27",""]
["2015-09-06","Virement__AA51",null,null,null,null,null,null,null,null,null,null,null,null,null,null,null,null,null,null,null,{"$f":"IF(COUNTIF(B38,\"*Virement*\"),\"VIR\"&COUNTIF($V$7:V37,\"VIR*\"),IF(COUNTIF($B$8:B38,B38)=1,\"AUT\"&COUNTIF($V$7:V37,\"AUT*\"),\"\"))","v":"VIR9"},"Virement__AA20",""]
["2015-09-08","Chrystel",null,null,null,null,null,null,null,null,null,null,null,null,null,null,null,null,null,null,null,{"$f":"IF(COUNTIF(B39,\"*Virement*\"),\"VIR\"&COUNTIF($V$7:V38,\"VIR*\"),IF(COUNTIF($B$8:B39,B39)=1,\"AUT\"&COUNTIF($V$7:V38,\"AUT*\"),\"\"))","v":""},"Virement__AA74",""]
["2015-08-13","André",null,null,null,null,null,null,null,null,null,null,null,null,null,null,null,null,null,null,null,{"$f":"IF(COUNTIF(B40,\"*Virement*\"),\"VIR\"&COUNTIF($V$7:V39,\"VIR*\"),IF(COUNTIF($B$8:B40,B40)=1,\"AUT\"&COUNTIF($V$7:V39,\"AUT*\"),\"\"))","v":""},"Virement__AA11",""]
["2015-06-08","Jean-pierre",null,null,null,null,null,null,null,null,null,null,null,null,null,null,null,null,null,null,null,{"$f":"IF(COUNTIF(B41,\"*Virement*\"),\"VIR\"&COUNTIF($V$7:V40,\"VIR*\"),IF(COUNTIF($B$8:B41,B41)=1,\"AUT\"&COUNTIF($V$7:V40,\"AUT*\"),\"\"))","v":"AUT12"},"Virement__AA46",""]
["2015-10-12","Virement__AA64",null,null,null,null,null,null,null,null,null,null,null,null,null,null,null,null,null,null,null,{"$f":"IF(COUNTIF(B42,\"*Virement*\"),\"VIR\"&COUNTIF($V$7:V41,\"VIR*\"),IF(COUNTIF($B$8:B42,B42)=1,\"AUT\"&COUNTIF($V$7:V41,\"AUT*\"),\"\"))","v":"VIR10"},"Virement__AA68",""]
["2015-08-29","Eloide",null,null,null,null,null,null,null,null,null,null,null,null,null,null,null,null,null,null,null,{"$f":"IF(COUNTIF(B43,\"*Virement*\"),\"VIR\"&COUNTIF($V$7:V42,\"VIR*\"),IF(COUNTIF($B$8:B43,B43)=1,\"AUT\"&COUNTIF($V$7:V42,\"AUT*\"),\"\"))","v":""},"Virement__AA29",""]
["2015-05-26","Corinne",null,null,null,null,null,null,null,null,null,null,null,null,null,null,null,null,null,null,null,{"$f":"IF(COUNTIF(B44,\"*Virement*\"),\"VIR\"&COUNTIF($V$7:V43,\"VIR*\"),IF(COUNTIF($B$8:B44,B44)=1,\"AUT\"&COUNTIF($V$7:V43,\"AUT*\"),\"\"))","v":"AUT13"},"Virement__AA50",""]
["2015-07-02","Ewan",null,null,null,null,null,null,null,null,null,null,null,null,null,null,null,null,null,null,null,{"$f":"IF(COUNTIF(B45,\"*Virement*\"),\"VIR\"&COUNTIF($V$7:V44,\"VIR*\"),IF(COUNTIF($B$8:B45,B45)=1,\"AUT\"&COUNTIF($V$7:V44,\"AUT*\"),\"\"))","v":"AUT14"},"Virement__AA21",""]
["2015-11-17","Pierrette",null,null,null,null,null,null,null,null,null,null,null,null,null,null,null,null,null,null,null,{"$f":"IF(COUNTIF(B46,\"*Virement*\"),\"VIR\"&COUNTIF($V$7:V45,\"VIR*\"),IF(COUNTIF($B$8:B46,B46)=1,\"AUT\"&COUNTIF($V$7:V45,\"AUT*\"),\"\"))","v":""},"Virement__AA31",""]
["2015-08-05","Virement__AA71",null,null,null,null,null,null,null,null,null,null,null,null,null,null,null,null,null,null,null,{"$f":"IF(COUNTIF(B47,\"*Virement*\"),\"VIR\"&COUNTIF($V$7:V46,\"VIR*\"),IF(COUNTIF($B$8:B47,B47)=1,\"AUT\"&COUNTIF($V$7:V46,\"AUT*\"),\"\"))","v":"VIR11"},"Virement__AA75",""]
["2015-12-20","Chrystel",null,null,null,null,null,null,null,null,null,null,null,null,null,null,null,null,null,null,null,{"$f":"IF(COUNTIF(B48,\"*Virement*\"),\"VIR\"&COUNTIF($V$7:V47,\"VIR*\"),IF(COUNTIF($B$8:B48,B48)=1,\"AUT\"&COUNTIF($V$7:V47,\"AUT*\"),\"\"))","v":""},"Virement__AA67",""]
["2015-08-04","Virement__AA19",null,null,null,null,null,null,null,null,null,null,null,null,null,null,null,null,null,null,null,{"$f":"IF(COUNTIF(B49,\"*Virement*\"),\"VIR\"&COUNTIF($V$7:V48,\"VIR*\"),IF(COUNTIF($B$8:B49,B49)=1,\"AUT\"&COUNTIF($V$7:V48,\"AUT*\"),\"\"))","v":"VIR12"},"Virement__AA60",""]
["2015-10-29","Léa",null,null,null,null,null,null,null,null,null,null,null,null,null,null,null,null,null,null,null,{"$f":"IF(COUNTIF(B50,\"*Virement*\"),\"VIR\"&COUNTIF($V$7:V49,\"VIR*\"),IF(COUNTIF($B$8:B50,B50)=1,\"AUT\"&COUNTIF($V$7:V49,\"AUT*\"),\"\"))","v":""},"Virement__AA55",""]
["2015-06-25","Virement__AA40",null,null,null,null,null,null,null,null,null,null,null,null,null,null,null,null,null,null,null,{"$f":"IF(COUNTIF(B51,\"*Virement*\"),\"VIR\"&COUNTIF($V$7:V50,\"VIR*\"),IF(COUNTIF($B$8:B51,B51)=1,\"AUT\"&COUNTIF($V$7:V50,\"AUT*\"),\"\"))","v":"VIR13"},"Virement__AA23",""]
["2015-06-17","Virement__AA61",null,null,null,null,null,null,null,null,null,null,null,null,null,null,null,null,null,null,null,{"$f":"IF(COUNTIF(B52,\"*Virement*\"),\"VIR\"&COUNTIF($V$7:V51,\"VIR*\"),IF(COUNTIF($B$8:B52,B52)=1,\"AUT\"&COUNTIF($V$7:V51,\"AUT*\"),\"\"))","v":"VIR14"},"Virement__AA26",""]
["2015-07-16","Virement__AA45",null,null,null,null,null,null,null,null,null,null,null,null,null,null,null,null,null,null,null,{"$f":"IF(COUNTIF(B53,\"*Virement*\"),\"VIR\"&COUNTIF($V$7:V52,\"VIR*\"),IF(COUNTIF($B$8:B53,B53)=1,\"AUT\"&COUNTIF($V$7:V52,\"AUT*\"),\"\"))","v":"VIR15"},"Virement__AA69",""]
["2015-11-03","Renè",null,null,null,null,null,null,null,null,null,null,null,null,null,null,null,null,null,null,null,{"$f":"IF(COUNTIF(B54,\"*Virement*\"),\"VIR\"&COUNTIF($V$7:V53,\"VIR*\"),IF(COUNTIF($B$8:B54,B54)=1,\"AUT\"&COUNTIF($V$7:V53,\"AUT*\"),\"\"))","v":"AUT15"},"Virement__AA05",""]
["2015-06-23","Virement__AA32",null,null,null,null,null,null,null,null,null,null,null,null,null,null,null,null,null,null,null,{"$f":"IF(COUNTIF(B55,\"*Virement*\"),\"VIR\"&COUNTIF($V$7:V54,\"VIR*\"),IF(COUNTIF($B$8:B55,B55)=1,\"AUT\"&COUNTIF($V$7:V54,\"AUT*\"),\"\"))","v":"VIR16"},"Virement__AA36",""]
["2015-07-25","Virement__AA77",null,null,null,null,null,null,null,null,null,null,null,null,null,null,null,null,null,null,null,{"$f":"IF(COUNTIF(B56,\"*Virement*\"),\"VIR\"&COUNTIF($V$7:V55,\"VIR*\"),IF(COUNTIF($B$8:B56,B56)=1,\"AUT\"&COUNTIF($V$7:V55,\"AUT*\"),\"\"))","v":"VIR17"},"Virement__AA00",""]
["2015-10-26","Virement__AA38",null,null,null,null,null,null,null,null,null,null,null,null,null,null,null,null,null,null,null,{"$f":"IF(COUNTIF(B57,\"*Virement*\"),\"VIR\"&COUNTIF($V$7:V56,\"VIR*\"),IF(COUNTIF($B$8:B57,B57)=1,\"AUT\"&COUNTIF($V$7:V56,\"AUT*\"),\"\"))","v":"VIR18"},"Virement__AA54",""]
["2015-11-20","Madeleine",null,null,null,null,null,null,null,null,null,null,null,null,null,null,null,null,null,null,null,{"$f":"IF(COUNTIF(B58,\"*Virement*\"),\"VIR\"&COUNTIF($V$7:V57,\"VIR*\"),IF(COUNTIF($B$8:B58,B58)=1,\"AUT\"&COUNTIF($V$7:V57,\"AUT*\"),\"\"))","v":"AUT16"},"Virement__AA58",""]
["2015-11-25","Pierrette",null,null,null,null,null,null,null,null,null,null,null,null,null,null,null,null,null,null,null,{"$f":"IF(COUNTIF(B59,\"*Virement*\"),\"VIR\"&COUNTIF($V$7:V58,\"VIR*\"),IF(COUNTIF($B$8:B59,B59)=1,\"AUT\"&COUNTIF($V$7:V58,\"AUT*\"),\"\"))","v":""},"Virement__AA08",""]
["2015-07-22","Michel",null,null,null,null,null,null,null,null,null,null,null,null,null,null,null,null,null,null,null,{"$f":"IF(COUNTIF(B60,\"*Virement*\"),\"VIR\"&COUNTIF($V$7:V59,\"VIR*\"),IF(COUNTIF($B$8:B60,B60)=1,\"AUT\"&COUNTIF($V$7:V59,\"AUT*\"),\"\"))","v":"AUT17"},"Virement__AA73",""]
["2015-10-18","Jaqueline",null,null,null,null,null,null,null,null,null,null,null,null,null,null,null,null,null,null,null,{"$f":"IF(COUNTIF(B61,\"*Virement*\"),\"VIR\"&COUNTIF($V$7:V60,\"VIR*\"),IF(COUNTIF($B$8:B61,B61)=1,\"AUT\"&COUNTIF($V$7:V60,\"AUT*\"),\"\"))","v":"AUT18"},"Virement__AA02",""]
["2015-10-22","Philippe",null,null,null,null,null,null,null,null,null,null,null,null,null,null,null,null,null,null,null,{"$f":"IF(COUNTIF(B62,\"*Virement*\"),\"VIR\"&COUNTIF($V$7:V61,\"VIR*\"),IF(COUNTIF($B$8:B62,B62)=1,\"AUT\"&COUNTIF($V$7:V61,\"AUT*\"),\"\"))","v":""},"Virement__AA41",""]
["2016-01-18","Carla",null,null,null,null,null,null,null,null,null,null,null,null,null,null,null,null,null,null,null,{"$f":"IF(COUNTIF(B63,\"*Virement*\"),\"VIR\"&COUNTIF($V$7:V62,\"VIR*\"),IF(COUNTIF($B$8:B63,B63)=1,\"AUT\"&COUNTIF($V$7:V62,\"AUT*\"),\"\"))","v":"AUT19"},"Virement__AA76",""]
["2015-07-07","Madeleine",null,null,null,null,null,null,null,null,null,null,null,null,null,null,null,null,null,null,null,{"$f":"IF(COUNTIF(B64,\"*Virement*\"),\"VIR\"&COUNTIF($V$7:V63,\"VIR*\"),IF(COUNTIF($B$8:B64,B64)=1,\"AUT\"&COUNTIF($V$7:V63,\"AUT*\"),\"\"))","v":""},"Virement__AA17",""]
["2015-09-19","Jean-pierre",null,null,null,null,null,null,null,null,null,null,null,null,null,null,null,null,null,null,null,{"$f":"IF(COUNTIF(B65,\"*Virement*\"),\"VIR\"&COUNTIF($V$7:V64,\"VIR*\"),IF(COUNTIF($B$8:B65,B65)=1,\"AUT\"&COUNTIF($V$7:V64,\"AUT*\"),\"\"))","v":""},"Virement__AA65",""]
["2016-01-14","Jean-pierre",null,null,null,null,null,null,null,null,null,null,null,null,null,null,null,null,null,null,null,{"$f":"IF(COUNTIF(B66,\"*Virement*\"),\"VIR\"&COUNTIF($V$7:V65,\"VIR*\"),IF(COUNTIF($B$8:B66,B66)=1,\"AUT\"&COUNTIF($V$7:V65,\"AUT*\"),\"\"))","v":""},"Virement__AA53",""]
["2015-06-10","Jean-pierre",null,null,null,null,null,null,null,null,null,null,null,null,null,null,null,null,null,null,null,{"$f":"IF(COUNTIF(B67,\"*Virement*\"),\"VIR\"&COUNTIF($V$7:V66,\"VIR*\"),IF(COUNTIF($B$8:B67,B67)=1,\"AUT\"&COUNTIF($V$7:V66,\"AUT*\"),\"\"))","v":""},"Virement__AA13",""]
["2015-11-13","Virement__AA28",null,null,null,null,null,null,null,null,null,null,null,null,null,null,null,null,null,null,null,{"$f":"IF(COUNTIF(B68,\"*Virement*\"),\"VIR\"&COUNTIF($V$7:V67,\"VIR*\"),IF(COUNTIF($B$8:B68,B68)=1,\"AUT\"&COUNTIF($V$7:V67,\"AUT*\"),\"\"))","v":"VIR19"},"Virement__AA37",""]
["2015-11-07","Paul",null,null,null,null,null,null,null,null,null,null,null,null,null,null,null,null,null,null,null,{"$f":"IF(COUNTIF(B69,\"*Virement*\"),\"VIR\"&COUNTIF($V$7:V68,\"VIR*\"),IF(COUNTIF($B$8:B69,B69)=1,\"AUT\"&COUNTIF($V$7:V68,\"AUT*\"),\"\"))","v":"AUT20"},"Virement__AA59",""]
["2016-01-16","Virement__AA04",null,null,null,null,null,null,null,null,null,null,null,null,null,null,null,null,null,null,null,{"$f":"IF(COUNTIF(B70,\"*Virement*\"),\"VIR\"&COUNTIF($V$7:V69,\"VIR*\"),IF(COUNTIF($B$8:B70,B70)=1,\"AUT\"&COUNTIF($V$7:V69,\"AUT*\"),\"\"))","v":"VIR20"},"Virement__AA25",""]
["2015-06-26","Virement__AA34",null,null,null,null,null,null,null,null,null,null,null,null,null,null,null,null,null,null,null,{"$f":"IF(COUNTIF(B71,\"*Virement*\"),\"VIR\"&COUNTIF($V$7:V70,\"VIR*\"),IF(COUNTIF($B$8:B71,B71)=1,\"AUT\"&COUNTIF($V$7:V70,\"AUT*\"),\"\"))","v":"VIR21"},"Virement__AA01",""]
["2015-10-04","Chrystel",null,null,null,null,null,null,null,null,null,null,null,null,null,null,null,null,null,null,null,{"$f":"IF(COUNTIF(B72,\"*Virement*\"),\"VIR\"&COUNTIF($V$7:V71,\"VIR*\"),IF(COUNTIF($B$8:B72,B72)=1,\"AUT\"&COUNTIF($V$7:V71,\"AUT*\"),\"\"))","v":""},"Virement__AA44",""]
["2015-11-11","Virement__AA70",null,null,null,null,null,null,null,null,null,null,null,null,null,null,null,null,null,null,null,{"$f":"IF(COUNTIF(B73,\"*Virement*\"),\"VIR\"&COUNTIF($V$7:V72,\"VIR*\"),IF(COUNTIF($B$8:B73,B73)=1,\"AUT\"&COUNTIF($V$7:V72,\"AUT*\"),\"\"))","v":"VIR22"},{"$f":"IFERROR(INDEX(B:B,MATCH(\"VIR\"&ROW()-8,V:V,0)),\"\")","v":"Virement__AA72"},{"$f":"IFERROR(INDEX($B:$B,MATCH(\"AUT\"&ROW()-8,$V:$V,0)),\"\")","v":""}]
["2015-07-04","Monique",null,null,null,null,null,null,null,null,null,null,null,null,null,null,null,null,null,null,null,{"$f":"IF(COUNTIF(B74,\"*Virement*\"),\"VIR\"&COUNTIF($V$7:V73,\"VIR*\"),IF(COUNTIF($B$8:B74,B74)=1,\"AUT\"&COUNTIF($V$7:V73,\"AUT*\"),\"\"))","v":""},"Virement__AA57",""]
["2015-11-09","Virement__AA24",null,null,null,null,null,null,null,null,null,null,null,null,null,null,null,null,null,null,null,{"$f":"IF(COUNTIF(B75,\"*Virement*\"),\"VIR\"&COUNTIF($V$7:V74,\"VIR*\"),IF(COUNTIF($B$8:B75,B75)=1,\"AUT\"&COUNTIF($V$7:V74,\"AUT*\"),\"\"))","v":"VIR23"},"Virement__AA35",""]
["2015-12-05","Virement__AA47",null,null,null,null,null,null,null,null,null,null,null,null,null,null,null,null,null,null,null,{"$f":"IF(COUNTIF(B76,\"*Virement*\"),\"VIR\"&COUNTIF($V$7:V75,\"VIR*\"),IF(COUNTIF($B$8:B76,B76)=1,\"AUT\"&COUNTIF($V$7:V75,\"AUT*\"),\"\"))","v":"VIR24"},"Virement__AA30",""]
["2015-12-17","Carla",null,null,null,null,null,null,null,null,null,null,null,null,null,null,null,null,null,null,null,{"$f":"IF(COUNTIF(B77,\"*Virement*\"),\"VIR\"&COUNTIF($V$7:V76,\"VIR*\"),IF(COUNTIF($B$8:B77,B77)=1,\"AUT\"&COUNTIF($V$7:V76,\"AUT*\"),\"\"))","v":""},"Virement__AA09",""]
["2015-12-18","Corinne",null,null,null,null,null,null,null,null,null,null,null,null,null,null,null,null,null,null,null,{"$f":"IF(COUNTIF(B78,\"*Virement*\"),\"VIR\"&COUNTIF($V$7:V77,\"VIR*\"),IF(COUNTIF($B$8:B78,B78)=1,\"AUT\"&COUNTIF($V$7:V77,\"AUT*\"),\"\"))","v":""},"Virement__AA49",""]
["2015-11-05","Virement__AA22",null,null,null,null,null,null,null,null,null,null,null,null,null,null,null,null,null,null,null,{"$f":"IF(COUNTIF(B79,\"*Virement*\"),\"VIR\"&COUNTIF($V$7:V78,\"VIR*\"),IF(COUNTIF($B$8:B79,B79)=1,\"AUT\"&COUNTIF($V$7:V78,\"AUT*\"),\"\"))","v":"VIR25"},"Virement__AA18",""]
["2016-01-08","André",null,null,null,null,null,null,null,null,null,null,null,null,null,null,null,null,null,null,null,{"$f":"IF(COUNTIF(B80,\"*Virement*\"),\"VIR\"&COUNTIF($V$7:V79,\"VIR*\"),IF(COUNTIF($B$8:B80,B80)=1,\"AUT\"&COUNTIF($V$7:V79,\"AUT*\"),\"\"))","v":""},"Virement__AA33",""]
["2016-01-03","Michel",null,null,null,null,null,null,null,null,null,null,null,null,null,null,null,null,null,null,null,{"$f":"IF(COUNTIF(B81,\"*Virement*\"),\"VIR\"&COUNTIF($V$7:V80,\"VIR*\"),IF(COUNTIF($B$8:B81,B81)=1,\"AUT\"&COUNTIF($V$7:V80,\"AUT*\"),\"\"))","v":""},"Virement__AA56",""]
["2015-05-31","Renè",null,null,null,null,null,null,null,null,null,null,null,null,null,null,null,null,null,null,null,{"$f":"IF(COUNTIF(B82,\"*Virement*\"),\"VIR\"&COUNTIF($V$7:V81,\"VIR*\"),IF(COUNTIF($B$8:B82,B82)=1,\"AUT\"&COUNTIF($V$7:V81,\"AUT*\"),\"\"))","v":""},"Virement__AA03",""]
["2015-08-11","Michel",null,null,null,null,null,null,null,null,null,null,null,null,null,null,null,null,null,null,null,{"$f":"IF(COUNTIF(B83,\"*Virement*\"),\"VIR\"&COUNTIF($V$7:V82,\"VIR*\"),IF(COUNTIF($B$8:B83,B83)=1,\"AUT\"&COUNTIF($V$7:V82,\"AUT*\"),\"\"))","v":""},"Virement__AA15",""]
["2016-01-10","Paul",null,null,null,null,null,null,null,null,null,null,null,null,null,null,null,null,null,null,null,{"$f":"IF(COUNTIF(B84,\"*Virement*\"),\"VIR\"&COUNTIF($V$7:V83,\"VIR*\"),IF(COUNTIF($B$8:B84,B84)=1,\"AUT\"&COUNTIF($V$7:V83,\"AUT*\"),\"\"))","v":""},"Virement__AA07",""]
["2015-06-03","Madeleine",null,null,null,null,null,null,null,null,null,null,null,null,null,null,null,null,null,null,null,{"$f":"IF(COUNTIF(B85,\"*Virement*\"),\"VIR\"&COUNTIF($V$7:V84,\"VIR*\"),IF(COUNTIF($B$8:B85,B85)=1,\"AUT\"&COUNTIF($V$7:V84,\"AUT*\"),\"\"))","v":""},"Virement__AA62",""]
["2015-08-25","Rémi",null,null,null,null,null,null,null,null,null,null,null,null,null,null,null,null,null,null,null,{"$f":"IF(COUNTIF(B86,\"*Virement*\"),\"VIR\"&COUNTIF($V$7:V85,\"VIR*\"),IF(COUNTIF($B$8:B86,B86)=1,\"AUT\"&COUNTIF($V$7:V85,\"AUT*\"),\"\"))","v":"AUT21"},"Virement__AA10",""]
["2015-12-04","Jean-pierre",null,null,null,null,null,null,null,null,null,null,null,null,null,null,null,null,null,null,null,{"$f":"IF(COUNTIF(B87,\"*Virement*\"),\"VIR\"&COUNTIF($V$7:V86,\"VIR*\"),IF(COUNTIF($B$8:B87,B87)=1,\"AUT\"&COUNTIF($V$7:V86,\"AUT*\"),\"\"))","v":""},"",""]
["2015-11-16","Patrick",null,null,null,null,null,null,null,null,null,null,null,null,null,null,null,null,null,null,null,{"$f":"IF(COUNTIF(B88,\"*Virement*\"),\"VIR\"&COUNTIF($V$7:V87,\"VIR*\"),IF(COUNTIF($B$8:B88,B88)=1,\"AUT\"&COUNTIF($V$7:V87,\"AUT*\"),\"\"))","v":""},"",""]
["2015-06-24","Virement__AA06",null,null,null,null,null,null,null,null,null,null,null,null,null,null,null,null,null,null,null,{"$f":"IF(COUNTIF(B89,\"*Virement*\"),\"VIR\"&COUNTIF($V$7:V88,\"VIR*\"),IF(COUNTIF($B$8:B89,B89)=1,\"AUT\"&COUNTIF($V$7:V88,\"AUT*\"),\"\"))","v":"VIR26"},"",""]
["2015-11-10","Virement__AA16",null,null,null,null,null,null,null,null,null,null,null,null,null,null,null,null,null,null,null,{"$f":"IF(COUNTIF(B90,\"*Virement*\"),\"VIR\"&COUNTIF($V$7:V89,\"VIR*\"),IF(COUNTIF($B$8:B90,B90)=1,\"AUT\"&COUNTIF($V$7:V89,\"AUT*\"),\"\"))","v":"VIR27"},"",""]
["2015-09-11","André",null,null,null,null,null,null,null,null,null,null,null,null,null,null,null,null,null,null,null,{"$f":"IF(COUNTIF(B91,\"*Virement*\"),\"VIR\"&COUNTIF($V$7:V90,\"VIR*\"),IF(COUNTIF($B$8:B91,B91)=1,\"AUT\"&COUNTIF($V$7:V90,\"AUT*\"),\"\"))","v":""},"",""]
["2015-11-23","Eric",null,null,null,null,null,null,null,null,null,null,null,null,null,null,null,null,null,null,null,{"$f":"IF(COUNTIF(B92,\"*Virement*\"),\"VIR\"&COUNTIF($V$7:V91,\"VIR*\"),IF(COUNTIF($B$8:B92,B92)=1,\"AUT\"&COUNTIF($V$7:V91,\"AUT*\"),\"\"))","v":""},"",""]
["2015-12-02","Virement__AA52",null,null,null,null,null,null,null,null,null,null,null,null,null,null,null,null,null,null,null,{"$f":"IF(COUNTIF(B93,\"*Virement*\"),\"VIR\"&COUNTIF($V$7:V92,\"VIR*\"),IF(COUNTIF($B$8:B93,B93)=1,\"AUT\"&COUNTIF($V$7:V92,\"AUT*\"),\"\"))","v":"VIR28"},"",""]
["2015-07-18","Eric",null,null,null,null,null,null,null,null,null,null,null,null,null,null,null,null,null,null,null,{"$f":"IF(COUNTIF(B94,\"*Virement*\"),\"VIR\"&COUNTIF($V$7:V93,\"VIR*\"),IF(COUNTIF($B$8:B94,B94)=1,\"AUT\"&COUNTIF($V$7:V93,\"AUT*\"),\"\"))","v":""},"",""]
["2015-06-01","Jean-pierre",null,null,null,null,null,null,null,null,null,null,null,null,null,null,null,null,null,null,null,{"$f":"IF(COUNTIF(B95,\"*Virement*\"),\"VIR\"&COUNTIF($V$7:V94,\"VIR*\"),IF(COUNTIF($B$8:B95,B95)=1,\"AUT\"&COUNTIF($V$7:V94,\"AUT*\"),\"\"))","v":""},"",""]
["2015-11-29","Michel",null,null,null,null,null,null,null,null,null,null,null,null,null,null,null,null,null,null,null,{"$f":"IF(COUNTIF(B96,\"*Virement*\"),\"VIR\"&COUNTIF($V$7:V95,\"VIR*\"),IF(COUNTIF($B$8:B96,B96)=1,\"AUT\"&COUNTIF($V$7:V95,\"AUT*\"),\"\"))","v":""},"",""]
["2015-11-04","Eric",null,null,null,null,null,null,null,null,null,null,null,null,null,null,null,null,null,null,null,{"$f":"IF(COUNTIF(B97,\"*Virement*\"),\"VIR\"&COUNTIF($V$7:V96,\"VIR*\"),IF(COUNTIF($B$8:B97,B97)=1,\"AUT\"&COUNTIF($V$7:V96,\"AUT*\"),\"\"))","v":""},"",""]
["2015-09-10","Jean-pierre",null,null,null,null,null,null,null,null,null,null,null,null,null,null,null,null,null,null,null,{"$f":"IF(COUNTIF(B98,\"*Virement*\"),\"VIR\"&COUNTIF($V$7:V97,\"VIR*\"),IF(COUNTIF($B$8:B98,B98)=1,\"AUT\"&COUNTIF($V$7:V97,\"AUT*\"),\"\"))","v":""},"",""]
["2015-08-12","Monique",null,null,null,null,null,null,null,null,null,null,null,null,null,null,null,null,null,null,null,{"$f":"IF(COUNTIF(B99,\"*Virement*\"),\"VIR\"&COUNTIF($V$7:V98,\"VIR*\"),IF(COUNTIF($B$8:B99,B99)=1,\"AUT\"&COUNTIF($V$7:V98,\"AUT*\"),\"\"))","v":""},"",""]
["2015-08-06","Rémi",null,null,null,null,null,null,null,null,null,null,null,null,null,null,null,null,null,null,null,{"$f":"IF(COUNTIF(B100,\"*Virement*\"),\"VIR\"&COUNTIF($V$7:V99,\"VIR*\"),IF(COUNTIF($B$8:B100,B100)=1,\"AUT\"&COUNTIF($V$7:V99,\"AUT*\"),\"\"))","v":""},"",""]
["2015-11-12","Francette",null,null,null,null,null,null,null,null,null,null,null,null,null,null,null,null,null,null,null,{"$f":"IF(COUNTIF(B101,\"*Virement*\"),\"VIR\"&COUNTIF($V$7:V100,\"VIR*\"),IF(COUNTIF($B$8:B101,B101)=1,\"AUT\"&COUNTIF($V$7:V100,\"AUT*\"),\"\"))","v":""},"",""]
["2015-09-23","André",null,null,null,null,null,null,null,null,null,null,null,null,null,null,null,null,null,null,null,{"$f":"IF(COUNTIF(B102,\"*Virement*\"),\"VIR\"&COUNTIF($V$7:V101,\"VIR*\"),IF(COUNTIF($B$8:B102,B102)=1,\"AUT\"&COUNTIF($V$7:V101,\"AUT*\"),\"\"))","v":""},"",""]
["2015-09-27","Virement__AA27",null,null,null,null,null,null,null,null,null,null,null,null,null,null,null,null,null,null,null,{"$f":"IF(COUNTIF(B103,\"*Virement*\"),\"VIR\"&COUNTIF($V$7:V102,\"VIR*\"),IF(COUNTIF($B$8:B103,B103)=1,\"AUT\"&COUNTIF($V$7:V102,\"AUT*\"),\"\"))","v":"VIR29"},"",""]
["2015-09-05","André",null,null,null,null,null,null,null,null,null,null,null,null,null,null,null,null,null,null,null,{"$f":"IF(COUNTIF(B104,\"*Virement*\"),\"VIR\"&COUNTIF($V$7:V103,\"VIR*\"),IF(COUNTIF($B$8:B104,B104)=1,\"AUT\"&COUNTIF($V$7:V103,\"AUT*\"),\"\"))","v":""},"",""]
["2015-10-13","Eloide",null,null,null,null,null,null,null,null,null,null,null,null,null,null,null,null,null,null,null,{"$f":"IF(COUNTIF(B105,\"*Virement*\"),\"VIR\"&COUNTIF($V$7:V104,\"VIR*\"),IF(COUNTIF($B$8:B105,B105)=1,\"AUT\"&COUNTIF($V$7:V104,\"AUT*\"),\"\"))","v":""},"",""]
["2015-11-21","Ewan",null,null,null,null,null,null,null,null,null,null,null,null,null,null,null,null,null,null,null,{"$f":"IF(COUNTIF(B106,\"*Virement*\"),\"VIR\"&COUNTIF($V$7:V105,\"VIR*\"),IF(COUNTIF($B$8:B106,B106)=1,\"AUT\"&COUNTIF($V$7:V105,\"AUT*\"),\"\"))","v":""},"",""]
["2015-08-20","Ewan",null,null,null,null,null,null,null,null,null,null,null,null,null,null,null,null,null,null,null,{"$f":"IF(COUNTIF(B107,\"*Virement*\"),\"VIR\"&COUNTIF($V$7:V106,\"VIR*\"),IF(COUNTIF($B$8:B107,B107)=1,\"AUT\"&COUNTIF($V$7:V106,\"AUT*\"),\"\"))","v":""},"",""]
["2015-12-07","Philippe",null,null,null,null,null,null,null,null,null,null,null,null,null,null,null,null,null,null,null,{"$f":"IF(COUNTIF(B108,\"*Virement*\"),\"VIR\"&COUNTIF($V$7:V107,\"VIR*\"),IF(COUNTIF($B$8:B108,B108)=1,\"AUT\"&COUNTIF($V$7:V107,\"AUT*\"),\"\"))","v":""},"",""]
["2015-09-18","Patrick",null,null,null,null,null,null,null,null,null,null,null,null,null,null,null,null,null,null,null,{"$f":"IF(COUNTIF(B109,\"*Virement*\"),\"VIR\"&COUNTIF($V$7:V108,\"VIR*\"),IF(COUNTIF($B$8:B109,B109)=1,\"AUT\"&COUNTIF($V$7:V108,\"AUT*\"),\"\"))","v":""},"",""]
["2015-07-09","Renè",null,null,null,null,null,null,null,null,null,null,null,null,null,null,null,null,null,null,null,{"$f":"IF(COUNTIF(B110,\"*Virement*\"),\"VIR\"&COUNTIF($V$7:V109,\"VIR*\"),IF(COUNTIF($B$8:B110,B110)=1,\"AUT\"&COUNTIF($V$7:V109,\"AUT*\"),\"\"))","v":""},"",""]
["2015-08-01","Corinne",null,null,null,null,null,null,null,null,null,null,null,null,null,null,null,null,null,null,null,{"$f":"IF(COUNTIF(B111,\"*Virement*\"),\"VIR\"&COUNTIF($V$7:V110,\"VIR*\"),IF(COUNTIF($B$8:B111,B111)=1,\"AUT\"&COUNTIF($V$7:V110,\"AUT*\"),\"\"))","v":""},"",""]
["2015-07-17","Corinne",null,null,null,null,null,null,null,null,null,null,null,null,null,null,null,null,null,null,null,{"$f":"IF(COUNTIF(B112,\"*Virement*\"),\"VIR\"&COUNTIF($V$7:V111,\"VIR*\"),IF(COUNTIF($B$8:B112,B112)=1,\"AUT\"&COUNTIF($V$7:V111,\"AUT*\"),\"\"))","v":""},"",""]
["2015-10-27","Virement__AA20",null,null,null,null,null,null,null,null,null,null,null,null,null,null,null,null,null,null,null,{"$f":"IF(COUNTIF(B113,\"*Virement*\"),\"VIR\"&COUNTIF($V$7:V112,\"VIR*\"),IF(COUNTIF($B$8:B113,B113)=1,\"AUT\"&COUNTIF($V$7:V112,\"AUT*\"),\"\"))","v":"VIR30"},"",""]
["2015-08-15","Virement__AA74",null,null,null,null,null,null,null,null,null,null,null,null,null,null,null,null,null,null,null,{"$f":"IF(COUNTIF(B114,\"*Virement*\"),\"VIR\"&COUNTIF($V$7:V113,\"VIR*\"),IF(COUNTIF($B$8:B114,B114)=1,\"AUT\"&COUNTIF($V$7:V113,\"AUT*\"),\"\"))","v":"VIR31"},"",""]
["2015-11-14","Virement__AA11",null,null,null,null,null,null,null,null,null,null,null,null,null,null,null,null,null,null,null,{"$f":"IF(COUNTIF(B115,\"*Virement*\"),\"VIR\"&COUNTIF($V$7:V114,\"VIR*\"),IF(COUNTIF($B$8:B115,B115)=1,\"AUT\"&COUNTIF($V$7:V114,\"AUT*\"),\"\"))","v":"VIR32"},"",""]
["2015-08-21","Léa",null,null,null,null,null,null,null,null,null,null,null,null,null,null,null,null,null,null,null,{"$f":"IF(COUNTIF(B116,\"*Virement*\"),\"VIR\"&COUNTIF($V$7:V115,\"VIR*\"),IF(COUNTIF($B$8:B116,B116)=1,\"AUT\"&COUNTIF($V$7:V115,\"AUT*\"),\"\"))","v":""},"",""]
["2015-06-30","Virement__AA46",null,null,null,null,null,null,null,null,null,null,null,null,null,null,null,null,null,null,null,{"$f":"IF(COUNTIF(B117,\"*Virement*\"),\"VIR\"&COUNTIF($V$7:V116,\"VIR*\"),IF(COUNTIF($B$8:B117,B117)=1,\"AUT\"&COUNTIF($V$7:V116,\"AUT*\"),\"\"))","v":"VIR33"},"",""]
["2015-12-14","Jean-pierre",null,null,null,null,null,null,null,null,null,null,null,null,null,null,null,null,null,null,null,{"$f":"IF(COUNTIF(B118,\"*Virement*\"),\"VIR\"&COUNTIF($V$7:V117,\"VIR*\"),IF(COUNTIF($B$8:B118,B118)=1,\"AUT\"&COUNTIF($V$7:V117,\"AUT*\"),\"\"))","v":""},"",""]
["2016-01-25","Virement__AA68",null,null,null,null,null,null,null,null,null,null,null,null,null,null,null,null,null,null,null,{"$f":"IF(COUNTIF(B119,\"*Virement*\"),\"VIR\"&COUNTIF($V$7:V118,\"VIR*\"),IF(COUNTIF($B$8:B119,B119)=1,\"AUT\"&COUNTIF($V$7:V118,\"AUT*\"),\"\"))","v":"VIR34"},"",""]
["2015-12-19","Ewan",null,null,null,null,null,null,null,null,null,null,null,null,null,null,null,null,null,null,null,{"$f":"IF(COUNTIF(B120,\"*Virement*\"),\"VIR\"&COUNTIF($V$7:V119,\"VIR*\"),IF(COUNTIF($B$8:B120,B120)=1,\"AUT\"&COUNTIF($V$7:V119,\"AUT*\"),\"\"))","v":""},"",""]
["2015-06-28","Rémi",null,null,null,null,null,null,null,null,null,null,null,null,null,null,null,null,null,null,null,{"$f":"IF(COUNTIF(B121,\"*Virement*\"),\"VIR\"&COUNTIF($V$7:V120,\"VIR*\"),IF(COUNTIF($B$8:B121,B121)=1,\"AUT\"&COUNTIF($V$7:V120,\"AUT*\"),\"\"))","v":""},"",""]
["2015-12-01","Madeleine",null,null,null,null,null,null,null,null,null,null,null,null,null,null,null,null,null,null,null,{"$f":"IF(COUNTIF(B122,\"*Virement*\"),\"VIR\"&COUNTIF($V$7:V121,\"VIR*\"),IF(COUNTIF($B$8:B122,B122)=1,\"AUT\"&COUNTIF($V$7:V121,\"AUT*\"),\"\"))","v":""},"",""]
["2015-06-11","Virement__AA29",null,null,null,null,null,null,null,null,null,null,null,null,null,null,null,null,null,null,null,{"$f":"IF(COUNTIF(B123,\"*Virement*\"),\"VIR\"&COUNTIF($V$7:V122,\"VIR*\"),IF(COUNTIF($B$8:B123,B123)=1,\"AUT\"&COUNTIF($V$7:V122,\"AUT*\"),\"\"))","v":"VIR35"},"",""]
["2015-11-28","Anne-Marie",null,null,null,null,null,null,null,null,null,null,null,null,null,null,null,null,null,null,null,{"$f":"IF(COUNTIF(B124,\"*Virement*\"),\"VIR\"&COUNTIF($V$7:V123,\"VIR*\"),IF(COUNTIF($B$8:B124,B124)=1,\"AUT\"&COUNTIF($V$7:V123,\"AUT*\"),\"\"))","v":"AUT22"},"",""]
["2015-07-08","Virement__AA50",null,null,null,null,null,null,null,null,null,null,null,null,null,null,null,null,null,null,null,{"$f":"IF(COUNTIF(B125,\"*Virement*\"),\"VIR\"&COUNTIF($V$7:V124,\"VIR*\"),IF(COUNTIF($B$8:B125,B125)=1,\"AUT\"&COUNTIF($V$7:V124,\"AUT*\"),\"\"))","v":"VIR36"},"",""]
["2015-07-11","Jean-pierre",null,null,null,null,null,null,null,null,null,null,null,null,null,null,null,null,null,null,null,{"$f":"IF(COUNTIF(B126,\"*Virement*\"),\"VIR\"&COUNTIF($V$7:V125,\"VIR*\"),IF(COUNTIF($B$8:B126,B126)=1,\"AUT\"&COUNTIF($V$7:V125,\"AUT*\"),\"\"))","v":""},"",""]
["2015-07-23","Léa",null,null,null,null,null,null,null,null,null,null,null,null,null,null,null,null,null,null,null,{"$f":"IF(COUNTIF(B127,\"*Virement*\"),\"VIR\"&COUNTIF($V$7:V126,\"VIR*\"),IF(COUNTIF($B$8:B127,B127)=1,\"AUT\"&COUNTIF($V$7:V126,\"AUT*\"),\"\"))","v":""},"",""]
["2015-06-14","Virement__AA21",null,null,null,null,null,null,null,null,null,null,null,null,null,null,null,null,null,null,null,{"$f":"IF(COUNTIF(B128,\"*Virement*\"),\"VIR\"&COUNTIF($V$7:V127,\"VIR*\"),IF(COUNTIF($B$8:B128,B128)=1,\"AUT\"&COUNTIF($V$7:V127,\"AUT*\"),\"\"))","v":"VIR37"},"",""]
["2015-07-06","Lucas",null,null,null,null,null,null,null,null,null,null,null,null,null,null,null,null,null,null,null,{"$f":"IF(COUNTIF(B129,\"*Virement*\"),\"VIR\"&COUNTIF($V$7:V128,\"VIR*\"),IF(COUNTIF($B$8:B129,B129)=1,\"AUT\"&COUNTIF($V$7:V128,\"AUT*\"),\"\"))","v":""},"",""]
["2015-12-23","Carla",null,null,null,null,null,null,null,null,null,null,null,null,null,null,null,null,null,null,null,{"$f":"IF(COUNTIF(B130,\"*Virement*\"),\"VIR\"&COUNTIF($V$7:V129,\"VIR*\"),IF(COUNTIF($B$8:B130,B130)=1,\"AUT\"&COUNTIF($V$7:V129,\"AUT*\"),\"\"))","v":""},"",""]
["2015-10-06","Patrick",null,null,null,null,null,null,null,null,null,null,null,null,null,null,null,null,null,null,null,{"$f":"IF(COUNTIF(B131,\"*Virement*\"),\"VIR\"&COUNTIF($V$7:V130,\"VIR*\"),IF(COUNTIF($B$8:B131,B131)=1,\"AUT\"&COUNTIF($V$7:V130,\"AUT*\"),\"\"))","v":""},"",""]
["2015-06-22","Virement__AA31",null,null,null,null,null,null,null,null,null,null,null,null,null,null,null,null,null,null,null,{"$f":"IF(COUNTIF(B132,\"*Virement*\"),\"VIR\"&COUNTIF($V$7:V131,\"VIR*\"),IF(COUNTIF($B$8:B132,B132)=1,\"AUT\"&COUNTIF($V$7:V131,\"AUT*\"),\"\"))","v":"VIR38"},"",""]
["2016-01-28","Monique",null,null,null,null,null,null,null,null,null,null,null,null,null,null,null,null,null,null,null,{"$f":"IF(COUNTIF(B133,\"*Virement*\"),\"VIR\"&COUNTIF($V$7:V132,\"VIR*\"),IF(COUNTIF($B$8:B133,B133)=1,\"AUT\"&COUNTIF($V$7:V132,\"AUT*\"),\"\"))","v":""},"",""]
["2015-09-24","Michel",null,null,null,null,null,null,null,null,null,null,null,null,null,null,null,null,null,null,null,{"$f":"IF(COUNTIF(B134,\"*Virement*\"),\"VIR\"&COUNTIF($V$7:V133,\"VIR*\"),IF(COUNTIF($B$8:B134,B134)=1,\"AUT\"&COUNTIF($V$7:V133,\"AUT*\"),\"\"))","v":""},"",""]
["2015-08-24","Virement__AA75",null,null,null,null,null,null,null,null,null,null,null,null,null,null,null,null,null,null,null,{"$f":"IF(COUNTIF(B135,\"*Virement*\"),\"VIR\"&COUNTIF($V$7:V134,\"VIR*\"),IF(COUNTIF($B$8:B135,B135)=1,\"AUT\"&COUNTIF($V$7:V134,\"AUT*\"),\"\"))","v":"VIR39"},"",""]
["2015-06-04","Ewan",null,null,null,null,null,null,null,null,null,null,null,null,null,null,null,null,null,null,null,{"$f":"IF(COUNTIF(B136,\"*Virement*\"),\"VIR\"&COUNTIF($V$7:V135,\"VIR*\"),IF(COUNTIF($B$8:B136,B136)=1,\"AUT\"&COUNTIF($V$7:V135,\"AUT*\"),\"\"))","v":""},"",""]
["2016-01-04","Anne-Marie",null,null,null,null,null,null,null,null,null,null,null,null,null,null,null,null,null,null,null,{"$f":"IF(COUNTIF(B137,\"*Virement*\"),\"VIR\"&COUNTIF($V$7:V136,\"VIR*\"),IF(COUNTIF($B$8:B137,B137)=1,\"AUT\"&COUNTIF($V$7:V136,\"AUT*\"),\"\"))","v":""},{"$f":"IFERROR(INDEX(B:B,MATCH(\"VIR\"&ROW()-8,V:V,0)),\"\")","v":""},{"$f":"IFERROR(INDEX($B:$B,MATCH(\"AUT\"&ROW()-8,$V:$V,0)),\"\")","v":""}]
["2015-06-07","Virement__AA67",null,null,null,null,null,null,null,null,null,null,null,null,null,null,null,null,null,null,null,{"$f":"IF(COUNTIF(B138,\"*Virement*\"),\"VIR\"&COUNTIF($V$7:V137,\"VIR*\"),IF(COUNTIF($B$8:B138,B138)=1,\"AUT\"&COUNTIF($V$7:V137,\"AUT*\"),\"\"))","v":"VIR40"},"",""]
["2015-05-30","Lucas",null,null,null,null,null,null,null,null,null,null,null,null,null,null,null,null,null,null,null,{"$f":"IF(COUNTIF(B139,\"*Virement*\"),\"VIR\"&COUNTIF($V$7:V138,\"VIR*\"),IF(COUNTIF($B$8:B139,B139)=1,\"AUT\"&COUNTIF($V$7:V138,\"AUT*\"),\"\"))","v":""},"",""]
["2015-12-30","Eloide",null,null,null,null,null,null,null,null,null,null,null,null,null,null,null,null,null,null,null,{"$f":"IF(COUNTIF(B140,\"*Virement*\"),\"VIR\"&COUNTIF($V$7:V139,\"VIR*\"),IF(COUNTIF($B$8:B140,B140)=1,\"AUT\"&COUNTIF($V$7:V139,\"AUT*\"),\"\"))","v":""},"",""]
["2015-08-07","Virement__AA60",null,null,null,null,null,null,null,null,null,null,null,null,null,null,null,null,null,null,null,{"$f":"IF(COUNTIF(B141,\"*Virement*\"),\"VIR\"&COUNTIF($V$7:V140,\"VIR*\"),IF(COUNTIF($B$8:B141,B141)=1,\"AUT\"&COUNTIF($V$7:V140,\"AUT*\"),\"\"))","v":"VIR41"},"",""]
["2015-08-31","Marcel",null,null,null,null,null,null,null,null,null,null,null,null,null,null,null,null,null,null,null,{"$f":"IF(COUNTIF(B142,\"*Virement*\"),\"VIR\"&COUNTIF($V$7:V141,\"VIR*\"),IF(COUNTIF($B$8:B142,B142)=1,\"AUT\"&COUNTIF($V$7:V141,\"AUT*\"),\"\"))","v":"AUT23"},"",""]
["2015-06-13","Simone",null,null,null,null,null,null,null,null,null,null,null,null,null,null,null,null,null,null,null,{"$f":"IF(COUNTIF(B143,\"*Virement*\"),\"VIR\"&COUNTIF($V$7:V142,\"VIR*\"),IF(COUNTIF($B$8:B143,B143)=1,\"AUT\"&COUNTIF($V$7:V142,\"AUT*\"),\"\"))","v":""},"",""]
["2015-11-30","Virement__AA55",null,null,null,null,null,null,null,null,null,null,null,null,null,null,null,null,null,null,null,{"$f":"IF(COUNTIF(B144,\"*Virement*\"),\"VIR\"&COUNTIF($V$7:V143,\"VIR*\"),IF(COUNTIF($B$8:B144,B144)=1,\"AUT\"&COUNTIF($V$7:V143,\"AUT*\"),\"\"))","v":"VIR42"},"",""]
["2016-01-07","Marcel",null,null,null,null,null,null,null,null,null,null,null,null,null,null,null,null,null,null,null,{"$f":"IF(COUNTIF(B145,\"*Virement*\"),\"VIR\"&COUNTIF($V$7:V144,\"VIR*\"),IF(COUNTIF($B$8:B145,B145)=1,\"AUT\"&COUNTIF($V$7:V144,\"AUT*\"),\"\"))","v":""},"",""]
["2016-01-27","Carla",null,null,null,null,null,null,null,null,null,null,null,null,null,null,null,null,null,null,null,{"$f":"IF(COUNTIF(B146,\"*Virement*\"),\"VIR\"&COUNTIF($V$7:V145,\"VIR*\"),IF(COUNTIF($B$8:B146,B146)=1,\"AUT\"&COUNTIF($V$7:V145,\"AUT*\"),\"\"))","v":""},"",""]
["2015-09-09","Léa",null,null,null,null,null,null,null,null,null,null,null,null,null,null,null,null,null,null,null,{"$f":"IF(COUNTIF(B147,\"*Virement*\"),\"VIR\"&COUNTIF($V$7:V146,\"VIR*\"),IF(COUNTIF($B$8:B147,B147)=1,\"AUT\"&COUNTIF($V$7:V146,\"AUT*\"),\"\"))","v":""},"",""]
["2015-07-24","Marcel",null,null,null,null,null,null,null,null,null,null,null,null,null,null,null,null,null,null,null,{"$f":"IF(COUNTIF(B148,\"*Virement*\"),\"VIR\"&COUNTIF($V$7:V147,\"VIR*\"),IF(COUNTIF($B$8:B148,B148)=1,\"AUT\"&COUNTIF($V$7:V147,\"AUT*\"),\"\"))","v":""},"",""]
["2015-09-25","Simone",null,null,null,null,null,null,null,null,null,null,null,null,null,null,null,null,null,null,null,{"$f":"IF(COUNTIF(B149,\"*Virement*\"),\"VIR\"&COUNTIF($V$7:V148,\"VIR*\"),IF(COUNTIF($B$8:B149,B149)=1,\"AUT\"&COUNTIF($V$7:V148,\"AUT*\"),\"\"))","v":""},"",""]
["2015-07-03","Jean-pierre",null,null,null,null,null,null,null,null,null,null,null,null,null,null,null,null,null,null,null,{"$f":"IF(COUNTIF(B150,\"*Virement*\"),\"VIR\"&COUNTIF($V$7:V149,\"VIR*\"),IF(COUNTIF($B$8:B150,B150)=1,\"AUT\"&COUNTIF($V$7:V149,\"AUT*\"),\"\"))","v":""},"",""]
["2015-11-27","Virement__AA23",null,null,null,null,null,null,null,null,null,null,null,null,null,null,null,null,null,null,null,{"$f":"IF(COUNTIF(B151,\"*Virement*\"),\"VIR\"&COUNTIF($V$7:V150,\"VIR*\"),IF(COUNTIF($B$8:B151,B151)=1,\"AUT\"&COUNTIF($V$7:V150,\"AUT*\"),\"\"))","v":"VIR43"},"",""]
["2015-10-01","Chrystel",null,null,null,null,null,null,null,null,null,null,null,null,null,null,null,null,null,null,null,{"$f":"IF(COUNTIF(B152,\"*Virement*\"),\"VIR\"&COUNTIF($V$7:V151,\"VIR*\"),IF(COUNTIF($B$8:B152,B152)=1,\"AUT\"&COUNTIF($V$7:V151,\"AUT*\"),\"\"))","v":""},"",""]
["2015-10-09","Virement__AA26",null,null,null,null,null,null,null,null,null,null,null,null,null,null,null,null,null,null,null,{"$f":"IF(COUNTIF(B153,\"*Virement*\"),\"VIR\"&COUNTIF($V$7:V152,\"VIR*\"),IF(COUNTIF($B$8:B153,B153)=1,\"AUT\"&COUNTIF($V$7:V152,\"AUT*\"),\"\"))","v":"VIR44"},"",""]
["2015-11-01","Renè",null,null,null,null,null,null,null,null,null,null,null,null,null,null,null,null,null,null,null,{"$f":"IF(COUNTIF(B154,\"*Virement*\"),\"VIR\"&COUNTIF($V$7:V153,\"VIR*\"),IF(COUNTIF($B$8:B154,B154)=1,\"AUT\"&COUNTIF($V$7:V153,\"AUT*\"),\"\"))","v":""},"",""]
["2015-12-25","André",null,null,null,null,null,null,null,null,null,null,null,null,null,null,null,null,null,null,null,{"$f":"IF(COUNTIF(B155,\"*Virement*\"),\"VIR\"&COUNTIF($V$7:V154,\"VIR*\"),IF(COUNTIF($B$8:B155,B155)=1,\"AUT\"&COUNTIF($V$7:V154,\"AUT*\"),\"\"))","v":""},"",""]
["2015-08-17","Anne-Marie",null,null,null,null,null,null,null,null,null,null,null,null,null,null,null,null,null,null,null,{"$f":"IF(COUNTIF(B156,\"*Virement*\"),\"VIR\"&COUNTIF($V$7:V155,\"VIR*\"),IF(COUNTIF($B$8:B156,B156)=1,\"AUT\"&COUNTIF($V$7:V155,\"AUT*\"),\"\"))","v":""},"",""]
["2015-07-26","Pierrette",null,null,null,null,null,null,null,null,null,null,null,null,null,null,null,null,null,null,null,{"$f":"IF(COUNTIF(B157,\"*Virement*\"),\"VIR\"&COUNTIF($V$7:V156,\"VIR*\"),IF(COUNTIF($B$8:B157,B157)=1,\"AUT\"&COUNTIF($V$7:V156,\"AUT*\"),\"\"))","v":""},"",""]
["2015-12-24","Virement__AA69",null,null,null,null,null,null,null,null,null,null,null,null,null,null,null,null,null,null,null,{"$f":"IF(COUNTIF(B158,\"*Virement*\"),\"VIR\"&COUNTIF($V$7:V157,\"VIR*\"),IF(COUNTIF($B$8:B158,B158)=1,\"AUT\"&COUNTIF($V$7:V157,\"AUT*\"),\"\"))","v":"VIR45"},"",""]
["2015-08-10","Virement__AA05",null,null,null,null,null,null,null,null,null,null,null,null,null,null,null,null,null,null,null,{"$f":"IF(COUNTIF(B159,\"*Virement*\"),\"VIR\"&COUNTIF($V$7:V158,\"VIR*\"),IF(COUNTIF($B$8:B159,B159)=1,\"AUT\"&COUNTIF($V$7:V158,\"AUT*\"),\"\"))","v":"VIR46"},"",""]
["2015-08-30","Paul",null,null,null,null,null,null,null,null,null,null,null,null,null,null,null,null,null,null,null,{"$f":"IF(COUNTIF(B160,\"*Virement*\"),\"VIR\"&COUNTIF($V$7:V159,\"VIR*\"),IF(COUNTIF($B$8:B160,B160)=1,\"AUT\"&COUNTIF($V$7:V159,\"AUT*\"),\"\"))","v":""},"",""]
["2015-09-04","Marcel",null,null,null,null,null,null,null,null,null,null,null,null,null,null,null,null,null,null,null,{"$f":"IF(COUNTIF(B161,\"*Virement*\"),\"VIR\"&COUNTIF($V$7:V160,\"VIR*\"),IF(COUNTIF($B$8:B161,B161)=1,\"AUT\"&COUNTIF($V$7:V160,\"AUT*\"),\"\"))","v":""},"",""]
["2015-09-28","Virement__AA36",null,null,null,null,null,null,null,null,null,null,null,null,null,null,null,null,null,null,null,{"$f":"IF(COUNTIF(B162,\"*Virement*\"),\"VIR\"&COUNTIF($V$7:V161,\"VIR*\"),IF(COUNTIF($B$8:B162,B162)=1,\"AUT\"&COUNTIF($V$7:V161,\"AUT*\"),\"\"))","v":"VIR47"},"",""]
["2015-12-28","Virement__AA00",null,null,null,null,null,null,null,null,null,null,null,null,null,null,null,null,null,null,null,{"$f":"IF(COUNTIF(B163,\"*Virement*\"),\"VIR\"&COUNTIF($V$7:V162,\"VIR*\"),IF(COUNTIF($B$8:B163,B163)=1,\"AUT\"&COUNTIF($V$7:V162,\"AUT*\"),\"\"))","v":"VIR48"},"",""]
["2015-10-31","André",null,null,null,null,null,null,null,null,null,null,null,null,null,null,null,null,null,null,null,{"$f":"IF(COUNTIF(B164,\"*Virement*\"),\"VIR\"&COUNTIF($V$7:V163,\"VIR*\"),IF(COUNTIF($B$8:B164,B164)=1,\"AUT\"&COUNTIF($V$7:V163,\"AUT*\"),\"\"))","v":""},"",""]
["2015-12-08","Monique",null,null,null,null,null,null,null,null,null,null,null,null,null,null,null,null,null,null,null,{"$f":"IF(COUNTIF(B165,\"*Virement*\"),\"VIR\"&COUNTIF($V$7:V164,\"VIR*\"),IF(COUNTIF($B$8:B165,B165)=1,\"AUT\"&COUNTIF($V$7:V164,\"AUT*\"),\"\"))","v":""},"",""]
["2016-01-20","Virement__AA54",null,null,null,null,null,null,null,null,null,null,null,null,null,null,null,null,null,null,null,{"$f":"IF(COUNTIF(B166,\"*Virement*\"),\"VIR\"&COUNTIF($V$7:V165,\"VIR*\"),IF(COUNTIF($B$8:B166,B166)=1,\"AUT\"&COUNTIF($V$7:V165,\"AUT*\"),\"\"))","v":"VIR49"},"",""]
["2015-08-26","Rémi",null,null,null,null,null,null,null,null,null,null,null,null,null,null,null,null,null,null,null,{"$f":"IF(COUNTIF(B167,\"*Virement*\"),\"VIR\"&COUNTIF($V$7:V166,\"VIR*\"),IF(COUNTIF($B$8:B167,B167)=1,\"AUT\"&COUNTIF($V$7:V166,\"AUT*\"),\"\"))","v":""},"",""]
["2015-10-16","André",null,null,null,null,null,null,null,null,null,null,null,null,null,null,null,null,null,null,null,{"$f":"IF(COUNTIF(B168,\"*Virement*\"),\"VIR\"&COUNTIF($V$7:V167,\"VIR*\"),IF(COUNTIF($B$8:B168,B168)=1,\"AUT\"&COUNTIF($V$7:V167,\"AUT*\"),\"\"))","v":""},"",""]
["2015-10-17","Anne-Marie",null,null,null,null,null,null,null,null,null,null,null,null,null,null,null,null,null,null,null,{"$f":"IF(COUNTIF(B169,\"*Virement*\"),\"VIR\"&COUNTIF($V$7:V168,\"VIR*\"),IF(COUNTIF($B$8:B169,B169)=1,\"AUT\"&COUNTIF($V$7:V168,\"AUT*\"),\"\"))","v":""},"",""]
["2015-07-01","Michel",null,null,null,null,null,null,null,null,null,null,null,null,null,null,null,null,null,null,null,{"$f":"IF(COUNTIF(B170,\"*Virement*\"),\"VIR\"&COUNTIF($V$7:V169,\"VIR*\"),IF(COUNTIF($B$8:B170,B170)=1,\"AUT\"&COUNTIF($V$7:V169,\"AUT*\"),\"\"))","v":""},"",""]
["2015-06-16","André",null,null,null,null,null,null,null,null,null,null,null,null,null,null,null,null,null,null,null,{"$f":"IF(COUNTIF(B171,\"*Virement*\"),\"VIR\"&COUNTIF($V$7:V170,\"VIR*\"),IF(COUNTIF($B$8:B171,B171)=1,\"AUT\"&COUNTIF($V$7:V170,\"AUT*\"),\"\"))","v":""},"",""]
["2015-11-08","Rémi",null,null,null,null,null,null,null,null,null,null,null,null,null,null,null,null,null,null,null,{"$f":"IF(COUNTIF(B172,\"*Virement*\"),\"VIR\"&COUNTIF($V$7:V171,\"VIR*\"),IF(COUNTIF($B$8:B172,B172)=1,\"AUT\"&COUNTIF($V$7:V171,\"AUT*\"),\"\"))","v":""},"",""]
["2016-01-12","Virement__AA58",null,null,null,null,null,null,null,null,null,null,null,null,null,null,null,null,null,null,null,{"$f":"IF(COUNTIF(B173,\"*Virement*\"),\"VIR\"&COUNTIF($V$7:V172,\"VIR*\"),IF(COUNTIF($B$8:B173,B173)=1,\"AUT\"&COUNTIF($V$7:V172,\"AUT*\"),\"\"))","v":"VIR50"},"",""]
["2015-09-01","Virement__AA08",null,null,null,null,null,null,null,null,null,null,null,null,null,null,null,null,null,null,null,{"$f":"IF(COUNTIF(B174,\"*Virement*\"),\"VIR\"&COUNTIF($V$7:V173,\"VIR*\"),IF(COUNTIF($B$8:B174,B174)=1,\"AUT\"&COUNTIF($V$7:V173,\"AUT*\"),\"\"))","v":"VIR51"},"",""]
["2015-07-14","Ewan",null,null,null,null,null,null,null,null,null,null,null,null,null,null,null,null,null,null,null,{"$f":"IF(COUNTIF(B175,\"*Virement*\"),\"VIR\"&COUNTIF($V$7:V174,\"VIR*\"),IF(COUNTIF($B$8:B175,B175)=1,\"AUT\"&COUNTIF($V$7:V174,\"AUT*\"),\"\"))","v":""},"",""]
["2015-12-29","Simone",null,null,null,null,null,null,null,null,null,null,null,null,null,null,null,null,null,null,null,{"$f":"IF(COUNTIF(B176,\"*Virement*\"),\"VIR\"&COUNTIF($V$7:V175,\"VIR*\"),IF(COUNTIF($B$8:B176,B176)=1,\"AUT\"&COUNTIF($V$7:V175,\"AUT*\"),\"\"))","v":""},"",""]
["2015-12-22","Virement__AA73",null,null,null,null,null,null,null,null,null,null,null,null,null,null,null,null,null,null,null,{"$f":"IF(COUNTIF(B177,\"*Virement*\"),\"VIR\"&COUNTIF($V$7:V176,\"VIR*\"),IF(COUNTIF($B$8:B177,B177)=1,\"AUT\"&COUNTIF($V$7:V176,\"AUT*\"),\"\"))","v":"VIR52"},"",""]
["2015-09-29","Jaqueline",null,null,null,null,null,null,null,null,null,null,null,null,null,null,null,null,null,null,null,{"$f":"IF(COUNTIF(B178,\"*Virement*\"),\"VIR\"&COUNTIF($V$7:V177,\"VIR*\"),IF(COUNTIF($B$8:B178,B178)=1,\"AUT\"&COUNTIF($V$7:V177,\"AUT*\"),\"\"))","v":""},"",""]
["2016-01-24","Virement__AA02",null,null,null,null,null,null,null,null,null,null,null,null,null,null,null,null,null,null,null,{"$f":"IF(COUNTIF(B179,\"*Virement*\"),\"VIR\"&COUNTIF($V$7:V178,\"VIR*\"),IF(COUNTIF($B$8:B179,B179)=1,\"AUT\"&COUNTIF($V$7:V178,\"AUT*\"),\"\"))","v":"VIR53"},"",""]
["2015-12-09","Virement__AA41",null,null,null,null,null,null,null,null,null,null,null,null,null,null,null,null,null,null,null,{"$f":"IF(COUNTIF(B180,\"*Virement*\"),\"VIR\"&COUNTIF($V$7:V179,\"VIR*\"),IF(COUNTIF($B$8:B180,B180)=1,\"AUT\"&COUNTIF($V$7:V179,\"AUT*\"),\"\"))","v":"VIR54"},"",""]
["2016-01-13","Marcel",null,null,null,null,null,null,null,null,null,null,null,null,null,null,null,null,null,null,null,{"$f":"IF(COUNTIF(B181,\"*Virement*\"),\"VIR\"&COUNTIF($V$7:V180,\"VIR*\"),IF(COUNTIF($B$8:B181,B181)=1,\"AUT\"&COUNTIF($V$7:V180,\"AUT*\"),\"\"))","v":""},"",""]
["2015-08-02","Lucas",null,null,null,null,null,null,null,null,null,null,null,null,null,null,null,null,null,null,null,{"$f":"IF(COUNTIF(B182,\"*Virement*\"),\"VIR\"&COUNTIF($V$7:V181,\"VIR*\"),IF(COUNTIF($B$8:B182,B182)=1,\"AUT\"&COUNTIF($V$7:V181,\"AUT*\"),\"\"))","v":""},"",""]
["2015-10-14","Léa",null,null,null,null,null,null,null,null,null,null,null,null,null,null,null,null,null,null,null,{"$f":"IF(COUNTIF(B183,\"*Virement*\"),\"VIR\"&COUNTIF($V$7:V182,\"VIR*\"),IF(COUNTIF($B$8:B183,B183)=1,\"AUT\"&COUNTIF($V$7:V182,\"AUT*\"),\"\"))","v":""},"",""]
["2015-06-15","Virement__AA76",null,null,null,null,null,null,null,null,null,null,null,null,null,null,null,null,null,null,null,{"$f":"IF(COUNTIF(B184,\"*Virement*\"),\"VIR\"&COUNTIF($V$7:V183,\"VIR*\"),IF(COUNTIF($B$8:B184,B184)=1,\"AUT\"&COUNTIF($V$7:V183,\"AUT*\"),\"\"))","v":"VIR55"},"",""]
["2016-01-15","André",null,null,null,null,null,null,null,null,null,null,null,null,null,null,null,null,null,null,null,{"$f":"IF(COUNTIF(B185,\"*Virement*\"),\"VIR\"&COUNTIF($V$7:V184,\"VIR*\"),IF(COUNTIF($B$8:B185,B185)=1,\"AUT\"&COUNTIF($V$7:V184,\"AUT*\"),\"\"))","v":""},"",""]
["2016-01-11","Marcel",null,null,null,null,null,null,null,null,null,null,null,null,null,null,null,null,null,null,null,{"$f":"IF(COUNTIF(B186,\"*Virement*\"),\"VIR\"&COUNTIF($V$7:V185,\"VIR*\"),IF(COUNTIF($B$8:B186,B186)=1,\"AUT\"&COUNTIF($V$7:V185,\"AUT*\"),\"\"))","v":""},"",""]
["2015-06-05","Virement__AA17",null,null,null,null,null,null,null,null,null,null,null,null,null,null,null,null,null,null,null,{"$f":"IF(COUNTIF(B187,\"*Virement*\"),\"VIR\"&COUNTIF($V$7:V186,\"VIR*\"),IF(COUNTIF($B$8:B187,B187)=1,\"AUT\"&COUNTIF($V$7:V186,\"AUT*\"),\"\"))","v":"VIR56"},"",""]
["2015-12-21","Anne-Marie",null,null,null,null,null,null,null,null,null,null,null,null,null,null,null,null,null,null,null,{"$f":"IF(COUNTIF(B188,\"*Virement*\"),\"VIR\"&COUNTIF($V$7:V187,\"VIR*\"),IF(COUNTIF($B$8:B188,B188)=1,\"AUT\"&COUNTIF($V$7:V187,\"AUT*\"),\"\"))","v":""},"",""]
["2015-09-07","Virement__AA65",null,null,null,null,null,null,null,null,null,null,null,null,null,null,null,null,null,null,null,{"$f":"IF(COUNTIF(B189,\"*Virement*\"),\"VIR\"&COUNTIF($V$7:V188,\"VIR*\"),IF(COUNTIF($B$8:B189,B189)=1,\"AUT\"&COUNTIF($V$7:V188,\"AUT*\"),\"\"))","v":"VIR57"},"",""]
["2015-12-06","André",null,null,null,null,null,null,null,null,null,null,null,null,null,null,null,null,null,null,null,{"$f":"IF(COUNTIF(B190,\"*Virement*\"),\"VIR\"&COUNTIF($V$7:V189,\"VIR*\"),IF(COUNTIF($B$8:B190,B190)=1,\"AUT\"&COUNTIF($V$7:V189,\"AUT*\"),\"\"))","v":""},"",""]
["2015-09-12","Virement__AA53",null,null,null,null,null,null,null,null,null,null,null,null,null,null,null,null,null,null,null,{"$f":"IF(COUNTIF(B191,\"*Virement*\"),\"VIR\"&COUNTIF($V$7:V190,\"VIR*\"),IF(COUNTIF($B$8:B191,B191)=1,\"AUT\"&COUNTIF($V$7:V190,\"AUT*\"),\"\"))","v":"VIR58"},"",""]
["2015-07-13","Virement__AA13",null,null,null,null,null,null,null,null,null,null,null,null,null,null,null,null,null,null,null,{"$f":"IF(COUNTIF(B192,\"*Virement*\"),\"VIR\"&COUNTIF($V$7:V191,\"VIR*\"),IF(COUNTIF($B$8:B192,B192)=1,\"AUT\"&COUNTIF($V$7:V191,\"AUT*\"),\"\"))","v":"VIR59"},"",""]
["2015-10-21","Virement__AA37",null,null,null,null,null,null,null,null,null,null,null,null,null,null,null,null,null,null,null,{"$f":"IF(COUNTIF(B193,\"*Virement*\"),\"VIR\"&COUNTIF($V$7:V192,\"VIR*\"),IF(COUNTIF($B$8:B193,B193)=1,\"AUT\"&COUNTIF($V$7:V192,\"AUT*\"),\"\"))","v":"VIR60"},"",""]
["2015-09-13","Virement__AA59",null,null,null,null,null,null,null,null,null,null,null,null,null,null,null,null,null,null,null,{"$f":"IF(COUNTIF(B194,\"*Virement*\"),\"VIR\"&COUNTIF($V$7:V193,\"VIR*\"),IF(COUNTIF($B$8:B194,B194)=1,\"AUT\"&COUNTIF($V$7:V193,\"AUT*\"),\"\"))","v":"VIR61"},"",""]
["2015-10-25","Madeleine",null,null,null,null,null,null,null,null,null,null,null,null,null,null,null,null,null,null,null,{"$f":"IF(COUNTIF(B195,\"*Virement*\"),\"VIR\"&COUNTIF($V$7:V194,\"VIR*\"),IF(COUNTIF($B$8:B195,B195)=1,\"AUT\"&COUNTIF($V$7:V194,\"AUT*\"),\"\"))","v":""},"",""]
["2015-11-06","Virement__AA25",null,null,null,null,null,null,null,null,null,null,null,null,null,null,null,null,null,null,null,{"$f":"IF(COUNTIF(B196,\"*Virement*\"),\"VIR\"&COUNTIF($V$7:V195,\"VIR*\"),IF(COUNTIF($B$8:B196,B196)=1,\"AUT\"&COUNTIF($V$7:V195,\"AUT*\"),\"\"))","v":"VIR62"},"",""]
["2015-12-26","Monique",null,null,null,null,null,null,null,null,null,null,null,null,null,null,null,null,null,null,null,{"$f":"IF(COUNTIF(B197,\"*Virement*\"),\"VIR\"&COUNTIF($V$7:V196,\"VIR*\"),IF(COUNTIF($B$8:B197,B197)=1,\"AUT\"&COUNTIF($V$7:V196,\"AUT*\"),\"\"))","v":""},"",""]
["2015-08-27","Eric",null,null,null,null,null,null,null,null,null,null,null,null,null,null,null,null,null,null,null,{"$f":"IF(COUNTIF(B198,\"*Virement*\"),\"VIR\"&COUNTIF($V$7:V197,\"VIR*\"),IF(COUNTIF($B$8:B198,B198)=1,\"AUT\"&COUNTIF($V$7:V197,\"AUT*\"),\"\"))","v":""},"",""]
["2015-12-27","Chrystel",null,null,null,null,null,null,null,null,null,null,null,null,null,null,null,null,null,null,null,{"$f":"IF(COUNTIF(B199,\"*Virement*\"),\"VIR\"&COUNTIF($V$7:V198,\"VIR*\"),IF(COUNTIF($B$8:B199,B199)=1,\"AUT\"&COUNTIF($V$7:V198,\"AUT*\"),\"\"))","v":""},"",""]
["2015-08-03","Virement__AA01",null,null,null,null,null,null,null,null,null,null,null,null,null,null,null,null,null,null,null,{"$f":"IF(COUNTIF(B200,\"*Virement*\"),\"VIR\"&COUNTIF($V$7:V199,\"VIR*\"),IF(COUNTIF($B$8:B200,B200)=1,\"AUT\"&COUNTIF($V$7:V199,\"AUT*\"),\"\"))","v":"VIR63"},"",""]
["2015-10-24","Virement__AA44",null,null,null,null,null,null,null,null,null,null,null,null,null,null,null,null,null,null,null,{"$f":"IF(COUNTIF(B201,\"*Virement*\"),\"VIR\"&COUNTIF($V$7:V200,\"VIR*\"),IF(COUNTIF($B$8:B201,B201)=1,\"AUT\"&COUNTIF($V$7:V200,\"AUT*\"),\"\"))","v":"VIR64"},{"$f":"IFERROR(INDEX(B:B,MATCH(\"VIR\"&ROW()-8,V:V,0)),\"\")","v":""},{"$f":"IFERROR(INDEX($B:$B,MATCH(\"AUT\"&ROW()-8,$V:$V,0)),\"\")","v":""}]
["2015-06-02","André",null,null,null,null,null,null,null,null,null,null,null,null,null,null,null,null,null,null,null,{"$f":"IF(COUNTIF(B202,\"*Virement*\"),\"VIR\"&COUNTIF($V$7:V201,\"VIR*\"),IF(COUNTIF($B$8:B202,B202)=1,\"AUT\"&COUNTIF($V$7:V201,\"AUT*\"),\"\"))","v":""},"",""]
["2016-01-21","Anne-Marie",null,null,null,null,null,null,null,null,null,null,null,null,null,null,null,null,null,null,null,{"$f":"IF(COUNTIF(B203,\"*Virement*\"),\"VIR\"&COUNTIF($V$7:V202,\"VIR*\"),IF(COUNTIF($B$8:B203,B203)=1,\"AUT\"&COUNTIF($V$7:V202,\"AUT*\"),\"\"))","v":""},"",""]
["2015-07-29","Ewan",null,null,null,null,null,null,null,null,null,null,null,null,null,null,null,null,null,null,null,{"$f":"IF(COUNTIF(B204,\"*Virement*\"),\"VIR\"&COUNTIF($V$7:V203,\"VIR*\"),IF(COUNTIF($B$8:B204,B204)=1,\"AUT\"&COUNTIF($V$7:V203,\"AUT*\"),\"\"))","v":""},"",""]
["2015-10-10","Madeleine",null,null,null,null,null,null,null,null,null,null,null,null,null,null,null,null,null,null,null,{"$f":"IF(COUNTIF(B205,\"*Virement*\"),\"VIR\"&COUNTIF($V$7:V204,\"VIR*\"),IF(COUNTIF($B$8:B205,B205)=1,\"AUT\"&COUNTIF($V$7:V204,\"AUT*\"),\"\"))","v":""},"",""]
["2016-01-06","Virement__AA72",null,null,null,null,null,null,null,null,null,null,null,null,null,null,null,null,null,null,null,{"$f":"IF(COUNTIF(B206,\"*Virement*\"),\"VIR\"&COUNTIF($V$7:V205,\"VIR*\"),IF(COUNTIF($B$8:B206,B206)=1,\"AUT\"&COUNTIF($V$7:V205,\"AUT*\"),\"\"))","v":"VIR65"},"",""]
["2015-07-30","Virement__AA57",null,null,null,null,null,null,null,null,null,null,null,null,null,null,null,null,null,null,null,{"$f":"IF(COUNTIF(B207,\"*Virement*\"),\"VIR\"&COUNTIF($V$7:V206,\"VIR*\"),IF(COUNTIF($B$8:B207,B207)=1,\"AUT\"&COUNTIF($V$7:V206,\"AUT*\"),\"\"))","v":"VIR66"},"",""]
["2015-08-23","Jaqueline",null,null,null,null,null,null,null,null,null,null,null,null,null,null,null,null,null,null,null,{"$f":"IF(COUNTIF(B208,\"*Virement*\"),\"VIR\"&COUNTIF($V$7:V207,\"VIR*\"),IF(COUNTIF($B$8:B208,B208)=1,\"AUT\"&COUNTIF($V$7:V207,\"AUT*\"),\"\"))","v":""},"",""]
["2015-10-30","Marcel",null,null,null,null,null,null,null,null,null,null,null,null,null,null,null,null,null,null,null,{"$f":"IF(COUNTIF(B209,\"*Virement*\"),\"VIR\"&COUNTIF($V$7:V208,\"VIR*\"),IF(COUNTIF($B$8:B209,B209)=1,\"AUT\"&COUNTIF($V$7:V208,\"AUT*\"),\"\"))","v":""},"",""]
["2015-11-02","Corinne",null,null,null,null,null,null,null,null,null,null,null,null,null,null,null,null,null,null,null,{"$f":"IF(COUNTIF(B210,\"*Virement*\"),\"VIR\"&COUNTIF($V$7:V209,\"VIR*\"),IF(COUNTIF($B$8:B210,B210)=1,\"AUT\"&COUNTIF($V$7:V209,\"AUT*\"),\"\"))","v":""},"",""]
["2015-09-20","Madeleine",null,null,null,null,null,null,null,null,null,null,null,null,null,null,null,null,null,null,null,{"$f":"IF(COUNTIF(B211,\"*Virement*\"),\"VIR\"&COUNTIF($V$7:V210,\"VIR*\"),IF(COUNTIF($B$8:B211,B211)=1,\"AUT\"&COUNTIF($V$7:V210,\"AUT*\"),\"\"))","v":""},"",""]
["2016-01-22","Lucas",null,null,null,null,null,null,null,null,null,null,null,null,null,null,null,null,null,null,null,{"$f":"IF(COUNTIF(B212,\"*Virement*\"),\"VIR\"&COUNTIF($V$7:V211,\"VIR*\"),IF(COUNTIF($B$8:B212,B212)=1,\"AUT\"&COUNTIF($V$7:V211,\"AUT*\"),\"\"))","v":""},"",""]
["2015-10-07","Renè",null,null,null,null,null,null,null,null,null,null,null,null,null,null,null,null,null,null,null,{"$f":"IF(COUNTIF(B213,\"*Virement*\"),\"VIR\"&COUNTIF($V$7:V212,\"VIR*\"),IF(COUNTIF($B$8:B213,B213)=1,\"AUT\"&COUNTIF($V$7:V212,\"AUT*\"),\"\"))","v":""},"",""]
["2015-05-28","Anne-Marie",null,null,null,null,null,null,null,null,null,null,null,null,null,null,null,null,null,null,null,{"$f":"IF(COUNTIF(B214,\"*Virement*\"),\"VIR\"&COUNTIF($V$7:V213,\"VIR*\"),IF(COUNTIF($B$8:B214,B214)=1,\"AUT\"&COUNTIF($V$7:V213,\"AUT*\"),\"\"))","v":""},"",""]
["2015-10-19","Corinne",null,null,null,null,null,null,null,null,null,null,null,null,null,null,null,null,null,null,null,{"$f":"IF(COUNTIF(B215,\"*Virement*\"),\"VIR\"&COUNTIF($V$7:V214,\"VIR*\"),IF(COUNTIF($B$8:B215,B215)=1,\"AUT\"&COUNTIF($V$7:V214,\"AUT*\"),\"\"))","v":""},"",""]
["2015-08-14","Paul",null,null,null,null,null,null,null,null,null,null,null,null,null,null,null,null,null,null,null,{"$f":"IF(COUNTIF(B216,\"*Virement*\"),\"VIR\"&COUNTIF($V$7:V215,\"VIR*\"),IF(COUNTIF($B$8:B216,B216)=1,\"AUT\"&COUNTIF($V$7:V215,\"AUT*\"),\"\"))","v":""},"",""]
["2015-10-20","Rémi",null,null,null,null,null,null,null,null,null,null,null,null,null,null,null,null,null,null,null,{"$f":"IF(COUNTIF(B217,\"*Virement*\"),\"VIR\"&COUNTIF($V$7:V216,\"VIR*\"),IF(COUNTIF($B$8:B217,B217)=1,\"AUT\"&COUNTIF($V$7:V216,\"AUT*\"),\"\"))","v":""},"",""]
["2015-08-19","Virement__AA35",null,null,null,null,null,null,null,null,null,null,null,null,null,null,null,null,null,null,null,{"$f":"IF(COUNTIF(B218,\"*Virement*\"),\"VIR\"&COUNTIF($V$7:V217,\"VIR*\"),IF(COUNTIF($B$8:B218,B218)=1,\"AUT\"&COUNTIF($V$7:V217,\"AUT*\"),\"\"))","v":"VIR67"},"",""]
["2015-09-14","Virement__AA30",null,null,null,null,null,null,null,null,null,null,null,null,null,null,null,null,null,null,null,{"$f":"IF(COUNTIF(B219,\"*Virement*\"),\"VIR\"&COUNTIF($V$7:V218,\"VIR*\"),IF(COUNTIF($B$8:B219,B219)=1,\"AUT\"&COUNTIF($V$7:V218,\"AUT*\"),\"\"))","v":"VIR68"},"",""]
["2015-10-02","Eric",null,null,null,null,null,null,null,null,null,null,null,null,null,null,null,null,null,null,null,{"$f":"IF(COUNTIF(B220,\"*Virement*\"),\"VIR\"&COUNTIF($V$7:V219,\"VIR*\"),IF(COUNTIF($B$8:B220,B220)=1,\"AUT\"&COUNTIF($V$7:V219,\"AUT*\"),\"\"))","v":""},"",""]
["2015-07-15","Jaqueline",null,null,null,null,null,null,null,null,null,null,null,null,null,null,null,null,null,null,null,{"$f":"IF(COUNTIF(B221,\"*Virement*\"),\"VIR\"&COUNTIF($V$7:V220,\"VIR*\"),IF(COUNTIF($B$8:B221,B221)=1,\"AUT\"&COUNTIF($V$7:V220,\"AUT*\"),\"\"))","v":""},"",""]
["2015-07-27","Virement__AA09",null,null,null,null,null,null,null,null,null,null,null,null,null,null,null,null,null,null,null,{"$f":"IF(COUNTIF(B222,\"*Virement*\"),\"VIR\"&COUNTIF($V$7:V221,\"VIR*\"),IF(COUNTIF($B$8:B222,B222)=1,\"AUT\"&COUNTIF($V$7:V221,\"AUT*\"),\"\"))","v":"VIR69"},"",""]
["2015-09-16","Jaqueline",null,null,null,null,null,null,null,null,null,null,null,null,null,null,null,null,null,null,null,{"$f":"IF(COUNTIF(B223,\"*Virement*\"),\"VIR\"&COUNTIF($V$7:V222,\"VIR*\"),IF(COUNTIF($B$8:B223,B223)=1,\"AUT\"&COUNTIF($V$7:V222,\"AUT*\"),\"\"))","v":""},"",""]
["2015-08-28","Virement__AA49",null,null,null,null,null,null,null,null,null,null,null,null,null,null,null,null,null,null,null,{"$f":"IF(COUNTIF(B224,\"*Virement*\"),\"VIR\"&COUNTIF($V$7:V223,\"VIR*\"),IF(COUNTIF($B$8:B224,B224)=1,\"AUT\"&COUNTIF($V$7:V223,\"AUT*\"),\"\"))","v":"VIR70"},"",""]
["2015-05-25","Virement__AA18",null,null,null,null,null,null,null,null,null,null,null,null,null,null,null,null,null,null,null,{"$f":"IF(COUNTIF(B225,\"*Virement*\"),\"VIR\"&COUNTIF($V$7:V224,\"VIR*\"),IF(COUNTIF($B$8:B225,B225)=1,\"AUT\"&COUNTIF($V$7:V224,\"AUT*\"),\"\"))","v":"VIR71"},"",""]
["2015-06-18","Eloide",null,null,null,null,null,null,null,null,null,null,null,null,null,null,null,null,null,null,null,{"$f":"IF(COUNTIF(B226,\"*Virement*\"),\"VIR\"&COUNTIF($V$7:V225,\"VIR*\"),IF(COUNTIF($B$8:B226,B226)=1,\"AUT\"&COUNTIF($V$7:V225,\"AUT*\"),\"\"))","v":""},"",""]
["2015-05-29","Patrick",null,null,null,null,null,null,null,null,null,null,null,null,null,null,null,null,null,null,null,{"$f":"IF(COUNTIF(B227,\"*Virement*\"),\"VIR\"&COUNTIF($V$7:V226,\"VIR*\"),IF(COUNTIF($B$8:B227,B227)=1,\"AUT\"&COUNTIF($V$7:V226,\"AUT*\"),\"\"))","v":""},"",""]
["2015-08-16","Virement__AA33",null,null,null,null,null,null,null,null,null,null,null,null,null,null,null,null,null,null,null,{"$f":"IF(COUNTIF(B228,\"*Virement*\"),\"VIR\"&COUNTIF($V$7:V227,\"VIR*\"),IF(COUNTIF($B$8:B228,B228)=1,\"AUT\"&COUNTIF($V$7:V227,\"AUT*\"),\"\"))","v":"VIR72"},"",""]
["2015-06-27","Francette",null,null,null,null,null,null,null,null,null,null,null,null,null,null,null,null,null,null,null,{"$f":"IF(COUNTIF(B229,\"*Virement*\"),\"VIR\"&COUNTIF($V$7:V228,\"VIR*\"),IF(COUNTIF($B$8:B229,B229)=1,\"AUT\"&COUNTIF($V$7:V228,\"AUT*\"),\"\"))","v":""},"",""]
["2015-10-03","Virement__AA56",null,null,null,null,null,null,null,null,null,null,null,null,null,null,null,null,null,null,null,{"$f":"IF(COUNTIF(B230,\"*Virement*\"),\"VIR\"&COUNTIF($V$7:V229,\"VIR*\"),IF(COUNTIF($B$8:B230,B230)=1,\"AUT\"&COUNTIF($V$7:V229,\"AUT*\"),\"\"))","v":"VIR73"},"",""]
["2015-09-17","André",null,null,null,null,null,null,null,null,null,null,null,null,null,null,null,null,null,null,null,{"$f":"IF(COUNTIF(B231,\"*Virement*\"),\"VIR\"&COUNTIF($V$7:V230,\"VIR*\"),IF(COUNTIF($B$8:B231,B231)=1,\"AUT\"&COUNTIF($V$7:V230,\"AUT*\"),\"\"))","v":""},"",""]
["2015-07-31","Carla",null,null,null,null,null,null,null,null,null,null,null,null,null,null,null,null,null,null,null,{"$f":"IF(COUNTIF(B232,\"*Virement*\"),\"VIR\"&COUNTIF($V$7:V231,\"VIR*\"),IF(COUNTIF($B$8:B232,B232)=1,\"AUT\"&COUNTIF($V$7:V231,\"AUT*\"),\"\"))","v":""},"",""]
["2015-11-15","Jaqueline",null,null,null,null,null,null,null,null,null,null,null,null,null,null,null,null,null,null,null,{"$f":"IF(COUNTIF(B233,\"*Virement*\"),\"VIR\"&COUNTIF($V$7:V232,\"VIR*\"),IF(COUNTIF($B$8:B233,B233)=1,\"AUT\"&COUNTIF($V$7:V232,\"AUT*\"),\"\"))","v":""},"",""]
["2015-07-21","Virement__AA03",null,null,null,null,null,null,null,null,null,null,null,null,null,null,null,null,null,null,null,{"$f":"IF(COUNTIF(B234,\"*Virement*\"),\"VIR\"&COUNTIF($V$7:V233,\"VIR*\"),IF(COUNTIF($B$8:B234,B234)=1,\"AUT\"&COUNTIF($V$7:V233,\"AUT*\"),\"\"))","v":"VIR74"},"",""]
["2015-09-22","Lucas",null,null,null,null,null,null,null,null,null,null,null,null,null,null,null,null,null,null,null,{"$f":"IF(COUNTIF(B235,\"*Virement*\"),\"VIR\"&COUNTIF($V$7:V234,\"VIR*\"),IF(COUNTIF($B$8:B235,B235)=1,\"AUT\"&COUNTIF($V$7:V234,\"AUT*\"),\"\"))","v":""},"",""]
["2016-01-17","Francette",null,null,null,null,null,null,null,null,null,null,null,null,null,null,null,null,null,null,null,{"$f":"IF(COUNTIF(B236,\"*Virement*\"),\"VIR\"&COUNTIF($V$7:V235,\"VIR*\"),IF(COUNTIF($B$8:B236,B236)=1,\"AUT\"&COUNTIF($V$7:V235,\"AUT*\"),\"\"))","v":""},"",""]
["2015-07-19","Philippe",null,null,null,null,null,null,null,null,null,null,null,null,null,null,null,null,null,null,null,{"$f":"IF(COUNTIF(B237,\"*Virement*\"),\"VIR\"&COUNTIF($V$7:V236,\"VIR*\"),IF(COUNTIF($B$8:B237,B237)=1,\"AUT\"&COUNTIF($V$7:V236,\"AUT*\"),\"\"))","v":""},"",""]
["2015-08-08","Francette",null,null,null,null,null,null,null,null,null,null,null,null,null,null,null,null,null,null,null,{"$f":"IF(COUNTIF(B238,\"*Virement*\"),\"VIR\"&COUNTIF($V$7:V237,\"VIR*\"),IF(COUNTIF($B$8:B238,B238)=1,\"AUT\"&COUNTIF($V$7:V237,\"AUT*\"),\"\"))","v":""},"",""]
["2015-07-10","Francette",null,null,null,null,null,null,null,null,null,null,null,null,null,null,null,null,null,null,null,{"$f":"IF(COUNTIF(B239,\"*Virement*\"),\"VIR\"&COUNTIF($V$7:V238,\"VIR*\"),IF(COUNTIF($B$8:B239,B239)=1,\"AUT\"&COUNTIF($V$7:V238,\"AUT*\"),\"\"))","v":""},"",""]
["2016-01-02","Jean-pierre",null,null,null,null,null,null,null,null,null,null,null,null,null,null,null,null,null,null,null,{"$f":"IF(COUNTIF(B240,\"*Virement*\"),\"VIR\"&COUNTIF($V$7:V239,\"VIR*\"),IF(COUNTIF($B$8:B240,B240)=1,\"AUT\"&COUNTIF($V$7:V239,\"AUT*\"),\"\"))","v":""},"",""]
["2015-06-20","Jean-pierre",null,null,null,null,null,null,null,null,null,null,null,null,null,null,null,null,null,null,null,{"$f":"IF(COUNTIF(B241,\"*Virement*\"),\"VIR\"&COUNTIF($V$7:V240,\"VIR*\"),IF(COUNTIF($B$8:B241,B241)=1,\"AUT\"&COUNTIF($V$7:V240,\"AUT*\"),\"\"))","v":""},"",""]
["2015-10-05","Virement__AA15",null,null,null,null,null,null,null,null,null,null,null,null,null,null,null,null,null,null,null,{"$f":"IF(COUNTIF(B242,\"*Virement*\"),\"VIR\"&COUNTIF($V$7:V241,\"VIR*\"),IF(COUNTIF($B$8:B242,B242)=1,\"AUT\"&COUNTIF($V$7:V241,\"AUT*\"),\"\"))","v":"VIR75"},"",""]
["2015-10-15","Virement__AA07",null,null,null,null,null,null,null,null,null,null,null,null,null,null,null,null,null,null,null,{"$f":"IF(COUNTIF(B243,\"*Virement*\"),\"VIR\"&COUNTIF($V$7:V242,\"VIR*\"),IF(COUNTIF($B$8:B243,B243)=1,\"AUT\"&COUNTIF($V$7:V242,\"AUT*\"),\"\"))","v":"VIR76"},"",""]
["2015-08-09","Jean-pierre",null,null,null,null,null,null,null,null,null,null,null,null,null,null,null,null,null,null,null,{"$f":"IF(COUNTIF(B244,\"*Virement*\"),\"VIR\"&COUNTIF($V$7:V243,\"VIR*\"),IF(COUNTIF($B$8:B244,B244)=1,\"AUT\"&COUNTIF($V$7:V243,\"AUT*\"),\"\"))","v":""},"",""]
["2015-10-08","Virement__AA62",null,null,null,null,null,null,null,null,null,null,null,null,null,null,null,null,null,null,null,{"$f":"IF(COUNTIF(B245,\"*Virement*\"),\"VIR\"&COUNTIF($V$7:V244,\"VIR*\"),IF(COUNTIF($B$8:B245,B245)=1,\"AUT\"&COUNTIF($V$7:V244,\"AUT*\"),\"\"))","v":"VIR77"},"",""]
["2016-01-05","Carla",null,null,null,null,null,null,null,null,null,null,null,null,null,null,null,null,null,null,null,{"$f":"IF(COUNTIF(B246,\"*Virement*\"),\"VIR\"&COUNTIF($V$7:V245,\"VIR*\"),IF(COUNTIF($B$8:B246,B246)=1,\"AUT\"&COUNTIF($V$7:V245,\"AUT*\"),\"\"))","v":""},"",""]
["2015-11-22","Paul",null,null,null,null,null,null,null,null,null,null,null,null,null,null,null,null,null,null,null,{"$f":"IF(COUNTIF(B247,\"*Virement*\"),\"VIR\"&COUNTIF($V$7:V246,\"VIR*\"),IF(COUNTIF($B$8:B247,B247)=1,\"AUT\"&COUNTIF($V$7:V246,\"AUT*\"),\"\"))","v":""},"",""]
["2015-12-15","Eloide",null,null,null,null,null,null,null,null,null,null,null,null,null,null,null,null,null,null,null,{"$f":"IF(COUNTIF(B248,\"*Virement*\"),\"VIR\"&COUNTIF($V$7:V247,\"VIR*\"),IF(COUNTIF($B$8:B248,B248)=1,\"AUT\"&COUNTIF($V$7:V247,\"AUT*\"),\"\"))","v":""},"",""]
["2015-06-09","Simone",null,null,null,null,null,null,null,null,null,null,null,null,null,null,null,null,null,null,null,{"$f":"IF(COUNTIF(B249,\"*Virement*\"),\"VIR\"&COUNTIF($V$7:V248,\"VIR*\"),IF(COUNTIF($B$8:B249,B249)=1,\"AUT\"&COUNTIF($V$7:V248,\"AUT*\"),\"\"))","v":""},"",""]
["2015-10-23","Renè",null,null,null,null,null,null,null,null,null,null,null,null,null,null,null,null,null,null,null,{"$f":"IF(COUNTIF(B250,\"*Virement*\"),\"VIR\"&COUNTIF($V$7:V249,\"VIR*\"),IF(COUNTIF($B$8:B250,B250)=1,\"AUT\"&COUNTIF($V$7:V249,\"AUT*\"),\"\"))","v":""},"",""]
["2016-01-01","Virement__AA10",null,null,null,null,null,null,null,null,null,null,null,null,null,null,null,null,null,null,null,{"$f":"IF(COUNTIF(B251,\"*Virement*\"),\"VIR\"&COUNTIF($V$7:V250,\"VIR*\"),IF(COUNTIF($B$8:B251,B251)=1,\"AUT\"&COUNTIF($V$7:V250,\"AUT*\"),\"\"))","v":"VIR78"},"",""]
["2015-07-20","Philippe",null,null,null,null,null,null,null,null,null,null,null,null,null,null,null,null,null,null,null,{"$f":"IF(COUNTIF(B252,\"*Virement*\"),\"VIR\"&COUNTIF($V$7:V251,\"VIR*\"),IF(COUNTIF($B$8:B252,B252)=1,\"AUT\"&COUNTIF($V$7:V251,\"AUT*\"),\"\"))","v":""},"",""]
["2015-06-19","Paul",null,null,null,null,null,null,null,null,null,null,null,null,null,null,null,null,null,null,null,{"$f":"IF(COUNTIF(B253,\"*Virement*\"),\"VIR\"&COUNTIF($V$7:V252,\"VIR*\"),IF(COUNTIF($B$8:B253,B253)=1,\"AUT\"&COUNTIF($V$7:V252,\"AUT*\"),\"\"))","v":""},"",""]
["2015-09-21","Patrick",null,null,null,null,null,null,null,null,null,null,null,null,null,null,null,null,null,null,null,{"$f":"IF(COUNTIF(B254,\"*Virement*\"),\"VIR\"&COUNTIF($V$7:V253,\"VIR*\"),IF(COUNTIF($B$8:B254,B254)=1,\"AUT\"&COUNTIF($V$7:V253,\"AUT*\"),\"\"))","v":""},"",""]
["2015-12-12","Paul",null,null,null,null,null,null,null,null,null,null,null,null,null,null,null,null,null,null,null,{"$f":"IF(COUNTIF(B255,\"*Virement*\"),\"VIR\"&COUNTIF($V$7:V254,\"VIR*\"),IF(COUNTIF($B$8:B255,B255)=1,\"AUT\"&COUNTIF($V$7:V254,\"AUT*\"),\"\"))","v":""},"",""]
["2015-12-16","Renè",null,null,null,null,null,null,null,null,null,null,null,null,null,null,null,null,null,null,null,{"$f":"IF(COUNTIF(B256,\"*Virement*\"),\"VIR\"&COUNTIF($V$7:V255,\"VIR*\"),IF(COUNTIF($B$8:B256,B256)=1,\"AUT\"&COUNTIF($V$7:V255,\"AUT*\"),\"\"))","v":""},"",""]
["2015-06-12","Philippe",null,null,null,null,null,null,null,null,null,null,null,null,null,null,null,null,null,null,null,{"$f":"IF(COUNTIF(B257,\"*Virement*\"),\"VIR\"&COUNTIF($V$7:V256,\"VIR*\"),IF(COUNTIF($B$8:B257,B257)=1,\"AUT\"&COUNTIF($V$7:V256,\"AUT*\"),\"\"))","v":""},"",""]
["2015-06-21","Lucas",null,null,null,null,null,null,null,null,null,null,null,null,null,null,null,null,null,null,null,{"$f":"IF(COUNTIF(B258,\"*Virement*\"),\"VIR\"&COUNTIF($V$7:V257,\"VIR*\"),IF(COUNTIF($B$8:B258,B258)=1,\"AUT\"&COUNTIF($V$7:V257,\"AUT*\"),\"\"))","v":""},"",""]
["2015-05-27","Corinne",null,null,null,null,null,null,null,null,null,null,null,null,null,null,null,null,null,null,null,{"$f":"IF(COUNTIF(B259,\"*Virement*\"),\"VIR\"&COUNTIF($V$7:V258,\"VIR*\"),IF(COUNTIF($B$8:B259,B259)=1,\"AUT\"&COUNTIF($V$7:V258,\"AUT*\"),\"\"))","v":""},"",""]
[null,null,null,null,null,null,null,null,null,null,null,null,null,null,null,null,null,null,null,null,null,{"$f":"IF(COUNTIF(B260,\"*Virement*\"),\"VIR\"&COUNTIF($V$7:V259,\"VIR*\"),IF(COUNTIF($B$8:B260,B260)=1,\"AUT\"&COUNTIF($V$7:V259,\"AUT*\"),\"\"))","v":""},"",""]
[null,null,null,null,null,null,null,null,null,null,null,null,null,null,null,null,null,null,null,null,null,{"$f":"IF(COUNTIF(B261,\"*Virement*\"),\"VIR\"&COUNTIF($V$7:V260,\"VIR*\"),IF(COUNTIF($B$8:B261,B261)=1,\"AUT\"&COUNTIF($V$7:V260,\"AUT*\"),\"\"))","v":""},"",""]
[null,null,null,null,null,null,null,null,null,null,null,null,null,null,null,null,null,null,null,null,null,{"$f":"IF(COUNTIF(B262,\"*Virement*\"),\"VIR\"&COUNTIF($V$7:V261,\"VIR*\"),IF(COUNTIF($B$8:B262,B262)=1,\"AUT\"&COUNTIF($V$7:V261,\"AUT*\"),\"\"))","v":""},"",""]
[null,null,null,null,null,null,null,null,null,null,null,null,null,null,null,null,null,null,null,null,null,{"$f":"IF(COUNTIF(B263,\"*Virement*\"),\"VIR\"&COUNTIF($V$7:V262,\"VIR*\"),IF(COUNTIF($B$8:B263,B263)=1,\"AUT\"&COUNTIF($V$7:V262,\"AUT*\"),\"\"))","v":""},"",""]
[null,null,null,null,null,null,null,null,null,null,null,null,null,null,null,null,null,null,null,null,null,{"$f":"IF(COUNTIF(B264,\"*Virement*\"),\"VIR\"&COUNTIF($V$7:V263,\"VIR*\"),IF(COUNTIF($B$8:B264,B264)=1,\"AUT\"&COUNTIF($V$7:V263,\"AUT*\"),\"\"))","v":""},"",""]
[null,null,null,null,null,null,null,null,null,null,null,null,null,null,null,null,null,null,null,null,null,{"$f":"IF(COUNTIF(B265,\"*Virement*\"),\"VIR\"&COUNTIF($V$7:V264,\"VIR*\"),IF(COUNTIF($B$8:B265,B265)=1,\"AUT\"&COUNTIF($V$7:V264,\"AUT*\"),\"\"))","v":""},{"$f":"IFERROR(INDEX(B:B,MATCH(\"VIR\"&ROW()-8,V:V,0)),\"\")","v":""},{"$f":"IFERROR(INDEX($B:$B,MATCH(\"AUT\"&ROW()-8,$V:$V,0)),\"\")","v":""}]
[null,null,null,null,null,null,null,null,null,null,null,null,null,null,null,null,null,null,null,null,null,{"$f":"IF(COUNTIF(B266,\"*Virement*\"),\"VIR\"&COUNTIF($V$7:V265,\"VIR*\"),IF(COUNTIF($B$8:B266,B266)=1,\"AUT\"&COUNTIF($V$7:V265,\"AUT*\"),\"\"))","v":""},"",""]
[null,null,null,null,null,null,null,null,null,null,null,null,null,null,null,null,null,null,null,null,null,{"$f":"IF(COUNTIF(B267,\"*Virement*\"),\"VIR\"&COUNTIF($V$7:V266,\"VIR*\"),IF(COUNTIF($B$8:B267,B267)=1,\"AUT\"&COUNTIF($V$7:V266,\"AUT*\"),\"\"))","v":""},"",""]
[null,null,null,null,null,null,null,null,null,null,null,null,null,null,null,null,null,null,null,null,null,{"$f":"IF(COUNTIF(B268,\"*Virement*\"),\"VIR\"&COUNTIF($V$7:V267,\"VIR*\"),IF(COUNTIF($B$8:B268,B268)=1,\"AUT\"&COUNTIF($V$7:V267,\"AUT*\"),\"\"))","v":""},"",""]
[null,null,null,null,null,null,null,null,null,null,null,null,null,null,null,null,null,null,null,null,null,{"$f":"IF(COUNTIF(B269,\"*Virement*\"),\"VIR\"&COUNTIF($V$7:V268,\"VIR*\"),IF(COUNTIF($B$8:B269,B269)=1,\"AUT\"&COUNTIF($V$7:V268,\"AUT*\"),\"\"))","v":""},"",""]
[null,null,null,null,null,null,null,null,null,null,null,null,null,null,null,null,null,null,null,null,null,{"$f":"IF(COUNTIF(B270,\"*Virement*\"),\"VIR\"&COUNTIF($V$7:V269,\"VIR*\"),IF(COUNTIF($B$8:B270,B270)=1,\"AUT\"&COUNTIF($V$7:V269,\"AUT*\"),\"\"))","v":""},"",""]
[null,null,null,null,null,null,null,null,null,null,null,null,null,null,null,null,null,null,null,null,null,{"$f":"IF(COUNTIF(B271,\"*Virement*\"),\"VIR\"&COUNTIF($V$7:V270,\"VIR*\"),IF(COUNTIF($B$8:B271,B271)=1,\"AUT\"&COUNTIF($V$7:V270,\"AUT*\"),\"\"))","v":""},"",""]
[null,null,null,null,null,null,null,null,null,null,null,null,null,null,null,null,null,null,null,null,null,{"$f":"IF(COUNTIF(B272,\"*Virement*\"),\"VIR\"&COUNTIF($V$7:V271,\"VIR*\"),IF(COUNTIF($B$8:B272,B272)=1,\"AUT\"&COUNTIF($V$7:V271,\"AUT*\"),\"\"))","v":""},"",""]
[null,null,null,null,null,null,null,null,null,null,null,null,null,null,null,null,null,null,null,null,null,{"$f":"IF(COUNTIF(B273,\"*Virement*\"),\"VIR\"&COUNTIF($V$7:V272,\"VIR*\"),IF(COUNTIF($B$8:B273,B273)=1,\"AUT\"&COUNTIF($V$7:V272,\"AUT*\"),\"\"))","v":""},"",""]
[null,null,null,null,null,null,null,null,null,null,null,null,null,null,null,null,null,null,null,null,null,{"$f":"IF(COUNTIF(B274,\"*Virement*\"),\"VIR\"&COUNTIF($V$7:V273,\"VIR*\"),IF(COUNTIF($B$8:B274,B274)=1,\"AUT\"&COUNTIF($V$7:V273,\"AUT*\"),\"\"))","v":""},"",""]
[null,null,null,null,null,null,null,null,null,null,null,null,null,null,null,null,null,null,null,null,null,{"$f":"IF(COUNTIF(B275,\"*Virement*\"),\"VIR\"&COUNTIF($V$7:V274,\"VIR*\"),IF(COUNTIF($B$8:B275,B275)=1,\"AUT\"&COUNTIF($V$7:V274,\"AUT*\"),\"\"))","v":""},"",""]
[null,null,null,null,null,null,null,null,null,null,null,null,null,null,null,null,null,null,null,null,null,{"$f":"IF(COUNTIF(B276,\"*Virement*\"),\"VIR\"&COUNTIF($V$7:V275,\"VIR*\"),IF(COUNTIF($B$8:B276,B276)=1,\"AUT\"&COUNTIF($V$7:V275,\"AUT*\"),\"\"))","v":""},"",""]
[null,null,null,null,null,null,null,null,null,null,null,null,null,null,null,null,null,null,null,null,null,{"$f":"IF(COUNTIF(B277,\"*Virement*\"),\"VIR\"&COUNTIF($V$7:V276,\"VIR*\"),IF(COUNTIF($B$8:B277,B277)=1,\"AUT\"&COUNTIF($V$7:V276,\"AUT*\"),\"\"))","v":""},"",""]
[null,null,null,null,null,null,null,null,null,null,null,null,null,null,null,null,null,null,null,null,null,{"$f":"IF(COUNTIF(B278,\"*Virement*\"),\"VIR\"&COUNTIF($V$7:V277,\"VIR*\"),IF(COUNTIF($B$8:B278,B278)=1,\"AUT\"&COUNTIF($V$7:V277,\"AUT*\"),\"\"))","v":""},"",""]
[null,null,null,null,null,null,null,null,null,null,null,null,null,null,null,null,null,null,null,null,null,{"$f":"IF(COUNTIF(B279,\"*Virement*\"),\"VIR\"&COUNTIF($V$7:V278,\"VIR*\"),IF(COUNTIF($B$8:B279,B279)=1,\"AUT\"&COUNTIF($V$7:V278,\"AUT*\"),\"\"))","v":""},"",""]
[null,null,null,null,null,null,null,null,null,null,null,null,null,null,null,null,null,null,null,null,null,{"$f":"IF(COUNTIF(B280,\"*Virement*\"),\"VIR\"&COUNTIF($V$7:V279,\"VIR*\"),IF(COUNTIF($B$8:B280,B280)=1,\"AUT\"&COUNTIF($V$7:V279,\"AUT*\"),\"\"))","v":""},"",""]
[null,null,null,null,null,null,null,null,null,null,null,null,null,null,null,null,null,null,null,null,null,{"$f":"IF(COUNTIF(B281,\"*Virement*\"),\"VIR\"&COUNTIF($V$7:V280,\"VIR*\"),IF(COUNTIF($B$8:B281,B281)=1,\"AUT\"&COUNTIF($V$7:V280,\"AUT*\"),\"\"))","v":""},"",""]
[null,null,null,null,null,null,null,null,null,null,null,null,null,null,null,null,null,null,null,null,null,{"$f":"IF(COUNTIF(B282,\"*Virement*\"),\"VIR\"&COUNTIF($V$7:V281,\"VIR*\"),IF(COUNTIF($B$8:B282,B282)=1,\"AUT\"&COUNTIF($V$7:V281,\"AUT*\"),\"\"))","v":""},"",""]
[null,null,null,null,null,null,null,null,null,null,null,null,null,null,null,null,null,null,null,null,null,{"$f":"IF(COUNTIF(B283,\"*Virement*\"),\"VIR\"&COUNTIF($V$7:V282,\"VIR*\"),IF(COUNTIF($B$8:B283,B283)=1,\"AUT\"&COUNTIF($V$7:V282,\"AUT*\"),\"\"))","v":""},"",""]
[null,null,null,null,null,null,null,null,null,null,null,null,null,null,null,null,null,null,null,null,null,{"$f":"IF(COUNTIF(B284,\"*Virement*\"),\"VIR\"&COUNTIF($V$7:V283,\"VIR*\"),IF(COUNTIF($B$8:B284,B284)=1,\"AUT\"&COUNTIF($V$7:V283,\"AUT*\"),\"\"))","v":""},"",""]
[null,null,null,null,null,null,null,null,null,null,null,null,null,null,null,null,null,null,null,null,null,{"$f":"IF(COUNTIF(B285,\"*Virement*\"),\"VIR\"&COUNTIF($V$7:V284,\"VIR*\"),IF(COUNTIF($B$8:B285,B285)=1,\"AUT\"&COUNTIF($V$7:V284,\"AUT*\"),\"\"))","v":""},"",""]
[null,null,null,null,null,null,null,null,null,null,null,null,null,null,null,null,null,null,null,null,null,{"$f":"IF(COUNTIF(B286,\"*Virement*\"),\"VIR\"&COUNTIF($V$7:V285,\"VIR*\"),IF(COUNTIF($B$8:B286,B286)=1,\"AUT\"&COUNTIF($V$7:V285,\"AUT*\"),\"\"))","v":""},"",""]
[null,null,null,null,null,null,null,null,null,null,null,null,null,null,null,null,null,null,null,null,null,{"$f":"IF(COUNTIF(B287,\"*Virement*\"),\"VIR\"&COUNTIF($V$7:V286,\"VIR*\"),IF(COUNTIF($B$8:B287,B287)=1,\"AUT\"&COUNTIF($V$7:V286,\"AUT*\"),\"\"))","v":""},"",""]
[null,null,null,null,null,null,null,null,null,null,null,null,null,null,null,null,null,null,null,null,null,{"$f":"IF(COUNTIF(B288,\"*Virement*\"),\"VIR\"&COUNTIF($V$7:V287,\"VIR*\"),IF(COUNTIF($B$8:B288,B288)=1,\"AUT\"&COUNTIF($V$7:V287,\"AUT*\"),\"\"))","v":""},"",""]
[null,null,null,null,null,null,null,null,null,null,null,null,null,null,null,null,null,null,null,null,null,{"$f":"IF(COUNTIF(B289,\"*Virement*\"),\"VIR\"&COUNTIF($V$7:V288,\"VIR*\"),IF(COUNTIF($B$8:B289,B289)=1,\"AUT\"&COUNTIF($V$7:V288,\"AUT*\"),\"\"))","v":""},"",""]
[null,null,null,null,null,null,null,null,null,null,null,null,null,null,null,null,null,null,null,null,null,{"$f":"IF(COUNTIF(B290,\"*Virement*\"),\"VIR\"&COUNTIF($V$7:V289,\"VIR*\"),IF(COUNTIF($B$8:B290,B290)=1,\"AUT\"&COUNTIF($V$7:V289,\"AUT*\"),\"\"))","v":""},"",""]
[null,null,null,null,null,null,null,null,null,null,null,null,null,null,null,null,null,null,null,null,null,{"$f":"IF(COUNTIF(B291,\"*Virement*\"),\"VIR\"&COUNTIF($V$7:V290,\"VIR*\"),IF(COUNTIF($B$8:B291,B291)=1,\"AUT\"&COUNTIF($V$7:V290,\"AUT*\"),\"\"))","v":""},"",""]
[null,null,null,null,null,null,null,null,null,null,null,null,null,null,null,null,null,null,null,null,null,{"$f":"IF(COUNTIF(B292,\"*Virement*\"),\"VIR\"&COUNTIF($V$7:V291,\"VIR*\"),IF(COUNTIF($B$8:B292,B292)=1,\"AUT\"&COUNTIF($V$7:V291,\"AUT*\"),\"\"))","v":""},"",""]
[null,null,null,null,null,null,null,null,null,null,null,null,null,null,null,null,null,null,null,null,null,{"$f":"IF(COUNTIF(B293,\"*Virement*\"),\"VIR\"&COUNTIF($V$7:V292,\"VIR*\"),IF(COUNTIF($B$8:B293,B293)=1,\"AUT\"&COUNTIF($V$7:V292,\"AUT*\"),\"\"))","v":""},"",""]
[null,null,null,null,null,null,null,null,null,null,null,null,null,null,null,null,null,null,null,null,null,{"$f":"IF(COUNTIF(B294,\"*Virement*\"),\"VIR\"&COUNTIF($V$7:V293,\"VIR*\"),IF(COUNTIF($B$8:B294,B294)=1,\"AUT\"&COUNTIF($V$7:V293,\"AUT*\"),\"\"))","v":""},"",""]
[null,null,null,null,null,null,null,null,null,null,null,null,null,null,null,null,null,null,null,null,null,{"$f":"IF(COUNTIF(B295,\"*Virement*\"),\"VIR\"&COUNTIF($V$7:V294,\"VIR*\"),IF(COUNTIF($B$8:B295,B295)=1,\"AUT\"&COUNTIF($V$7:V294,\"AUT*\"),\"\"))","v":""},"",""]
[null,null,null,null,null,null,null,null,null,null,null,null,null,null,null,null,null,null,null,null,null,{"$f":"IF(COUNTIF(B296,\"*Virement*\"),\"VIR\"&COUNTIF($V$7:V295,\"VIR*\"),IF(COUNTIF($B$8:B296,B296)=1,\"AUT\"&COUNTIF($V$7:V295,\"AUT*\"),\"\"))","v":""},"",""]
[null,null,null,null,null,null,null,null,null,null,null,null,null,null,null,null,null,null,null,null,null,{"$f":"IF(COUNTIF(B297,\"*Virement*\"),\"VIR\"&COUNTIF($V$7:V296,\"VIR*\"),IF(COUNTIF($B$8:B297,B297)=1,\"AUT\"&COUNTIF($V$7:V296,\"AUT*\"),\"\"))","v":""},"",""]
[null,null,null,null,null,null,null,null,null,null,null,null,null,null,null,null,null,null,null,null,null,{"$f":"IF(COUNTIF(B298,\"*Virement*\"),\"VIR\"&COUNTIF($V$7:V297,\"VIR*\"),IF(COUNTIF($B$8:B298,B298)=1,\"AUT\"&COUNTIF($V$7:V297,\"AUT*\"),\"\"))","v":""},"",""]
[null,null,null,null,null,null,null,null,null,null,null,null,null,null,null,null,null,null,null,null,null,{"$f":"IF(COUNTIF(B299,\"*Virement*\"),\"VIR\"&COUNTIF($V$7:V298,\"VIR*\"),IF(COUNTIF($B$8:B299,B299)=1,\"AUT\"&COUNTIF($V$7:V298,\"AUT*\"),\"\"))","v":""},"",""]
[null,null,null,null,null,null,null,null,null,null,null,null,null,null,null,null,null,null,null,null,null,{"$f":"IF(COUNTIF(B300,\"*Virement*\"),\"VIR\"&COUNTIF($V$7:V299,\"VIR*\"),IF(COUNTIF($B$8:B300,B300)=1,\"AUT\"&COUNTIF($V$7:V299,\"AUT*\"),\"\"))","v":""},"",""]
[null,null,null,null,null,null,null,null,null,null,null,null,null,null,null,null,null,null,null,null,null,{"$f":"IF(COUNTIF(B301,\"*Virement*\"),\"VIR\"&COUNTIF($V$7:V300,\"VIR*\"),IF(COUNTIF($B$8:B301,B301)=1,\"AUT\"&COUNTIF($V$7:V300,\"AUT*\"),\"\"))","v":""},"",""]
[null,null,null,null,null,null,null,null,null,null,null,null,null,null,null,null,null,null,null,null,null,{"$f":"IF(COUNTIF(B302,\"*Virement*\"),\"VIR\"&COUNTIF($V$7:V301,\"VIR*\"),IF(COUNTIF($B$8:B302,B302)=1,\"AUT\"&COUNTIF($V$7:V301,\"AUT*\"),\"\"))","v":""},"",""]
[null,null,null,null,null,null,null,null,null,null,null,null,null,null,null,null,null,null,null,null,null,{"$f":"IF(COUNTIF(B303,\"*Virement*\"),\"VIR\"&COUNTIF($V$7:V302,\"VIR*\"),IF(COUNTIF($B$8:B303,B303)=1,\"AUT\"&COUNTIF($V$7:V302,\"AUT*\"),\"\"))","v":""},"",""]
[null,null,null,null,null,null,null,null,null,null,null,null,null,null,null,null,null,null,null,null,null,{"$f":"IF(COUNTIF(B304,\"*Virement*\"),\"VIR\"&COUNTIF($V$7:V303,\"VIR*\"),IF(COUNTIF($B$8:B304,B304)=1,\"AUT\"&COUNTIF($V$7:V303,\"AUT*\"),\"\"))","v":""},"",""]
[null,null,null,null,null,null,null,null,null,null,null,null,null,null,null,null,null,null,null,null,null,{"$f":"IF(COUNTIF(B305,\"*Virement*\"),\"VIR\"&COUNTIF($V$7:V304,\"VIR*\"),IF(COUNTIF($B$8:B305,B305)=1,\"AUT\"&COUNTIF($V$7:V304,\"AUT*\"),\"\"))","v":""},"",""]
[null,null,null,null,null,null,null,null,null,null,null,null,null,null,null,null,null,null,null,null,null,{"$f":"IF(COUNTIF(B306,\"*Virement*\"),\"VIR\"&COUNTIF($V$7:V305,\"VIR*\"),IF(COUNTIF($B$8:B306,B306)=1,\"AUT\"&COUNTIF($V$7:V305,\"AUT*\"),\"\"))","v":""},"",""]
[null,null,null,null,null,null,null,null,null,null,null,null,null,null,null,null,null,null,null,null,null,{"$f":"IF(COUNTIF(B307,\"*Virement*\"),\"VIR\"&COUNTIF($V$7:V306,\"VIR*\"),IF(COUNTIF($B$8:B307,B307)=1,\"AUT\"&COUNTIF($V$7:V306,\"AUT*\"),\"\"))","v":""},"",""]
[null,null,null,null,null,null,null,null,null,null,null,null,null,null,null,null,null,null,null,null,null,{"$f":"IF(COUNTIF(B308,\"*Virement*\"),\"VIR\"&COUNTIF($V$7:V307,\"VIR*\"),IF(COUNTIF($B$8:B308,B308)=1,\"AUT\"&COUNTIF($V$7:V307,\"AUT*\"),\"\"))","v":""},"",""]
[null,null,null,null,null,null,null,null,null,null,null,null,null,null,null,null,null,null,null,null,null,{"$f":"IF(COUNTIF(B309,\"*Virement*\"),\"VIR\"&COUNTIF($V$7:V308,\"VIR*\"),IF(COUNTIF($B$8:B309,B309)=1,\"AUT\"&COUNTIF($V$7:V308,\"AUT*\"),\"\"))","v":""},"",""]
[null,null,null,null,null,null,null,null,null,null,null,null,null,null,null,null,null,null,null,null,null,{"$f":"IF(COUNTIF(B310,\"*Virement*\"),\"VIR\"&COUNTIF($V$7:V309,\"VIR*\"),IF(COUNTIF($B$8:B310,B310)=1,\"AUT\"&COUNTIF($V$7:V309,\"AUT*\"),\"\"))","v":""},"",""]
[null,null,null,null,null,null,null,null,null,null,null,null,null,null,null,null,null,null,null,null,null,{"$f":"IF(COUNTIF(B311,\"*Virement*\"),\"VIR\"&COUNTIF($V$7:V310,\"VIR*\"),IF(COUNTIF($B$8:B311,B311)=1,\"AUT\"&COUNTIF($V$7:V310,\"AUT*\"),\"\"))","v":""},"",""]
[null,null,null,null,null,null,null,null,null,null,null,null,null,null,null,null,null,null,null,null,null,{"$f":"IF(COUNTIF(B312,\"*Virement*\"),\"VIR\"&COUNTIF($V$7:V311,\"VIR*\"),IF(COUNTIF($B$8:B312,B312)=1,\"AUT\"&COUNTIF($V$7:V311,\"AUT*\"),\"\"))","v":""},"",""]
[null,null,null,null,null,null,null,null,null,null,null,null,null,null,null,null,null,null,null,null,null,{"$f":"IF(COUNTIF(B313,\"*Virement*\"),\"VIR\"&COUNTIF($V$7:V312,\"VIR*\"),IF(COUNTIF($B$8:B313,B313)=1,\"AUT\"&COUNTIF($V$7:V312,\"AUT*\"),\"\"))","v":""},"",""]
[null,null,null,null,null,null,null,null,null,null,null,null,null,null,null,null,null,null,null,null,null,{"$f":"IF(COUNTIF(B314,\"*Virement*\"),\"VIR\"&COUNTIF($V$7:V313,\"VIR*\"),IF(COUNTIF($B$8:B314,B314)=1,\"AUT\"&COUNTIF($V$7:V313,\"AUT*\"),\"\"))","v":""},"",""]
[null,null,null,null,null,null,null,null,null,null,null,null,null,null,null,null,null,null,null,null,null,{"$f":"IF(COUNTIF(B315,\"*Virement*\"),\"VIR\"&COUNTIF($V$7:V314,\"VIR*\"),IF(COUNTIF($B$8:B315,B315)=1,\"AUT\"&COUNTIF($V$7:V314,\"AUT*\"),\"\"))","v":""},"",""]
[null,null,null,null,null,null,null,null,null,null,null,null,null,null,null,null,null,null,null,null,null,{"$f":"IF(COUNTIF(B316,\"*Virement*\"),\"VIR\"&COUNTIF($V$7:V315,\"VIR*\"),IF(COUNTIF($B$8:B316,B316)=1,\"AUT\"&COUNTIF($V$7:V315,\"AUT*\"),\"\"))","v":""},"",""]
[null,null,null,null,null,null,null,null,null,null,null,null,null,null,null,null,null,null,null,null,null,{"$f":"IF(COUNTIF(B317,\"*Virement*\"),\"VIR\"&COUNTIF($V$7:V316,\"VIR*\"),IF(COUNTIF($B$8:B317,B317)=1,\"AUT\"&COUNTIF($V$7:V316,\"AUT*\"),\"\"))","v":""},"",""]
[null,null,null,null,null,null,null,null,null,null,null,null,null,null,null,null,null,null,null,null,null,{"$f":"IF(COUNTIF(B318,\"*Virement*\"),\"VIR\"&COUNTIF($V$7:V317,\"VIR*\"),IF(COUNTIF($B$8:B318,B318)=1,\"AUT\"&COUNTIF($V$7:V317,\"AUT*\"),\"\"))","v":""},"",""]
[null,null,null,null,null,null,null,null,null,null,null,null,null,null,null,null,null,null,null,null,null,{"$f":"IF(COUNTIF(B319,\"*Virement*\"),\"VIR\"&COUNTIF($V$7:V318,\"VIR*\"),IF(COUNTIF($B$8:B319,B319)=1,\"AUT\"&COUNTIF($V$7:V318,\"AUT*\"),\"\"))","v":""},"",""]
[null,null,null,null,null,null,null,null,null,null,null,null,null,null,null,null,null,null,null,null,null,{"$f":"IF(COUNTIF(B320,\"*Virement*\"),\"VIR\"&COUNTIF($V$7:V319,\"VIR*\"),IF(COUNTIF($B$8:B320,B320)=1,\"AUT\"&COUNTIF($V$7:V319,\"AUT*\"),\"\"))","v":""},"",""]
[null,null,null,null,null,null,null,null,null,null,null,null,null,null,null,null,null,null,null,null,null,{"$f":"IF(COUNTIF(B321,\"*Virement*\"),\"VIR\"&COUNTIF($V$7:V320,\"VIR*\"),IF(COUNTIF($B$8:B321,B321)=1,\"AUT\"&COUNTIF($V$7:V320,\"AUT*\"),\"\"))","v":""},"",""]
[null,null,null,null,null,null,null,null,null,null,null,null,null,null,null,null,null,null,null,null,null,{"$f":"IF(COUNTIF(B322,\"*Virement*\"),\"VIR\"&COUNTIF($V$7:V321,\"VIR*\"),IF(COUNTIF($B$8:B322,B322)=1,\"AUT\"&COUNTIF($V$7:V321,\"AUT*\"),\"\"))","v":""},"",""]
[null,null,null,null,null,null,null,null,null,null,null,null,null,null,null,null,null,null,null,null,null,{"$f":"IF(COUNTIF(B323,\"*Virement*\"),\"VIR\"&COUNTIF($V$7:V322,\"VIR*\"),IF(COUNTIF($B$8:B323,B323)=1,\"AUT\"&COUNTIF($V$7:V322,\"AUT*\"),\"\"))","v":""},"",""]
[null,null,null,null,null,null,null,null,null,null,null,null,null,null,null,null,null,null,null,null,null,{"$f":"IF(COUNTIF(B324,\"*Virement*\"),\"VIR\"&COUNTIF($V$7:V323,\"VIR*\"),IF(COUNTIF($B$8:B324,B324)=1,\"AUT\"&COUNTIF($V$7:V323,\"AUT*\"),\"\"))","v":""},"",""]
[null,null,null,null,null,null,null,null,null,null,null,null,null,null,null,null,null,null,null,null,null,{"$f":"IF(COUNTIF(B325,\"*Virement*\"),\"VIR\"&COUNTIF($V$7:V324,\"VIR*\"),IF(COUNTIF($B$8:B325,B325)=1,\"AUT\"&COUNTIF($V$7:V324,\"AUT*\"),\"\"))","v":""},"",""]
[null,null,null,null,null,null,null,null,null,null,null,null,null,null,null,null,null,null,null,null,null,{"$f":"IF(COUNTIF(B326,\"*Virement*\"),\"VIR\"&COUNTIF($V$7:V325,\"VIR*\"),IF(COUNTIF($B$8:B326,B326)=1,\"AUT\"&COUNTIF($V$7:V325,\"AUT*\"),\"\"))","v":""},"",""]
[null,null,null,null,null,null,null,null,null,null,null,null,null,null,null,null,null,null,null,null,null,{"$f":"IF(COUNTIF(B327,\"*Virement*\"),\"VIR\"&COUNTIF($V$7:V326,\"VIR*\"),IF(COUNTIF($B$8:B327,B327)=1,\"AUT\"&COUNTIF($V$7:V326,\"AUT*\"),\"\"))","v":""},"",""]
[null,null,null,null,null,null,null,null,null,null,null,null,null,null,null,null,null,null,null,null,null,{"$f":"IF(COUNTIF(B328,\"*Virement*\"),\"VIR\"&COUNTIF($V$7:V327,\"VIR*\"),IF(COUNTIF($B$8:B328,B328)=1,\"AUT\"&COUNTIF($V$7:V327,\"AUT*\"),\"\"))","v":""},"",""]
[null,null,null,null,null,null,null,null,null,null,null,null,null,null,null,null,null,null,null,null,null,{"$f":"IF(COUNTIF(B329,\"*Virement*\"),\"VIR\"&COUNTIF($V$7:V328,\"VIR*\"),IF(COUNTIF($B$8:B329,B329)=1,\"AUT\"&COUNTIF($V$7:V328,\"AUT*\"),\"\"))","v":""},{"$f":"IFERROR(INDEX(B:B,MATCH(\"VIR\"&ROW()-8,V:V,0)),\"\")","v":""},{"$f":"IFERROR(INDEX($B:$B,MATCH(\"AUT\"&ROW()-8,$V:$V,0)),\"\")","v":""}]
[null,null,null,null,null,null,null,null,null,null,null,null,null,null,null,null,null,null,null,null,null,{"$f":"IF(COUNTIF(B330,\"*Virement*\"),\"VIR\"&COUNTIF($V$7:V329,\"VIR*\"),IF(COUNTIF($B$8:B330,B330)=1,\"AUT\"&COUNTIF($V$7:V329,\"AUT*\"),\"\"))","v":""},"",""]
[null,null,null,null,null,null,null,null,null,null,null,null,null,null,null,null,null,null,null,null,null,{"$f":"IF(COUNTIF(B331,\"*Virement*\"),\"VIR\"&COUNTIF($V$7:V330,\"VIR*\"),IF(COUNTIF($B$8:B331,B331)=1,\"AUT\"&COUNTIF($V$7:V330,\"AUT*\"),\"\"))","v":""},"",""]
[null,null,null,null,null,null,null,null,null,null,null,null,null,null,null,null,null,null,null,null,null,{"$f":"IF(COUNTIF(B332,\"*Virement*\"),\"VIR\"&COUNTIF($V$7:V331,\"VIR*\"),IF(COUNTIF($B$8:B332,B332)=1,\"AUT\"&COUNTIF($V$7:V331,\"AUT*\"),\"\"))","v":""},"",""]
[null,null,null,null,null,null,null,null,null,null,null,null,null,null,null,null,null,null,null,null,null,{"$f":"IF(COUNTIF(B333,\"*Virement*\"),\"VIR\"&COUNTIF($V$7:V332,\"VIR*\"),IF(COUNTIF($B$8:B333,B333)=1,\"AUT\"&COUNTIF($V$7:V332,\"AUT*\"),\"\"))","v":""},"",""]
[null,null,null,null,null,null,null,null,null,null,null,null,null,null,null,null,null,null,null,null,null,{"$f":"IF(COUNTIF(B334,\"*Virement*\"),\"VIR\"&COUNTIF($V$7:V333,\"VIR*\"),IF(COUNTIF($B$8:B334,B334)=1,\"AUT\"&COUNTIF($V$7:V333,\"AUT*\"),\"\"))","v":""},"",""]
[null,null,null,null,null,null,null,null,null,null,null,null,null,null,null,null,null,null,null,null,null,{"$f":"IF(COUNTIF(B335,\"*Virement*\"),\"VIR\"&COUNTIF($V$7:V334,\"VIR*\"),IF(COUNTIF($B$8:B335,B335)=1,\"AUT\"&COUNTIF($V$7:V334,\"AUT*\"),\"\"))","v":""},"",""]
[null,null,null,null,null,null,null,null,null,null,null,null,null,null,null,null,null,null,null,null,null,{"$f":"IF(COUNTIF(B336,\"*Virement*\"),\"VIR\"&COUNTIF($V$7:V335,\"VIR*\"),IF(COUNTIF($B$8:B336,B336)=1,\"AUT\"&COUNTIF($V$7:V335,\"AUT*\"),\"\"))","v":""},"",""]
[null,null,null,null,null,null,null,null,null,null,null,null,null,null,null,null,null,null,null,null,null,{"$f":"IF(COUNTIF(B337,\"*Virement*\"),\"VIR\"&COUNTIF($V$7:V336,\"VIR*\"),IF(COUNTIF($B$8:B337,B337)=1,\"AUT\"&COUNTIF($V$7:V336,\"AUT*\"),\"\"))","v":""},"",""]
[null,null,null,null,null,null,null,null,null,null,null,null,null,null,null,null,null,null,null,null,null,{"$f":"IF(COUNTIF(B338,\"*Virement*\"),\"VIR\"&COUNTIF($V$7:V337,\"VIR*\"),IF(COUNTIF($B$8:B338,B338)=1,\"AUT\"&COUNTIF($V$7:V337,\"AUT*\"),\"\"))","v":""},"",""]
[null,null,null,null,null,null,null,null,null,null,null,null,null,null,null,null,null,null,null,null,null,{"$f":"IF(COUNTIF(B339,\"*Virement*\"),\"VIR\"&COUNTIF($V$7:V338,\"VIR*\"),IF(COUNTIF($B$8:B339,B339)=1,\"AUT\"&COUNTIF($V$7:V338,\"AUT*\"),\"\"))","v":""},"",""]
[null,null,null,null,null,null,null,null,null,null,null,null,null,null,null,null,null,null,null,null,null,{"$f":"IF(COUNTIF(B340,\"*Virement*\"),\"VIR\"&COUNTIF($V$7:V339,\"VIR*\"),IF(COUNTIF($B$8:B340,B340)=1,\"AUT\"&COUNTIF($V$7:V339,\"AUT*\"),\"\"))","v":""},"",""]
[null,null,null,null,null,null,null,null,null,null,null,null,null,null,null,null,null,null,null,null,null,{"$f":"IF(COUNTIF(B341,\"*Virement*\"),\"VIR\"&COUNTIF($V$7:V340,\"VIR*\"),IF(COUNTIF($B$8:B341,B341)=1,\"AUT\"&COUNTIF($V$7:V340,\"AUT*\"),\"\"))","v":""},"",""]
[null,null,null,null,null,null,null,null,null,null,null,null,null,null,null,null,null,null,null,null,null,{"$f":"IF(COUNTIF(B342,\"*Virement*\"),\"VIR\"&COUNTIF($V$7:V341,\"VIR*\"),IF(COUNTIF($B$8:B342,B342)=1,\"AUT\"&COUNTIF($V$7:V341,\"AUT*\"),\"\"))","v":""},"",""]
[null,null,null,null,null,null,null,null,null,null,null,null,null,null,null,null,null,null,null,null,null,{"$f":"IF(COUNTIF(B343,\"*Virement*\"),\"VIR\"&COUNTIF($V$7:V342,\"VIR*\"),IF(COUNTIF($B$8:B343,B343)=1,\"AUT\"&COUNTIF($V$7:V342,\"AUT*\"),\"\"))","v":""},"",""]
[null,null,null,null,null,null,null,null,null,null,null,null,null,null,null,null,null,null,null,null,null,{"$f":"IF(COUNTIF(B344,\"*Virement*\"),\"VIR\"&COUNTIF($V$7:V343,\"VIR*\"),IF(COUNTIF($B$8:B344,B344)=1,\"AUT\"&COUNTIF($V$7:V343,\"AUT*\"),\"\"))","v":""},"",""]
[null,null,null,null,null,null,null,null,null,null,null,null,null,null,null,null,null,null,null,null,null,{"$f":"IF(COUNTIF(B345,\"*Virement*\"),\"VIR\"&COUNTIF($V$7:V344,\"VIR*\"),IF(COUNTIF($B$8:B345,B345)=1,\"AUT\"&COUNTIF($V$7:V344,\"AUT*\"),\"\"))","v":""},"",""]
[null,null,null,null,null,null,null,null,null,null,null,null,null,null,null,null,null,null,null,null,null,{"$f":"IF(COUNTIF(B346,\"*Virement*\"),\"VIR\"&COUNTIF($V$7:V345,\"VIR*\"),IF(COUNTIF($B$8:B346,B346)=1,\"AUT\"&COUNTIF($V$7:V345,\"AUT*\"),\"\"))","v":""},"",""]
[null,null,null,null,null,null,null,null,null,null,null,null,null,null,null,null,null,null,null,null,null,{"$f":"IF(COUNTIF(B347,\"*Virement*\"),\"VIR\"&COUNTIF($V$7:V346,\"VIR*\"),IF(COUNTIF($B$8:B347,B347)=1,\"AUT\"&COUNTIF($V$7:V346,\"AUT*\"),\"\"))","v":""},"",""]
[null,null,null,null,null,null,null,null,null,null,null,null,null,null,null,null,null,null,null,null,null,{"$f":"IF(COUNTIF(B348,\"*Virement*\"),\"VIR\"&COUNTIF($V$7:V347,\"VIR*\"),IF(COUNTIF($B$8:B348,B348)=1,\"AUT\"&COUNTIF($V$7:V347,\"AUT*\"),\"\"))","v":""},"",""]
[null,null,null,null,null,null,null,null,null,null,null,null,null,null,null,null,null,null,null,null,null,{"$f":"IF(COUNTIF(B349,\"*Virement*\"),\"VIR\"&COUNTIF($V$7:V348,\"VIR*\"),IF(COUNTIF($B$8:B349,B349)=1,\"AUT\"&COUNTIF($V$7:V348,\"AUT*\"),\"\"))","v":""},"",""]
[null,null,null,null,null,null,null,null,null,null,null,null,null,null,null,null,null,null,null,null,null,{"$f":"IF(COUNTIF(B350,\"*Virement*\"),\"VIR\"&COUNTIF($V$7:V349,\"VIR*\"),IF(COUNTIF($B$8:B350,B350)=1,\"AUT\"&COUNTIF($V$7:V349,\"AUT*\"),\"\"))","v":""},"",""]
[null,null,null,null,null,null,null,null,null,null,null,null,null,null,null,null,null,null,null,null,null,{"$f":"IF(COUNTIF(B351,\"*Virement*\"),\"VIR\"&COUNTIF($V$7:V350,\"VIR*\"),IF(COUNTIF($B$8:B351,B351)=1,\"AUT\"&COUNTIF($V$7:V350,\"AUT*\"),\"\"))","v":""},"",""]
[null,null,null,null,null,null,null,null,null,null,null,null,null,null,null,null,null,null,null,null,null,{"$f":"IF(COUNTIF(B352,\"*Virement*\"),\"VIR\"&COUNTIF($V$7:V351,\"VIR*\"),IF(COUNTIF($B$8:B352,B352)=1,\"AUT\"&COUNTIF($V$7:V351,\"AUT*\"),\"\"))","v":""},"",""]
[null,null,null,null,null,null,null,null,null,null,null,null,null,null,null,null,null,null,null,null,null,{"$f":"IF(COUNTIF(B353,\"*Virement*\"),\"VIR\"&COUNTIF($V$7:V352,\"VIR*\"),IF(COUNTIF($B$8:B353,B353)=1,\"AUT\"&COUNTIF($V$7:V352,\"AUT*\"),\"\"))","v":""},"",""]
[null,null,null,null,null,null,null,null,null,null,null,null,null,null,null,null,null,null,null,null,null,{"$f":"IF(COUNTIF(B354,\"*Virement*\"),\"VIR\"&COUNTIF($V$7:V353,\"VIR*\"),IF(COUNTIF($B$8:B354,B354)=1,\"AUT\"&COUNTIF($V$7:V353,\"AUT*\"),\"\"))","v":""},"",""]
[null,null,null,null,null,null,null,null,null,null,null,null,null,null,null,null,null,null,null,null,null,{"$f":"IF(COUNTIF(B355,\"*Virement*\"),\"VIR\"&COUNTIF($V$7:V354,\"VIR*\"),IF(COUNTIF($B$8:B355,B355)=1,\"AUT\"&COUNTIF($V$7:V354,\"AUT*\"),\"\"))","v":""},"",""]
[null,null,null,null,null,null,null,null,null,null,null,null,null,null,null,null,null,null,null,null,null,{"$f":"IF(COUNTIF(B356,\"*Virement*\"),\"VIR\"&COUNTIF($V$7:V355,\"VIR*\"),IF(COUNTIF($B$8:B356,B356)=1,\"AUT\"&COUNTIF($V$7:V355,\"AUT*\"),\"\"))","v":""},"",""]
[null,null,null,null,null,null,null,null,null,null,null,null,null,null,null,null,null,null,null,null,null,{"$f":"IF(COUNTIF(B357,\"*Virement*\"),\"VIR\"&COUNTIF($V$7:V356,\"VIR*\"),IF(COUNTIF($B$8:B357,B357)=1,\"AUT\"&COUNTIF($V$7:V356,\"AUT*\"),\"\"))","v":""},"",""]
[null,null,null,null,null,null,null,null,null,null,null,null,null,null,null,null,null,null,null,null,null,{"$f":"IF(COUNTIF(B358,\"*Virement*\"),\"VIR\"&COUNTIF($V$7:V357,\"VIR*\"),IF(COUNTIF($B$8:B358,B358)=1,\"AUT\"&COUNTIF($V$7:V357,\"AUT*\"),\"\"))","v":""},"",""]
[null,null,null,null,null,null,null,null,null,null,null,null,null,null,null,null,null,null,null,null,null,{"$f":"IF(COUNTIF(B359,\"*Virement*\"),\"VIR\"&COUNTIF($V$7:V358,\"VIR*\"),IF(COUNTIF($B$8:B359,B359)=1,\"AUT\"&COUNTIF($V$7:V358,\"AUT*\"),\"\"))","v":""},"",""]
[null,null,null,null,null,null,null,null,null,null,null,null,null,null,null,null,null,null,null,null,null,{"$f":"IF(COUNTIF(B360,\"*Virement*\"),\"VIR\"&COUNTIF($V$7:V359,\"VIR*\"),IF(COUNTIF($B$8:B360,B360)=1,\"AUT\"&COUNTIF($V$7:V359,\"AUT*\"),\"\"))","v":""},"",""]
[null,null,null,null,null,null,null,null,null,null,null,null,null,null,null,null,null,null,null,null,null,{"$f":"IF(COUNTIF(B361,\"*Virement*\"),\"VIR\"&COUNTIF($V$7:V360,\"VIR*\"),IF(COUNTIF($B$8:B361,B361)=1,\"AUT\"&COUNTIF($V$7:V360,\"AUT*\"),\"\"))","v":""},"",""]
[null,null,null,null,null,null,null,null,null,null,null,null,null,null,null,null,null,null,null,null,null,{"$f":"IF(COUNTIF(B362,\"*Virement*\"),\"VIR\"&COUNTIF($V$7:V361,\"VIR*\"),IF(COUNTIF($B$8:B362,B362)=1,\"AUT\"&COUNTIF($V$7:V361,\"AUT*\"),\"\"))","v":""},"",""]
[null,null,null,null,null,null,null,null,null,null,null,null,null,null,null,null,null,null,null,null,null,{"$f":"IF(COUNTIF(B363,\"*Virement*\"),\"VIR\"&COUNTIF($V$7:V362,\"VIR*\"),IF(COUNTIF($B$8:B363,B363)=1,\"AUT\"&COUNTIF($V$7:V362,\"AUT*\"),\"\"))","v":""},"",""]
[null,null,null,null,null,null,null,null,null,null,null,null,null,null,null,null,null,null,null,null,null,{"$f":"IF(COUNTIF(B364,\"*Virement*\"),\"VIR\"&COUNTIF($V$7:V363,\"VIR*\"),IF(COUNTIF($B$8:B364,B364)=1,\"AUT\"&COUNTIF($V$7:V363,\"AUT*\"),\"\"))","v":""},"",""]
[null,null,null,null,null,null,null,null,null,null,null,null,null,null,null,null,null,null,null,null,null,{"$f":"IF(COUNTIF(B365,\"*Virement*\"),\"VIR\"&COUNTIF($V$7:V364,\"VIR*\"),IF(COUNTIF($B$8:B365,B365)=1,\"AUT\"&COUNTIF($V$7:V364,\"AUT*\"),\"\"))","v":""},"",""]
[null,null,null,null,null,null,null,null,null,null,null,null,null,null,null,null,null,null,null,null,null,{"$f":"IF(COUNTIF(B366,\"*Virement*\"),\"VIR\"&COUNTIF($V$7:V365,\"VIR*\"),IF(COUNTIF($B$8:B366,B366)=1,\"AUT\"&COUNTIF($V$7:V365,\"AUT*\"),\"\"))","v":""},"",""]
[null,null,null,null,null,null,null,null,null,null,null,null,null,null,null,null,null,null,null,null,null,{"$f":"IF(COUNTIF(B367,\"*Virement*\"),\"VIR\"&COUNTIF($V$7:V366,\"VIR*\"),IF(COUNTIF($B$8:B367,B367)=1,\"AUT\"&COUNTIF($V$7:V366,\"AUT*\"),\"\"))","v":""},"",""]
[null,null,null,null,null,null,null,null,null,null,null,null,null,null,null,null,null,null,null,null,null,{"$f":"IF(COUNTIF(B368,\"*Virement*\"),\"VIR\"&COUNTIF($V$7:V367,\"VIR*\"),IF(COUNTIF($B$8:B368,B368)=1,\"AUT\"&COUNTIF($V$7:V367,\"AUT*\"),\"\"))","v":""},"",""]
[null,null,null,null,null,null,null,null,null,null,null,null,null,null,null,null,null,null,null,null,null,{"$f":"IF(COUNTIF(B369,\"*Virement*\"),\"VIR\"&COUNTIF($V$7:V368,\"VIR*\"),IF(COUNTIF($B$8:B369,B369)=1,\"AUT\"&COUNTIF($V$7:V368,\"AUT*\"),\"\"))","v":""},"",""]
[null,null,null,null,null,null,null,null,null,null,null,null,null,null,null,null,null,null,null,null,null,{"$f":"IF(COUNTIF(B370,\"*Virement*\"),\"VIR\"&COUNTIF($V$7:V369,\"VIR*\"),IF(COUNTIF($B$8:B370,B370)=1,\"AUT\"&COUNTIF($V$7:V369,\"AUT*\"),\"\"))","v":""},"",""]
[null,null,null,null,null,null,null,null,null,null,null,null,null,null,null,null,null,null,null,null,null,{"$f":"IF(COUNTIF(B371,\"*Virement*\"),\"VIR\"&COUNTIF($V$7:V370,\"VIR*\"),IF(COUNTIF($B$8:B371,B371)=1,\"AUT\"&COUNTIF($V$7:V370,\"AUT*\"),\"\"))","v":""},"",""]
[null,null,null,null,null,null,null,null,null,null,null,null,null,null,null,null,null,null,null,null,null,{"$f":"IF(COUNTIF(B372,\"*Virement*\"),\"VIR\"&COUNTIF($V$7:V371,\"VIR*\"),IF(COUNTIF($B$8:B372,B372)=1,\"AUT\"&COUNTIF($V$7:V371,\"AUT*\"),\"\"))","v":""},"",""]
[null,null,null,null,null,null,null,null,null,null,null,null,null,null,null,null,null,null,null,null,null,{"$f":"IF(COUNTIF(B373,\"*Virement*\"),\"VIR\"&COUNTIF($V$7:V372,\"VIR*\"),IF(COUNTIF($B$8:B373,B373)=1,\"AUT\"&COUNTIF($V$7:V372,\"AUT*\"),\"\"))","v":""},"",""]
[null,null,null,null,null,null,null,null,null,null,null,null,null,null,null,null,null,null,null,null,null,{"$f":"IF(COUNTIF(B374,\"*Virement*\"),\"VIR\"&COUNTIF($V$7:V373,\"VIR*\"),IF(COUNTIF($B$8:B374,B374)=1,\"AUT\"&COUNTIF($V$7:V373,\"AUT*\"),\"\"))","v":""},"",""]
[null,null,null,null,null,null,null,null,null,null,null,null,null,null,null,null,null,null,null,null,null,{"$f":"IF(COUNTIF(B375,\"*Virement*\"),\"VIR\"&COUNTIF($V$7:V374,\"VIR*\"),IF(COUNTIF($B$8:B375,B375)=1,\"AUT\"&COUNTIF($V$7:V374,\"AUT*\"),\"\"))","v":""},"",""]
[null,null,null,null,null,null,null,null,null,null,null,null,null,null,null,null,null,null,null,null,null,{"$f":"IF(COUNTIF(B376,\"*Virement*\"),\"VIR\"&COUNTIF($V$7:V375,\"VIR*\"),IF(COUNTIF($B$8:B376,B376)=1,\"AUT\"&COUNTIF($V$7:V375,\"AUT*\"),\"\"))","v":""},"",""]
[null,null,null,null,null,null,null,null,null,null,null,null,null,null,null,null,null,null,null,null,null,{"$f":"IF(COUNTIF(B377,\"*Virement*\"),\"VIR\"&COUNTIF($V$7:V376,\"VIR*\"),IF(COUNTIF($B$8:B377,B377)=1,\"AUT\"&COUNTIF($V$7:V376,\"AUT*\"),\"\"))","v":""},"",""]
[null,null,null,null,null,null,null,null,null,null,null,null,null,null,null,null,null,null,null,null,null,{"$f":"IF(COUNTIF(B378,\"*Virement*\"),\"VIR\"&COUNTIF($V$7:V377,\"VIR*\"),IF(COUNTIF($B$8:B378,B378)=1,\"AUT\"&COUNTIF($V$7:V377,\"AUT*\"),\"\"))","v":""},"",""]
[null,null,null,null,null,null,null,null,null,null,null,null,null,null,null,null,null,null,null,null,null,{"$f":"IF(COUNTIF(B379,\"*Virement*\"),\"VIR\"&COUNTIF($V$7:V378,\"VIR*\"),IF(COUNTIF($B$8:B379,B379)=1,\"AUT\"&COUNTIF($V$7:V378,\"AUT*\"),\"\"))","v":""},"",""]
[null,null,null,null,null,null,null,null,null,null,null,null,null,null,null,null,null,null,null,null,null,{"$f":"IF(COUNTIF(B380,\"*Virement*\"),\"VIR\"&COUNTIF($V$7:V379,\"VIR*\"),IF(COUNTIF($B$8:B380,B380)=1,\"AUT\"&COUNTIF($V$7:V379,\"AUT*\"),\"\"))","v":""},"",""]
[null,null,null,null,null,null,null,null,null,null,null,null,null,null,null,null,null,null,null,null,null,{"$f":"IF(COUNTIF(B381,\"*Virement*\"),\"VIR\"&COUNTIF($V$7:V380,\"VIR*\"),IF(COUNTIF($B$8:B381,B381)=1,\"AUT\"&COUNTIF($V$7:V380,\"AUT*\"),\"\"))","v":""},"",""]
[null,null,null,null,null,null,null,null,null,null,null,null,null,null,null,null,null,null,null,null,null,{"$f":"IF(COUNTIF(B382,\"*Virement*\"),\"VIR\"&COUNTIF($V$7:V381,\"VIR*\"),IF(COUNTIF($B$8:B382,B382)=1,\"AUT\"&COUNTIF($V$7:V381,\"AUT*\"),\"\"))","v":""},"",""]
[null,null,null,null,null,null,null,null,null,null,null,null,null,null,null,null,null,null,null,null,null,{"$f":"IF(COUNTIF(B383,\"*Virement*\"),\"VIR\"&COUNTIF($V$7:V382,\"VIR*\"),IF(COUNTIF($B$8:B383,B383)=1,\"AUT\"&COUNTIF($V$7:V382,\"AUT*\"),\"\"))","v":""},"",""]
[null,null,null,null,null,null,null,null,null,null,null,null,null,null,null,null,null,null,null,null,null,{"$f":"IF(COUNTIF(B384,\"*Virement*\"),\"VIR\"&COUNTIF($V$7:V383,\"VIR*\"),IF(COUNTIF($B$8:B384,B384)=1,\"AUT\"&COUNTIF($V$7:V383,\"AUT*\"),\"\"))","v":""},"",""]
[null,null,null,null,null,null,null,null,null,null,null,null,null,null,null,null,null,null,null,null,null,{"$f":"IF(COUNTIF(B385,\"*Virement*\"),\"VIR\"&COUNTIF($V$7:V384,\"VIR*\"),IF(COUNTIF($B$8:B385,B385)=1,\"AUT\"&COUNTIF($V$7:V384,\"AUT*\"),\"\"))","v":""},"",""]
[null,null,null,null,null,null,null,null,null,null,null,null,null,null,null,null,null,null,null,null,null,{"$f":"IF(COUNTIF(B386,\"*Virement*\"),\"VIR\"&COUNTIF($V$7:V385,\"VIR*\"),IF(COUNTIF($B$8:B386,B386)=1,\"AUT\"&COUNTIF($V$7:V385,\"AUT*\"),\"\"))","v":""},"",""]
[null,null,null,null,null,null,null,null,null,null,null,null,null,null,null,null,null,null,null,null,null,{"$f":"IF(COUNTIF(B387,\"*Virement*\"),\"VIR\"&COUNTIF($V$7:V386,\"VIR*\"),IF(COUNTIF($B$8:B387,B387)=1,\"AUT\"&COUNTIF($V$7:V386,\"AUT*\"),\"\"))","v":""},"",""]
[null,null,null,null,null,null,null,null,null,null,null,null,null,null,null,null,null,null,null,null,null,{"$f":"IF(COUNTIF(B388,\"*Virement*\"),\"VIR\"&COUNTIF($V$7:V387,\"VIR*\"),IF(COUNTIF($B$8:B388,B388)=1,\"AUT\"&COUNTIF($V$7:V387,\"AUT*\"),\"\"))","v":""},"",""]
[null,null,null,null,null,null,null,null,null,null,null,null,null,null,null,null,null,null,null,null,null,{"$f":"IF(COUNTIF(B389,\"*Virement*\"),\"VIR\"&COUNTIF($V$7:V388,\"VIR*\"),IF(COUNTIF($B$8:B389,B389)=1,\"AUT\"&COUNTIF($V$7:V388,\"AUT*\"),\"\"))","v":""},"",""]
[null,null,null,null,null,null,null,null,null,null,null,null,null,null,null,null,null,null,null,null,null,{"$f":"IF(COUNTIF(B390,\"*Virement*\"),\"VIR\"&COUNTIF($V$7:V389,\"VIR*\"),IF(COUNTIF($B$8:B390,B390)=1,\"AUT\"&COUNTIF($V$7:V389,\"AUT*\"),\"\"))","v":""},"",""]
[null,null,null,null,null,null,null,null,null,null,null,null,null,null,null,null,null,null,null,null,null,{"$f":"IF(COUNTIF(B391,\"*Virement*\"),\"VIR\"&COUNTIF($V$7:V390,\"VIR*\"),IF(COUNTIF($B$8:B391,B391)=1,\"AUT\"&COUNTIF($V$7:V390,\"AUT*\"),\"\"))","v":""},"",""]
[null,null,null,null,null,null,null,null,null,null,null,null,null,null,null,null,null,null,null,null,null,{"$f":"IF(COUNTIF(B392,\"*Virement*\"),\"VIR\"&COUNTIF($V$7:V391,\"VIR*\"),IF(COUNTIF($B$8:B392,B392)=1,\"AUT\"&COUNTIF($V$7:V391,\"AUT*\"),\"\"))","v":""},"",""]
[null,null,null,null,null,null,null,null,null,null,null,null,null,null,null,null,null,null,null,null,null,{"$f":"IF(COUNTIF(B393,\"*Virement*\"),\"VIR\"&COUNTIF($V$7:V392,\"VIR*\"),IF(COUNTIF($B$8:B393,B393)=1,\"AUT\"&COUNTIF($V$7:V392,\"AUT*\"),\"\"))","v":""},{"$f":"IFERROR(INDEX(B:B,MATCH(\"VIR\"&ROW()-8,V:V,0)),\"\")","v":""},{"$f":"IFERROR(INDEX($B:$B,MATCH(\"AUT\"&ROW()-8,$V:$V,0)),\"\")","v":""}]
[null,null,null,null,null,null,null,null,null,null,null,null,null,null,null,null,null,null,null,null,null,{"$f":"IF(COUNTIF(B394,\"*Virement*\"),\"VIR\"&COUNTIF($V$7:V393,\"VIR*\"),IF(COUNTIF($B$8:B394,B394)=1,\"AUT\"&COUNTIF($V$7:V393,\"AUT*\"),\"\"))","v":""},"",""]
[null,null,null,null,null,null,null,null,null,null,null,null,null,null,null,null,null,null,null,null,null,{"$f":"IF(COUNTIF(B395,\"*Virement*\"),\"VIR\"&COUNTIF($V$7:V394,\"VIR*\"),IF(COUNTIF($B$8:B395,B395)=1,\"AUT\"&COUNTIF($V$7:V394,\"AUT*\"),\"\"))","v":""},"",""]
[null,null,null,null,null,null,null,null,null,null,null,null,null,null,null,null,null,null,null,null,null,{"$f":"IF(COUNTIF(B396,\"*Virement*\"),\"VIR\"&COUNTIF($V$7:V395,\"VIR*\"),IF(COUNTIF($B$8:B396,B396)=1,\"AUT\"&COUNTIF($V$7:V395,\"AUT*\"),\"\"))","v":""},"",""]
[null,null,null,null,null,null,null,null,null,null,null,null,null,null,null,null,null,null,null,null,null,{"$f":"IF(COUNTIF(B397,\"*Virement*\"),\"VIR\"&COUNTIF($V$7:V396,\"VIR*\"),IF(COUNTIF($B$8:B397,B397)=1,\"AUT\"&COUNTIF($V$7:V396,\"AUT*\"),\"\"))","v":""},"",""]
[null,null,null,null,null,null,null,null,null,null,null,null,null,null,null,null,null,null,null,null,null,{"$f":"IF(COUNTIF(B398,\"*Virement*\"),\"VIR\"&COUNTIF($V$7:V397,\"VIR*\"),IF(COUNTIF($B$8:B398,B398)=1,\"AUT\"&COUNTIF($V$7:V397,\"AUT*\"),\"\"))","v":""},"",""]
[null,null,null,null,null,null,null,null,null,null,null,null,null,null,null,null,null,null,null,null,null,{"$f":"IF(COUNTIF(B399,\"*Virement*\"),\"VIR\"&COUNTIF($V$7:V398,\"VIR*\"),IF(COUNTIF($B$8:B399,B399)=1,\"AUT\"&COUNTIF($V$7:V398,\"AUT*\"),\"\"))","v":""},"",""]
[null,null,null,null,null,null,null,null,null,null,null,null,null,null,null,null,null,null,null,null,null,{"$f":"IF(COUNTIF(B400,\"*Virement*\"),\"VIR\"&COUNTIF($V$7:V399,\"VIR*\"),IF(COUNTIF($B$8:B400,B400)=1,\"AUT\"&COUNTIF($V$7:V399,\"AUT*\"),\"\"))","v":""},"",""]
[null,null,null,null,null,null,null,null,null,null,null,null,null,null,null,null,null,null,null,null,null,{"$f":"IF(COUNTIF(B401,\"*Virement*\"),\"VIR\"&COUNTIF($V$7:V400,\"VIR*\"),IF(COUNTIF($B$8:B401,B401)=1,\"AUT\"&COUNTIF($V$7:V400,\"AUT*\"),\"\"))","v":""},"",""]
[null,null,null,null,null,null,null,null,null,null,null,null,null,null,null,null,null,null,null,null,null,{"$f":"IF(COUNTIF(B402,\"*Virement*\"),\"VIR\"&COUNTIF($V$7:V401,\"VIR*\"),IF(COUNTIF($B$8:B402,B402)=1,\"AUT\"&COUNTIF($V$7:V401,\"AUT*\"),\"\"))","v":""},"",""]
[null,null,null,null,null,null,null,null,null,null,null,null,null,null,null,null,null,null,null,null,null,{"$f":"IF(COUNTIF(B403,\"*Virement*\"),\"VIR\"&COUNTIF($V$7:V402,\"VIR*\"),IF(COUNTIF($B$8:B403,B403)=1,\"AUT\"&COUNTIF($V$7:V402,\"AUT*\"),\"\"))","v":""},"",""]
[null,null,null,null,null,null,null,null,null,null,null,null,null,null,null,null,null,null,null,null,null,{"$f":"IF(COUNTIF(B404,\"*Virement*\"),\"VIR\"&COUNTIF($V$7:V403,\"VIR*\"),IF(COUNTIF($B$8:B404,B404)=1,\"AUT\"&COUNTIF($V$7:V403,\"AUT*\"),\"\"))","v":""},"",""]
[null,null,null,null,null,null,null,null,null,null,null,null,null,null,null,null,null,null,null,null,null,{"$f":"IF(COUNTIF(B405,\"*Virement*\"),\"VIR\"&COUNTIF($V$7:V404,\"VIR*\"),IF(COUNTIF($B$8:B405,B405)=1,\"AUT\"&COUNTIF($V$7:V404,\"AUT*\"),\"\"))","v":""},"",""]
[null,null,null,null,null,null,null,null,null,null,null,null,null,null,null,null,null,null,null,null,null,{"$f":"IF(COUNTIF(B406,\"*Virement*\"),\"VIR\"&COUNTIF($V$7:V405,\"VIR*\"),IF(COUNTIF($B$8:B406,B406)=1,\"AUT\"&COUNTIF($V$7:V405,\"AUT*\"),\"\"))","v":""},"",""]
[null,null,null,null,null,null,null,null,null,null,null,null,null,null,null,null,null,null,null,null,null,{"$f":"IF(COUNTIF(B407,\"*Virement*\"),\"VIR\"&COUNTIF($V$7:V406,\"VIR*\"),IF(COUNTIF($B$8:B407,B407)=1,\"AUT\"&COUNTIF($V$7:V406,\"AUT*\"),\"\"))","v":""},"",""]
[null,null,null,null,null,null,null,null,null,null,null,null,null,null,null,null,null,null,null,null,null,{"$f":"IF(COUNTIF(B408,\"*Virement*\"),\"VIR\"&COUNTIF($V$7:V407,\"VIR*\"),IF(COUNTIF($B$8:B408,B408)=1,\"AUT\"&COUNTIF($V$7:V407,\"AUT*\"),\"\"))","v":""},"",""]
[null,null,null,null,null,null,null,null,null,null,null,null,null,null,null,null,null,null,null,null,null,{"$f":"IF(COUNTIF(B409,\"*Virement*\"),\"VIR\"&COUNTIF($V$7:V408,\"VIR*\"),IF(COUNTIF($B$8:B409,B409)=1,\"AUT\"&COUNTIF($V$7:V408,\"AUT*\"),\"\"))","v":""},"",""]
[null,null,null,null,null,null,null,null,null,null,null,null,null,null,null,null,null,null,null,null,null,{"$f":"IF(COUNTIF(B410,\"*Virement*\"),\"VIR\"&COUNTIF($V$7:V409,\"VIR*\"),IF(COUNTIF($B$8:B410,B410)=1,\"AUT\"&COUNTIF($V$7:V409,\"AUT*\"),\"\"))","v":""},"",""]
[null,null,null,null,null,null,null,null,null,null,null,null,null,null,null,null,null,null,null,null,null,{"$f":"IF(COUNTIF(B411,\"*Virement*\"),\"VIR\"&COUNTIF($V$7:V410,\"VIR*\"),IF(COUNTIF($B$8:B411,B411)=1,\"AUT\"&COUNTIF($V$7:V410,\"AUT*\"),\"\"))","v":""},"",""]
[null,null,null,null,null,null,null,null,null,null,null,null,null,null,null,null,null,null,null,null,null,{"$f":"IF(COUNTIF(B412,\"*Virement*\"),\"VIR\"&COUNTIF($V$7:V411,\"VIR*\"),IF(COUNTIF($B$8:B412,B412)=1,\"AUT\"&COUNTIF($V$7:V411,\"AUT*\"),\"\"))","v":""},"",""]
[null,null,null,null,null,null,null,null,null,null,null,null,null,null,null,null,null,null,null,null,null,{"$f":"IF(COUNTIF(B413,\"*Virement*\"),\"VIR\"&COUNTIF($V$7:V412,\"VIR*\"),IF(COUNTIF($B$8:B413,B413)=1,\"AUT\"&COUNTIF($V$7:V412,\"AUT*\"),\"\"))","v":""},"",""]
[null,null,null,null,null,null,null,null,null,null,null,null,null,null,null,null,null,null,null,null,null,{"$f":"IF(COUNTIF(B414,\"*Virement*\"),\"VIR\"&COUNTIF($V$7:V413,\"VIR*\"),IF(COUNTIF($B$8:B414,B414)=1,\"AUT\"&COUNTIF($V$7:V413,\"AUT*\"),\"\"))","v":""},"",""]
[null,null,null,null,null,null,null,null,null,null,null,null,null,null,null,null,null,null,null,null,null,{"$f":"IF(COUNTIF(B415,\"*Virement*\"),\"VIR\"&COUNTIF($V$7:V414,\"VIR*\"),IF(COUNTIF($B$8:B415,B415)=1,\"AUT\"&COUNTIF($V$7:V414,\"AUT*\"),\"\"))","v":""},"",""]
[null,null,null,null,null,null,null,null,null,null,null,null,null,null,null,null,null,null,null,null,null,{"$f":"IF(COUNTIF(B416,\"*Virement*\"),\"VIR\"&COUNTIF($V$7:V415,\"VIR*\"),IF(COUNTIF($B$8:B416,B416)=1,\"AUT\"&COUNTIF($V$7:V415,\"AUT*\"),\"\"))","v":""},"",""]
[null,null,null,null,null,null,null,null,null,null,null,null,null,null,null,null,null,null,null,null,null,{"$f":"IF(COUNTIF(B417,\"*Virement*\"),\"VIR\"&COUNTIF($V$7:V416,\"VIR*\"),IF(COUNTIF($B$8:B417,B417)=1,\"AUT\"&COUNTIF($V$7:V416,\"AUT*\"),\"\"))","v":""},"",""]
[null,null,null,null,null,null,null,null,null,null,null,null,null,null,null,null,null,null,null,null,null,{"$f":"IF(COUNTIF(B418,\"*Virement*\"),\"VIR\"&COUNTIF($V$7:V417,\"VIR*\"),IF(COUNTIF($B$8:B418,B418)=1,\"AUT\"&COUNTIF($V$7:V417,\"AUT*\"),\"\"))","v":""},"",""]
[null,null,null,null,null,null,null,null,null,null,null,null,null,null,null,null,null,null,null,null,null,{"$f":"IF(COUNTIF(B419,\"*Virement*\"),\"VIR\"&COUNTIF($V$7:V418,\"VIR*\"),IF(COUNTIF($B$8:B419,B419)=1,\"AUT\"&COUNTIF($V$7:V418,\"AUT*\"),\"\"))","v":""},"",""]
[null,null,null,null,null,null,null,null,null,null,null,null,null,null,null,null,null,null,null,null,null,{"$f":"IF(COUNTIF(B420,\"*Virement*\"),\"VIR\"&COUNTIF($V$7:V419,\"VIR*\"),IF(COUNTIF($B$8:B420,B420)=1,\"AUT\"&COUNTIF($V$7:V419,\"AUT*\"),\"\"))","v":""},"",""]
[null,null,null,null,null,null,null,null,null,null,null,null,null,null,null,null,null,null,null,null,null,{"$f":"IF(COUNTIF(B421,\"*Virement*\"),\"VIR\"&COUNTIF($V$7:V420,\"VIR*\"),IF(COUNTIF($B$8:B421,B421)=1,\"AUT\"&COUNTIF($V$7:V420,\"AUT*\"),\"\"))","v":""},"",""]
[null,null,null,null,null,null,null,null,null,null,null,null,null,null,null,null,null,null,null,null,null,{"$f":"IF(COUNTIF(B422,\"*Virement*\"),\"VIR\"&COUNTIF($V$7:V421,\"VIR*\"),IF(COUNTIF($B$8:B422,B422)=1,\"AUT\"&COUNTIF($V$7:V421,\"AUT*\"),\"\"))","v":""},"",""]
[null,null,null,null,null,null,null,null,null,null,null,null,null,null,null,null,null,null,null,null,null,{"$f":"IF(COUNTIF(B423,\"*Virement*\"),\"VIR\"&COUNTIF($V$7:V422,\"VIR*\"),IF(COUNTIF($B$8:B423,B423)=1,\"AUT\"&COUNTIF($V$7:V422,\"AUT*\"),\"\"))","v":""},"",""]
[null,null,null,null,null,null,null,null,null,null,null,null,null,null,null,null,null,null,null,null,null,{"$f":"IF(COUNTIF(B424,\"*Virement*\"),\"VIR\"&COUNTIF($V$7:V423,\"VIR*\"),IF(COUNTIF($B$8:B424,B424)=1,\"AUT\"&COUNTIF($V$7:V423,\"AUT*\"),\"\"))","v":""},"",""]
[null,null,null,null,null,null,null,null,null,null,null,null,null,null,null,null,null,null,null,null,null,{"$f":"IF(COUNTIF(B425,\"*Virement*\"),\"VIR\"&COUNTIF($V$7:V424,\"VIR*\"),IF(COUNTIF($B$8:B425,B425)=1,\"AUT\"&COUNTIF($V$7:V424,\"AUT*\"),\"\"))","v":""},"",""]
[null,null,null,null,null,null,null,null,null,null,null,null,null,null,null,null,null,null,null,null,null,{"$f":"IF(COUNTIF(B426,\"*Virement*\"),\"VIR\"&COUNTIF($V$7:V425,\"VIR*\"),IF(COUNTIF($B$8:B426,B426)=1,\"AUT\"&COUNTIF($V$7:V425,\"AUT*\"),\"\"))","v":""},"",""]
[null,null,null,null,null,null,null,null,null,null,null,null,null,null,null,null,null,null,null,null,null,{"$f":"IF(COUNTIF(B427,\"*Virement*\"),\"VIR\"&COUNTIF($V$7:V426,\"VIR*\"),IF(COUNTIF($B$8:B427,B427)=1,\"AUT\"&COUNTIF($V$7:V426,\"AUT*\"),\"\"))","v":""},"",""]
[null,null,null,null,null,null,null,null,null,null,null,null,null,null,null,null,null,null,null,null,null,{"$f":"IF(COUNTIF(B428,\"*Virement*\"),\"VIR\"&COUNTIF($V$7:V427,\"VIR*\"),IF(COUNTIF($B$8:B428,B428)=1,\"AUT\"&COUNTIF($V$7:V427,\"AUT*\"),\"\"))","v":""},"",""]
[null,null,null,null,null,null,null,null,null,null,null,null,null,null,null,null,null,null,null,null,null,{"$f":"IF(COUNTIF(B429,\"*Virement*\"),\"VIR\"&COUNTIF($V$7:V428,\"VIR*\"),IF(COUNTIF($B$8:B429,B429)=1,\"AUT\"&COUNTIF($V$7:V428,\"AUT*\"),\"\"))","v":""},"",""]
[null,null,null,null,null,null,null,null,null,null,null,null,null,null,null,null,null,null,null,null,null,{"$f":"IF(COUNTIF(B430,\"*Virement*\"),\"VIR\"&COUNTIF($V$7:V429,\"VIR*\"),IF(COUNTIF($B$8:B430,B430)=1,\"AUT\"&COUNTIF($V$7:V429,\"AUT*\"),\"\"))","v":""},"",""]
[null,null,null,null,null,null,null,null,null,null,null,null,null,null,null,null,null,null,null,null,null,{"$f":"IF(COUNTIF(B431,\"*Virement*\"),\"VIR\"&COUNTIF($V$7:V430,\"VIR*\"),IF(COUNTIF($B$8:B431,B431)=1,\"AUT\"&COUNTIF($V$7:V430,\"AUT*\"),\"\"))","v":""},"",""]
[null,null,null,null,null,null,null,null,null,null,null,null,null,null,null,null,null,null,null,null,null,{"$f":"IF(COUNTIF(B432,\"*Virement*\"),\"VIR\"&COUNTIF($V$7:V431,\"VIR*\"),IF(COUNTIF($B$8:B432,B432)=1,\"AUT\"&COUNTIF($V$7:V431,\"AUT*\"),\"\"))","v":""},"",""]
[null,null,null,null,null,null,null,null,null,null,null,null,null,null,null,null,null,null,null,null,null,{"$f":"IF(COUNTIF(B433,\"*Virement*\"),\"VIR\"&COUNTIF($V$7:V432,\"VIR*\"),IF(COUNTIF($B$8:B433,B433)=1,\"AUT\"&COUNTIF($V$7:V432,\"AUT*\"),\"\"))","v":""},"",""]
[null,null,null,null,null,null,null,null,null,null,null,null,null,null,null,null,null,null,null,null,null,{"$f":"IF(COUNTIF(B434,\"*Virement*\"),\"VIR\"&COUNTIF($V$7:V433,\"VIR*\"),IF(COUNTIF($B$8:B434,B434)=1,\"AUT\"&COUNTIF($V$7:V433,\"AUT*\"),\"\"))","v":""},"",""]
[null,null,null,null,null,null,null,null,null,null,null,null,null,null,null,null,null,null,null,null,null,{"$f":"IF(COUNTIF(B435,\"*Virement*\"),\"VIR\"&COUNTIF($V$7:V434,\"VIR*\"),IF(COUNTIF($B$8:B435,B435)=1,\"AUT\"&COUNTIF($V$7:V434,\"AUT*\"),\"\"))","v":""},"",""]
[null,null,null,null,null,null,null,null,null,null,null,null,null,null,null,null,null,null,null,null,null,{"$f":"IF(COUNTIF(B436,\"*Virement*\"),\"VIR\"&COUNTIF($V$7:V435,\"VIR*\"),IF(COUNTIF($B$8:B436,B436)=1,\"AUT\"&COUNTIF($V$7:V435,\"AUT*\"),\"\"))","v":""},"",""]
[null,null,null,null,null,null,null,null,null,null,null,null,null,null,null,null,null,null,null,null,null,{"$f":"IF(COUNTIF(B437,\"*Virement*\"),\"VIR\"&COUNTIF($V$7:V436,\"VIR*\"),IF(COUNTIF($B$8:B437,B437)=1,\"AUT\"&COUNTIF($V$7:V436,\"AUT*\"),\"\"))","v":""},"",""]
[null,null,null,null,null,null,null,null,null,null,null,null,null,null,null,null,null,null,null,null,null,{"$f":"IF(COUNTIF(B438,\"*Virement*\"),\"VIR\"&COUNTIF($V$7:V437,\"VIR*\"),IF(COUNTIF($B$8:B438,B438)=1,\"AUT\"&COUNTIF($V$7:V437,\"AUT*\"),\"\"))","v":""},"",""]
[null,null,null,null,null,null,null,null,null,null,null,null,null,null,null,null,null,null,null,null,null,{"$f":"IF(COUNTIF(B439,\"*Virement*\"),\"VIR\"&COUNTIF($V$7:V438,\"VIR*\"),IF(COUNTIF($B$8:B439,B439)=1,\"AUT\"&COUNTIF($V$7:V438,\"AUT*\"),\"\"))","v":""},"",""]
[null,null,null,null,null,null,null,null,null,null,null,null,null,null,null,null,null,null,null,null,null,{"$f":"IF(COUNTIF(B440,\"*Virement*\"),\"VIR\"&COUNTIF($V$7:V439,\"VIR*\"),IF(COUNTIF($B$8:B440,B440)=1,\"AUT\"&COUNTIF($V$7:V439,\"AUT*\"),\"\"))","v":""},"",""]
[null,null,null,null,null,null,null,null,null,null,null,null,null,null,null,null,null,null,null,null,null,{"$f":"IF(COUNTIF(B441,\"*Virement*\"),\"VIR\"&COUNTIF($V$7:V440,\"VIR*\"),IF(COUNTIF($B$8:B441,B441)=1,\"AUT\"&COUNTIF($V$7:V440,\"AUT*\"),\"\"))","v":""},"",""]
[null,null,null,null,null,null,null,null,null,null,null,null,null,null,null,null,null,null,null,null,null,{"$f":"IF(COUNTIF(B442,\"*Virement*\"),\"VIR\"&COUNTIF($V$7:V441,\"VIR*\"),IF(COUNTIF($B$8:B442,B442)=1,\"AUT\"&COUNTIF($V$7:V441,\"AUT*\"),\"\"))","v":""},"",""]
[null,null,null,null,null,null,null,null,null,null,null,null,null,null,null,null,null,null,null,null,null,{"$f":"IF(COUNTIF(B443,\"*Virement*\"),\"VIR\"&COUNTIF($V$7:V442,\"VIR*\"),IF(COUNTIF($B$8:B443,B443)=1,\"AUT\"&COUNTIF($V$7:V442,\"AUT*\"),\"\"))","v":""},"",""]
[null,null,null,null,null,null,null,null,null,null,null,null,null,null,null,null,null,null,null,null,null,{"$f":"IF(COUNTIF(B444,\"*Virement*\"),\"VIR\"&COUNTIF($V$7:V443,\"VIR*\"),IF(COUNTIF($B$8:B444,B444)=1,\"AUT\"&COUNTIF($V$7:V443,\"AUT*\"),\"\"))","v":""},"",""]
[null,null,null,null,null,null,null,null,null,null,null,null,null,null,null,null,null,null,null,null,null,{"$f":"IF(COUNTIF(B445,\"*Virement*\"),\"VIR\"&COUNTIF($V$7:V444,\"VIR*\"),IF(COUNTIF($B$8:B445,B445)=1,\"AUT\"&COUNTIF($V$7:V444,\"AUT*\"),\"\"))","v":""},"",""]
[null,null,null,null,null,null,null,null,null,null,null,null,null,null,null,null,null,null,null,null,null,{"$f":"IF(COUNTIF(B446,\"*Virement*\"),\"VIR\"&COUNTIF($V$7:V445,\"VIR*\"),IF(COUNTIF($B$8:B446,B446)=1,\"AUT\"&COUNTIF($V$7:V445,\"AUT*\"),\"\"))","v":""},"",""]
[null,null,null,null,null,null,null,null,null,null,null,null,null,null,null,null,null,null,null,null,null,{"$f":"IF(COUNTIF(B447,\"*Virement*\"),\"VIR\"&COUNTIF($V$7:V446,\"VIR*\"),IF(COUNTIF($B$8:B447,B447)=1,\"AUT\"&COUNTIF($V$7:V446,\"AUT*\"),\"\"))","v":""},"",""]
[null,null,null,null,null,null,null,null,null,null,null,null,null,null,null,null,null,null,null,null,null,{"$f":"IF(COUNTIF(B448,\"*Virement*\"),\"VIR\"&COUNTIF($V$7:V447,\"VIR*\"),IF(COUNTIF($B$8:B448,B448)=1,\"AUT\"&COUNTIF($V$7:V447,\"AUT*\"),\"\"))","v":""},"",""]
[null,null,null,null,null,null,null,null,null,null,null,null,null,null,null,null,null,null,null,null,null,{"$f":"IF(COUNTIF(B449,\"*Virement*\"),\"VIR\"&COUNTIF($V$7:V448,\"VIR*\"),IF(COUNTIF($B$8:B449,B449)=1,\"AUT\"&COUNTIF($V$7:V448,\"AUT*\"),\"\"))","v":""},"",""]
[null,null,null,null,null,null,null,null,null,null,null,null,null,null,null,null,null,null,null,null,null,{"$f":"IF(COUNTIF(B450,\"*Virement*\"),\"VIR\"&COUNTIF($V$7:V449,\"VIR*\"),IF(COUNTIF($B$8:B450,B450)=1,\"AUT\"&COUNTIF($V$7:V449,\"AUT*\"),\"\"))","v":""},"",""]
[null,null,null,null,null,null,null,null,null,null,null,null,null,null,null,null,null,null,null,null,null,{"$f":"IF(COUNTIF(B451,\"*Virement*\"),\"VIR\"&COUNTIF($V$7:V450,\"VIR*\"),IF(COUNTIF($B$8:B451,B451)=1,\"AUT\"&COUNTIF($V$7:V450,\"AUT*\"),\"\"))","v":""},"",""]
[null,null,null,null,null,null,null,null,null,null,null,null,null,null,null,null,null,null,null,null,null,{"$f":"IF(COUNTIF(B452,\"*Virement*\"),\"VIR\"&COUNTIF($V$7:V451,\"VIR*\"),IF(COUNTIF($B$8:B452,B452)=1,\"AUT\"&COUNTIF($V$7:V451,\"AUT*\"),\"\"))","v":""},"",""]
[null,null,null,null,null,null,null,null,null,null,null,null,null,null,null,null,null,null,null,null,null,{"$f":"IF(COUNTIF(B453,\"*Virement*\"),\"VIR\"&COUNTIF($V$7:V452,\"VIR*\"),IF(COUNTIF($B$8:B453,B453)=1,\"AUT\"&COUNTIF($V$7:V452,\"AUT*\"),\"\"))","v":""},"",""]
[null,null,null,null,null,null,null,null,null,null,null,null,null,null,null,null,null,null,null,null,null,{"$f":"IF(COUNTIF(B454,\"*Virement*\"),\"VIR\"&COUNTIF($V$7:V453,\"VIR*\"),IF(COUNTIF($B$8:B454,B454)=1,\"AUT\"&COUNTIF($V$7:V453,\"AUT*\"),\"\"))","v":""},"",""]
[null,null,null,null,null,null,null,null,null,null,null,null,null,null,null,null,null,null,null,null,null,{"$f":"IF(COUNTIF(B455,\"*Virement*\"),\"VIR\"&COUNTIF($V$7:V454,\"VIR*\"),IF(COUNTIF($B$8:B455,B455)=1,\"AUT\"&COUNTIF($V$7:V454,\"AUT*\"),\"\"))","v":""},"",""]
[null,null,null,null,null,null,null,null,null,null,null,null,null,null,null,null,null,null,null,null,null,{"$f":"IF(COUNTIF(B456,\"*Virement*\"),\"VIR\"&COUNTIF($V$7:V455,\"VIR*\"),IF(COUNTIF($B$8:B456,B456)=1,\"AUT\"&COUNTIF($V$7:V455,\"AUT*\"),\"\"))","v":""},"",""]
[null,null,null,null,null,null,null,null,null,null,null,null,null,null,null,null,null,null,null,null,null,{"$f":"IF(COUNTIF(B457,\"*Virement*\"),\"VIR\"&COUNTIF($V$7:V456,\"VIR*\"),IF(COUNTIF($B$8:B457,B457)=1,\"AUT\"&COUNTIF($V$7:V456,\"AUT*\"),\"\"))","v":""},{"$f":"IFERROR(INDEX(B:B,MATCH(\"VIR\"&ROW()-8,V:V,0)),\"\")","v":""},{"$f":"IFERROR(INDEX($B:$B,MATCH(\"AUT\"&ROW()-8,$V:$V,0)),\"\")","v":""}]
[null,null,null,null,null,null,null,null,null,null,null,null,null,null,null,null,null,null,null,null,null,{"$f":"IF(COUNTIF(B458,\"*Virement*\"),\"VIR\"&COUNTIF($V$7:V457,\"VIR*\"),IF(COUNTIF($B$8:B458,B458)=1,\"AUT\"&COUNTIF($V$7:V457,\"AUT*\"),\"\"))","v":""},"",""]
[null,null,null,null,null,null,null,null,null,null,null,null,null,null,null,null,null,null,null,null,null,{"$f":"IF(COUNTIF(B459,\"*Virement*\"),\"VIR\"&COUNTIF($V$7:V458,\"VIR*\"),IF(COUNTIF($B$8:B459,B459)=1,\"AUT\"&COUNTIF($V$7:V458,\"AUT*\"),\"\"))","v":""},"",""]
[null,null,null,null,null,null,null,null,null,null,null,null,null,null,null,null,null,null,null,null,null,{"$f":"IF(COUNTIF(B460,\"*Virement*\"),\"VIR\"&COUNTIF($V$7:V459,\"VIR*\"),IF(COUNTIF($B$8:B460,B460)=1,\"AUT\"&COUNTIF($V$7:V459,\"AUT*\"),\"\"))","v":""},"",""]
[null,null,null,null,null,null,null,null,null,null,null,null,null,null,null,null,null,null,null,null,null,{"$f":"IF(COUNTIF(B461,\"*Virement*\"),\"VIR\"&COUNTIF($V$7:V460,\"VIR*\"),IF(COUNTIF($B$8:B461,B461)=1,\"AUT\"&COUNTIF($V$7:V460,\"AUT*\"),\"\"))","v":""},"",""]
[null,null,null,null,null,null,null,null,null,null,null,null,null,null,null,null,null,null,null,null,null,{"$f":"IF(COUNTIF(B462,\"*Virement*\"),\"VIR\"&COUNTIF($V$7:V461,\"VIR*\"),IF(COUNTIF($B$8:B462,B462)=1,\"AUT\"&COUNTIF($V$7:V461,\"AUT*\"),\"\"))","v":""},"",""]
[null,null,null,null,null,null,null,null,null,null,null,null,null,null,null,null,null,null,null,null,null,{"$f":"IF(COUNTIF(B463,\"*Virement*\"),\"VIR\"&COUNTIF($V$7:V462,\"VIR*\"),IF(COUNTIF($B$8:B463,B463)=1,\"AUT\"&COUNTIF($V$7:V462,\"AUT*\"),\"\"))","v":""},"",""]
[null,null,null,null,null,null,null,null,null,null,null,null,null,null,null,null,null,null,null,null,null,{"$f":"IF(COUNTIF(B464,\"*Virement*\"),\"VIR\"&COUNTIF($V$7:V463,\"VIR*\"),IF(COUNTIF($B$8:B464,B464)=1,\"AUT\"&COUNTIF($V$7:V463,\"AUT*\"),\"\"))","v":""},"",""]
[null,null,null,null,null,null,null,null,null,null,null,null,null,null,null,null,null,null,null,null,null,{"$f":"IF(COUNTIF(B465,\"*Virement*\"),\"VIR\"&COUNTIF($V$7:V464,\"VIR*\"),IF(COUNTIF($B$8:B465,B465)=1,\"AUT\"&COUNTIF($V$7:V464,\"AUT*\"),\"\"))","v":""},"",""]
[null,null,null,null,null,null,null,null,null,null,null,null,null,null,null,null,null,null,null,null,null,{"$f":"IF(COUNTIF(B466,\"*Virement*\"),\"VIR\"&COUNTIF($V$7:V465,\"VIR*\"),IF(COUNTIF($B$8:B466,B466)=1,\"AUT\"&COUNTIF($V$7:V465,\"AUT*\"),\"\"))","v":""},"",""]
[null,null,null,null,null,null,null,null,null,null,null,null,null,null,null,null,null,null,null,null,null,{"$f":"IF(COUNTIF(B467,\"*Virement*\"),\"VIR\"&COUNTIF($V$7:V466,\"VIR*\"),IF(COUNTIF($B$8:B467,B467)=1,\"AUT\"&COUNTIF($V$7:V466,\"AUT*\"),\"\"))","v":""},"",""]
[null,null,null,null,null,null,null,null,null,null,null,null,null,null,null,null,null,null,null,null,null,{"$f":"IF(COUNTIF(B468,\"*Virement*\"),\"VIR\"&COUNTIF($V$7:V467,\"VIR*\"),IF(COUNTIF($B$8:B468,B468)=1,\"AUT\"&COUNTIF($V$7:V467,\"AUT*\"),\"\"))","v":""},"",""]
[null,null,null,null,null,null,null,null,null,null,null,null,null,null,null,null,null,null,null,null,null,{"$f":"IF(COUNTIF(B469,\"*Virement*\"),\"VIR\"&COUNTIF($V$7:V468,\"VIR*\"),IF(COUNTIF($B$8:B469,B469)=1,\"AUT\"&COUNTIF($V$7:V468,\"AUT*\"),\"\"))","v":""},"",""]
[null,null,null,null,null,null,null,null,null,null,null,null,null,null,null,null,null,null,null,null,null,{"$f":"IF(COUNTIF(B470,\"*Virement*\"),\"VIR\"&COUNTIF($V$7:V469,\"VIR*\"),IF(COUNTIF($B$8:B470,B470)=1,\"AUT\"&COUNTIF($V$7:V469,\"AUT*\"),\"\"))","v":""},"",""]
[null,null,null,null,null,null,null,null,null,null,null,null,null,null,null,null,null,null,null,null,null,{"$f":"IF(COUNTIF(B471,\"*Virement*\"),\"VIR\"&COUNTIF($V$7:V470,\"VIR*\"),IF(COUNTIF($B$8:B471,B471)=1,\"AUT\"&COUNTIF($V$7:V470,\"AUT*\"),\"\"))","v":""},"",""]
[null,null,null,null,null,null,null,null,null,null,null,null,null,null,null,null,null,null,null,null,null,{"$f":"IF(COUNTIF(B472,\"*Virement*\"),\"VIR\"&COUNTIF($V$7:V471,\"VIR*\"),IF(COUNTIF($B$8:B472,B472)=1,\"AUT\"&COUNTIF($V$7:V471,\"AUT*\"),\"\"))","v":""},"",""]
[null,null,null,null,null,null,null,null,null,null,null,null,null,null,null,null,null,null,null,null,null,{"$f":"IF(COUNTIF(B473,\"*Virement*\"),\"VIR\"&COUNTIF($V$7:V472,\"VIR*\"),IF(COUNTIF($B$8:B473,B473)=1,\"AUT\"&COUNTIF($V$7:V472,\"AUT*\"),\"\"))","v":""},"",""]
[null,null,null,null,null,null,null,null,null,null,null,null,null,null,null,null,null,null,null,null,null,{"$f":"IF(COUNTIF(B474,\"*Virement*\"),\"VIR\"&COUNTIF($V$7:V473,\"VIR*\"),IF(COUNTIF($B$8:B474,B474)=1,\"AUT\"&COUNTIF($V$7:V473,\"AUT*\"),\"\"))","v":""},"",""]
[null,null,null,null,null,null,null,null,null,null,null,null,null,null,null,null,null,null,null,null,null,{"$f":"IF(COUNTIF(B475,\"*Virement*\"),\"VIR\"&COUNTIF($V$7:V474,\"VIR*\"),IF(COUNTIF($B$8:B475,B475)=1,\"AUT\"&COUNTIF($V$7:V474,\"AUT*\"),\"\"))","v":""},"",""]
[null,null,null,null,null,null,null,null,null,null,null,null,null,null,null,null,null,null,null,null,null,{"$f":"IF(COUNTIF(B476,\"*Virement*\"),\"VIR\"&COUNTIF($V$7:V475,\"VIR*\"),IF(COUNTIF($B$8:B476,B476)=1,\"AUT\"&COUNTIF($V$7:V475,\"AUT*\"),\"\"))","v":""},"",""]
[null,null,null,null,null,null,null,null,null,null,null,null,null,null,null,null,null,null,null,null,null,{"$f":"IF(COUNTIF(B477,\"*Virement*\"),\"VIR\"&COUNTIF($V$7:V476,\"VIR*\"),IF(COUNTIF($B$8:B477,B477)=1,\"AUT\"&COUNTIF($V$7:V476,\"AUT*\"),\"\"))","v":""},"",""]
[null,null,null,null,null,null,null,null,null,null,null,null,null,null,null,null,null,null,null,null,null,{"$f":"IF(COUNTIF(B478,\"*Virement*\"),\"VIR\"&COUNTIF($V$7:V477,\"VIR*\"),IF(COUNTIF($B$8:B478,B478)=1,\"AUT\"&COUNTIF($V$7:V477,\"AUT*\"),\"\"))","v":""},"",""]
[null,null,null,null,null,null,null,null,null,null,null,null,null,null,null,null,null,null,null,null,null,{"$f":"IF(COUNTIF(B479,\"*Virement*\"),\"VIR\"&COUNTIF($V$7:V478,\"VIR*\"),IF(COUNTIF($B$8:B479,B479)=1,\"AUT\"&COUNTIF($V$7:V478,\"AUT*\"),\"\"))","v":""},"",""]
[null,null,null,null,null,null,null,null,null,null,null,null,null,null,null,null,null,null,null,null,null,{"$f":"IF(COUNTIF(B480,\"*Virement*\"),\"VIR\"&COUNTIF($V$7:V479,\"VIR*\"),IF(COUNTIF($B$8:B480,B480)=1,\"AUT\"&COUNTIF($V$7:V479,\"AUT*\"),\"\"))","v":""},"",""]
[null,null,null,null,null,null,null,null,null,null,null,null,null,null,null,null,null,null,null,null,null,{"$f":"IF(COUNTIF(B481,\"*Virement*\"),\"VIR\"&COUNTIF($V$7:V480,\"VIR*\"),IF(COUNTIF($B$8:B481,B481)=1,\"AUT\"&COUNTIF($V$7:V480,\"AUT*\"),\"\"))","v":""},"",""]
[null,null,null,null,null,null,null,null,null,null,null,null,null,null,null,null,null,null,null,null,null,{"$f":"IF(COUNTIF(B482,\"*Virement*\"),\"VIR\"&COUNTIF($V$7:V481,\"VIR*\"),IF(COUNTIF($B$8:B482,B482)=1,\"AUT\"&COUNTIF($V$7:V481,\"AUT*\"),\"\"))","v":""},"",""]
[null,null,null,null,null,null,null,null,null,null,null,null,null,null,null,null,null,null,null,null,null,{"$f":"IF(COUNTIF(B483,\"*Virement*\"),\"VIR\"&COUNTIF($V$7:V482,\"VIR*\"),IF(COUNTIF($B$8:B483,B483)=1,\"AUT\"&COUNTIF($V$7:V482,\"AUT*\"),\"\"))","v":""},"",""]
[null,null,null,null,null,null,null,null,null,null,null,null,null,null,null,null,null,null,null,null,null,{"$f":"IF(COUNTIF(B484,\"*Virement*\"),\"VIR\"&COUNTIF($V$7:V483,\"VIR*\"),IF(COUNTIF($B$8:B484,B484)=1,\"AUT\"&COUNTIF($V$7:V483,\"AUT*\"),\"\"))","v":""},"",""]
[null,null,null,null,null,null,null,null,null,null,null,null,null,null,null,null,null,null,null,null,null,{"$f":"IF(COUNTIF(B485,\"*Virement*\"),\"VIR\"&COUNTIF($V$7:V484,\"VIR*\"),IF(COUNTIF($B$8:B485,B485)=1,\"AUT\"&COUNTIF($V$7:V484,\"AUT*\"),\"\"))","v":""},"",""]
[null,null,null,null,null,null,null,null,null,null,null,null,null,null,null,null,null,null,null,null,null,{"$f":"IF(COUNTIF(B486,\"*Virement*\"),\"VIR\"&COUNTIF($V$7:V485,\"VIR*\"),IF(COUNTIF($B$8:B486,B486)=1,\"AUT\"&COUNTIF($V$7:V485,\"AUT*\"),\"\"))","v":""},"",""]
[null,null,null,null,null,null,null,null,null,null,null,null,null,null,null,null,null,null,null,null,null,{"$f":"IF(COUNTIF(B487,\"*Virement*\"),\"VIR\"&COUNTIF($V$7:V486,\"VIR*\"),IF(COUNTIF($B$8:B487,B487)=1,\"AUT\"&COUNTIF($V$7:V486,\"AUT*\"),\"\"))","v":""},"",""]
[null,null,null,null,null,null,null,null,null,null,null,null,null,null,null,null,null,null,null,null,null,{"$f":"IF(COUNTIF(B488,\"*Virement*\"),\"VIR\"&COUNTIF($V$7:V487,\"VIR*\"),IF(COUNTIF($B$8:B488,B488)=1,\"AUT\"&COUNTIF($V$7:V487,\"AUT*\"),\"\"))","v":""},"",""]
[null,null,null,null,null,null,null,null,null,null,null,null,null,null,null,null,null,null,null,null,null,{"$f":"IF(COUNTIF(B489,\"*Virement*\"),\"VIR\"&COUNTIF($V$7:V488,\"VIR*\"),IF(COUNTIF($B$8:B489,B489)=1,\"AUT\"&COUNTIF($V$7:V488,\"AUT*\"),\"\"))","v":""},"",""]
[null,null,null,null,null,null,null,null,null,null,null,null,null,null,null,null,null,null,null,null,null,{"$f":"IF(COUNTIF(B490,\"*Virement*\"),\"VIR\"&COUNTIF($V$7:V489,\"VIR*\"),IF(COUNTIF($B$8:B490,B490)=1,\"AUT\"&COUNTIF($V$7:V489,\"AUT*\"),\"\"))","v":""},"",""]
[null,null,null,null,null,null,null,null,null,null,null,null,null,null,null,null,null,null,null,null,null,{"$f":"IF(COUNTIF(B491,\"*Virement*\"),\"VIR\"&COUNTIF($V$7:V490,\"VIR*\"),IF(COUNTIF($B$8:B491,B491)=1,\"AUT\"&COUNTIF($V$7:V490,\"AUT*\"),\"\"))","v":""},"",""]
[null,null,null,null,null,null,null,null,null,null,null,null,null,null,null,null,null,null,null,null,null,{"$f":"IF(COUNTIF(B492,\"*Virement*\"),\"VIR\"&COUNTIF($V$7:V491,\"VIR*\"),IF(COUNTIF($B$8:B492,B492)=1,\"AUT\"&COUNTIF($V$7:V491,\"AUT*\"),\"\"))","v":""},"",""]
[null,null,null,null,null,null,null,null,null,null,null,null,null,null,null,null,null,null,null,null,null,{"$f":"IF(COUNTIF(B493,\"*Virement*\"),\"VIR\"&COUNTIF($V$7:V492,\"VIR*\"),IF(COUNTIF($B$8:B493,B493)=1,\"AUT\"&COUNTIF($V$7:V492,\"AUT*\"),\"\"))","v":""},"",""]
[null,null,null,null,null,null,null,null,null,null,null,null,null,null,null,null,null,null,null,null,null,{"$f":"IF(COUNTIF(B494,\"*Virement*\"),\"VIR\"&COUNTIF($V$7:V493,\"VIR*\"),IF(COUNTIF($B$8:B494,B494)=1,\"AUT\"&COUNTIF($V$7:V493,\"AUT*\"),\"\"))","v":""},"",""]
[null,null,null,null,null,null,null,null,null,null,null,null,null,null,null,null,null,null,null,null,null,{"$f":"IF(COUNTIF(B495,\"*Virement*\"),\"VIR\"&COUNTIF($V$7:V494,\"VIR*\"),IF(COUNTIF($B$8:B495,B495)=1,\"AUT\"&COUNTIF($V$7:V494,\"AUT*\"),\"\"))","v":""},"",""]
[null,null,null,null,null,null,null,null,null,null,null,null,null,null,null,null,null,null,null,null,null,{"$f":"IF(COUNTIF(B496,\"*Virement*\"),\"VIR\"&COUNTIF($V$7:V495,\"VIR*\"),IF(COUNTIF($B$8:B496,B496)=1,\"AUT\"&COUNTIF($V$7:V495,\"AUT*\"),\"\"))","v":""},"",""]
[null,null,null,null,null,null,null,null,null,null,null,null,null,null,null,null,null,null,null,null,null,{"$f":"IF(COUNTIF(B497,\"*Virement*\"),\"VIR\"&COUNTIF($V$7:V496,\"VIR*\"),IF(COUNTIF($B$8:B497,B497)=1,\"AUT\"&COUNTIF($V$7:V496,\"AUT*\"),\"\"))","v":""},"",""]
[null,null,null,null,null,null,null,null,null,null,null,null,null,null,null,null,null,null,null,null,null,{"$f":"IF(COUNTIF(B498,\"*Virement*\"),\"VIR\"&COUNTIF($V$7:V497,\"VIR*\"),IF(COUNTIF($B$8:B498,B498)=1,\"AUT\"&COUNTIF($V$7:V497,\"AUT*\"),\"\"))","v":""},"",""]
[null,null,null,null,null,null,null,null,null,null,null,null,null,null,null,null,null,null,null,null,null,{"$f":"IF(COUNTIF(B499,\"*Virement*\"),\"VIR\"&COUNTIF($V$7:V498,\"VIR*\"),IF(COUNTIF($B$8:B499,B499)=1,\"AUT\"&COUNTIF($V$7:V498,\"AUT*\"),\"\"))","v":""},"",""]
[null,null,null,null,null,null,null,null,null,null,null,null,null,null,null,null,null,null,null,null,null,{"$f":"IF(COUNTIF(B500,\"*Virement*\"),\"VIR\"&COUNTIF($V$7:V499,\"VIR*\"),IF(COUNTIF($B$8:B500,B500)=1,\"AUT\"&COUNTIF($V$7:V499,\"AUT*\"),\"\"))","v":""},"",""]
[null,null,null,null,null,null,null,null,null,null,null,null,null,null,null,null,null,null,null,null,null,{"$f":"IF(COUNTIF(B501,\"*Virement*\"),\"VIR\"&COUNTIF($V$7:V500,\"VIR*\"),IF(COUNTIF($B$8:B501,B501)=1,\"AUT\"&COUNTIF($V$7:V500,\"AUT*\"),\"\"))","v":""},"",""]
[null,null,null,null,null,null,null,null,null,null,null,null,null,null,null,null,null,null,null,null,null,{"$f":"IF(COUNTIF(B502,\"*Virement*\"),\"VIR\"&COUNTIF($V$7:V501,\"VIR*\"),IF(COUNTIF($B$8:B502,B502)=1,\"AUT\"&COUNTIF($V$7:V501,\"AUT*\"),\"\"))","v":""},"",""]
[null,null,null,null,null,null,null,null,null,null,null,null,null,null,null,null,null,null,null,null,null,{"$f":"IF(COUNTIF(B503,\"*Virement*\"),\"VIR\"&COUNTIF($V$7:V502,\"VIR*\"),IF(COUNTIF($B$8:B503,B503)=1,\"AUT\"&COUNTIF($V$7:V502,\"AUT*\"),\"\"))","v":""},"",""]
[null,null,null,null,null,null,null,null,null,null,null,null,null,null,null,null,null,null,null,null,null,{"$f":"IF(COUNTIF(B504,\"*Virement*\"),\"VIR\"&COUNTIF($V$7:V503,\"VIR*\"),IF(COUNTIF($B$8:B504,B504)=1,\"AUT\"&COUNTIF($V$7:V503,\"AUT*\"),\"\"))","v":""},"",""]
[null,null,null,null,null,null,null,null,null,null,null,null,null,null,null,null,null,null,null,null,null,{"$f":"IF(COUNTIF(B505,\"*Virement*\"),\"VIR\"&COUNTIF($V$7:V504,\"VIR*\"),IF(COUNTIF($B$8:B505,B505)=1,\"AUT\"&COUNTIF($V$7:V504,\"AUT*\"),\"\"))","v":""},"",""]
[null,null,null,null,null,null,null,null,null,null,null,null,null,null,null,null,null,null,null,null,null,{"$f":"IF(COUNTIF(B506,\"*Virement*\"),\"VIR\"&COUNTIF($V$7:V505,\"VIR*\"),IF(COUNTIF($B$8:B506,B506)=1,\"AUT\"&COUNTIF($V$7:V505,\"AUT*\"),\"\"))","v":""},"",""]
[null,null,null,null,null,null,null,null,null,null,null,null,null,null,null,null,null,null,null,null,null,{"$f":"IF(COUNTIF(B507,\"*Virement*\"),\"VIR\"&COUNTIF($V$7:V506,\"VIR*\"),IF(COUNTIF($B$8:B507,B507)=1,\"AUT\"&COUNTIF($V$7:V506,\"AUT*\"),\"\"))","v":""},"",""]
[null,null,null,null,null,null,null,null,null,null,null,null,null,null,null,null,null,null,null,null,null,{"$f":"IF(COUNTIF(B508,\"*Virement*\"),\"VIR\"&COUNTIF($V$7:V507,\"VIR*\"),IF(COUNTIF($B$8:B508,B508)=1,\"AUT\"&COUNTIF($V$7:V507,\"AUT*\"),\"\"))","v":""},"",""]
[null,null,null,null,null,null,null,null,null,null,null,null,null,null,null,null,null,null,null,null,null,{"$f":"IF(COUNTIF(B509,\"*Virement*\"),\"VIR\"&COUNTIF($V$7:V508,\"VIR*\"),IF(COUNTIF($B$8:B509,B509)=1,\"AUT\"&COUNTIF($V$7:V508,\"AUT*\"),\"\"))","v":""},"",""]
[null,null,null,null,null,null,null,null,null,null,null,null,null,null,null,null,null,null,null,null,null,{"$f":"IF(COUNTIF(B510,\"*Virement*\"),\"VIR\"&COUNTIF($V$7:V509,\"VIR*\"),IF(COUNTIF($B$8:B510,B510)=1,\"AUT\"&COUNTIF($V$7:V509,\"AUT*\"),\"\"))","v":""},"",""]
[null,null,null,null,null,null,null,null,null,null,null,null,null,null,null,null,null,null,null,null,null,{"$f":"IF(COUNTIF(B511,\"*Virement*\"),\"VIR\"&COUNTIF($V$7:V510,\"VIR*\"),IF(COUNTIF($B$8:B511,B511)=1,\"AUT\"&COUNTIF($V$7:V510,\"AUT*\"),\"\"))","v":""},"",""]
[null,null,null,null,null,null,null,null,null,null,null,null,null,null,null,null,null,null,null,null,null,{"$f":"IF(COUNTIF(B512,\"*Virement*\"),\"VIR\"&COUNTIF($V$7:V511,\"VIR*\"),IF(COUNTIF($B$8:B512,B512)=1,\"AUT\"&COUNTIF($V$7:V511,\"AUT*\"),\"\"))","v":""},"",""]
[null,null,null,null,null,null,null,null,null,null,null,null,null,null,null,null,null,null,null,null,null,{"$f":"IF(COUNTIF(B513,\"*Virement*\"),\"VIR\"&COUNTIF($V$7:V512,\"VIR*\"),IF(COUNTIF($B$8:B513,B513)=1,\"AUT\"&COUNTIF($V$7:V512,\"AUT*\"),\"\"))","v":""},"",""]
[null,null,null,null,null,null,null,null,null,null,null,null,null,null,null,null,null,null,null,null,null,{"$f":"IF(COUNTIF(B514,\"*Virement*\"),\"VIR\"&COUNTIF($V$7:V513,\"VIR*\"),IF(COUNTIF($B$8:B514,B514)=1,\"AUT\"&COUNTIF($V$7:V513,\"AUT*\"),\"\"))","v":""},"",""]
[null,null,null,null,null,null,null,null,null,null,null,null,null,null,null,null,null,null,null,null,null,{"$f":"IF(COUNTIF(B515,\"*Virement*\"),\"VIR\"&COUNTIF($V$7:V514,\"VIR*\"),IF(COUNTIF($B$8:B515,B515)=1,\"AUT\"&COUNTIF($V$7:V514,\"AUT*\"),\"\"))","v":""},"",""]
[null,null,null,null,null,null,null,null,null,null,null,null,null,null,null,null,null,null,null,null,null,{"$f":"IF(COUNTIF(B516,\"*Virement*\"),\"VIR\"&COUNTIF($V$7:V515,\"VIR*\"),IF(COUNTIF($B$8:B516,B516)=1,\"AUT\"&COUNTIF($V$7:V515,\"AUT*\"),\"\"))","v":""},"",""]
[null,null,null,null,null,null,null,null,null,null,null,null,null,null,null,null,null,null,null,null,null,{"$f":"IF(COUNTIF(B517,\"*Virement*\"),\"VIR\"&COUNTIF($V$7:V516,\"VIR*\"),IF(COUNTIF($B$8:B517,B517)=1,\"AUT\"&COUNTIF($V$7:V516,\"AUT*\"),\"\"))","v":""},"",""]
[null,null,null,null,null,null,null,null,null,null,null,null,null,null,null,null,null,null,null,null,null,{"$f":"IF(COUNTIF(B518,\"*Virement*\"),\"VIR\"&COUNTIF($V$7:V517,\"VIR*\"),IF(COUNTIF($B$8:B518,B518)=1,\"AUT\"&COUNTIF($V$7:V517,\"AUT*\"),\"\"))","v":""},"",""]
[null,null,null,null,null,null,null,null,null,null,null,null,null,null,null,null,null,null,null,null,null,{"$f":"IF(COUNTIF(B519,\"*Virement*\"),\"VIR\"&COUNTIF($V$7:V518,\"VIR*\"),IF(COUNTIF($B$8:B519,B519)=1,\"AUT\"&COUNTIF($V$7:V518,\"AUT*\"),\"\"))","v":""},"",""]
[null,null,null,null,null,null,null,null,null,null,null,null,null,null,null,null,null,null,null,null,null,{"$f":"IF(COUNTIF(B520,\"*Virement*\"),\"VIR\"&COUNTIF($V$7:V519,\"VIR*\"),IF(COUNTIF($B$8:B520,B520)=1,\"AUT\"&COUNTIF($V$7:V519,\"AUT*\"),\"\"))","v":""},"",""]
[null,null,null,null,null,null,null,null,null,null,null,null,null,null,null,null,null,null,null,null,null,{"$f":"IF(COUNTIF(B521,\"*Virement*\"),\"VIR\"&COUNTIF($V$7:V520,\"VIR*\"),IF(COUNTIF($B$8:B521,B521)=1,\"AUT\"&COUNTIF($V$7:V520,\"AUT*\"),\"\"))","v":""},{"$f":"IFERROR(INDEX(B:B,MATCH(\"VIR\"&ROW()-8,V:V,0)),\"\")","v":""},{"$f":"IFERROR(INDEX($B:$B,MATCH(\"AUT\"&ROW()-8,$V:$V,0)),\"\")","v":""}]
[null,null,null,null,null,null,null,null,null,null,null,null,null,null,null,null,null,null,null,null,null,{"$f":"IF(COUNTIF(B522,\"*Virement*\"),\"VIR\"&COUNTIF($V$7:V521,\"VIR*\"),IF(COUNTIF($B$8:B522,B522)=1,\"AUT\"&COUNTIF($V$7:V521,\"AUT*\"),\"\"))","v":""},"",""]
[null,null,null,null,null,null,null,null,null,null,null,null,null,null,null,null,null,null,null,null,null,{"$f":"IF(COUNTIF(B523,\"*Virement*\"),\"VIR\"&COUNTIF($V$7:V522,\"VIR*\"),IF(COUNTIF($B$8:B523,B523)=1,\"AUT\"&COUNTIF($V$7:V522,\"AUT*\"),\"\"))","v":""},"",""]
[null,null,null,null,null,null,null,null,null,null,null,null,null,null,null,null,null,null,null,null,null,{"$f":"IF(COUNTIF(B524,\"*Virement*\"),\"VIR\"&COUNTIF($V$7:V523,\"VIR*\"),IF(COUNTIF($B$8:B524,B524)=1,\"AUT\"&COUNTIF($V$7:V523,\"AUT*\"),\"\"))","v":""},"",""]
[null,null,null,null,null,null,null,null,null,null,null,null,null,null,null,null,null,null,null,null,null,{"$f":"IF(COUNTIF(B525,\"*Virement*\"),\"VIR\"&COUNTIF($V$7:V524,\"VIR*\"),IF(COUNTIF($B$8:B525,B525)=1,\"AUT\"&COUNTIF($V$7:V524,\"AUT*\"),\"\"))","v":""},"",""]
[null,null,null,null,null,null,null,null,null,null,null,null,null,null,null,null,null,null,null,null,null,{"$f":"IF(COUNTIF(B526,\"*Virement*\"),\"VIR\"&COUNTIF($V$7:V525,\"VIR*\"),IF(COUNTIF($B$8:B526,B526)=1,\"AUT\"&COUNTIF($V$7:V525,\"AUT*\"),\"\"))","v":""},"",""]
[null,null,null,null,null,null,null,null,null,null,null,null,null,null,null,null,null,null,null,null,null,{"$f":"IF(COUNTIF(B527,\"*Virement*\"),\"VIR\"&COUNTIF($V$7:V526,\"VIR*\"),IF(COUNTIF($B$8:B527,B527)=1,\"AUT\"&COUNTIF($V$7:V526,\"AUT*\"),\"\"))","v":""},"",""]
[null,null,null,null,null,null,null,null,null,null,null,null,null,null,null,null,null,null,null,null,null,{"$f":"IF(COUNTIF(B528,\"*Virement*\"),\"VIR\"&COUNTIF($V$7:V527,\"VIR*\"),IF(COUNTIF($B$8:B528,B528)=1,\"AUT\"&COUNTIF($V$7:V527,\"AUT*\"),\"\"))","v":""},"",""]
[null,null,null,null,null,null,null,null,null,null,null,null,null,null,null,null,null,null,null,null,null,{"$f":"IF(COUNTIF(B529,\"*Virement*\"),\"VIR\"&COUNTIF($V$7:V528,\"VIR*\"),IF(COUNTIF($B$8:B529,B529)=1,\"AUT\"&COUNTIF($V$7:V528,\"AUT*\"),\"\"))","v":""},"",""]
[null,null,null,null,null,null,null,null,null,null,null,null,null,null,null,null,null,null,null,null,null,{"$f":"IF(COUNTIF(B530,\"*Virement*\"),\"VIR\"&COUNTIF($V$7:V529,\"VIR*\"),IF(COUNTIF($B$8:B530,B530)=1,\"AUT\"&COUNTIF($V$7:V529,\"AUT*\"),\"\"))","v":""},"",""]
[null,null,null,null,null,null,null,null,null,null,null,null,null,null,null,null,null,null,null,null,null,{"$f":"IF(COUNTIF(B531,\"*Virement*\"),\"VIR\"&COUNTIF($V$7:V530,\"VIR*\"),IF(COUNTIF($B$8:B531,B531)=1,\"AUT\"&COUNTIF($V$7:V530,\"AUT*\"),\"\"))","v":""},"",""]
[null,null,null,null,null,null,null,null,null,null,null,null,null,null,null,null,null,null,null,null,null,{"$f":"IF(COUNTIF(B532,\"*Virement*\"),\"VIR\"&COUNTIF($V$7:V531,\"VIR*\"),IF(COUNTIF($B$8:B532,B532)=1,\"AUT\"&COUNTIF($V$7:V531,\"AUT*\"),\"\"))","v":""},"",""]
[null,null,null,null,null,null,null,null,null,null,null,null,null,null,null,null,null,null,null,null,null,{"$f":"IF(COUNTIF(B533,\"*Virement*\"),\"VIR\"&COUNTIF($V$7:V532,\"VIR*\"),IF(COUNTIF($B$8:B533,B533)=1,\"AUT\"&COUNTIF($V$7:V532,\"AUT*\"),\"\"))","v":""},"",""]
[null,null,null,null,null,null,null,null,null,null,null,null,null,null,null,null,null,null,null,null,null,{"$f":"IF(COUNTIF(B534,\"*Virement*\"),\"VIR\"&COUNTIF($V$7:V533,\"VIR*\"),IF(COUNTIF($B$8:B534,B534)=1,\"AUT\"&COUNTIF($V$7:V533,\"AUT*\"),\"\"))","v":""},"",""]
[null,null,null,null,null,null,null,null,null,null,null,null,null,null,null,null,null,null,null,null,null,{"$f":"IF(COUNTIF(B535,\"*Virement*\"),\"VIR\"&COUNTIF($V$7:V534,\"VIR*\"),IF(COUNTIF($B$8:B535,B535)=1,\"AUT\"&COUNTIF($V$7:V534,\"AUT*\"),\"\"))","v":""},"",""]
[null,null,null,null,null,null,null,null,null,null,null,null,null,null,null,null,null,null,null,null,null,{"$f":"IF(COUNTIF(B536,\"*Virement*\"),\"VIR\"&COUNTIF($V$7:V535,\"VIR*\"),IF(COUNTIF($B$8:B536,B536)=1,\"AUT\"&COUNTIF($V$7:V535,\"AUT*\"),\"\"))","v":""},"",""]
[null,null,null,null,null,null,null,null,null,null,null,null,null,null,null,null,null,null,null,null,null,{"$f":"IF(COUNTIF(B537,\"*Virement*\"),\"VIR\"&COUNTIF($V$7:V536,\"VIR*\"),IF(COUNTIF($B$8:B537,B537)=1,\"AUT\"&COUNTIF($V$7:V536,\"AUT*\"),\"\"))","v":""},"",""]
[null,null,null,null,null,null,null,null,null,null,null,null,null,null,null,null,null,null,null,null,null,{"$f":"IF(COUNTIF(B538,\"*Virement*\"),\"VIR\"&COUNTIF($V$7:V537,\"VIR*\"),IF(COUNTIF($B$8:B538,B538)=1,\"AUT\"&COUNTIF($V$7:V537,\"AUT*\"),\"\"))","v":""},"",""]
[null,null,null,null,null,null,null,null,null,null,null,null,null,null,null,null,null,null,null,null,null,{"$f":"IF(COUNTIF(B539,\"*Virement*\"),\"VIR\"&COUNTIF($V$7:V538,\"VIR*\"),IF(COUNTIF($B$8:B539,B539)=1,\"AUT\"&COUNTIF($V$7:V538,\"AUT*\"),\"\"))","v":""},"",""]
[null,null,null,null,null,null,null,null,null,null,null,null,null,null,null,null,null,null,null,null,null,{"$f":"IF(COUNTIF(B540,\"*Virement*\"),\"VIR\"&COUNTIF($V$7:V539,\"VIR*\"),IF(COUNTIF($B$8:B540,B540)=1,\"AUT\"&COUNTIF($V$7:V539,\"AUT*\"),\"\"))","v":""},"",""]
[null,null,null,null,null,null,null,null,null,null,null,null,null,null,null,null,null,null,null,null,null,{"$f":"IF(COUNTIF(B541,\"*Virement*\"),\"VIR\"&COUNTIF($V$7:V540,\"VIR*\"),IF(COUNTIF($B$8:B541,B541)=1,\"AUT\"&COUNTIF($V$7:V540,\"AUT*\"),\"\"))","v":""},"",""]
[null,null,null,null,null,null,null,null,null,null,null,null,null,null,null,null,null,null,null,null,null,{"$f":"IF(COUNTIF(B542,\"*Virement*\"),\"VIR\"&COUNTIF($V$7:V541,\"VIR*\"),IF(COUNTIF($B$8:B542,B542)=1,\"AUT\"&COUNTIF($V$7:V541,\"AUT*\"),\"\"))","v":""},"",""]
[null,null,null,null,null,null,null,null,null,null,null,null,null,null,null,null,null,null,null,null,null,{"$f":"IF(COUNTIF(B543,\"*Virement*\"),\"VIR\"&COUNTIF($V$7:V542,\"VIR*\"),IF(COUNTIF($B$8:B543,B543)=1,\"AUT\"&COUNTIF($V$7:V542,\"AUT*\"),\"\"))","v":""},"",""]
[null,null,null,null,null,null,null,null,null,null,null,null,null,null,null,null,null,null,null,null,null,{"$f":"IF(COUNTIF(B544,\"*Virement*\"),\"VIR\"&COUNTIF($V$7:V543,\"VIR*\"),IF(COUNTIF($B$8:B544,B544)=1,\"AUT\"&COUNTIF($V$7:V543,\"AUT*\"),\"\"))","v":""},"",""]
[null,null,null,null,null,null,null,null,null,null,null,null,null,null,null,null,null,null,null,null,null,{"$f":"IF(COUNTIF(B545,\"*Virement*\"),\"VIR\"&COUNTIF($V$7:V544,\"VIR*\"),IF(COUNTIF($B$8:B545,B545)=1,\"AUT\"&COUNTIF($V$7:V544,\"AUT*\"),\"\"))","v":""},"",""]
[null,null,null,null,null,null,null,null,null,null,null,null,null,null,null,null,null,null,null,null,null,{"$f":"IF(COUNTIF(B546,\"*Virement*\"),\"VIR\"&COUNTIF($V$7:V545,\"VIR*\"),IF(COUNTIF($B$8:B546,B546)=1,\"AUT\"&COUNTIF($V$7:V545,\"AUT*\"),\"\"))","v":""},"",""]
[null,null,null,null,null,null,null,null,null,null,null,null,null,null,null,null,null,null,null,null,null,{"$f":"IF(COUNTIF(B547,\"*Virement*\"),\"VIR\"&COUNTIF($V$7:V546,\"VIR*\"),IF(COUNTIF($B$8:B547,B547)=1,\"AUT\"&COUNTIF($V$7:V546,\"AUT*\"),\"\"))","v":""},"",""]
[null,null,null,null,null,null,null,null,null,null,null,null,null,null,null,null,null,null,null,null,null,{"$f":"IF(COUNTIF(B548,\"*Virement*\"),\"VIR\"&COUNTIF($V$7:V547,\"VIR*\"),IF(COUNTIF($B$8:B548,B548)=1,\"AUT\"&COUNTIF($V$7:V547,\"AUT*\"),\"\"))","v":""},"",""]
[null,null,null,null,null,null,null,null,null,null,null,null,null,null,null,null,null,null,null,null,null,{"$f":"IF(COUNTIF(B549,\"*Virement*\"),\"VIR\"&COUNTIF($V$7:V548,\"VIR*\"),IF(COUNTIF($B$8:B549,B549)=1,\"AUT\"&COUNTIF($V$7:V548,\"AUT*\"),\"\"))","v":""},"",""]
[null,null,null,null,null,null,null,null,null,null,null,null,null,null,null,null,null,null,null,null,null,{"$f":"IF(COUNTIF(B550,\"*Virement*\"),\"VIR\"&COUNTIF($V$7:V549,\"VIR*\"),IF(COUNTIF($B$8:B550,B550)=1,\"AUT\"&COUNTIF($V$7:V549,\"AUT*\"),\"\"))","v":""},"",""]
[null,null,null,null,null,null,null,null,null,null,null,null,null,null,null,null,null,null,null,null,null,{"$f":"IF(COUNTIF(B551,\"*Virement*\"),\"VIR\"&COUNTIF($V$7:V550,\"VIR*\"),IF(COUNTIF($B$8:B551,B551)=1,\"AUT\"&COUNTIF($V$7:V550,\"AUT*\"),\"\"))","v":""},"",""]
[null,null,null,null,null,null,null,null,null,null,null,null,null,null,null,null,null,null,null,null,null,{"$f":"IF(COUNTIF(B552,\"*Virement*\"),\"VIR\"&COUNTIF($V$7:V551,\"VIR*\"),IF(COUNTIF($B$8:B552,B552)=1,\"AUT\"&COUNTIF($V$7:V551,\"AUT*\"),\"\"))","v":""},"",""]
[null,null,null,null,null,null,null,null,null,null,null,null,null,null,null,null,null,null,null,null,null,{"$f":"IF(COUNTIF(B553,\"*Virement*\"),\"VIR\"&COUNTIF($V$7:V552,\"VIR*\"),IF(COUNTIF($B$8:B553,B553)=1,\"AUT\"&COUNTIF($V$7:V552,\"AUT*\"),\"\"))","v":""},"",""]
[null,null,null,null,null,null,null,null,null,null,null,null,null,null,null,null,null,null,null,null,null,{"$f":"IF(COUNTIF(B554,\"*Virement*\"),\"VIR\"&COUNTIF($V$7:V553,\"VIR*\"),IF(COUNTIF($B$8:B554,B554)=1,\"AUT\"&COUNTIF($V$7:V553,\"AUT*\"),\"\"))","v":""},"",""]
[null,null,null,null,null,null,null,null,null,null,null,null,null,null,null,null,null,null,null,null,null,{"$f":"IF(COUNTIF(B555,\"*Virement*\"),\"VIR\"&COUNTIF($V$7:V554,\"VIR*\"),IF(COUNTIF($B$8:B555,B555)=1,\"AUT\"&COUNTIF($V$7:V554,\"AUT*\"),\"\"))","v":""},"",""]
[null,null,null,null,null,null,null,null,null,null,null,null,null,null,null,null,null,null,null,null,null,{"$f":"IF(COUNTIF(B556,\"*Virement*\"),\"VIR\"&COUNTIF($V$7:V555,\"VIR*\"),IF(COUNTIF($B$8:B556,B556)=1,\"AUT\"&COUNTIF($V$7:V555,\"AUT*\"),\"\"))","v":""},"",""]
[null,null,null,null,null,null,null,null,null,null,null,null,null,null,null,null,null,null,null,null,null,{"$f":"IF(COUNTIF(B557,\"*Virement*\"),\"VIR\"&COUNTIF($V$7:V556,\"VIR*\"),IF(COUNTIF($B$8:B557,B557)=1,\"AUT\"&COUNTIF($V$7:V556,\"AUT*\"),\"\"))","v":""},"",""]
[null,null,null,null,null,null,null,null,null,null,null,null,null,null,null,null,null,null,null,null,null,{"$f":"IF(COUNTIF(B558,\"*Virement*\"),\"VIR\"&COUNTIF($V$7:V557,\"VIR*\"),IF(COUNTIF($B$8:B558,B558)=1,\"AUT\"&COUNTIF($V$7:V557,\"AUT*\"),\"\"))","v":""},"",""]
[null,null,null,null,null,null,null,null,null,null,null,null,null,null,null,null,null,null,null,null,null,{"$f":"IF(COUNTIF(B559,\"*Virement*\"),\"VIR\"&COUNTIF($V$7:V558,\"VIR*\"),IF(COUNTIF($B$8:B559,B559)=1,\"AUT\"&COUNTIF($V$7:V558,\"AUT*\"),\"\"))","v":""},"",""]
[null,null,null,null,null,null,null,null,null,null,null,null,null,null,null,null,null,null,null,null,null,{"$f":"IF(COUNTIF(B560,\"*Virement*\"),\"VIR\"&COUNTIF($V$7:V559,\"VIR*\"),IF(COUNTIF($B$8:B560,B560)=1,\"AUT\"&COUNTIF($V$7:V559,\"AUT*\"),\"\"))","v":""},"",""]
[null,null,null,null,null,null,null,null,null,null,null,null,null,null,null,null,null,null,null,null,null,{"$f":"IF(COUNTIF(B561,\"*Virement*\"),\"VIR\"&COUNTIF($V$7:V560,\"VIR*\"),IF(COUNTIF($B$8:B561,B561)=1,\"AUT\"&COUNTIF($V$7:V560,\"AUT*\"),\"\"))","v":""},"",""]
[null,null,null,null,null,null,null,null,null,null,null,null,null,null,null,null,null,null,null,null,null,{"$f":"IF(COUNTIF(B562,\"*Virement*\"),\"VIR\"&COUNTIF($V$7:V561,\"VIR*\"),IF(COUNTIF($B$8:B562,B562)=1,\"AUT\"&COUNTIF($V$7:V561,\"AUT*\"),\"\"))","v":""},"",""]
[null,null,null,null,null,null,null,null,null,null,null,null,null,null,null,null,null,null,null,null,null,{"$f":"IF(COUNTIF(B563,\"*Virement*\"),\"VIR\"&COUNTIF($V$7:V562,\"VIR*\"),IF(COUNTIF($B$8:B563,B563)=1,\"AUT\"&COUNTIF($V$7:V562,\"AUT*\"),\"\"))","v":""},"",""]
[null,null,null,null,null,null,null,null,null,null,null,null,null,null,null,null,null,null,null,null,null,{"$f":"IF(COUNTIF(B564,\"*Virement*\"),\"VIR\"&COUNTIF($V$7:V563,\"VIR*\"),IF(COUNTIF($B$8:B564,B564)=1,\"AUT\"&COUNTIF($V$7:V563,\"AUT*\"),\"\"))","v":""},"",""]
[null,null,null,null,null,null,null,null,null,null,null,null,null,null,null,null,null,null,null,null,null,{"$f":"IF(COUNTIF(B565,\"*Virement*\"),\"VIR\"&COUNTIF($V$7:V564,\"VIR*\"),IF(COUNTIF($B$8:B565,B565)=1,\"AUT\"&COUNTIF($V$7:V564,\"AUT*\"),\"\"))","v":""},"",""]
[null,null,null,null,null,null,null,null,null,null,null,null,null,null,null,null,null,null,null,null,null,{"$f":"IF(COUNTIF(B566,\"*Virement*\"),\"VIR\"&COUNTIF($V$7:V565,\"VIR*\"),IF(COUNTIF($B$8:B566,B566)=1,\"AUT\"&COUNTIF($V$7:V565,\"AUT*\"),\"\"))","v":""},"",""]
[null,null,null,null,null,null,null,null,null,null,null,null,null,null,null,null,null,null,null,null,null,{"$f":"IF(COUNTIF(B567,\"*Virement*\"),\"VIR\"&COUNTIF($V$7:V566,\"VIR*\"),IF(COUNTIF($B$8:B567,B567)=1,\"AUT\"&COUNTIF($V$7:V566,\"AUT*\"),\"\"))","v":""},"",""]
[null,null,null,null,null,null,null,null,null,null,null,null,null,null,null,null,null,null,null,null,null,{"$f":"IF(COUNTIF(B568,\"*Virement*\"),\"VIR\"&COUNTIF($V$7:V567,\"VIR*\"),IF(COUNTIF($B$8:B568,B568)=1,\"AUT\"&COUNTIF($V$7:V567,\"AUT*\"),\"\"))","v":""},"",""]
[null,null,null,null,null,null,null,null,null,null,null,null,null,null,null,null,null,null,null,null,null,{"$f":"IF(COUNTIF(B569,\"*Virement*\"),\"VIR\"&COUNTIF($V$7:V568,\"VIR*\"),IF(COUNTIF($B$8:B569,B569)=1,\"AUT\"&COUNTIF($V$7:V568,\"AUT*\"),\"\"))","v":""},"",""]
[null,null,null,null,null,null,null,null,null,null,null,null,null,null,null,null,null,null,null,null,null,{"$f":"IF(COUNTIF(B570,\"*Virement*\"),\"VIR\"&COUNTIF($V$7:V569,\"VIR*\"),IF(COUNTIF($B$8:B570,B570)=1,\"AUT\"&COUNTIF($V$7:V569,\"AUT*\"),\"\"))","v":""},"",""]
[null,null,null,null,null,null,null,null,null,null,null,null,null,null,null,null,null,null,null,null,null,{"$f":"IF(COUNTIF(B571,\"*Virement*\"),\"VIR\"&COUNTIF($V$7:V570,\"VIR*\"),IF(COUNTIF($B$8:B571,B571)=1,\"AUT\"&COUNTIF($V$7:V570,\"AUT*\"),\"\"))","v":""},"",""]
[null,null,null,null,null,null,null,null,null,null,null,null,null,null,null,null,null,null,null,null,null,{"$f":"IF(COUNTIF(B572,\"*Virement*\"),\"VIR\"&COUNTIF($V$7:V571,\"VIR*\"),IF(COUNTIF($B$8:B572,B572)=1,\"AUT\"&COUNTIF($V$7:V571,\"AUT*\"),\"\"))","v":""},"",""]
[null,null,null,null,null,null,null,null,null,null,null,null,null,null,null,null,null,null,null,null,null,{"$f":"IF(COUNTIF(B573,\"*Virement*\"),\"VIR\"&COUNTIF($V$7:V572,\"VIR*\"),IF(COUNTIF($B$8:B573,B573)=1,\"AUT\"&COUNTIF($V$7:V572,\"AUT*\"),\"\"))","v":""},"",""]
[null,null,null,null,null,null,null,null,null,null,null,null,null,null,null,null,null,null,null,null,null,{"$f":"IF(COUNTIF(B574,\"*Virement*\"),\"VIR\"&COUNTIF($V$7:V573,\"VIR*\"),IF(COUNTIF($B$8:B574,B574)=1,\"AUT\"&COUNTIF($V$7:V573,\"AUT*\"),\"\"))","v":""},"",""]
[null,null,null,null,null,null,null,null,null,null,null,null,null,null,null,null,null,null,null,null,null,{"$f":"IF(COUNTIF(B575,\"*Virement*\"),\"VIR\"&COUNTIF($V$7:V574,\"VIR*\"),IF(COUNTIF($B$8:B575,B575)=1,\"AUT\"&COUNTIF($V$7:V574,\"AUT*\"),\"\"))","v":""},"",""]
[null,null,null,null,null,null,null,null,null,null,null,null,null,null,null,null,null,null,null,null,null,{"$f":"IF(COUNTIF(B576,\"*Virement*\"),\"VIR\"&COUNTIF($V$7:V575,\"VIR*\"),IF(COUNTIF($B$8:B576,B576)=1,\"AUT\"&COUNTIF($V$7:V575,\"AUT*\"),\"\"))","v":""},"",""]
[null,null,null,null,null,null,null,null,null,null,null,null,null,null,null,null,null,null,null,null,null,{"$f":"IF(COUNTIF(B577,\"*Virement*\"),\"VIR\"&COUNTIF($V$7:V576,\"VIR*\"),IF(COUNTIF($B$8:B577,B577)=1,\"AUT\"&COUNTIF($V$7:V576,\"AUT*\"),\"\"))","v":""},"",""]
[null,null,null,null,null,null,null,null,null,null,null,null,null,null,null,null,null,null,null,null,null,{"$f":"IF(COUNTIF(B578,\"*Virement*\"),\"VIR\"&COUNTIF($V$7:V577,\"VIR*\"),IF(COUNTIF($B$8:B578,B578)=1,\"AUT\"&COUNTIF($V$7:V577,\"AUT*\"),\"\"))","v":""},"",""]
[null,null,null,null,null,null,null,null,null,null,null,null,null,null,null,null,null,null,null,null,null,{"$f":"IF(COUNTIF(B579,\"*Virement*\"),\"VIR\"&COUNTIF($V$7:V578,\"VIR*\"),IF(COUNTIF($B$8:B579,B579)=1,\"AUT\"&COUNTIF($V$7:V578,\"AUT*\"),\"\"))","v":""},"",""]
[null,null,null,null,null,null,null,null,null,null,null,null,null,null,null,null,null,null,null,null,null,{"$f":"IF(COUNTIF(B580,\"*Virement*\"),\"VIR\"&COUNTIF($V$7:V579,\"VIR*\"),IF(COUNTIF($B$8:B580,B580)=1,\"AUT\"&COUNTIF($V$7:V579,\"AUT*\"),\"\"))","v":""},"",""]
[null,null,null,null,null,null,null,null,null,null,null,null,null,null,null,null,null,null,null,null,null,{"$f":"IF(COUNTIF(B581,\"*Virement*\"),\"VIR\"&COUNTIF($V$7:V580,\"VIR*\"),IF(COUNTIF($B$8:B581,B581)=1,\"AUT\"&COUNTIF($V$7:V580,\"AUT*\"),\"\"))","v":""},"",""]
[null,null,null,null,null,null,null,null,null,null,null,null,null,null,null,null,null,null,null,null,null,{"$f":"IF(COUNTIF(B582,\"*Virement*\"),\"VIR\"&COUNTIF($V$7:V581,\"VIR*\"),IF(COUNTIF($B$8:B582,B582)=1,\"AUT\"&COUNTIF($V$7:V581,\"AUT*\"),\"\"))","v":""},"",""]
[null,null,null,null,null,null,null,null,null,null,null,null,null,null,null,null,null,null,null,null,null,{"$f":"IF(COUNTIF(B583,\"*Virement*\"),\"VIR\"&COUNTIF($V$7:V582,\"VIR*\"),IF(COUNTIF($B$8:B583,B583)=1,\"AUT\"&COUNTIF($V$7:V582,\"AUT*\"),\"\"))","v":""},"",""]
[null,null,null,null,null,null,null,null,null,null,null,null,null,null,null,null,null,null,null,null,null,{"$f":"IF(COUNTIF(B584,\"*Virement*\"),\"VIR\"&COUNTIF($V$7:V583,\"VIR*\"),IF(COUNTIF($B$8:B584,B584)=1,\"AUT\"&COUNTIF($V$7:V583,\"AUT*\"),\"\"))","v":""},"",""]
[null,null,null,null,null,null,null,null,null,null,null,null,null,null,null,null,null,null,null,null,null,{"$f":"IF(COUNTIF(B585,\"*Virement*\"),\"VIR\"&COUNTIF($V$7:V584,\"VIR*\"),IF(COUNTIF($B$8:B585,B585)=1,\"AUT\"&COUNTIF($V$7:V584,\"AUT*\"),\"\"))","v":""},{"$f":"IFERROR(INDEX(B:B,MATCH(\"VIR\"&ROW()-8,V:V,0)),\"\")","v":""},{"$f":"IFERROR(INDEX($B:$B,MATCH(\"AUT\"&ROW()-8,$V:$V,0)),\"\")","v":""}]
[null,null,null,null,null,null,null,null,null,null,null,null,null,null,null,null,null,null,null,null,null,{"$f":"IF(COUNTIF(B586,\"*Virement*\"),\"VIR\"&COUNTIF($V$7:V585,\"VIR*\"),IF(COUNTIF($B$8:B586,B586)=1,\"AUT\"&COUNTIF($V$7:V585,\"AUT*\"),\"\"))","v":""},"",""]
[null,null,null,null,null,null,null,null,null,null,null,null,null,null,null,null,null,null,null,null,null,{"$f":"IF(COUNTIF(B587,\"*Virement*\"),\"VIR\"&COUNTIF($V$7:V586,\"VIR*\"),IF(COUNTIF($B$8:B587,B587)=1,\"AUT\"&COUNTIF($V$7:V586,\"AUT*\"),\"\"))","v":""},"",""]
[null,null,null,null,null,null,null,null,null,null,null,null,null,null,null,null,null,null,null,null,null,{"$f":"IF(COUNTIF(B588,\"*Virement*\"),\"VIR\"&COUNTIF($V$7:V587,\"VIR*\"),IF(COUNTIF($B$8:B588,B588)=1,\"AUT\"&COUNTIF($V$7:V587,\"AUT*\"),\"\"))","v":""},"",""]
[null,null,null,null,null,null,null,null,null,null,null,null,null,null,null,null,null,null,null,null,null,{"$f":"IF(COUNTIF(B589,\"*Virement*\"),\"VIR\"&COUNTIF($V$7:V588,\"VIR*\"),IF(COUNTIF($B$8:B589,B589)=1,\"AUT\"&COUNTIF($V$7:V588,\"AUT*\"),\"\"))","v":""},"",""]
[null,null,null,null,null,null,null,null,null,null,null,null,null,null,null,null,null,null,null,null,null,{"$f":"IF(COUNTIF(B590,\"*Virement*\"),\"VIR\"&COUNTIF($V$7:V589,\"VIR*\"),IF(COUNTIF($B$8:B590,B590)=1,\"AUT\"&COUNTIF($V$7:V589,\"AUT*\"),\"\"))","v":""},"",""]
[null,null,null,null,null,null,null,null,null,null,null,null,null,null,null,null,null,null,null,null,null,{"$f":"IF(COUNTIF(B591,\"*Virement*\"),\"VIR\"&COUNTIF($V$7:V590,\"VIR*\"),IF(COUNTIF($B$8:B591,B591)=1,\"AUT\"&COUNTIF($V$7:V590,\"AUT*\"),\"\"))","v":""},"",""]
[null,null,null,null,null,null,null,null,null,null,null,null,null,null,null,null,null,null,null,null,null,{"$f":"IF(COUNTIF(B592,\"*Virement*\"),\"VIR\"&COUNTIF($V$7:V591,\"VIR*\"),IF(COUNTIF($B$8:B592,B592)=1,\"AUT\"&COUNTIF($V$7:V591,\"AUT*\"),\"\"))","v":""},"",""]
[null,null,null,null,null,null,null,null,null,null,null,null,null,null,null,null,null,null,null,null,null,{"$f":"IF(COUNTIF(B593,\"*Virement*\"),\"VIR\"&COUNTIF($V$7:V592,\"VIR*\"),IF(COUNTIF($B$8:B593,B593)=1,\"AUT\"&COUNTIF($V$7:V592,\"AUT*\"),\"\"))","v":""},"",""]
[null,null,null,null,null,null,null,null,null,null,null,null,null,null,null,null,null,null,null,null,null,{"$f":"IF(COUNTIF(B594,\"*Virement*\"),\"VIR\"&COUNTIF($V$7:V593,\"VIR*\"),IF(COUNTIF($B$8:B594,B594)=1,\"AUT\"&COUNTIF($V$7:V593,\"AUT*\"),\"\"))","v":""},"",""]
[null,null,null,null,null,null,null,null,null,null,null,null,null,null,null,null,null,null,null,null,null,{"$f":"IF(COUNTIF(B595,\"*Virement*\"),\"VIR\"&COUNTIF($V$7:V594,\"VIR*\"),IF(COUNTIF($B$8:B595,B595)=1,\"AUT\"&COUNTIF($V$7:V594,\"AUT*\"),\"\"))","v":""},"",""]
[null,null,null,null,null,null,null,null,null,null,null,null,null,null,null,null,null,null,null,null,null,{"$f":"IF(COUNTIF(B596,\"*Virement*\"),\"VIR\"&COUNTIF($V$7:V595,\"VIR*\"),IF(COUNTIF($B$8:B596,B596)=1,\"AUT\"&COUNTIF($V$7:V595,\"AUT*\"),\"\"))","v":""},"",""]
[null,null,null,null,null,null,null,null,null,null,null,null,null,null,null,null,null,null,null,null,null,{"$f":"IF(COUNTIF(B597,\"*Virement*\"),\"VIR\"&COUNTIF($V$7:V596,\"VIR*\"),IF(COUNTIF($B$8:B597,B597)=1,\"AUT\"&COUNTIF($V$7:V596,\"AUT*\"),\"\"))","v":""},"",""]
[null,null,null,null,null,null,null,null,null,null,null,null,null,null,null,null,null,null,null,null,null,{"$f":"IF(COUNTIF(B598,\"*Virement*\"),\"VIR\"&COUNTIF($V$7:V597,\"VIR*\"),IF(COUNTIF($B$8:B598,B598)=1,\"AUT\"&COUNTIF($V$7:V597,\"AUT*\"),\"\"))","v":""},"",""]
[null,null,null,null,null,null,null,null,null,null,null,null,null,null,null,null,null,null,null,null,null,{"$f":"IF(COUNTIF(B599,\"*Virement*\"),\"VIR\"&COUNTIF($V$7:V598,\"VIR*\"),IF(COUNTIF($B$8:B599,B599)=1,\"AUT\"&COUNTIF($V$7:V598,\"AUT*\"),\"\"))","v":""},"",""]
[null,null,null,null,null,null,null,null,null,null,null,null,null,null,null,null,null,null,null,null,null,{"$f":"IF(COUNTIF(B600,\"*Virement*\"),\"VIR\"&COUNTIF($V$7:V599,\"VIR*\"),IF(COUNTIF($B$8:B600,B600)=1,\"AUT\"&COUNTIF($V$7:V599,\"AUT*\"),\"\"))","v":""},"",""]
[null,null,null,null,null,null,null,null,null,null,null,null,null,null,null,null,null,null,null,null,null,{"$f":"IF(COUNTIF(B601,\"*Virement*\"),\"VIR\"&COUNTIF($V$7:V600,\"VIR*\"),IF(COUNTIF($B$8:B601,B601)=1,\"AUT\"&COUNTIF($V$7:V600,\"AUT*\"),\"\"))","v":""},"",""]
[null,null,null,null,null,null,null,null,null,null,null,null,null,null,null,null,null,null,null,null,null,{"$f":"IF(COUNTIF(B602,\"*Virement*\"),\"VIR\"&COUNTIF($V$7:V601,\"VIR*\"),IF(COUNTIF($B$8:B602,B602)=1,\"AUT\"&COUNTIF($V$7:V601,\"AUT*\"),\"\"))","v":""},"",""]
[null,null,null,null,null,null,null,null,null,null,null,null,null,null,null,null,null,null,null,null,null,{"$f":"IF(COUNTIF(B603,\"*Virement*\"),\"VIR\"&COUNTIF($V$7:V602,\"VIR*\"),IF(COUNTIF($B$8:B603,B603)=1,\"AUT\"&COUNTIF($V$7:V602,\"AUT*\"),\"\"))","v":""},"",""]
[null,null,null,null,null,null,null,null,null,null,null,null,null,null,null,null,null,null,null,null,null,{"$f":"IF(COUNTIF(B604,\"*Virement*\"),\"VIR\"&COUNTIF($V$7:V603,\"VIR*\"),IF(COUNTIF($B$8:B604,B604)=1,\"AUT\"&COUNTIF($V$7:V603,\"AUT*\"),\"\"))","v":""},"",""]
[null,null,null,null,null,null,null,null,null,null,null,null,null,null,null,null,null,null,null,null,null,{"$f":"IF(COUNTIF(B605,\"*Virement*\"),\"VIR\"&COUNTIF($V$7:V604,\"VIR*\"),IF(COUNTIF($B$8:B605,B605)=1,\"AUT\"&COUNTIF($V$7:V604,\"AUT*\"),\"\"))","v":""},"",""]
[null,null,null,null,null,null,null,null,null,null,null,null,null,null,null,null,null,null,null,null,null,{"$f":"IF(COUNTIF(B606,\"*Virement*\"),\"VIR\"&COUNTIF($V$7:V605,\"VIR*\"),IF(COUNTIF($B$8:B606,B606)=1,\"AUT\"&COUNTIF($V$7:V605,\"AUT*\"),\"\"))","v":""},"",""]
[null,null,null,null,null,null,null,null,null,null,null,null,null,null,null,null,null,null,null,null,null,{"$f":"IF(COUNTIF(B607,\"*Virement*\"),\"VIR\"&COUNTIF($V$7:V606,\"VIR*\"),IF(COUNTIF($B$8:B607,B607)=1,\"AUT\"&COUNTIF($V$7:V606,\"AUT*\"),\"\"))","v":""},"",""]
[null,null,null,null,null,null,null,null,null,null,null,null,null,null,null,null,null,null,null,null,null,{"$f":"IF(COUNTIF(B608,\"*Virement*\"),\"VIR\"&COUNTIF($V$7:V607,\"VIR*\"),IF(COUNTIF($B$8:B608,B608)=1,\"AUT\"&COUNTIF($V$7:V607,\"AUT*\"),\"\"))","v":""},"",""]
[null,null,null,null,null,null,null,null,null,null,null,null,null,null,null,null,null,null,null,null,null,{"$f":"IF(COUNTIF(B609,\"*Virement*\"),\"VIR\"&COUNTIF($V$7:V608,\"VIR*\"),IF(COUNTIF($B$8:B609,B609)=1,\"AUT\"&COUNTIF($V$7:V608,\"AUT*\"),\"\"))","v":""},"",""]
[null,null,null,null,null,null,null,null,null,null,null,null,null,null,null,null,null,null,null,null,null,{"$f":"IF(COUNTIF(B610,\"*Virement*\"),\"VIR\"&COUNTIF($V$7:V609,\"VIR*\"),IF(COUNTIF($B$8:B610,B610)=1,\"AUT\"&COUNTIF($V$7:V609,\"AUT*\"),\"\"))","v":""},"",""]
[null,null,null,null,null,null,null,null,null,null,null,null,null,null,null,null,null,null,null,null,null,{"$f":"IF(COUNTIF(B611,\"*Virement*\"),\"VIR\"&COUNTIF($V$7:V610,\"VIR*\"),IF(COUNTIF($B$8:B611,B611)=1,\"AUT\"&COUNTIF($V$7:V610,\"AUT*\"),\"\"))","v":""},"",""]
[null,null,null,null,null,null,null,null,null,null,null,null,null,null,null,null,null,null,null,null,null,{"$f":"IF(COUNTIF(B612,\"*Virement*\"),\"VIR\"&COUNTIF($V$7:V611,\"VIR*\"),IF(COUNTIF($B$8:B612,B612)=1,\"AUT\"&COUNTIF($V$7:V611,\"AUT*\"),\"\"))","v":""},"",""]
[null,null,null,null,null,null,null,null,null,null,null,null,null,null,null,null,null,null,null,null,null,{"$f":"IF(COUNTIF(B613,\"*Virement*\"),\"VIR\"&COUNTIF($V$7:V612,\"VIR*\"),IF(COUNTIF($B$8:B613,B613)=1,\"AUT\"&COUNTIF($V$7:V612,\"AUT*\"),\"\"))","v":""},"",""]
[null,null,null,null,null,null,null,null,null,null,null,null,null,null,null,null,null,null,null,null,null,{"$f":"IF(COUNTIF(B614,\"*Virement*\"),\"VIR\"&COUNTIF($V$7:V613,\"VIR*\"),IF(COUNTIF($B$8:B614,B614)=1,\"AUT\"&COUNTIF($V$7:V613,\"AUT*\"),\"\"))","v":""},"",""]
[null,null,null,null,null,null,null,null,null,null,null,null,null,null,null,null,null,null,null,null,null,{"$f":"IF(COUNTIF(B615,\"*Virement*\"),\"VIR\"&COUNTIF($V$7:V614,\"VIR*\"),IF(COUNTIF($B$8:B615,B615)=1,\"AUT\"&COUNTIF($V$7:V614,\"AUT*\"),\"\"))","v":""},"",""]
[null,null,null,null,null,null,null,null,null,null,null,null,null,null,null,null,null,null,null,null,null,{"$f":"IF(COUNTIF(B616,\"*Virement*\"),\"VIR\"&COUNTIF($V$7:V615,\"VIR*\"),IF(COUNTIF($B$8:B616,B616)=1,\"AUT\"&COUNTIF($V$7:V615,\"AUT*\"),\"\"))","v":""},"",""]
[null,null,null,null,null,null,null,null,null,null,null,null,null,null,null,null,null,null,null,null,null,{"$f":"IF(COUNTIF(B617,\"*Virement*\"),\"VIR\"&COUNTIF($V$7:V616,\"VIR*\"),IF(COUNTIF($B$8:B617,B617)=1,\"AUT\"&COUNTIF($V$7:V616,\"AUT*\"),\"\"))","v":""},"",""]
[null,null,null,null,null,null,null,null,null,null,null,null,null,null,null,null,null,null,null,null,null,{"$f":"IF(COUNTIF(B618,\"*Virement*\"),\"VIR\"&COUNTIF($V$7:V617,\"VIR*\"),IF(COUNTIF($B$8:B618,B618)=1,\"AUT\"&COUNTIF($V$7:V617,\"AUT*\"),\"\"))","v":""},"",""]
[null,null,null,null,null,null,null,null,null,null,null,null,null,null,null,null,null,null,null,null,null,{"$f":"IF(COUNTIF(B619,\"*Virement*\"),\"VIR\"&COUNTIF($V$7:V618,\"VIR*\"),IF(COUNTIF($B$8:B619,B619)=1,\"AUT\"&COUNTIF($V$7:V618,\"AUT*\"),\"\"))","v":""},"",""]
[null,null,null,null,null,null,null,null,null,null,null,null,null,null,null,null,null,null,null,null,null,{"$f":"IF(COUNTIF(B620,\"*Virement*\"),\"VIR\"&COUNTIF($V$7:V619,\"VIR*\"),IF(COUNTIF($B$8:B620,B620)=1,\"AUT\"&COUNTIF($V$7:V619,\"AUT*\"),\"\"))","v":""},"",""]
[null,null,null,null,null,null,null,null,null,null,null,null,null,null,null,null,null,null,null,null,null,{"$f":"IF(COUNTIF(B621,\"*Virement*\"),\"VIR\"&COUNTIF($V$7:V620,\"VIR*\"),IF(COUNTIF($B$8:B621,B621)=1,\"AUT\"&COUNTIF($V$7:V620,\"AUT*\"),\"\"))","v":""},"",""]
[null,null,null,null,null,null,null,null,null,null,null,null,null,null,null,null,null,null,null,null,null,{"$f":"IF(COUNTIF(B622,\"*Virement*\"),\"VIR\"&COUNTIF($V$7:V621,\"VIR*\"),IF(COUNTIF($B$8:B622,B622)=1,\"AUT\"&COUNTIF($V$7:V621,\"AUT*\"),\"\"))","v":""},"",""]
[null,null,null,null,null,null,null,null,null,null,null,null,null,null,null,null,null,null,null,null,null,{"$f":"IF(COUNTIF(B623,\"*Virement*\"),\"VIR\"&COUNTIF($V$7:V622,\"VIR*\"),IF(COUNTIF($B$8:B623,B623)=1,\"AUT\"&COUNTIF($V$7:V622,\"AUT*\"),\"\"))","v":""},"",""]
[null,null,null,null,null,null,null,null,null,null,null,null,null,null,null,null,null,null,null,null,null,{"$f":"IF(COUNTIF(B624,\"*Virement*\"),\"VIR\"&COUNTIF($V$7:V623,\"VIR*\"),IF(COUNTIF($B$8:B624,B624)=1,\"AUT\"&COUNTIF($V$7:V623,\"AUT*\"),\"\"))","v":""},"",""]
[null,null,null,null,null,null,null,null,null,null,null,null,null,null,null,null,null,null,null,null,null,{"$f":"IF(COUNTIF(B625,\"*Virement*\"),\"VIR\"&COUNTIF($V$7:V624,\"VIR*\"),IF(COUNTIF($B$8:B625,B625)=1,\"AUT\"&COUNTIF($V$7:V624,\"AUT*\"),\"\"))","v":""},"",""]
[null,null,null,null,null,null,null,null,null,null,null,null,null,null,null,null,null,null,null,null,null,{"$f":"IF(COUNTIF(B626,\"*Virement*\"),\"VIR\"&COUNTIF($V$7:V625,\"VIR*\"),IF(COUNTIF($B$8:B626,B626)=1,\"AUT\"&COUNTIF($V$7:V625,\"AUT*\"),\"\"))","v":""},"",""]
[null,null,null,null,null,null,null,null,null,null,null,null,null,null,null,null,null,null,null,null,null,{"$f":"IF(COUNTIF(B627,\"*Virement*\"),\"VIR\"&COUNTIF($V$7:V626,\"VIR*\"),IF(COUNTIF($B$8:B627,B627)=1,\"AUT\"&COUNTIF($V$7:V626,\"AUT*\"),\"\"))","v":""},"",""]
[null,null,null,null,null,null,null,null,null,null,null,null,null,null,null,null,null,null,null,null,null,{"$f":"IF(COUNTIF(B628,\"*Virement*\"),\"VIR\"&COUNTIF($V$7:V627,\"VIR*\"),IF(COUNTIF($B$8:B628,B628)=1,\"AUT\"&COUNTIF($V$7:V627,\"AUT*\"),\"\"))","v":""},"",""]
[null,null,null,null,null,null,null,null,null,null,null,null,null,null,null,null,null,null,null,null,null,{"$f":"IF(COUNTIF(B629,\"*Virement*\"),\"VIR\"&COUNTIF($V$7:V628,\"VIR*\"),IF(COUNTIF($B$8:B629,B629)=1,\"AUT\"&COUNTIF($V$7:V628,\"AUT*\"),\"\"))","v":""},"",""]
[null,null,null,null,null,null,null,null,null,null,null,null,null,null,null,null,null,null,null,null,null,{"$f":"IF(COUNTIF(B630,\"*Virement*\"),\"VIR\"&COUNTIF($V$7:V629,\"VIR*\"),IF(COUNTIF($B$8:B630,B630)=1,\"AUT\"&COUNTIF($V$7:V629,\"AUT*\"),\"\"))","v":""},"",""]
[null,null,null,null,null,null,null,null,null,null,null,null,null,null,null,null,null,null,null,null,null,{"$f":"IF(COUNTIF(B631,\"*Virement*\"),\"VIR\"&COUNTIF($V$7:V630,\"VIR*\"),IF(COUNTIF($B$8:B631,B631)=1,\"AUT\"&COUNTIF($V$7:V630,\"AUT*\"),\"\"))","v":""},"",""]
[null,null,null,null,null,null,null,null,null,null,null,null,null,null,null,null,null,null,null,null,null,{"$f":"IF(COUNTIF(B632,\"*Virement*\"),\"VIR\"&COUNTIF($V$7:V631,\"VIR*\"),IF(COUNTIF($B$8:B632,B632)=1,\"AUT\"&COUNTIF($V$7:V631,\"AUT*\"),\"\"))","v":""},"",""]
[null,null,null,null,null,null,null,null,null,null,null,null,null,null,null,null,null,null,null,null,null,{"$f":"IF(COUNTIF(B633,\"*Virement*\"),\"VIR\"&COUNTIF($V$7:V632,\"VIR*\"),IF(COUNTIF($B$8:B633,B633)=1,\"AUT\"&COUNTIF($V$7:V632,\"AUT*\"),\"\"))","v":""},"",""]
[null,null,null,null,null,null,null,null,null,null,null,null,null,null,null,null,null,null,null,null,null,{"$f":"IF(COUNTIF(B634,\"*Virement*\"),\"VIR\"&COUNTIF($V$7:V633,\"VIR*\"),IF(COUNTIF($B$8:B634,B634)=1,\"AUT\"&COUNTIF($V$7:V633,\"AUT*\"),\"\"))","v":""},"",""]
[null,null,null,null,null,null,null,null,null,null,null,null,null,null,null,null,null,null,null,null,null,{"$f":"IF(COUNTIF(B635,\"*Virement*\"),\"VIR\"&COUNTIF($V$7:V634,\"VIR*\"),IF(COUNTIF($B$8:B635,B635)=1,\"AUT\"&COUNTIF($V$7:V634,\"AUT*\"),\"\"))","v":""},"",""]
[null,null,null,null,null,null,null,null,null,null,null,null,null,null,null,null,null,null,null,null,null,{"$f":"IF(COUNTIF(B636,\"*Virement*\"),\"VIR\"&COUNTIF($V$7:V635,\"VIR*\"),IF(COUNTIF($B$8:B636,B636)=1,\"AUT\"&COUNTIF($V$7:V635,\"AUT*\"),\"\"))","v":""},"",""]
[null,null,null,null,null,null,null,null,null,null,null,null,null,null,null,null,null,null,null,null,null,{"$f":"IF(COUNTIF(B637,\"*Virement*\"),\"VIR\"&COUNTIF($V$7:V636,\"VIR*\"),IF(COUNTIF($B$8:B637,B637)=1,\"AUT\"&COUNTIF($V$7:V636,\"AUT*\"),\"\"))","v":""},"",""]
[null,null,null,null,null,null,null,null,null,null,null,null,null,null,null,null,null,null,null,null,null,{"$f":"IF(COUNTIF(B638,\"*Virement*\"),\"VIR\"&COUNTIF($V$7:V637,\"VIR*\"),IF(COUNTIF($B$8:B638,B638)=1,\"AUT\"&COUNTIF($V$7:V637,\"AUT*\"),\"\"))","v":""},"",""]
[null,null,null,null,null,null,null,null,null,null,null,null,null,null,null,null,null,null,null,null,null,{"$f":"IF(COUNTIF(B639,\"*Virement*\"),\"VIR\"&COUNTIF($V$7:V638,\"VIR*\"),IF(COUNTIF($B$8:B639,B639)=1,\"AUT\"&COUNTIF($V$7:V638,\"AUT*\"),\"\"))","v":""},"",""]
[null,null,null,null,null,null,null,null,null,null,null,null,null,null,null,null,null,null,null,null,null,{"$f":"IF(COUNTIF(B640,\"*Virement*\"),\"VIR\"&COUNTIF($V$7:V639,\"VIR*\"),IF(COUNTIF($B$8:B640,B640)=1,\"AUT\"&COUNTIF($V$7:V639,\"AUT*\"),\"\"))","v":""},"",""]
[null,null,null,null,null,null,null,null,null,null,null,null,null,null,null,null,null,null,null,null,null,{"$f":"IF(COUNTIF(B641,\"*Virement*\"),\"VIR\"&COUNTIF($V$7:V640,\"VIR*\"),IF(COUNTIF($B$8:B641,B641)=1,\"AUT\"&COUNTIF($V$7:V640,\"AUT*\"),\"\"))","v":""},"",""]
[null,null,null,null,null,null,null,null,null,null,null,null,null,null,null,null,null,null,null,null,null,{"$f":"IF(COUNTIF(B642,\"*Virement*\"),\"VIR\"&COUNTIF($V$7:V641,\"VIR*\"),IF(COUNTIF($B$8:B642,B642)=1,\"AUT\"&COUNTIF($V$7:V641,\"AUT*\"),\"\"))","v":""},"",""]
[null,null,null,null,null,null,null,null,null,null,null,null,null,null,null,null,null,null,null,null,null,{"$f":"IF(COUNTIF(B643,\"*Virement*\"),\"VIR\"&COUNTIF($V$7:V642,\"VIR*\"),IF(COUNTIF($B$8:B643,B643)=1,\"AUT\"&COUNTIF($V$7:V642,\"AUT*\"),\"\"))","v":""},"",""]
[null,null,null,null,null,null,null,null,null,null,null,null,null,null,null,null,null,null,null,null,null,{"$f":"IF(COUNTIF(B644,\"*Virement*\"),\"VIR\"&COUNTIF($V$7:V643,\"VIR*\"),IF(COUNTIF($B$8:B644,B644)=1,\"AUT\"&COUNTIF($V$7:V643,\"AUT*\"),\"\"))","v":""},"",""]
[null,null,null,null,null,null,null,null,null,null,null,null,null,null,null,null,null,null,null,null,null,{"$f":"IF(COUNTIF(B645,\"*Virement*\"),\"VIR\"&COUNTIF($V$7:V644,\"VIR*\"),IF(COUNTIF($B$8:B645,B645)=1,\"AUT\"&COUNTIF($V$7:V644,\"AUT*\"),\"\"))","v":""},"",""]
[null,null,null,null,null,null,null,null,null,null,null,null,null,null,null,null,null,null,null,null,null,{"$f":"IF(COUNTIF(B646,\"*Virement*\"),\"VIR\"&COUNTIF($V$7:V645,\"VIR*\"),IF(COUNTIF($B$8:B646,B646)=1,\"AUT\"&COUNTIF($V$7:V645,\"AUT*\"),\"\"))","v":""},"",""]
[null,null,null,null,null,null,null,null,null,null,null,null,null,null,null,null,null,null,null,null,null,{"$f":"IF(COUNTIF(B647,\"*Virement*\"),\"VIR\"&COUNTIF($V$7:V646,\"VIR*\"),IF(COUNTIF($B$8:B647,B647)=1,\"AUT\"&COUNTIF($V$7:V646,\"AUT*\"),\"\"))","v":""},"",""]
[null,null,null,null,null,null,null,null,null,null,null,null,null,null,null,null,null,null,null,null,null,{"$f":"IF(COUNTIF(B648,\"*Virement*\"),\"VIR\"&COUNTIF($V$7:V647,\"VIR*\"),IF(COUNTIF($B$8:B648,B648)=1,\"AUT\"&COUNTIF($V$7:V647,\"AUT*\"),\"\"))","v":""},"",""]
[null,null,null,null,null,null,null,null,null,null,null,null,null,null,null,null,null,null,null,null,null,{"$f":"IF(COUNTIF(B649,\"*Virement*\"),\"VIR\"&COUNTIF($V$7:V648,\"VIR*\"),IF(COUNTIF($B$8:B649,B649)=1,\"AUT\"&COUNTIF($V$7:V648,\"AUT*\"),\"\"))","v":""},{"$f":"IFERROR(INDEX(B:B,MATCH(\"VIR\"&ROW()-8,V:V,0)),\"\")","v":""},{"$f":"IFERROR(INDEX($B:$B,MATCH(\"AUT\"&ROW()-8,$V:$V,0)),\"\")","v":""}]
[null,null,null,null,null,null,null,null,null,null,null,null,null,null,null,null,null,null,null,null,null,{"$f":"IF(COUNTIF(B650,\"*Virement*\"),\"VIR\"&COUNTIF($V$7:V649,\"VIR*\"),IF(COUNTIF($B$8:B650,B650)=1,\"AUT\"&COUNTIF($V$7:V649,\"AUT*\"),\"\"))","v":""},"",""]
[null,null,null,null,null,null,null,null,null,null,null,null,null,null,null,null,null,null,null,null,null,{"$f":"IF(COUNTIF(B651,\"*Virement*\"),\"VIR\"&COUNTIF($V$7:V650,\"VIR*\"),IF(COUNTIF($B$8:B651,B651)=1,\"AUT\"&COUNTIF($V$7:V650,\"AUT*\"),\"\"))","v":""},"",""]
[null,null,null,null,null,null,null,null,null,null,null,null,null,null,null,null,null,null,null,null,null,{"$f":"IF(COUNTIF(B652,\"*Virement*\"),\"VIR\"&COUNTIF($V$7:V651,\"VIR*\"),IF(COUNTIF($B$8:B652,B652)=1,\"AUT\"&COUNTIF($V$7:V651,\"AUT*\"),\"\"))","v":""},"",""]
[null,null,null,null,null,null,null,null,null,null,null,null,null,null,null,null,null,null,null,null,null,{"$f":"IF(COUNTIF(B653,\"*Virement*\"),\"VIR\"&COUNTIF($V$7:V652,\"VIR*\"),IF(COUNTIF($B$8:B653,B653)=1,\"AUT\"&COUNTIF($V$7:V652,\"AUT*\"),\"\"))","v":""},"",""]
[null,null,null,null,null,null,null,null,null,null,null,null,null,null,null,null,null,null,null,null,null,{"$f":"IF(COUNTIF(B654,\"*Virement*\"),\"VIR\"&COUNTIF($V$7:V653,\"VIR*\"),IF(COUNTIF($B$8:B654,B654)=1,\"AUT\"&COUNTIF($V$7:V653,\"AUT*\"),\"\"))","v":""},"",""]
[null,null,null,null,null,null,null,null,null,null,null,null,null,null,null,null,null,null,null,null,null,{"$f":"IF(COUNTIF(B655,\"*Virement*\"),\"VIR\"&COUNTIF($V$7:V654,\"VIR*\"),IF(COUNTIF($B$8:B655,B655)=1,\"AUT\"&COUNTIF($V$7:V654,\"AUT*\"),\"\"))","v":""},"",""]
[null,null,null,null,null,null,null,null,null,null,null,null,null,null,null,null,null,null,null,null,null,{"$f":"IF(COUNTIF(B656,\"*Virement*\"),\"VIR\"&COUNTIF($V$7:V655,\"VIR*\"),IF(COUNTIF($B$8:B656,B656)=1,\"AUT\"&COUNTIF($V$7:V655,\"AUT*\"),\"\"))","v":""},"",""]
[null,null,null,null,null,null,null,null,null,null,null,null,null,null,null,null,null,null,null,null,null,{"$f":"IF(COUNTIF(B657,\"*Virement*\"),\"VIR\"&COUNTIF($V$7:V656,\"VIR*\"),IF(COUNTIF($B$8:B657,B657)=1,\"AUT\"&COUNTIF($V$7:V656,\"AUT*\"),\"\"))","v":""},"",""]
[null,null,null,null,null,null,null,null,null,null,null,null,null,null,null,null,null,null,null,null,null,{"$f":"IF(COUNTIF(B658,\"*Virement*\"),\"VIR\"&COUNTIF($V$7:V657,\"VIR*\"),IF(COUNTIF($B$8:B658,B658)=1,\"AUT\"&COUNTIF($V$7:V657,\"AUT*\"),\"\"))","v":""},"",""]
[null,null,null,null,null,null,null,null,null,null,null,null,null,null,null,null,null,null,null,null,null,{"$f":"IF(COUNTIF(B659,\"*Virement*\"),\"VIR\"&COUNTIF($V$7:V658,\"VIR*\"),IF(COUNTIF($B$8:B659,B659)=1,\"AUT\"&COUNTIF($V$7:V658,\"AUT*\"),\"\"))","v":""},"",""]
[null,null,null,null,null,null,null,null,null,null,null,null,null,null,null,null,null,null,null,null,null,{"$f":"IF(COUNTIF(B660,\"*Virement*\"),\"VIR\"&COUNTIF($V$7:V659,\"VIR*\"),IF(COUNTIF($B$8:B660,B660)=1,\"AUT\"&COUNTIF($V$7:V659,\"AUT*\"),\"\"))","v":""},"",""]
[null,null,null,null,null,null,null,null,null,null,null,null,null,null,null,null,null,null,null,null,null,{"$f":"IF(COUNTIF(B661,\"*Virement*\"),\"VIR\"&COUNTIF($V$7:V660,\"VIR*\"),IF(COUNTIF($B$8:B661,B661)=1,\"AUT\"&COUNTIF($V$7:V660,\"AUT*\"),\"\"))","v":""},"",""]
[null,null,null,null,null,null,null,null,null,null,null,null,null,null,null,null,null,null,null,null,null,{"$f":"IF(COUNTIF(B662,\"*Virement*\"),\"VIR\"&COUNTIF($V$7:V661,\"VIR*\"),IF(COUNTIF($B$8:B662,B662)=1,\"AUT\"&COUNTIF($V$7:V661,\"AUT*\"),\"\"))","v":""},"",""]
[null,null,null,null,null,null,null,null,null,null,null,null,null,null,null,null,null,null,null,null,null,{"$f":"IF(COUNTIF(B663,\"*Virement*\"),\"VIR\"&COUNTIF($V$7:V662,\"VIR*\"),IF(COUNTIF($B$8:B663,B663)=1,\"AUT\"&COUNTIF($V$7:V662,\"AUT*\"),\"\"))","v":""},"",""]
[null,null,null,null,null,null,null,null,null,null,null,null,null,null,null,null,null,null,null,null,null,{"$f":"IF(COUNTIF(B664,\"*Virement*\"),\"VIR\"&COUNTIF($V$7:V663,\"VIR*\"),IF(COUNTIF($B$8:B664,B664)=1,\"AUT\"&COUNTIF($V$7:V663,\"AUT*\"),\"\"))","v":""},"",""]
[null,null,null,null,null,null,null,null,null,null,null,null,null,null,null,null,null,null,null,null,null,{"$f":"IF(COUNTIF(B665,\"*Virement*\"),\"VIR\"&COUNTIF($V$7:V664,\"VIR*\"),IF(COUNTIF($B$8:B665,B665)=1,\"AUT\"&COUNTIF($V$7:V664,\"AUT*\"),\"\"))","v":""},"",""]
[null,null,null,null,null,null,null,null,null,null,null,null,null,null,null,null,null,null,null,null,null,{"$f":"IF(COUNTIF(B666,\"*Virement*\"),\"VIR\"&COUNTIF($V$7:V665,\"VIR*\"),IF(COUNTIF($B$8:B666,B666)=1,\"AUT\"&COUNTIF($V$7:V665,\"AUT*\"),\"\"))","v":""},"",""]
[null,null,null,null,null,null,null,null,null,null,null,null,null,null,null,null,null,null,null,null,null,{"$f":"IF(COUNTIF(B667,\"*Virement*\"),\"VIR\"&COUNTIF($V$7:V666,\"VIR*\"),IF(COUNTIF($B$8:B667,B667)=1,\"AUT\"&COUNTIF($V$7:V666,\"AUT*\"),\"\"))","v":""},"",""]
[null,null,null,null,null,null,null,null,null,null,null,null,null,null,null,null,null,null,null,null,null,{"$f":"IF(COUNTIF(B668,\"*Virement*\"),\"VIR\"&COUNTIF($V$7:V667,\"VIR*\"),IF(COUNTIF($B$8:B668,B668)=1,\"AUT\"&COUNTIF($V$7:V667,\"AUT*\"),\"\"))","v":""},"",""]
[null,null,null,null,null,null,null,null,null,null,null,null,null,null,null,null,null,null,null,null,null,{"$f":"IF(COUNTIF(B669,\"*Virement*\"),\"VIR\"&COUNTIF($V$7:V668,\"VIR*\"),IF(COUNTIF($B$8:B669,B669)=1,\"AUT\"&COUNTIF($V$7:V668,\"AUT*\"),\"\"))","v":""},"",""]
[null,null,null,null,null,null,null,null,null,null,null,null,null,null,null,null,null,null,null,null,null,{"$f":"IF(COUNTIF(B670,\"*Virement*\"),\"VIR\"&COUNTIF($V$7:V669,\"VIR*\"),IF(COUNTIF($B$8:B670,B670)=1,\"AUT\"&COUNTIF($V$7:V669,\"AUT*\"),\"\"))","v":""},"",""]
[null,null,null,null,null,null,null,null,null,null,null,null,null,null,null,null,null,null,null,null,null,{"$f":"IF(COUNTIF(B671,\"*Virement*\"),\"VIR\"&COUNTIF($V$7:V670,\"VIR*\"),IF(COUNTIF($B$8:B671,B671)=1,\"AUT\"&COUNTIF($V$7:V670,\"AUT*\"),\"\"))","v":""},"",""]
[null,null,null,null,null,null,null,null,null,null,null,null,null,null,null,null,null,null,null,null,null,{"$f":"IF(COUNTIF(B672,\"*Virement*\"),\"VIR\"&COUNTIF($V$7:V671,\"VIR*\"),IF(COUNTIF($B$8:B672,B672)=1,\"AUT\"&COUNTIF($V$7:V671,\"AUT*\"),\"\"))","v":""},"",""]
[null,null,null,null,null,null,null,null,null,null,null,null,null,null,null,null,null,null,null,null,null,{"$f":"IF(COUNTIF(B673,\"*Virement*\"),\"VIR\"&COUNTIF($V$7:V672,\"VIR*\"),IF(COUNTIF($B$8:B673,B673)=1,\"AUT\"&COUNTIF($V$7:V672,\"AUT*\"),\"\"))","v":""},"",""]
[null,null,null,null,null,null,null,null,null,null,null,null,null,null,null,null,null,null,null,null,null,{"$f":"IF(COUNTIF(B674,\"*Virement*\"),\"VIR\"&COUNTIF($V$7:V673,\"VIR*\"),IF(COUNTIF($B$8:B674,B674)=1,\"AUT\"&COUNTIF($V$7:V673,\"AUT*\"),\"\"))","v":""},"",""]
[null,null,null,null,null,null,null,null,null,null,null,null,null,null,null,null,null,null,null,null,null,{"$f":"IF(COUNTIF(B675,\"*Virement*\"),\"VIR\"&COUNTIF($V$7:V674,\"VIR*\"),IF(COUNTIF($B$8:B675,B675)=1,\"AUT\"&COUNTIF($V$7:V674,\"AUT*\"),\"\"))","v":""},"",""]
[null,null,null,null,null,null,null,null,null,null,null,null,null,null,null,null,null,null,null,null,null,{"$f":"IF(COUNTIF(B676,\"*Virement*\"),\"VIR\"&COUNTIF($V$7:V675,\"VIR*\"),IF(COUNTIF($B$8:B676,B676)=1,\"AUT\"&COUNTIF($V$7:V675,\"AUT*\"),\"\"))","v":""},"",""]
[null,null,null,null,null,null,null,null,null,null,null,null,null,null,null,null,null,null,null,null,null,{"$f":"IF(COUNTIF(B677,\"*Virement*\"),\"VIR\"&COUNTIF($V$7:V676,\"VIR*\"),IF(COUNTIF($B$8:B677,B677)=1,\"AUT\"&COUNTIF($V$7:V676,\"AUT*\"),\"\"))","v":""},"",""]
[null,null,null,null,null,null,null,null,null,null,null,null,null,null,null,null,null,null,null,null,null,{"$f":"IF(COUNTIF(B678,\"*Virement*\"),\"VIR\"&COUNTIF($V$7:V677,\"VIR*\"),IF(COUNTIF($B$8:B678,B678)=1,\"AUT\"&COUNTIF($V$7:V677,\"AUT*\"),\"\"))","v":""},"",""]
[null,null,null,null,null,null,null,null,null,null,null,null,null,null,null,null,null,null,null,null,null,{"$f":"IF(COUNTIF(B679,\"*Virement*\"),\"VIR\"&COUNTIF($V$7:V678,\"VIR*\"),IF(COUNTIF($B$8:B679,B679)=1,\"AUT\"&COUNTIF($V$7:V678,\"AUT*\"),\"\"))","v":""},"",""]
[null,null,null,null,null,null,null,null,null,null,null,null,null,null,null,null,null,null,null,null,null,{"$f":"IF(COUNTIF(B680,\"*Virement*\"),\"VIR\"&COUNTIF($V$7:V679,\"VIR*\"),IF(COUNTIF($B$8:B680,B680)=1,\"AUT\"&COUNTIF($V$7:V679,\"AUT*\"),\"\"))","v":""},"",""]
[null,null,null,null,null,null,null,null,null,null,null,null,null,null,null,null,null,null,null,null,null,{"$f":"IF(COUNTIF(B681,\"*Virement*\"),\"VIR\"&COUNTIF($V$7:V680,\"VIR*\"),IF(COUNTIF($B$8:B681,B681)=1,\"AUT\"&COUNTIF($V$7:V680,\"AUT*\"),\"\"))","v":""},"",""]
[null,null,null,null,null,null,null,null,null,null,null,null,null,null,null,null,null,null,null,null,null,{"$f":"IF(COUNTIF(B682,\"*Virement*\"),\"VIR\"&COUNTIF($V$7:V681,\"VIR*\"),IF(COUNTIF($B$8:B682,B682)=1,\"AUT\"&COUNTIF($V$7:V681,\"AUT*\"),\"\"))","v":""},"",""]
[null,null,null,null,null,null,null,null,null,null,null,null,null,null,null,null,null,null,null,null,null,{"$f":"IF(COUNTIF(B683,\"*Virement*\"),\"VIR\"&COUNTIF($V$7:V682,\"VIR*\"),IF(COUNTIF($B$8:B683,B683)=1,\"AUT\"&COUNTIF($V$7:V682,\"AUT*\"),\"\"))","v":""},"",""]
[null,null,null,null,null,null,null,null,null,null,null,null,null,null,null,null,null,null,null,null,null,{"$f":"IF(COUNTIF(B684,\"*Virement*\"),\"VIR\"&COUNTIF($V$7:V683,\"VIR*\"),IF(COUNTIF($B$8:B684,B684)=1,\"AUT\"&COUNTIF($V$7:V683,\"AUT*\"),\"\"))","v":""},"",""]
[null,null,null,null,null,null,null,null,null,null,null,null,null,null,null,null,null,null,null,null,null,{"$f":"IF(COUNTIF(B685,\"*Virement*\"),\"VIR\"&COUNTIF($V$7:V684,\"VIR*\"),IF(COUNTIF($B$8:B685,B685)=1,\"AUT\"&COUNTIF($V$7:V684,\"AUT*\"),\"\"))","v":""},"",""]
[null,null,null,null,null,null,null,null,null,null,null,null,null,null,null,null,null,null,null,null,null,{"$f":"IF(COUNTIF(B686,\"*Virement*\"),\"VIR\"&COUNTIF($V$7:V685,\"VIR*\"),IF(COUNTIF($B$8:B686,B686)=1,\"AUT\"&COUNTIF($V$7:V685,\"AUT*\"),\"\"))","v":""},"",""]
[null,null,null,null,null,null,null,null,null,null,null,null,null,null,null,null,null,null,null,null,null,{"$f":"IF(COUNTIF(B687,\"*Virement*\"),\"VIR\"&COUNTIF($V$7:V686,\"VIR*\"),IF(COUNTIF($B$8:B687,B687)=1,\"AUT\"&COUNTIF($V$7:V686,\"AUT*\"),\"\"))","v":""},"",""]
[null,null,null,null,null,null,null,null,null,null,null,null,null,null,null,null,null,null,null,null,null,{"$f":"IF(COUNTIF(B688,\"*Virement*\"),\"VIR\"&COUNTIF($V$7:V687,\"VIR*\"),IF(COUNTIF($B$8:B688,B688)=1,\"AUT\"&COUNTIF($V$7:V687,\"AUT*\"),\"\"))","v":""},"",""]
[null,null,null,null,null,null,null,null,null,null,null,null,null,null,null,null,null,null,null,null,null,{"$f":"IF(COUNTIF(B689,\"*Virement*\"),\"VIR\"&COUNTIF($V$7:V688,\"VIR*\"),IF(COUNTIF($B$8:B689,B689)=1,\"AUT\"&COUNTIF($V$7:V688,\"AUT*\"),\"\"))","v":""},"",""]
[null,null,null,null,null,null,null,null,null,null,null,null,null,null,null,null,null,null,null,null,null,{"$f":"IF(COUNTIF(B690,\"*Virement*\"),\"VIR\"&COUNTIF($V$7:V689,\"VIR*\"),IF(COUNTIF($B$8:B690,B690)=1,\"AUT\"&COUNTIF($V$7:V689,\"AUT*\"),\"\"))","v":""},"",""]
[null,null,null,null,null,null,null,null,null,null,null,null,null,null,null,null,null,null,null,null,null,{"$f":"IF(COUNTIF(B691,\"*Virement*\"),\"VIR\"&COUNTIF($V$7:V690,\"VIR*\"),IF(COUNTIF($B$8:B691,B691)=1,\"AUT\"&COUNTIF($V$7:V690,\"AUT*\"),\"\"))","v":""},"",""]
[null,null,null,null,null,null,null,null,null,null,null,null,null,null,null,null,null,null,null,null,null,{"$f":"IF(COUNTIF(B692,\"*Virement*\"),\"VIR\"&COUNTIF($V$7:V691,\"VIR*\"),IF(COUNTIF($B$8:B692,B692)=1,\"AUT\"&COUNTIF($V$7:V691,\"AUT*\"),\"\"))","v":""},"",""]
[null,null,null,null,null,null,null,null,null,null,null,null,null,null,null,null,null,null,null,null,null,{"$f":"IF(COUNTIF(B693,\"*Virement*\"),\"VIR\"&COUNTIF($V$7:V692,\"VIR*\"),IF(COUNTIF($B$8:B693,B693)=1,\"AUT\"&COUNTIF($V$7:V692,\"AUT*\"),\"\"))","v":""},"",""]
[null,null,null,null,null,null,null,null,null,null,null,null,null,null,null,null,null,null,null,null,null,{"$f":"IF(COUNTIF(B694,\"*Virement*\"),\"VIR\"&COUNTIF($V$7:V693,\"VIR*\"),IF(COUNTIF($B$8:B694,B694)=1,\"AUT\"&COUNTIF($V$7:V693,\"AUT*\"),\"\"))","v":""},"",""]
[null,null,null,null,null,null,null,null,null,null,null,null,null,null,null,null,null,null,null,null,null,{"$f":"IF(COUNTIF(B695,\"*Virement*\"),\"VIR\"&COUNTIF($V$7:V694,\"VIR*\"),IF(COUNTIF($B$8:B695,B695)=1,\"AUT\"&COUNTIF($V$7:V694,\"AUT*\"),\"\"))","v":""},"",""]
[null,null,null,null,null,null,null,null,null,null,null,null,null,null,null,null,null,null,null,null,null,{"$f":"IF(COUNTIF(B696,\"*Virement*\"),\"VIR\"&COUNTIF($V$7:V695,\"VIR*\"),IF(COUNTIF($B$8:B696,B696)=1,\"AUT\"&COUNTIF($V$7:V695,\"AUT*\"),\"\"))","v":""},"",""]
[null,null,null,null,null,null,null,null,null,null,null,null,null,null,null,null,null,null,null,null,null,{"$f":"IF(COUNTIF(B697,\"*Virement*\"),\"VIR\"&COUNTIF($V$7:V696,\"VIR*\"),IF(COUNTIF($B$8:B697,B697)=1,\"AUT\"&COUNTIF($V$7:V696,\"AUT*\"),\"\"))","v":""},"",""]
[null,null,null,null,null,null,null,null,null,null,null,null,null,null,null,null,null,null,null,null,null,{"$f":"IF(COUNTIF(B698,\"*Virement*\"),\"VIR\"&COUNTIF($V$7:V697,\"VIR*\"),IF(COUNTIF($B$8:B698,B698)=1,\"AUT\"&COUNTIF($V$7:V697,\"AUT*\"),\"\"))","v":""},"",""]
[null,null,null,null,null,null,null,null,null,null,null,null,null,null,null,null,null,null,null,null,null,{"$f":"IF(COUNTIF(B699,\"*Virement*\"),\"VIR\"&COUNTIF($V$7:V698,\"VIR*\"),IF(COUNTIF($B$8:B699,B699)=1,\"AUT\"&COUNTIF($V$7:V698,\"AUT*\"),\"\"))","v":""},"",""]
[null,null,null,null,null,null,null,null,null,null,null,null,null,null,null,null,null,null,null,null,null,{"$f":"IF(COUNTIF(B700,\"*Virement*\"),\"VIR\"&COUNTIF($V$7:V699,\"VIR*\"),IF(COUNTIF($B$8:B700,B700)=1,\"AUT\"&COUNTIF($V$7:V699,\"AUT*\"),\"\"))","v":""},"",""]
[null,null,null,null,null,null,null,null,null,null,null,null,null,null,null,null,null,null,null,null,null,{"$f":"IF(COUNTIF(B701,\"*Virement*\"),\"VIR\"&COUNTIF($V$7:V700,\"VIR*\"),IF(COUNTIF($B$8:B701,B701)=1,\"AUT\"&COUNTIF($V$7:V700,\"AUT*\"),\"\"))","v":""},"",""]
[null,null,null,null,null,null,null,null,null,null,null,null,null,null,null,null,null,null,null,null,null,{"$f":"IF(COUNTIF(B702,\"*Virement*\"),\"VIR\"&COUNTIF($V$7:V701,\"VIR*\"),IF(COUNTIF($B$8:B702,B702)=1,\"AUT\"&COUNTIF($V$7:V701,\"AUT*\"),\"\"))","v":""},"",""]
[null,null,null,null,null,null,null,null,null,null,null,null,null,null,null,null,null,null,null,null,null,{"$f":"IF(COUNTIF(B703,\"*Virement*\"),\"VIR\"&COUNTIF($V$7:V702,\"VIR*\"),IF(COUNTIF($B$8:B703,B703)=1,\"AUT\"&COUNTIF($V$7:V702,\"AUT*\"),\"\"))","v":""},"",""]
[null,null,null,null,null,null,null,null,null,null,null,null,null,null,null,null,null,null,null,null,null,{"$f":"IF(COUNTIF(B704,\"*Virement*\"),\"VIR\"&COUNTIF($V$7:V703,\"VIR*\"),IF(COUNTIF($B$8:B704,B704)=1,\"AUT\"&COUNTIF($V$7:V703,\"AUT*\"),\"\"))","v":""},"",""]
[null,null,null,null,null,null,null,null,null,null,null,null,null,null,null,null,null,null,null,null,null,{"$f":"IF(COUNTIF(B705,\"*Virement*\"),\"VIR\"&COUNTIF($V$7:V704,\"VIR*\"),IF(COUNTIF($B$8:B705,B705)=1,\"AUT\"&COUNTIF($V$7:V704,\"AUT*\"),\"\"))","v":""},"",""]
[null,null,null,null,null,null,null,null,null,null,null,null,null,null,null,null,null,null,null,null,null,{"$f":"IF(COUNTIF(B706,\"*Virement*\"),\"VIR\"&COUNTIF($V$7:V705,\"VIR*\"),IF(COUNTIF($B$8:B706,B706)=1,\"AUT\"&COUNTIF($V$7:V705,\"AUT*\"),\"\"))","v":""},"",""]
[null,null,null,null,null,null,null,null,null,null,null,null,null,null,null,null,null,null,null,null,null,{"$f":"IF(COUNTIF(B707,\"*Virement*\"),\"VIR\"&COUNTIF($V$7:V706,\"VIR*\"),IF(COUNTIF($B$8:B707,B707)=1,\"AUT\"&COUNTIF($V$7:V706,\"AUT*\"),\"\"))","v":""},"",""]
[null,null,null,null,null,null,null,null,null,null,null,null,null,null,null,null,null,null,null,null,null,{"$f":"IF(COUNTIF(B708,\"*Virement*\"),\"VIR\"&COUNTIF($V$7:V707,\"VIR*\"),IF(COUNTIF($B$8:B708,B708)=1,\"AUT\"&COUNTIF($V$7:V707,\"AUT*\"),\"\"))","v":""},"",""]
[null,null,null,null,null,null,null,null,null,null,null,null,null,null,null,null,null,null,null,null,null,{"$f":"IF(COUNTIF(B709,\"*Virement*\"),\"VIR\"&COUNTIF($V$7:V708,\"VIR*\"),IF(COUNTIF($B$8:B709,B709)=1,\"AUT\"&COUNTIF($V$7:V708,\"AUT*\"),\"\"))","v":""},"",""]
[null,null,null,null,null,null,null,null,null,null,null,null,null,null,null,null,null,null,null,null,null,{"$f":"IF(COUNTIF(B710,\"*Virement*\"),\"VIR\"&COUNTIF($V$7:V709,\"VIR*\"),IF(COUNTIF($B$8:B710,B710)=1,\"AUT\"&COUNTIF($V$7:V709,\"AUT*\"),\"\"))","v":""},"",""]
[null,null,null,null,null,null,null,null,null,null,null,null,null,null,null,null,null,null,null,null,null,{"$f":"IF(COUNTIF(B711,\"*Virement*\"),\"VIR\"&COUNTIF($V$7:V710,\"VIR*\"),IF(COUNTIF($B$8:B711,B711)=1,\"AUT\"&COUNTIF($V$7:V710,\"AUT*\"),\"\"))","v":""},"",""]
[null,null,null,null,null,null,null,null,null,null,null,null,null,null,null,null,null,null,null,null,null,{"$f":"IF(COUNTIF(B712,\"*Virement*\"),\"VIR\"&COUNTIF($V$7:V711,\"VIR*\"),IF(COUNTIF($B$8:B712,B712)=1,\"AUT\"&COUNTIF($V$7:V711,\"AUT*\"),\"\"))","v":""},"",""]
[null,null,null,null,null,null,null,null,null,null,null,null,null,null,null,null,null,null,null,null,null,{"$f":"IF(COUNTIF(B713,\"*Virement*\"),\"VIR\"&COUNTIF($V$7:V712,\"VIR*\"),IF(COUNTIF($B$8:B713,B713)=1,\"AUT\"&COUNTIF($V$7:V712,\"AUT*\"),\"\"))","v":""},{"$f":"IFERROR(INDEX(B:B,MATCH(\"VIR\"&ROW()-8,V:V,0)),\"\")","v":""},{"$f":"IFERROR(INDEX($B:$B,MATCH(\"AUT\"&ROW()-8,$V:$V,0)),\"\")","v":""}]
[null,null,null,null,null,null,null,null,null,null,null,null,null,null,null,null,null,null,null,null,null,{"$f":"IF(COUNTIF(B714,\"*Virement*\"),\"VIR\"&COUNTIF($V$7:V713,\"VIR*\"),IF(COUNTIF($B$8:B714,B714)=1,\"AUT\"&COUNTIF($V$7:V713,\"AUT*\"),\"\"))","v":""},"",""]
[null,null,null,null,null,null,null,null,null,null,null,null,null,null,null,null,null,null,null,null,null,{"$f":"IF(COUNTIF(B715,\"*Virement*\"),\"VIR\"&COUNTIF($V$7:V714,\"VIR*\"),IF(COUNTIF($B$8:B715,B715)=1,\"AUT\"&COUNTIF($V$7:V714,\"AUT*\"),\"\"))","v":""},"",""]
[null,null,null,null,null,null,null,null,null,null,null,null,null,null,null,null,null,null,null,null,null,{"$f":"IF(COUNTIF(B716,\"*Virement*\"),\"VIR\"&COUNTIF($V$7:V715,\"VIR*\"),IF(COUNTIF($B$8:B716,B716)=1,\"AUT\"&COUNTIF($V$7:V715,\"AUT*\"),\"\"))","v":""},"",""]
[null,null,null,null,null,null,null,null,null,null,null,null,null,null,null,null,null,null,null,null,null,{"$f":"IF(COUNTIF(B717,\"*Virement*\"),\"VIR\"&COUNTIF($V$7:V716,\"VIR*\"),IF(COUNTIF($B$8:B717,B717)=1,\"AUT\"&COUNTIF($V$7:V716,\"AUT*\"),\"\"))","v":""},"",""]
[null,null,null,null,null,null,null,null,null,null,null,null,null,null,null,null,null,null,null,null,null,{"$f":"IF(COUNTIF(B718,\"*Virement*\"),\"VIR\"&COUNTIF($V$7:V717,\"VIR*\"),IF(COUNTIF($B$8:B718,B718)=1,\"AUT\"&COUNTIF($V$7:V717,\"AUT*\"),\"\"))","v":""},"",""]
[null,null,null,null,null,null,null,null,null,null,null,null,null,null,null,null,null,null,null,null,null,{"$f":"IF(COUNTIF(B719,\"*Virement*\"),\"VIR\"&COUNTIF($V$7:V718,\"VIR*\"),IF(COUNTIF($B$8:B719,B719)=1,\"AUT\"&COUNTIF($V$7:V718,\"AUT*\"),\"\"))","v":""},"",""]
[null,null,null,null,null,null,null,null,null,null,null,null,null,null,null,null,null,null,null,null,null,{"$f":"IF(COUNTIF(B720,\"*Virement*\"),\"VIR\"&COUNTIF($V$7:V719,\"VIR*\"),IF(COUNTIF($B$8:B720,B720)=1,\"AUT\"&COUNTIF($V$7:V719,\"AUT*\"),\"\"))","v":""},"",""]
[null,null,null,null,null,null,null,null,null,null,null,null,null,null,null,null,null,null,null,null,null,{"$f":"IF(COUNTIF(B721,\"*Virement*\"),\"VIR\"&COUNTIF($V$7:V720,\"VIR*\"),IF(COUNTIF($B$8:B721,B721)=1,\"AUT\"&COUNTIF($V$7:V720,\"AUT*\"),\"\"))","v":""},"",""]
[null,null,null,null,null,null,null,null,null,null,null,null,null,null,null,null,null,null,null,null,null,{"$f":"IF(COUNTIF(B722,\"*Virement*\"),\"VIR\"&COUNTIF($V$7:V721,\"VIR*\"),IF(COUNTIF($B$8:B722,B722)=1,\"AUT\"&COUNTIF($V$7:V721,\"AUT*\"),\"\"))","v":""},"",""]
[null,null,null,null,null,null,null,null,null,null,null,null,null,null,null,null,null,null,null,null,null,{"$f":"IF(COUNTIF(B723,\"*Virement*\"),\"VIR\"&COUNTIF($V$7:V722,\"VIR*\"),IF(COUNTIF($B$8:B723,B723)=1,\"AUT\"&COUNTIF($V$7:V722,\"AUT*\"),\"\"))","v":""},"",""]
[null,null,null,null,null,null,null,null,null,null,null,null,null,null,null,null,null,null,null,null,null,{"$f":"IF(COUNTIF(B724,\"*Virement*\"),\"VIR\"&COUNTIF($V$7:V723,\"VIR*\"),IF(COUNTIF($B$8:B724,B724)=1,\"AUT\"&COUNTIF($V$7:V723,\"AUT*\"),\"\"))","v":""},"",""]
[null,null,null,null,null,null,null,null,null,null,null,null,null,null,null,null,null,null,null,null,null,{"$f":"IF(COUNTIF(B725,\"*Virement*\"),\"VIR\"&COUNTIF($V$7:V724,\"VIR*\"),IF(COUNTIF($B$8:B725,B725)=1,\"AUT\"&COUNTIF($V$7:V724,\"AUT*\"),\"\"))","v":""},"",""]
[null,null,null,null,null,null,null,null,null,null,null,null,null,null,null,null,null,null,null,null,null,{"$f":"IF(COUNTIF(B726,\"*Virement*\"),\"VIR\"&COUNTIF($V$7:V725,\"VIR*\"),IF(COUNTIF($B$8:B726,B726)=1,\"AUT\"&COUNTIF($V$7:V725,\"AUT*\"),\"\"))","v":""},"",""]
[null,null,null,null,null,null,null,null,null,null,null,null,null,null,null,null,null,null,null,null,null,{"$f":"IF(COUNTIF(B727,\"*Virement*\"),\"VIR\"&COUNTIF($V$7:V726,\"VIR*\"),IF(COUNTIF($B$8:B727,B727)=1,\"AUT\"&COUNTIF($V$7:V726,\"AUT*\"),\"\"))","v":""},"",""]
[null,null,null,null,null,null,null,null,null,null,null,null,null,null,null,null,null,null,null,null,null,{"$f":"IF(COUNTIF(B728,\"*Virement*\"),\"VIR\"&COUNTIF($V$7:V727,\"VIR*\"),IF(COUNTIF($B$8:B728,B728)=1,\"AUT\"&COUNTIF($V$7:V727,\"AUT*\"),\"\"))","v":""},"",""]
[null,null,null,null,null,null,null,null,null,null,null,null,null,null,null,null,null,null,null,null,null,{"$f":"IF(COUNTIF(B729,\"*Virement*\"),\"VIR\"&COUNTIF($V$7:V728,\"VIR*\"),IF(COUNTIF($B$8:B729,B729)=1,\"AUT\"&COUNTIF($V$7:V728,\"AUT*\"),\"\"))","v":""},"",""]
[null,null,null,null,null,null,null,null,null,null,null,null,null,null,null,null,null,null,null,null,null,{"$f":"IF(COUNTIF(B730,\"*Virement*\"),\"VIR\"&COUNTIF($V$7:V729,\"VIR*\"),IF(COUNTIF($B$8:B730,B730)=1,\"AUT\"&COUNTIF($V$7:V729,\"AUT*\"),\"\"))","v":""},"",""]
[null,null,null,null,null,null,null,null,null,null,null,null,null,null,null,null,null,null,null,null,null,{"$f":"IF(COUNTIF(B731,\"*Virement*\"),\"VIR\"&COUNTIF($V$7:V730,\"VIR*\"),IF(COUNTIF($B$8:B731,B731)=1,\"AUT\"&COUNTIF($V$7:V730,\"AUT*\"),\"\"))","v":""},"",""]
[null,null,null,null,null,null,null,null,null,null,null,null,null,null,null,null,null,null,null,null,null,{"$f":"IF(COUNTIF(B732,\"*Virement*\"),\"VIR\"&COUNTIF($V$7:V731,\"VIR*\"),IF(COUNTIF($B$8:B732,B732)=1,\"AUT\"&COUNTIF($V$7:V731,\"AUT*\"),\"\"))","v":""},"",""]
[null,null,null,null,null,null,null,null,null,null,null,null,null,null,null,null,null,null,null,null,null,{"$f":"IF(COUNTIF(B733,\"*Virement*\"),\"VIR\"&COUNTIF($V$7:V732,\"VIR*\"),IF(COUNTIF($B$8:B733,B733)=1,\"AUT\"&COUNTIF($V$7:V732,\"AUT*\"),\"\"))","v":""},"",""]
[null,null,null,null,null,null,null,null,null,null,null,null,null,null,null,null,null,null,null,null,null,{"$f":"IF(COUNTIF(B734,\"*Virement*\"),\"VIR\"&COUNTIF($V$7:V733,\"VIR*\"),IF(COUNTIF($B$8:B734,B734)=1,\"AUT\"&COUNTIF($V$7:V733,\"AUT*\"),\"\"))","v":""},"",""]
[null,null,null,null,null,null,null,null,null,null,null,null,null,null,null,null,null,null,null,null,null,{"$f":"IF(COUNTIF(B735,\"*Virement*\"),\"VIR\"&COUNTIF($V$7:V734,\"VIR*\"),IF(COUNTIF($B$8:B735,B735)=1,\"AUT\"&COUNTIF($V$7:V734,\"AUT*\"),\"\"))","v":""},"",""]
[null,null,null,null,null,null,null,null,null,null,null,null,null,null,null,null,null,null,null,null,null,{"$f":"IF(COUNTIF(B736,\"*Virement*\"),\"VIR\"&COUNTIF($V$7:V735,\"VIR*\"),IF(COUNTIF($B$8:B736,B736)=1,\"AUT\"&COUNTIF($V$7:V735,\"AUT*\"),\"\"))","v":""},"",""]
[null,null,null,null,null,null,null,null,null,null,null,null,null,null,null,null,null,null,null,null,null,{"$f":"IF(COUNTIF(B737,\"*Virement*\"),\"VIR\"&COUNTIF($V$7:V736,\"VIR*\"),IF(COUNTIF($B$8:B737,B737)=1,\"AUT\"&COUNTIF($V$7:V736,\"AUT*\"),\"\"))","v":""},"",""]
[null,null,null,null,null,null,null,null,null,null,null,null,null,null,null,null,null,null,null,null,null,{"$f":"IF(COUNTIF(B738,\"*Virement*\"),\"VIR\"&COUNTIF($V$7:V737,\"VIR*\"),IF(COUNTIF($B$8:B738,B738)=1,\"AUT\"&COUNTIF($V$7:V737,\"AUT*\"),\"\"))","v":""},"",""]
[null,null,null,null,null,null,null,null,null,null,null,null,null,null,null,null,null,null,null,null,null,{"$f":"IF(COUNTIF(B739,\"*Virement*\"),\"VIR\"&COUNTIF($V$7:V738,\"VIR*\"),IF(COUNTIF($B$8:B739,B739)=1,\"AUT\"&COUNTIF($V$7:V738,\"AUT*\"),\"\"))","v":""},"",""]
[null,null,null,null,null,null,null,null,null,null,null,null,null,null,null,null,null,null,null,null,null,{"$f":"IF(COUNTIF(B740,\"*Virement*\"),\"VIR\"&COUNTIF($V$7:V739,\"VIR*\"),IF(COUNTIF($B$8:B740,B740)=1,\"AUT\"&COUNTIF($V$7:V739,\"AUT*\"),\"\"))","v":""},"",""]
[null,null,null,null,null,null,null,null,null,null,null,null,null,null,null,null,null,null,null,null,null,{"$f":"IF(COUNTIF(B741,\"*Virement*\"),\"VIR\"&COUNTIF($V$7:V740,\"VIR*\"),IF(COUNTIF($B$8:B741,B741)=1,\"AUT\"&COUNTIF($V$7:V740,\"AUT*\"),\"\"))","v":""},"",""]
[null,null,null,null,null,null,null,null,null,null,null,null,null,null,null,null,null,null,null,null,null,{"$f":"IF(COUNTIF(B742,\"*Virement*\"),\"VIR\"&COUNTIF($V$7:V741,\"VIR*\"),IF(COUNTIF($B$8:B742,B742)=1,\"AUT\"&COUNTIF($V$7:V741,\"AUT*\"),\"\"))","v":""},"",""]
[null,null,null,null,null,null,null,null,null,null,null,null,null,null,null,null,null,null,null,null,null,{"$f":"IF(COUNTIF(B743,\"*Virement*\"),\"VIR\"&COUNTIF($V$7:V742,\"VIR*\"),IF(COUNTIF($B$8:B743,B743)=1,\"AUT\"&COUNTIF($V$7:V742,\"AUT*\"),\"\"))","v":""},"",""]
[null,null,null,null,null,null,null,null,null,null,null,null,null,null,null,null,null,null,null,null,null,{"$f":"IF(COUNTIF(B744,\"*Virement*\"),\"VIR\"&COUNTIF($V$7:V743,\"VIR*\"),IF(COUNTIF($B$8:B744,B744)=1,\"AUT\"&COUNTIF($V$7:V743,\"AUT*\"),\"\"))","v":""},"",""]
[null,null,null,null,null,null,null,null,null,null,null,null,null,null,null,null,null,null,null,null,null,{"$f":"IF(COUNTIF(B745,\"*Virement*\"),\"VIR\"&COUNTIF($V$7:V744,\"VIR*\"),IF(COUNTIF($B$8:B745,B745)=1,\"AUT\"&COUNTIF($V$7:V744,\"AUT*\"),\"\"))","v":""},"",""]
[null,null,null,null,null,null,null,null,null,null,null,null,null,null,null,null,null,null,null,null,null,{"$f":"IF(COUNTIF(B746,\"*Virement*\"),\"VIR\"&COUNTIF($V$7:V745,\"VIR*\"),IF(COUNTIF($B$8:B746,B746)=1,\"AUT\"&COUNTIF($V$7:V745,\"AUT*\"),\"\"))","v":""},"",""]
[null,null,null,null,null,null,null,null,null,null,null,null,null,null,null,null,null,null,null,null,null,{"$f":"IF(COUNTIF(B747,\"*Virement*\"),\"VIR\"&COUNTIF($V$7:V746,\"VIR*\"),IF(COUNTIF($B$8:B747,B747)=1,\"AUT\"&COUNTIF($V$7:V746,\"AUT*\"),\"\"))","v":""},"",""]
[null,null,null,null,null,null,null,null,null,null,null,null,null,null,null,null,null,null,null,null,null,{"$f":"IF(COUNTIF(B748,\"*Virement*\"),\"VIR\"&COUNTIF($V$7:V747,\"VIR*\"),IF(COUNTIF($B$8:B748,B748)=1,\"AUT\"&COUNTIF($V$7:V747,\"AUT*\"),\"\"))","v":""},"",""]
[null,null,null,null,null,null,null,null,null,null,null,null,null,null,null,null,null,null,null,null,null,{"$f":"IF(COUNTIF(B749,\"*Virement*\"),\"VIR\"&COUNTIF($V$7:V748,\"VIR*\"),IF(COUNTIF($B$8:B749,B749)=1,\"AUT\"&COUNTIF($V$7:V748,\"AUT*\"),\"\"))","v":""},"",""]
[null,null,null,null,null,null,null,null,null,null,null,null,null,null,null,null,null,null,null,null,null,{"$f":"IF(COUNTIF(B750,\"*Virement*\"),\"VIR\"&COUNTIF($V$7:V749,\"VIR*\"),IF(COUNTIF($B$8:B750,B750)=1,\"AUT\"&COUNTIF($V$7:V749,\"AUT*\"),\"\"))","v":""},"",""]
[null,null,null,null,null,null,null,null,null,null,null,null,null,null,null,null,null,null,null,null,null,{"$f":"IF(COUNTIF(B751,\"*Virement*\"),\"VIR\"&COUNTIF($V$7:V750,\"VIR*\"),IF(COUNTIF($B$8:B751,B751)=1,\"AUT\"&COUNTIF($V$7:V750,\"AUT*\"),\"\"))","v":""},"",""]
[null,null,null,null,null,null,null,null,null,null,null,null,null,null,null,null,null,null,null,null,null,{"$f":"IF(COUNTIF(B752,\"*Virement*\"),\"VIR\"&COUNTIF($V$7:V751,\"VIR*\"),IF(COUNTIF($B$8:B752,B752)=1,\"AUT\"&COUNTIF($V$7:V751,\"AUT*\"),\"\"))","v":""},"",""]
[null,null,null,null,null,null,null,null,null,null,null,null,null,null,null,null,null,null,null,null,null,{"$f":"IF(COUNTIF(B753,\"*Virement*\"),\"VIR\"&COUNTIF($V$7:V752,\"VIR*\"),IF(COUNTIF($B$8:B753,B753)=1,\"AUT\"&COUNTIF($V$7:V752,\"AUT*\"),\"\"))","v":""},"",""]
[null,null,null,null,null,null,null,null,null,null,null,null,null,null,null,null,null,null,null,null,null,{"$f":"IF(COUNTIF(B754,\"*Virement*\"),\"VIR\"&COUNTIF($V$7:V753,\"VIR*\"),IF(COUNTIF($B$8:B754,B754)=1,\"AUT\"&COUNTIF($V$7:V753,\"AUT*\"),\"\"))","v":""},"",""]
[null,null,null,null,null,null,null,null,null,null,null,null,null,null,null,null,null,null,null,null,null,{"$f":"IF(COUNTIF(B755,\"*Virement*\"),\"VIR\"&COUNTIF($V$7:V754,\"VIR*\"),IF(COUNTIF($B$8:B755,B755)=1,\"AUT\"&COUNTIF($V$7:V754,\"AUT*\"),\"\"))","v":""},"",""]
[null,null,null,null,null,null,null,null,null,null,null,null,null,null,null,null,null,null,null,null,null,{"$f":"IF(COUNTIF(B756,\"*Virement*\"),\"VIR\"&COUNTIF($V$7:V755,\"VIR*\"),IF(COUNTIF($B$8:B756,B756)=1,\"AUT\"&COUNTIF($V$7:V755,\"AUT*\"),\"\"))","v":""},"",""]
[null,null,null,null,null,null,null,null,null,null,null,null,null,null,null,null,null,null,null,null,null,{"$f":"IF(COUNTIF(B757,\"*Virement*\"),\"VIR\"&COUNTIF($V$7:V756,\"VIR*\"),IF(COUNTIF($B$8:B757,B757)=1,\"AUT\"&COUNTIF($V$7:V756,\"AUT*\"),\"\"))","v":""},"",""]
[null,null,null,null,null,null,null,null,null,null,null,null,null,null,null,null,null,null,null,null,null,{"$f":"IF(COUNTIF(B758,\"*Virement*\"),\"VIR\"&COUNTIF($V$7:V757,\"VIR*\"),IF(COUNTIF($B$8:B758,B758)=1,\"AUT\"&COUNTIF($V$7:V757,\"AUT*\"),\"\"))","v":""},"",""]
[null,null,null,null,null,null,null,null,null,null,null,null,null,null,null,null,null,null,null,null,null,{"$f":"IF(COUNTIF(B759,\"*Virement*\"),\"VIR\"&COUNTIF($V$7:V758,\"VIR*\"),IF(COUNTIF($B$8:B759,B759)=1,\"AUT\"&COUNTIF($V$7:V758,\"AUT*\"),\"\"))","v":""},"",""]
[null,null,null,null,null,null,null,null,null,null,null,null,null,null,null,null,null,null,null,null,null,{"$f":"IF(COUNTIF(B760,\"*Virement*\"),\"VIR\"&COUNTIF($V$7:V759,\"VIR*\"),IF(COUNTIF($B$8:B760,B760)=1,\"AUT\"&COUNTIF($V$7:V759,\"AUT*\"),\"\"))","v":""},"",""]
[null,null,null,null,null,null,null,null,null,null,null,null,null,null,null,null,null,null,null,null,null,{"$f":"IF(COUNTIF(B761,\"*Virement*\"),\"VIR\"&COUNTIF($V$7:V760,\"VIR*\"),IF(COUNTIF($B$8:B761,B761)=1,\"AUT\"&COUNTIF($V$7:V760,\"AUT*\"),\"\"))","v":""},"",""]
[null,null,null,null,null,null,null,null,null,null,null,null,null,null,null,null,null,null,null,null,null,{"$f":"IF(COUNTIF(B762,\"*Virement*\"),\"VIR\"&COUNTIF($V$7:V761,\"VIR*\"),IF(COUNTIF($B$8:B762,B762)=1,\"AUT\"&COUNTIF($V$7:V761,\"AUT*\"),\"\"))","v":""},"",""]
[null,null,null,null,null,null,null,null,null,null,null,null,null,null,null,null,null,null,null,null,null,{"$f":"IF(COUNTIF(B763,\"*Virement*\"),\"VIR\"&COUNTIF($V$7:V762,\"VIR*\"),IF(COUNTIF($B$8:B763,B763)=1,\"AUT\"&COUNTIF($V$7:V762,\"AUT*\"),\"\"))","v":""},"",""]
[null,null,null,null,null,null,null,null,null,null,null,null,null,null,null,null,null,null,null,null,null,{"$f":"IF(COUNTIF(B764,\"*Virement*\"),\"VIR\"&COUNTIF($V$7:V763,\"VIR*\"),IF(COUNTIF($B$8:B764,B764)=1,\"AUT\"&COUNTIF($V$7:V763,\"AUT*\"),\"\"))","v":""},"",""]
[null,null,null,null,null,null,null,null,null,null,null,null,null,null,null,null,null,null,null,null,null,{"$f":"IF(COUNTIF(B765,\"*Virement*\"),\"VIR\"&COUNTIF($V$7:V764,\"VIR*\"),IF(COUNTIF($B$8:B765,B765)=1,\"AUT\"&COUNTIF($V$7:V764,\"AUT*\"),\"\"))","v":""},"",""]
[null,null,null,null,null,null,null,null,null,null,null,null,null,null,null,null,null,null,null,null,null,{"$f":"IF(COUNTIF(B766,\"*Virement*\"),\"VIR\"&COUNTIF($V$7:V765,\"VIR*\"),IF(COUNTIF($B$8:B766,B766)=1,\"AUT\"&COUNTIF($V$7:V765,\"AUT*\"),\"\"))","v":""},"",""]
[null,null,null,null,null,null,null,null,null,null,null,null,null,null,null,null,null,null,null,null,null,{"$f":"IF(COUNTIF(B767,\"*Virement*\"),\"VIR\"&COUNTIF($V$7:V766,\"VIR*\"),IF(COUNTIF($B$8:B767,B767)=1,\"AUT\"&COUNTIF($V$7:V766,\"AUT*\"),\"\"))","v":""},"",""]
[null,null,null,null,null,null,null,null,null,null,null,null,null,null,null,null,null,null,null,null,null,{"$f":"IF(COUNTIF(B768,\"*Virement*\"),\"VIR\"&COUNTIF($V$7:V767,\"VIR*\"),IF(COUNTIF($B$8:B768,B768)=1,\"AUT\"&COUNTIF($V$7:V767,\"AUT*\"),\"\"))","v":""},"",""]
[null,null,null,null,null,null,null,null,null,null,null,null,null,null,null,null,null,null,null,null,null,{"$f":"IF(COUNTIF(B769,\"*Virement*\"),\"VIR\"&COUNTIF($V$7:V768,\"VIR*\"),IF(COUNTIF($B$8:B769,B769)=1,\"AUT\"&COUNTIF($V$7:V768,\"AUT*\"),\"\"))","v":""},"",""]
[null,null,null,null,null,null,null,null,null,null,null,null,null,null,null,null,null,null,null,null,null,{"$f":"IF(COUNTIF(B770,\"*Virement*\"),\"VIR\"&COUNTIF($V$7:V769,\"VIR*\"),IF(COUNTIF($B$8:B770,B770)=1,\"AUT\"&COUNTIF($V$7:V769,\"AUT*\"),\"\"))","v":""},"",""]
[null,null,null,null,null,null,null,null,null,null,null,null,null,null,null,null,null,null,null,null,null,{"$f":"IF(COUNTIF(B771,\"*Virement*\"),\"VIR\"&COUNTIF($V$7:V770,\"VIR*\"),IF(COUNTIF($B$8:B771,B771)=1,\"AUT\"&COUNTIF($V$7:V770,\"AUT*\"),\"\"))","v":""},"",""]
[null,null,null,null,null,null,null,null,null,null,null,null,null,null,null,null,null,null,null,null,null,{"$f":"IF(COUNTIF(B772,\"*Virement*\"),\"VIR\"&COUNTIF($V$7:V771,\"VIR*\"),IF(COUNTIF($B$8:B772,B772)=1,\"AUT\"&COUNTIF($V$7:V771,\"AUT*\"),\"\"))","v":""},"",""]
[null,null,null,null,null,null,null,null,null,null,null,null,null,null,null,null,null,null,null,null,null,{"$f":"IF(COUNTIF(B773,\"*Virement*\"),\"VIR\"&COUNTIF($V$7:V772,\"VIR*\"),IF(COUNTIF($B$8:B773,B773)=1,\"AUT\"&COUNTIF($V$7:V772,\"AUT*\"),\"\"))","v":""},"",""]
[null,null,null,null,null,null,null,null,null,null,null,null,null,null,null,null,null,null,null,null,null,{"$f":"IF(COUNTIF(B774,\"*Virement*\"),\"VIR\"&COUNTIF($V$7:V773,\"VIR*\"),IF(COUNTIF($B$8:B774,B774)=1,\"AUT\"&COUNTIF($V$7:V773,\"AUT*\"),\"\"))","v":""},"",""]
[null,null,null,null,null,null,null,null,null,null,null,null,null,null,null,null,null,null,null,null,null,{"$f":"IF(COUNTIF(B775,\"*Virement*\"),\"VIR\"&COUNTIF($V$7:V774,\"VIR*\"),IF(COUNTIF($B$8:B775,B775)=1,\"AUT\"&COUNTIF($V$7:V774,\"AUT*\"),\"\"))","v":""},"",""]
[null,null,null,null,null,null,null,null,null,null,null,null,null,null,null,null,null,null,null,null,null,{"$f":"IF(COUNTIF(B776,\"*Virement*\"),\"VIR\"&COUNTIF($V$7:V775,\"VIR*\"),IF(COUNTIF($B$8:B776,B776)=1,\"AUT\"&COUNTIF($V$7:V775,\"AUT*\"),\"\"))","v":""},"",""]
[null,null,null,null,null,null,null,null,null,null,null,null,null,null,null,null,null,null,null,null,null,{"$f":"IF(COUNTIF(B777,\"*Virement*\"),\"VIR\"&COUNTIF($V$7:V776,\"VIR*\"),IF(COUNTIF($B$8:B777,B777)=1,\"AUT\"&COUNTIF($V$7:V776,\"AUT*\"),\"\"))","v":""},{"$f":"IFERROR(INDEX(B:B,MATCH(\"VIR\"&ROW()-8,V:V,0)),\"\")","v":""},{"$f":"IFERROR(INDEX($B:$B,MATCH(\"AUT\"&ROW()-8,$V:$V,0)),\"\")","v":""}]
[null,null,null,null,null,null,null,null,null,null,null,null,null,null,null,null,null,null,null,null,null,{"$f":"IF(COUNTIF(B778,\"*Virement*\"),\"VIR\"&COUNTIF($V$7:V777,\"VIR*\"),IF(COUNTIF($B$8:B778,B778)=1,\"AUT\"&COUNTIF($V$7:V777,\"AUT*\"),\"\"))","v":""},"",""]
[null,null,null,null,null,null,null,null,null,null,null,null,null,null,null,null,null,null,null,null,null,{"$f":"IF(COUNTIF(B779,\"*Virement*\"),\"VIR\"&COUNTIF($V$7:V778,\"VIR*\"),IF(COUNTIF($B$8:B779,B779)=1,\"AUT\"&COUNTIF($V$7:V778,\"AUT*\"),\"\"))","v":""},"",""]
[null,null,null,null,null,null,null,null,null,null,null,null,null,null,null,null,null,null,null,null,null,{"$f":"IF(COUNTIF(B780,\"*Virement*\"),\"VIR\"&COUNTIF($V$7:V779,\"VIR*\"),IF(COUNTIF($B$8:B780,B780)=1,\"AUT\"&COUNTIF($V$7:V779,\"AUT*\"),\"\"))","v":""},"",""]
[null,null,null,null,null,null,null,null,null,null,null,null,null,null,null,null,null,null,null,null,null,{"$f":"IF(COUNTIF(B781,\"*Virement*\"),\"VIR\"&COUNTIF($V$7:V780,\"VIR*\"),IF(COUNTIF($B$8:B781,B781)=1,\"AUT\"&COUNTIF($V$7:V780,\"AUT*\"),\"\"))","v":""},"",""]
[null,null,null,null,null,null,null,null,null,null,null,null,null,null,null,null,null,null,null,null,null,{"$f":"IF(COUNTIF(B782,\"*Virement*\"),\"VIR\"&COUNTIF($V$7:V781,\"VIR*\"),IF(COUNTIF($B$8:B782,B782)=1,\"AUT\"&COUNTIF($V$7:V781,\"AUT*\"),\"\"))","v":""},"",""]
[null,null,null,null,null,null,null,null,null,null,null,null,null,null,null,null,null,null,null,null,null,{"$f":"IF(COUNTIF(B783,\"*Virement*\"),\"VIR\"&COUNTIF($V$7:V782,\"VIR*\"),IF(COUNTIF($B$8:B783,B783)=1,\"AUT\"&COUNTIF($V$7:V782,\"AUT*\"),\"\"))","v":""},"",""]
[null,null,null,null,null,null,null,null,null,null,null,null,null,null,null,null,null,null,null,null,null,{"$f":"IF(COUNTIF(B784,\"*Virement*\"),\"VIR\"&COUNTIF($V$7:V783,\"VIR*\"),IF(COUNTIF($B$8:B784,B784)=1,\"AUT\"&COUNTIF($V$7:V783,\"AUT*\"),\"\"))","v":""},"",""]
[null,null,null,null,null,null,null,null,null,null,null,null,null,null,null,null,null,null,null,null,null,{"$f":"IF(COUNTIF(B785,\"*Virement*\"),\"VIR\"&COUNTIF($V$7:V784,\"VIR*\"),IF(COUNTIF($B$8:B785,B785)=1,\"AUT\"&COUNTIF($V$7:V784,\"AUT*\"),\"\"))","v":""},"",""]
[null,null,null,null,null,null,null,null,null,null,null,null,null,null,null,null,null,null,null,null,null,{"$f":"IF(COUNTIF(B786,\"*Virement*\"),\"VIR\"&COUNTIF($V$7:V785,\"VIR*\"),IF(COUNTIF($B$8:B786,B786)=1,\"AUT\"&COUNTIF($V$7:V785,\"AUT*\"),\"\"))","v":""},"",""]
[null,null,null,null,null,null,null,null,null,null,null,null,null,null,null,null,null,null,null,null,null,{"$f":"IF(COUNTIF(B787,\"*Virement*\"),\"VIR\"&COUNTIF($V$7:V786,\"VIR*\"),IF(COUNTIF($B$8:B787,B787)=1,\"AUT\"&COUNTIF($V$7:V786,\"AUT*\"),\"\"))","v":""},"",""]
[null,null,null,null,null,null,null,null,null,null,null,null,null,null,null,null,null,null,null,null,null,{"$f":"IF(COUNTIF(B788,\"*Virement*\"),\"VIR\"&COUNTIF($V$7:V787,\"VIR*\"),IF(COUNTIF($B$8:B788,B788)=1,\"AUT\"&COUNTIF($V$7:V787,\"AUT*\"),\"\"))","v":""},"",""]
[null,null,null,null,null,null,null,null,null,null,null,null,null,null,null,null,null,null,null,null,null,{"$f":"IF(COUNTIF(B789,\"*Virement*\"),\"VIR\"&COUNTIF($V$7:V788,\"VIR*\"),IF(COUNTIF($B$8:B789,B789)=1,\"AUT\"&COUNTIF($V$7:V788,\"AUT*\"),\"\"))","v":""},"",""]
[null,null,null,null,null,null,null,null,null,null,null,null,null,null,null,null,null,null,null,null,null,{"$f":"IF(COUNTIF(B790,\"*Virement*\"),\"VIR\"&COUNTIF($V$7:V789,\"VIR*\"),IF(COUNTIF($B$8:B790,B790)=1,\"AUT\"&COUNTIF($V$7:V789,\"AUT*\"),\"\"))","v":""},"",""]
[null,null,null,null,null,null,null,null,null,null,null,null,null,null,null,null,null,null,null,null,null,{"$f":"IF(COUNTIF(B791,\"*Virement*\"),\"VIR\"&COUNTIF($V$7:V790,\"VIR*\"),IF(COUNTIF($B$8:B791,B791)=1,\"AUT\"&COUNTIF($V$7:V790,\"AUT*\"),\"\"))","v":""},"",""]
[null,null,null,null,null,null,null,null,null,null,null,null,null,null,null,null,null,null,null,null,null,{"$f":"IF(COUNTIF(B792,\"*Virement*\"),\"VIR\"&COUNTIF($V$7:V791,\"VIR*\"),IF(COUNTIF($B$8:B792,B792)=1,\"AUT\"&COUNTIF($V$7:V791,\"AUT*\"),\"\"))","v":""},"",""]
[null,null,null,null,null,null,null,null,null,null,null,null,null,null,null,null,null,null,null,null,null,{"$f":"IF(COUNTIF(B793,\"*Virement*\"),\"VIR\"&COUNTIF($V$7:V792,\"VIR*\"),IF(COUNTIF($B$8:B793,B793)=1,\"AUT\"&COUNTIF($V$7:V792,\"AUT*\"),\"\"))","v":""},"",""]
[null,null,null,null,null,null,null,null,null,null,null,null,null,null,null,null,null,null,null,null,null,{"$f":"IF(COUNTIF(B794,\"*Virement*\"),\"VIR\"&COUNTIF($V$7:V793,\"VIR*\"),IF(COUNTIF($B$8:B794,B794)=1,\"AUT\"&COUNTIF($V$7:V793,\"AUT*\"),\"\"))","v":""},"",""]
[null,null,null,null,null,null,null,null,null,null,null,null,null,null,null,null,null,null,null,null,null,{"$f":"IF(COUNTIF(B795,\"*Virement*\"),\"VIR\"&COUNTIF($V$7:V794,\"VIR*\"),IF(COUNTIF($B$8:B795,B795)=1,\"AUT\"&COUNTIF($V$7:V794,\"AUT*\"),\"\"))","v":""},"",""]
[null,null,null,null,null,null,null,null,null,null,null,null,null,null,null,null,null,null,null,null,null,{"$f":"IF(COUNTIF(B796,\"*Virement*\"),\"VIR\"&COUNTIF($V$7:V795,\"VIR*\"),IF(COUNTIF($B$8:B796,B796)=1,\"AUT\"&COUNTIF($V$7:V795,\"AUT*\"),\"\"))","v":""},"",""]
[null,null,null,null,null,null,null,null,null,null,null,null,null,null,null,null,null,null,null,null,null,{"$f":"IF(COUNTIF(B797,\"*Virement*\"),\"VIR\"&COUNTIF($V$7:V796,\"VIR*\"),IF(COUNTIF($B$8:B797,B797)=1,\"AUT\"&COUNTIF($V$7:V796,\"AUT*\"),\"\"))","v":""},"",""]
[null,null,null,null,null,null,null,null,null,null,null,null,null,null,null,null,null,null,null,null,null,{"$f":"IF(COUNTIF(B798,\"*Virement*\"),\"VIR\"&COUNTIF($V$7:V797,\"VIR*\"),IF(COUNTIF($B$8:B798,B798)=1,\"AUT\"&COUNTIF($V$7:V797,\"AUT*\"),\"\"))","v":""},"",""]
[null,null,null,null,null,null,null,null,null,null,null,null,null,null,null,null,null,null,null,null,null,{"$f":"IF(COUNTIF(B799,\"*Virement*\"),\"VIR\"&COUNTIF($V$7:V798,\"VIR*\"),IF(COUNTIF($B$8:B799,B799)=1,\"AUT\"&COUNTIF($V$7:V798,\"AUT*\"),\"\"))","v":""},"",""]
[null,null,null,null,null,null,null,null,null,null,null,null,null,null,null,null,null,null,null,null,null,{"$f":"IF(COUNTIF(B800,\"*Virement*\"),\"VIR\"&COUNTIF($V$7:V799,\"VIR*\"),IF(COUNTIF($B$8:B800,B800)=1,\"AUT\"&COUNTIF($V$7:V799,\"AUT*\"),\"\"))","v":""},"",""]
[null,null,null,null,null,null,null,null,null,null,null,null,null,null,null,null,null,null,null,null,null,{"$f":"IF(COUNTIF(B801,\"*Virement*\"),\"VIR\"&COUNTIF($V$7:V800,\"VIR*\"),IF(COUNTIF($B$8:B801,B801)=1,\"AUT\"&COUNTIF($V$7:V800,\"AUT*\"),\"\"))","v":""},"",""]
[null,null,null,null,null,null,null,null,null,null,null,null,null,null,null,null,null,null,null,null,null,{"$f":"IF(COUNTIF(B802,\"*Virement*\"),\"VIR\"&COUNTIF($V$7:V801,\"VIR*\"),IF(COUNTIF($B$8:B802,B802)=1,\"AUT\"&COUNTIF($V$7:V801,\"AUT*\"),\"\"))","v":""},"",""]
[null,null,null,null,null,null,null,null,null,null,null,null,null,null,null,null,null,null,null,null,null,{"$f":"IF(COUNTIF(B803,\"*Virement*\"),\"VIR\"&COUNTIF($V$7:V802,\"VIR*\"),IF(COUNTIF($B$8:B803,B803)=1,\"AUT\"&COUNTIF($V$7:V802,\"AUT*\"),\"\"))","v":""},"",""]
[null,null,null,null,null,null,null,null,null,null,null,null,null,null,null,null,null,null,null,null,null,{"$f":"IF(COUNTIF(B804,\"*Virement*\"),\"VIR\"&COUNTIF($V$7:V803,\"VIR*\"),IF(COUNTIF($B$8:B804,B804)=1,\"AUT\"&COUNTIF($V$7:V803,\"AUT*\"),\"\"))","v":""},"",""]
[null,null,null,null,null,null,null,null,null,null,null,null,null,null,null,null,null,null,null,null,null,{"$f":"IF(COUNTIF(B805,\"*Virement*\"),\"VIR\"&COUNTIF($V$7:V804,\"VIR*\"),IF(COUNTIF($B$8:B805,B805)=1,\"AUT\"&COUNTIF($V$7:V804,\"AUT*\"),\"\"))","v":""},"",""]
[null,null,null,null,null,null,null,null,null,null,null,null,null,null,null,null,null,null,null,null,null,{"$f":"IF(COUNTIF(B806,\"*Virement*\"),\"VIR\"&COUNTIF($V$7:V805,\"VIR*\"),IF(COUNTIF($B$8:B806,B806)=1,\"AUT\"&COUNTIF($V$7:V805,\"AUT*\"),\"\"))","v":""},"",""]
[null,null,null,null,null,null,null,null,null,null,null,null,null,null,null,null,null,null,null,null,null,{"$f":"IF(COUNTIF(B807,\"*Virement*\"),\"VIR\"&COUNTIF($V$7:V806,\"VIR*\"),IF(COUNTIF($B$8:B807,B807)=1,\"AUT\"&COUNTIF($V$7:V806,\"AUT*\"),\"\"))","v":""},"",""]
[null,null,null,null,null,null,null,null,null,null,null,null,null,null,null,null,null,null,null,null,null,{"$f":"IF(COUNTIF(B808,\"*Virement*\"),\"VIR\"&COUNTIF($V$7:V807,\"VIR*\"),IF(COUNTIF($B$8:B808,B808)=1,\"AUT\"&COUNTIF($V$7:V807,\"AUT*\"),\"\"))","v":""},"",""]
[null,null,null,null,null,null,null,null,null,null,null,null,null,null,null,null,null,null,null,null,null,{"$f":"IF(COUNTIF(B809,\"*Virement*\"),\"VIR\"&COUNTIF($V$7:V808,\"VIR*\"),IF(COUNTIF($B$8:B809,B809)=1,\"AUT\"&COUNTIF($V$7:V808,\"AUT*\"),\"\"))","v":""},"",""]
[null,null,null,null,null,null,null,null,null,null,null,null,null,null,null,null,null,null,null,null,null,{"$f":"IF(COUNTIF(B810,\"*Virement*\"),\"VIR\"&COUNTIF($V$7:V809,\"VIR*\"),IF(COUNTIF($B$8:B810,B810)=1,\"AUT\"&COUNTIF($V$7:V809,\"AUT*\"),\"\"))","v":""},"",""]
[null,null,null,null,null,null,null,null,null,null,null,null,null,null,null,null,null,null,null,null,null,{"$f":"IF(COUNTIF(B811,\"*Virement*\"),\"VIR\"&COUNTIF($V$7:V810,\"VIR*\"),IF(COUNTIF($B$8:B811,B811)=1,\"AUT\"&COUNTIF($V$7:V810,\"AUT*\"),\"\"))","v":""},"",""]
[null,null,null,null,null,null,null,null,null,null,null,null,null,null,null,null,null,null,null,null,null,{"$f":"IF(COUNTIF(B812,\"*Virement*\"),\"VIR\"&COUNTIF($V$7:V811,\"VIR*\"),IF(COUNTIF($B$8:B812,B812)=1,\"AUT\"&COUNTIF($V$7:V811,\"AUT*\"),\"\"))","v":""},"",""]
[null,null,null,null,null,null,null,null,null,null,null,null,null,null,null,null,null,null,null,null,null,{"$f":"IF(COUNTIF(B813,\"*Virement*\"),\"VIR\"&COUNTIF($V$7:V812,\"VIR*\"),IF(COUNTIF($B$8:B813,B813)=1,\"AUT\"&COUNTIF($V$7:V812,\"AUT*\"),\"\"))","v":""},"",""]
[null,null,null,null,null,null,null,null,null,null,null,null,null,null,null,null,null,null,null,null,null,{"$f":"IF(COUNTIF(B814,\"*Virement*\"),\"VIR\"&COUNTIF($V$7:V813,\"VIR*\"),IF(COUNTIF($B$8:B814,B814)=1,\"AUT\"&COUNTIF($V$7:V813,\"AUT*\"),\"\"))","v":""},"",""]
[null,null,null,null,null,null,null,null,null,null,null,null,null,null,null,null,null,null,null,null,null,{"$f":"IF(COUNTIF(B815,\"*Virement*\"),\"VIR\"&COUNTIF($V$7:V814,\"VIR*\"),IF(COUNTIF($B$8:B815,B815)=1,\"AUT\"&COUNTIF($V$7:V814,\"AUT*\"),\"\"))","v":""},"",""]
[null,null,null,null,null,null,null,null,null,null,null,null,null,null,null,null,null,null,null,null,null,{"$f":"IF(COUNTIF(B816,\"*Virement*\"),\"VIR\"&COUNTIF($V$7:V815,\"VIR*\"),IF(COUNTIF($B$8:B816,B816)=1,\"AUT\"&COUNTIF($V$7:V815,\"AUT*\"),\"\"))","v":""},"",""]
[null,null,null,null,null,null,null,null,null,null,null,null,null,null,null,null,null,null,null,null,null,{"$f":"IF(COUNTIF(B817,\"*Virement*\"),\"VIR\"&COUNTIF($V$7:V816,\"VIR*\"),IF(COUNTIF($B$8:B817,B817)=1,\"AUT\"&COUNTIF($V$7:V816,\"AUT*\"),\"\"))","v":""},"",""]
[null,null,null,null,null,null,null,null,null,null,null,null,null,null,null,null,null,null,null,null,null,{"$f":"IF(COUNTIF(B818,\"*Virement*\"),\"VIR\"&COUNTIF($V$7:V817,\"VIR*\"),IF(COUNTIF($B$8:B818,B818)=1,\"AUT\"&COUNTIF($V$7:V817,\"AUT*\"),\"\"))","v":""},"",""]
[null,null,null,null,null,null,null,null,null,null,null,null,null,null,null,null,null,null,null,null,null,{"$f":"IF(COUNTIF(B819,\"*Virement*\"),\"VIR\"&COUNTIF($V$7:V818,\"VIR*\"),IF(COUNTIF($B$8:B819,B819)=1,\"AUT\"&COUNTIF($V$7:V818,\"AUT*\"),\"\"))","v":""},"",""]
[null,null,null,null,null,null,null,null,null,null,null,null,null,null,null,null,null,null,null,null,null,{"$f":"IF(COUNTIF(B820,\"*Virement*\"),\"VIR\"&COUNTIF($V$7:V819,\"VIR*\"),IF(COUNTIF($B$8:B820,B820)=1,\"AUT\"&COUNTIF($V$7:V819,\"AUT*\"),\"\"))","v":""},"",""]
[null,null,null,null,null,null,null,null,null,null,null,null,null,null,null,null,null,null,null,null,null,{"$f":"IF(COUNTIF(B821,\"*Virement*\"),\"VIR\"&COUNTIF($V$7:V820,\"VIR*\"),IF(COUNTIF($B$8:B821,B821)=1,\"AUT\"&COUNTIF($V$7:V820,\"AUT*\"),\"\"))","v":""},"",""]
[null,null,null,null,null,null,null,null,null,null,null,null,null,null,null,null,null,null,null,null,null,{"$f":"IF(COUNTIF(B822,\"*Virement*\"),\"VIR\"&COUNTIF($V$7:V821,\"VIR*\"),IF(COUNTIF($B$8:B822,B822)=1,\"AUT\"&COUNTIF($V$7:V821,\"AUT*\"),\"\"))","v":""},"",""]
[null,null,null,null,null,null,null,null,null,null,null,null,null,null,null,null,null,null,null,null,null,{"$f":"IF(COUNTIF(B823,\"*Virement*\"),\"VIR\"&COUNTIF($V$7:V822,\"VIR*\"),IF(COUNTIF($B$8:B823,B823)=1,\"AUT\"&COUNTIF($V$7:V822,\"AUT*\"),\"\"))","v":""},"",""]
[null,null,null,null,null,null,null,null,null,null,null,null,null,null,null,null,null,null,null,null,null,{"$f":"IF(COUNTIF(B824,\"*Virement*\"),\"VIR\"&COUNTIF($V$7:V823,\"VIR*\"),IF(COUNTIF($B$8:B824,B824)=1,\"AUT\"&COUNTIF($V$7:V823,\"AUT*\"),\"\"))","v":""},"",""]
[null,null,null,null,null,null,null,null,null,null,null,null,null,null,null,null,null,null,null,null,null,{"$f":"IF(COUNTIF(B825,\"*Virement*\"),\"VIR\"&COUNTIF($V$7:V824,\"VIR*\"),IF(COUNTIF($B$8:B825,B825)=1,\"AUT\"&COUNTIF($V$7:V824,\"AUT*\"),\"\"))","v":""},"",""]
[null,null,null,null,null,null,null,null,null,null,null,null,null,null,null,null,null,null,null,null,null,{"$f":"IF(COUNTIF(B826,\"*Virement*\"),\"VIR\"&COUNTIF($V$7:V825,\"VIR*\"),IF(COUNTIF($B$8:B826,B826)=1,\"AUT\"&COUNTIF($V$7:V825,\"AUT*\"),\"\"))","v":""},"",""]
[null,null,null,null,null,null,null,null,null,null,null,null,null,null,null,null,null,null,null,null,null,{"$f":"IF(COUNTIF(B827,\"*Virement*\"),\"VIR\"&COUNTIF($V$7:V826,\"VIR*\"),IF(COUNTIF($B$8:B827,B827)=1,\"AUT\"&COUNTIF($V$7:V826,\"AUT*\"),\"\"))","v":""},"",""]
[null,null,null,null,null,null,null,null,null,null,null,null,null,null,null,null,null,null,null,null,null,{"$f":"IF(COUNTIF(B828,\"*Virement*\"),\"VIR\"&COUNTIF($V$7:V827,\"VIR*\"),IF(COUNTIF($B$8:B828,B828)=1,\"AUT\"&COUNTIF($V$7:V827,\"AUT*\"),\"\"))","v":""},"",""]
[null,null,null,null,null,null,null,null,null,null,null,null,null,null,null,null,null,null,null,null,null,{"$f":"IF(COUNTIF(B829,\"*Virement*\"),\"VIR\"&COUNTIF($V$7:V828,\"VIR*\"),IF(COUNTIF($B$8:B829,B829)=1,\"AUT\"&COUNTIF($V$7:V828,\"AUT*\"),\"\"))","v":""},"",""]
[null,null,null,null,null,null,null,null,null,null,null,null,null,null,null,null,null,null,null,null,null,{"$f":"IF(COUNTIF(B830,\"*Virement*\"),\"VIR\"&COUNTIF($V$7:V829,\"VIR*\"),IF(COUNTIF($B$8:B830,B830)=1,\"AUT\"&COUNTIF($V$7:V829,\"AUT*\"),\"\"))","v":""},"",""]
[null,null,null,null,null,null,null,null,null,null,null,null,null,null,null,null,null,null,null,null,null,{"$f":"IF(COUNTIF(B831,\"*Virement*\"),\"VIR\"&COUNTIF($V$7:V830,\"VIR*\"),IF(COUNTIF($B$8:B831,B831)=1,\"AUT\"&COUNTIF($V$7:V830,\"AUT*\"),\"\"))","v":""},"",""]
[null,null,null,null,null,null,null,null,null,null,null,null,null,null,null,null,null,null,null,null,null,{"$f":"IF(COUNTIF(B832,\"*Virement*\"),\"VIR\"&COUNTIF($V$7:V831,\"VIR*\"),IF(COUNTIF($B$8:B832,B832)=1,\"AUT\"&COUNTIF($V$7:V831,\"AUT*\"),\"\"))","v":""},"",""]
[null,null,null,null,null,null,null,null,null,null,null,null,null,null,null,null,null,null,null,null,null,{"$f":"IF(COUNTIF(B833,\"*Virement*\"),\"VIR\"&COUNTIF($V$7:V832,\"VIR*\"),IF(COUNTIF($B$8:B833,B833)=1,\"AUT\"&COUNTIF($V$7:V832,\"AUT*\"),\"\"))","v":""},"",""]
[null,null,null,null,null,null,null,null,null,null,null,null,null,null,null,null,null,null,null,null,null,{"$f":"IF(COUNTIF(B834,\"*Virement*\"),\"VIR\"&COUNTIF($V$7:V833,\"VIR*\"),IF(COUNTIF($B$8:B834,B834)=1,\"AUT\"&COUNTIF($V$7:V833,\"AUT*\"),\"\"))","v":""},"",""]
[null,null,null,null,null,null,null,null,null,null,null,null,null,null,null,null,null,null,null,null,null,{"$f":"IF(COUNTIF(B835,\"*Virement*\"),\"VIR\"&COUNTIF($V$7:V834,\"VIR*\"),IF(COUNTIF($B$8:B835,B835)=1,\"AUT\"&COUNTIF($V$7:V834,\"AUT*\"),\"\"))","v":""},"",""]
[null,null,null,null,null,null,null,null,null,null,null,null,null,null,null,null,null,null,null,null,null,{"$f":"IF(COUNTIF(B836,\"*Virement*\"),\"VIR\"&COUNTIF($V$7:V835,\"VIR*\"),IF(COUNTIF($B$8:B836,B836)=1,\"AUT\"&COUNTIF($V$7:V835,\"AUT*\"),\"\"))","v":""},"",""]
[null,null,null,null,null,null,null,null,null,null,null,null,null,null,null,null,null,null,null,null,null,{"$f":"IF(COUNTIF(B837,\"*Virement*\"),\"VIR\"&COUNTIF($V$7:V836,\"VIR*\"),IF(COUNTIF($B$8:B837,B837)=1,\"AUT\"&COUNTIF($V$7:V836,\"AUT*\"),\"\"))","v":""},"",""]
[null,null,null,null,null,null,null,null,null,null,null,null,null,null,null,null,null,null,null,null,null,{"$f":"IF(COUNTIF(B838,\"*Virement*\"),\"VIR\"&COUNTIF($V$7:V837,\"VIR*\"),IF(COUNTIF($B$8:B838,B838)=1,\"AUT\"&COUNTIF($V$7:V837,\"AUT*\"),\"\"))","v":""},"",""]
[null,null,null,null,null,null,null,null,null,null,null,null,null,null,null,null,null,null,null,null,null,{"$f":"IF(COUNTIF(B839,\"*Virement*\"),\"VIR\"&COUNTIF($V$7:V838,\"VIR*\"),IF(COUNTIF($B$8:B839,B839)=1,\"AUT\"&COUNTIF($V$7:V838,\"AUT*\"),\"\"))","v":""},"",""]
[null,null,null,null,null,null,null,null,null,null,null,null,null,null,null,null,null,null,null,null,null,{"$f":"IF(COUNTIF(B840,\"*Virement*\"),\"VIR\"&COUNTIF($V$7:V839,\"VIR*\"),IF(COUNTIF($B$8:B840,B840)=1,\"AUT\"&COUNTIF($V$7:V839,\"AUT*\"),\"\"))","v":""},"",""]
[null,null,null,null,null,null,null,null,null,null,null,null,null,null,null,null,null,null,null,null,null,{"$f":"IF(COUNTIF(B841,\"*Virement*\"),\"VIR\"&COUNTIF($V$7:V840,\"VIR*\"),IF(COUNTIF($B$8:B841,B841)=1,\"AUT\"&COUNTIF($V$7:V840,\"AUT*\"),\"\"))","v":""},{"$f":"IFERROR(INDEX(B:B,MATCH(\"VIR\"&ROW()-8,V:V,0)),\"\")","v":""},{"$f":"IFERROR(INDEX($B:$B,MATCH(\"AUT\"&ROW()-8,$V:$V,0)),\"\")","v":""}]
[null,null,null,null,null,null,null,null,null,null,null,null,null,null,null,null,null,null,null,null,null,{"$f":"IF(COUNTIF(B842,\"*Virement*\"),\"VIR\"&COUNTIF($V$7:V841,\"VIR*\"),IF(COUNTIF($B$8:B842,B842)=1,\"AUT\"&COUNTIF($V$7:V841,\"AUT*\"),\"\"))","v":""},"",""]
[null,null,null,null,null,null,null,null,null,null,null,null,null,null,null,null,null,null,null,null,null,{"$f":"IF(COUNTIF(B843,\"*Virement*\"),\"VIR\"&COUNTIF($V$7:V842,\"VIR*\"),IF(COUNTIF($B$8:B843,B843)=1,\"AUT\"&COUNTIF($V$7:V842,\"AUT*\"),\"\"))","v":""},"",""]
[null,null,null,null,null,null,null,null,null,null,null,null,null,null,null,null,null,null,null,null,null,{"$f":"IF(COUNTIF(B844,\"*Virement*\"),\"VIR\"&COUNTIF($V$7:V843,\"VIR*\"),IF(COUNTIF($B$8:B844,B844)=1,\"AUT\"&COUNTIF($V$7:V843,\"AUT*\"),\"\"))","v":""},"",""]
[null,null,null,null,null,null,null,null,null,null,null,null,null,null,null,null,null,null,null,null,null,{"$f":"IF(COUNTIF(B845,\"*Virement*\"),\"VIR\"&COUNTIF($V$7:V844,\"VIR*\"),IF(COUNTIF($B$8:B845,B845)=1,\"AUT\"&COUNTIF($V$7:V844,\"AUT*\"),\"\"))","v":""},"",""]
[null,null,null,null,null,null,null,null,null,null,null,null,null,null,null,null,null,null,null,null,null,{"$f":"IF(COUNTIF(B846,\"*Virement*\"),\"VIR\"&COUNTIF($V$7:V845,\"VIR*\"),IF(COUNTIF($B$8:B846,B846)=1,\"AUT\"&COUNTIF($V$7:V845,\"AUT*\"),\"\"))","v":""},"",""]
[null,null,null,null,null,null,null,null,null,null,null,null,null,null,null,null,null,null,null,null,null,{"$f":"IF(COUNTIF(B847,\"*Virement*\"),\"VIR\"&COUNTIF($V$7:V846,\"VIR*\"),IF(COUNTIF($B$8:B847,B847)=1,\"AUT\"&COUNTIF($V$7:V846,\"AUT*\"),\"\"))","v":""},"",""]
[null,null,null,null,null,null,null,null,null,null,null,null,null,null,null,null,null,null,null,null,null,{"$f":"IF(COUNTIF(B848,\"*Virement*\"),\"VIR\"&COUNTIF($V$7:V847,\"VIR*\"),IF(COUNTIF($B$8:B848,B848)=1,\"AUT\"&COUNTIF($V$7:V847,\"AUT*\"),\"\"))","v":""},"",""]
[null,null,null,null,null,null,null,null,null,null,null,null,null,null,null,null,null,null,null,null,null,{"$f":"IF(COUNTIF(B849,\"*Virement*\"),\"VIR\"&COUNTIF($V$7:V848,\"VIR*\"),IF(COUNTIF($B$8:B849,B849)=1,\"AUT\"&COUNTIF($V$7:V848,\"AUT*\"),\"\"))","v":""},"",""]
[null,null,null,null,null,null,null,null,null,null,null,null,null,null,null,null,null,null,null,null,null,{"$f":"IF(COUNTIF(B850,\"*Virement*\"),\"VIR\"&COUNTIF($V$7:V849,\"VIR*\"),IF(COUNTIF($B$8:B850,B850)=1,\"AUT\"&COUNTIF($V$7:V849,\"AUT*\"),\"\"))","v":""},"",""]
[null,null,null,null,null,null,null,null,null,null,null,null,null,null,null,null,null,null,null,null,null,{"$f":"IF(COUNTIF(B851,\"*Virement*\"),\"VIR\"&COUNTIF($V$7:V850,\"VIR*\"),IF(COUNTIF($B$8:B851,B851)=1,\"AUT\"&COUNTIF($V$7:V850,\"AUT*\"),\"\"))","v":""},"",""]
[null,null,null,null,null,null,null,null,null,null,null,null,null,null,null,null,null,null,null,null,null,{"$f":"IF(COUNTIF(B852,\"*Virement*\"),\"VIR\"&COUNTIF($V$7:V851,\"VIR*\"),IF(COUNTIF($B$8:B852,B852)=1,\"AUT\"&COUNTIF($V$7:V851,\"AUT*\"),\"\"))","v":""},"",""]
[null,null,null,null,null,null,null,null,null,null,null,null,null,null,null,null,null,null,null,null,null,{"$f":"IF(COUNTIF(B853,\"*Virement*\"),\"VIR\"&COUNTIF($V$7:V852,\"VIR*\"),IF(COUNTIF($B$8:B853,B853)=1,\"AUT\"&COUNTIF($V$7:V852,\"AUT*\"),\"\"))","v":""},"",""]
[null,null,null,null,null,null,null,null,null,null,null,null,null,null,null,null,null,null,null,null,null,{"$f":"IF(COUNTIF(B854,\"*Virement*\"),\"VIR\"&COUNTIF($V$7:V853,\"VIR*\"),IF(COUNTIF($B$8:B854,B854)=1,\"AUT\"&COUNTIF($V$7:V853,\"AUT*\"),\"\"))","v":""},"",""]
[null,null,null,null,null,null,null,null,null,null,null,null,null,null,null,null,null,null,null,null,null,{"$f":"IF(COUNTIF(B855,\"*Virement*\"),\"VIR\"&COUNTIF($V$7:V854,\"VIR*\"),IF(COUNTIF($B$8:B855,B855)=1,\"AUT\"&COUNTIF($V$7:V854,\"AUT*\"),\"\"))","v":""},"",""]
[null,null,null,null,null,null,null,null,null,null,null,null,null,null,null,null,null,null,null,null,null,{"$f":"IF(COUNTIF(B856,\"*Virement*\"),\"VIR\"&COUNTIF($V$7:V855,\"VIR*\"),IF(COUNTIF($B$8:B856,B856)=1,\"AUT\"&COUNTIF($V$7:V855,\"AUT*\"),\"\"))","v":""},"",""]
[null,null,null,null,null,null,null,null,null,null,null,null,null,null,null,null,null,null,null,null,null,{"$f":"IF(COUNTIF(B857,\"*Virement*\"),\"VIR\"&COUNTIF($V$7:V856,\"VIR*\"),IF(COUNTIF($B$8:B857,B857)=1,\"AUT\"&COUNTIF($V$7:V856,\"AUT*\"),\"\"))","v":""},"",""]
[null,null,null,null,null,null,null,null,null,null,null,null,null,null,null,null,null,null,null,null,null,{"$f":"IF(COUNTIF(B858,\"*Virement*\"),\"VIR\"&COUNTIF($V$7:V857,\"VIR*\"),IF(COUNTIF($B$8:B858,B858)=1,\"AUT\"&COUNTIF($V$7:V857,\"AUT*\"),\"\"))","v":""},"",""]
[null,null,null,null,null,null,null,null,null,null,null,null,null,null,null,null,null,null,null,null,null,{"$f":"IF(COUNTIF(B859,\"*Virement*\"),\"VIR\"&COUNTIF($V$7:V858,\"VIR*\"),IF(COUNTIF($B$8:B859,B859)=1,\"AUT\"&COUNTIF($V$7:V858,\"AUT*\"),\"\"))","v":""},"",""]
[null,null,null,null,null,null,null,null,null,null,null,null,null,null,null,null,null,null,null,null,null,{"$f":"IF(COUNTIF(B860,\"*Virement*\"),\"VIR\"&COUNTIF($V$7:V859,\"VIR*\"),IF(COUNTIF($B$8:B860,B860)=1,\"AUT\"&COUNTIF($V$7:V859,\"AUT*\"),\"\"))","v":""},"",""]
[null,null,null,null,null,null,null,null,null,null,null,null,null,null,null,null,null,null,null,null,null,{"$f":"IF(COUNTIF(B861,\"*Virement*\"),\"VIR\"&COUNTIF($V$7:V860,\"VIR*\"),IF(COUNTIF($B$8:B861,B861)=1,\"AUT\"&COUNTIF($V$7:V860,\"AUT*\"),\"\"))","v":""},"",""]
[null,null,null,null,null,null,null,null,null,null,null,null,null,null,null,null,null,null,null,null,null,{"$f":"IF(COUNTIF(B862,\"*Virement*\"),\"VIR\"&COUNTIF($V$7:V861,\"VIR*\"),IF(COUNTIF($B$8:B862,B862)=1,\"AUT\"&COUNTIF($V$7:V861,\"AUT*\"),\"\"))","v":""},"",""]
[null,null,null,null,null,null,null,null,null,null,null,null,null,null,null,null,null,null,null,null,null,{"$f":"IF(COUNTIF(B863,\"*Virement*\"),\"VIR\"&COUNTIF($V$7:V862,\"VIR*\"),IF(COUNTIF($B$8:B863,B863)=1,\"AUT\"&COUNTIF($V$7:V862,\"AUT*\"),\"\"))","v":""},"",""]
[null,null,null,null,null,null,null,null,null,null,null,null,null,null,null,null,null,null,null,null,null,{"$f":"IF(COUNTIF(B864,\"*Virement*\"),\"VIR\"&COUNTIF($V$7:V863,\"VIR*\"),IF(COUNTIF($B$8:B864,B864)=1,\"AUT\"&COUNTIF($V$7:V863,\"AUT*\"),\"\"))","v":""},"",""]
[null,null,null,null,null,null,null,null,null,null,null,null,null,null,null,null,null,null,null,null,null,{"$f":"IF(COUNTIF(B865,\"*Virement*\"),\"VIR\"&COUNTIF($V$7:V864,\"VIR*\"),IF(COUNTIF($B$8:B865,B865)=1,\"AUT\"&COUNTIF($V$7:V864,\"AUT*\"),\"\"))","v":""},"",""]
[null,null,null,null,null,null,null,null,null,null,null,null,null,null,null,null,null,null,null,null,null,{"$f":"IF(COUNTIF(B866,\"*Virement*\"),\"VIR\"&COUNTIF($V$7:V865,\"VIR*\"),IF(COUNTIF($B$8:B866,B866)=1,\"AUT\"&COUNTIF($V$7:V865,\"AUT*\"),\"\"))","v":""},"",""]
[null,null,null,null,null,null,null,null,null,null,null,null,null,null,null,null,null,null,null,null,null,{"$f":"IF(COUNTIF(B867,\"*Virement*\"),\"VIR\"&COUNTIF($V$7:V866,\"VIR*\"),IF(COUNTIF($B$8:B867,B867)=1,\"AUT\"&COUNTIF($V$7:V866,\"AUT*\"),\"\"))","v":""},"",""]
[null,null,null,null,null,null,null,null,null,null,null,null,null,null,null,null,null,null,null,null,null,{"$f":"IF(COUNTIF(B868,\"*Virement*\"),\"VIR\"&COUNTIF($V$7:V867,\"VIR*\"),IF(COUNTIF($B$8:B868,B868)=1,\"AUT\"&COUNTIF($V$7:V867,\"AUT*\"),\"\"))","v":""},"",""]
[null,null,null,null,null,null,null,null,null,null,null,null,null,null,null,null,null,null,null,null,null,{"$f":"IF(COUNTIF(B869,\"*Virement*\"),\"VIR\"&COUNTIF($V$7:V868,\"VIR*\"),IF(COUNTIF($B$8:B869,B869)=1,\"AUT\"&COUNTIF($V$7:V868,\"AUT*\"),\"\"))","v":""},"",""]
[null,null,null,null,null,null,null,null,null,null,null,null,null,null,null,null,null,null,null,null,null,{"$f":"IF(COUNTIF(B870,\"*Virement*\"),\"VIR\"&COUNTIF($V$7:V869,\"VIR*\"),IF(COUNTIF($B$8:B870,B870)=1,\"AUT\"&COUNTIF($V$7:V869,\"AUT*\"),\"\"))","v":""},"",""]
[null,null,null,null,null,null,null,null,null,null,null,null,null,null,null,null,null,null,null,null,null,{"$f":"IF(COUNTIF(B871,\"*Virement*\"),\"VIR\"&COUNTIF($V$7:V870,\"VIR*\"),IF(COUNTIF($B$8:B871,B871)=1,\"AUT\"&COUNTIF($V$7:V870,\"AUT*\"),\"\"))","v":""},"",""]
[null,null,null,null,null,null,null,null,null,null,null,null,null,null,null,null,null,null,null,null,null,{"$f":"IF(COUNTIF(B872,\"*Virement*\"),\"VIR\"&COUNTIF($V$7:V871,\"VIR*\"),IF(COUNTIF($B$8:B872,B872)=1,\"AUT\"&COUNTIF($V$7:V871,\"AUT*\"),\"\"))","v":""},"",""]
[null,null,null,null,null,null,null,null,null,null,null,null,null,null,null,null,null,null,null,null,null,{"$f":"IF(COUNTIF(B873,\"*Virement*\"),\"VIR\"&COUNTIF($V$7:V872,\"VIR*\"),IF(COUNTIF($B$8:B873,B873)=1,\"AUT\"&COUNTIF($V$7:V872,\"AUT*\"),\"\"))","v":""},"",""]
[null,null,null,null,null,null,null,null,null,null,null,null,null,null,null,null,null,null,null,null,null,{"$f":"IF(COUNTIF(B874,\"*Virement*\"),\"VIR\"&COUNTIF($V$7:V873,\"VIR*\"),IF(COUNTIF($B$8:B874,B874)=1,\"AUT\"&COUNTIF($V$7:V873,\"AUT*\"),\"\"))","v":""},"",""]
[null,null,null,null,null,null,null,null,null,null,null,null,null,null,null,null,null,null,null,null,null,{"$f":"IF(COUNTIF(B875,\"*Virement*\"),\"VIR\"&COUNTIF($V$7:V874,\"VIR*\"),IF(COUNTIF($B$8:B875,B875)=1,\"AUT\"&COUNTIF($V$7:V874,\"AUT*\"),\"\"))","v":""},"",""]
[null,null,null,null,null,null,null,null,null,null,null,null,null,null,null,null,null,null,null,null,null,{"$f":"IF(COUNTIF(B876,\"*Virement*\"),\"VIR\"&COUNTIF($V$7:V875,\"VIR*\"),IF(COUNTIF($B$8:B876,B876)=1,\"AUT\"&COUNTIF($V$7:V875,\"AUT*\"),\"\"))","v":""},"",""]
[null,null,null,null,null,null,null,null,null,null,null,null,null,null,null,null,null,null,null,null,null,{"$f":"IF(COUNTIF(B877,\"*Virement*\"),\"VIR\"&COUNTIF($V$7:V876,\"VIR*\"),IF(COUNTIF($B$8:B877,B877)=1,\"AUT\"&COUNTIF($V$7:V876,\"AUT*\"),\"\"))","v":""},"",""]
[null,null,null,null,null,null,null,null,null,null,null,null,null,null,null,null,null,null,null,null,null,{"$f":"IF(COUNTIF(B878,\"*Virement*\"),\"VIR\"&COUNTIF($V$7:V877,\"VIR*\"),IF(COUNTIF($B$8:B878,B878)=1,\"AUT\"&COUNTIF($V$7:V877,\"AUT*\"),\"\"))","v":""},"",""]
[null,null,null,null,null,null,null,null,null,null,null,null,null,null,null,null,null,null,null,null,null,{"$f":"IF(COUNTIF(B879,\"*Virement*\"),\"VIR\"&COUNTIF($V$7:V878,\"VIR*\"),IF(COUNTIF($B$8:B879,B879)=1,\"AUT\"&COUNTIF($V$7:V878,\"AUT*\"),\"\"))","v":""},"",""]
[null,null,null,null,null,null,null,null,null,null,null,null,null,null,null,null,null,null,null,null,null,{"$f":"IF(COUNTIF(B880,\"*Virement*\"),\"VIR\"&COUNTIF($V$7:V879,\"VIR*\"),IF(COUNTIF($B$8:B880,B880)=1,\"AUT\"&COUNTIF($V$7:V879,\"AUT*\"),\"\"))","v":""},"",""]
[null,null,null,null,null,null,null,null,null,null,null,null,null,null,null,null,null,null,null,null,null,{"$f":"IF(COUNTIF(B881,\"*Virement*\"),\"VIR\"&COUNTIF($V$7:V880,\"VIR*\"),IF(COUNTIF($B$8:B881,B881)=1,\"AUT\"&COUNTIF($V$7:V880,\"AUT*\"),\"\"))","v":""},"",""]
[null,null,null,null,null,null,null,null,null,null,null,null,null,null,null,null,null,null,null,null,null,{"$f":"IF(COUNTIF(B882,\"*Virement*\"),\"VIR\"&COUNTIF($V$7:V881,\"VIR*\"),IF(COUNTIF($B$8:B882,B882)=1,\"AUT\"&COUNTIF($V$7:V881,\"AUT*\"),\"\"))","v":""},"",""]
[null,null,null,null,null,null,null,null,null,null,null,null,null,null,null,null,null,null,null,null,null,{"$f":"IF(COUNTIF(B883,\"*Virement*\"),\"VIR\"&COUNTIF($V$7:V882,\"VIR*\"),IF(COUNTIF($B$8:B883,B883)=1,\"AUT\"&COUNTIF($V$7:V882,\"AUT*\"),\"\"))","v":""},"",""]
[null,null,null,null,null,null,null,null,null,null,null,null,null,null,null,null,null,null,null,null,null,{"$f":"IF(COUNTIF(B884,\"*Virement*\"),\"VIR\"&COUNTIF($V$7:V883,\"VIR*\"),IF(COUNTIF($B$8:B884,B884)=1,\"AUT\"&COUNTIF($V$7:V883,\"AUT*\"),\"\"))","v":""},"",""]
[null,null,null,null,null,null,null,null,null,null,null,null,null,null,null,null,null,null,null,null,null,{"$f":"IF(COUNTIF(B885,\"*Virement*\"),\"VIR\"&COUNTIF($V$7:V884,\"VIR*\"),IF(COUNTIF($B$8:B885,B885)=1,\"AUT\"&COUNTIF($V$7:V884,\"AUT*\"),\"\"))","v":""},"",""]
[null,null,null,null,null,null,null,null,null,null,null,null,null,null,null,null,null,null,null,null,null,{"$f":"IF(COUNTIF(B886,\"*Virement*\"),\"VIR\"&COUNTIF($V$7:V885,\"VIR*\"),IF(COUNTIF($B$8:B886,B886)=1,\"AUT\"&COUNTIF($V$7:V885,\"AUT*\"),\"\"))","v":""},"",""]
[null,null,null,null,null,null,null,null,null,null,null,null,null,null,null,null,null,null,null,null,null,{"$f":"IF(COUNTIF(B887,\"*Virement*\"),\"VIR\"&COUNTIF($V$7:V886,\"VIR*\"),IF(COUNTIF($B$8:B887,B887)=1,\"AUT\"&COUNTIF($V$7:V886,\"AUT*\"),\"\"))","v":""},"",""]
[null,null,null,null,null,null,null,null,null,null,null,null,null,null,null,null,null,null,null,null,null,{"$f":"IF(COUNTIF(B888,\"*Virement*\"),\"VIR\"&COUNTIF($V$7:V887,\"VIR*\"),IF(COUNTIF($B$8:B888,B888)=1,\"AUT\"&COUNTIF($V$7:V887,\"AUT*\"),\"\"))","v":""},"",""]
[null,null,null,null,null,null,null,null,null,null,null,null,null,null,null,null,null,null,null,null,null,{"$f":"IF(COUNTIF(B889,\"*Virement*\"),\"VIR\"&COUNTIF($V$7:V888,\"VIR*\"),IF(COUNTIF($B$8:B889,B889)=1,\"AUT\"&COUNTIF($V$7:V888,\"AUT*\"),\"\"))","v":""},"",""]
[null,null,null,null,null,null,null,null,null,null,null,null,null,null,null,null,null,null,null,null,null,{"$f":"IF(COUNTIF(B890,\"*Virement*\"),\"VIR\"&COUNTIF($V$7:V889,\"VIR*\"),IF(COUNTIF($B$8:B890,B890)=1,\"AUT\"&COUNTIF($V$7:V889,\"AUT*\"),\"\"))","v":""},"",""]
[null,null,null,null,null,null,null,null,null,null,null,null,null,null,null,null,null,null,null,null,null,{"$f":"IF(COUNTIF(B891,\"*Virement*\"),\"VIR\"&COUNTIF($V$7:V890,\"VIR*\"),IF(COUNTIF($B$8:B891,B891)=1,\"AUT\"&COUNTIF($V$7:V890,\"AUT*\"),\"\"))","v":""},"",""]
[null,null,null,null,null,null,null,null,null,null,null,null,null,null,null,null,null,null,null,null,null,{"$f":"IF(COUNTIF(B892,\"*Virement*\"),\"VIR\"&COUNTIF($V$7:V891,\"VIR*\"),IF(COUNTIF($B$8:B892,B892)=1,\"AUT\"&COUNTIF($V$7:V891,\"AUT*\"),\"\"))","v":""},"",""]
[null,null,null,null,null,null,null,null,null,null,null,null,null,null,null,null,null,null,null,null,null,{"$f":"IF(COUNTIF(B893,\"*Virement*\"),\"VIR\"&COUNTIF($V$7:V892,\"VIR*\"),IF(COUNTIF($B$8:B893,B893)=1,\"AUT\"&COUNTIF($V$7:V892,\"AUT*\"),\"\"))","v":""},"",""]
[null,null,null,null,null,null,null,null,null,null,null,null,null,null,null,null,null,null,null,null,null,{"$f":"IF(COUNTIF(B894,\"*Virement*\"),\"VIR\"&COUNTIF($V$7:V893,\"VIR*\"),IF(COUNTIF($B$8:B894,B894)=1,\"AUT\"&COUNTIF($V$7:V893,\"AUT*\"),\"\"))","v":""},"",""]
[null,null,null,null,null,null,null,null,null,null,null,null,null,null,null,null,null,null,null,null,null,{"$f":"IF(COUNTIF(B895,\"*Virement*\"),\"VIR\"&COUNTIF($V$7:V894,\"VIR*\"),IF(COUNTIF($B$8:B895,B895)=1,\"AUT\"&COUNTIF($V$7:V894,\"AUT*\"),\"\"))","v":""},"",""]
[null,null,null,null,null,null,null,null,null,null,null,null,null,null,null,null,null,null,null,null,null,{"$f":"IF(COUNTIF(B896,\"*Virement*\"),\"VIR\"&COUNTIF($V$7:V895,\"VIR*\"),IF(COUNTIF($B$8:B896,B896)=1,\"AUT\"&COUNTIF($V$7:V895,\"AUT*\"),\"\"))","v":""},"",""]
[null,null,null,null,null,null,null,null,null,null,null,null,null,null,null,null,null,null,null,null,null,{"$f":"IF(COUNTIF(B897,\"*Virement*\"),\"VIR\"&COUNTIF($V$7:V896,\"VIR*\"),IF(COUNTIF($B$8:B897,B897)=1,\"AUT\"&COUNTIF($V$7:V896,\"AUT*\"),\"\"))","v":""},"",""]
[null,null,null,null,null,null,null,null,null,null,null,null,null,null,null,null,null,null,null,null,null,{"$f":"IF(COUNTIF(B898,\"*Virement*\"),\"VIR\"&COUNTIF($V$7:V897,\"VIR*\"),IF(COUNTIF($B$8:B898,B898)=1,\"AUT\"&COUNTIF($V$7:V897,\"AUT*\"),\"\"))","v":""},"",""]
[null,null,null,null,null,null,null,null,null,null,null,null,null,null,null,null,null,null,null,null,null,{"$f":"IF(COUNTIF(B899,\"*Virement*\"),\"VIR\"&COUNTIF($V$7:V898,\"VIR*\"),IF(COUNTIF($B$8:B899,B899)=1,\"AUT\"&COUNTIF($V$7:V898,\"AUT*\"),\"\"))","v":""},"",""]
[null,null,null,null,null,null,null,null,null,null,null,null,null,null,null,null,null,null,null,null,null,{"$f":"IF(COUNTIF(B900,\"*Virement*\"),\"VIR\"&COUNTIF($V$7:V899,\"VIR*\"),IF(COUNTIF($B$8:B900,B900)=1,\"AUT\"&COUNTIF($V$7:V899,\"AUT*\"),\"\"))","v":""},"",""]
[null,null,null,null,null,null,null,null,null,null,null,null,null,null,null,null,null,null,null,null,null,{"$f":"IF(COUNTIF(B901,\"*Virement*\"),\"VIR\"&COUNTIF($V$7:V900,\"VIR*\"),IF(COUNTIF($B$8:B901,B901)=1,\"AUT\"&COUNTIF($V$7:V900,\"AUT*\"),\"\"))","v":""},"",""]
[null,null,null,null,null,null,null,null,null,null,null,null,null,null,null,null,null,null,null,null,null,{"$f":"IF(COUNTIF(B902,\"*Virement*\"),\"VIR\"&COUNTIF($V$7:V901,\"VIR*\"),IF(COUNTIF($B$8:B902,B902)=1,\"AUT\"&COUNTIF($V$7:V901,\"AUT*\"),\"\"))","v":""},"",""]
[null,null,null,null,null,null,null,null,null,null,null,null,null,null,null,null,null,null,null,null,null,{"$f":"IF(COUNTIF(B903,\"*Virement*\"),\"VIR\"&COUNTIF($V$7:V902,\"VIR*\"),IF(COUNTIF($B$8:B903,B903)=1,\"AUT\"&COUNTIF($V$7:V902,\"AUT*\"),\"\"))","v":""},"",""]
[null,null,null,null,null,null,null,null,null,null,null,null,null,null,null,null,null,null,null,null,null,{"$f":"IF(COUNTIF(B904,\"*Virement*\"),\"VIR\"&COUNTIF($V$7:V903,\"VIR*\"),IF(COUNTIF($B$8:B904,B904)=1,\"AUT\"&COUNTIF($V$7:V903,\"AUT*\"),\"\"))","v":""},"",""]
[null,null,null,null,null,null,null,null,null,null,null,null,null,null,null,null,null,null,null,null,null,{"$f":"IF(COUNTIF(B905,\"*Virement*\"),\"VIR\"&COUNTIF($V$7:V904,\"VIR*\"),IF(COUNTIF($B$8:B905,B905)=1,\"AUT\"&COUNTIF($V$7:V904,\"AUT*\"),\"\"))","v":""},{"$f":"IFERROR(INDEX(B:B,MATCH(\"VIR\"&ROW()-8,V:V,0)),\"\")","v":""},{"$f":"IFERROR(INDEX($B:$B,MATCH(\"AUT\"&ROW()-8,$V:$V,0)),\"\")","v":""}]
[null,null,null,null,null,null,null,null,null,null,null,null,null,null,null,null,null,null,null,null,null,{"$f":"IF(COUNTIF(B906,\"*Virement*\"),\"VIR\"&COUNTIF($V$7:V905,\"VIR*\"),IF(COUNTIF($B$8:B906,B906)=1,\"AUT\"&COUNTIF($V$7:V905,\"AUT*\"),\"\"))","v":""},"",""]
[null,null,null,null,null,null,null,null,null,null,null,null,null,null,null,null,null,null,null,null,null,{"$f":"IF(COUNTIF(B907,\"*Virement*\"),\"VIR\"&COUNTIF($V$7:V906,\"VIR*\"),IF(COUNTIF($B$8:B907,B907)=1,\"AUT\"&COUNTIF($V$7:V906,\"AUT*\"),\"\"))","v":""},"",""]
[null,null,null,null,null,null,null,null,null,null,null,null,null,null,null,null,null,null,null,null,null,{"$f":"IF(COUNTIF(B908,\"*Virement*\"),\"VIR\"&COUNTIF($V$7:V907,\"VIR*\"),IF(COUNTIF($B$8:B908,B908)=1,\"AUT\"&COUNTIF($V$7:V907,\"AUT*\"),\"\"))","v":""},"",""]
[null,null,null,null,null,null,null,null,null,null,null,null,null,null,null,null,null,null,null,null,null,{"$f":"IF(COUNTIF(B909,\"*Virement*\"),\"VIR\"&COUNTIF($V$7:V908,\"VIR*\"),IF(COUNTIF($B$8:B909,B909)=1,\"AUT\"&COUNTIF($V$7:V908,\"AUT*\"),\"\"))","v":""},"",""]
[null,null,null,null,null,null,null,null,null,null,null,null,null,null,null,null,null,null,null,null,null,{"$f":"IF(COUNTIF(B910,\"*Virement*\"),\"VIR\"&COUNTIF($V$7:V909,\"VIR*\"),IF(COUNTIF($B$8:B910,B910)=1,\"AUT\"&COUNTIF($V$7:V909,\"AUT*\"),\"\"))","v":""},"",""]
[null,null,null,null,null,null,null,null,null,null,null,null,null,null,null,null,null,null,null,null,null,{"$f":"IF(COUNTIF(B911,\"*Virement*\"),\"VIR\"&COUNTIF($V$7:V910,\"VIR*\"),IF(COUNTIF($B$8:B911,B911)=1,\"AUT\"&COUNTIF($V$7:V910,\"AUT*\"),\"\"))","v":""},"",""]
[null,null,null,null,null,null,null,null,null,null,null,null,null,null,null,null,null,null,null,null,null,{"$f":"IF(COUNTIF(B912,\"*Virement*\"),\"VIR\"&COUNTIF($V$7:V911,\"VIR*\"),IF(COUNTIF($B$8:B912,B912)=1,\"AUT\"&COUNTIF($V$7:V911,\"AUT*\"),\"\"))","v":""},"",""]
[null,null,null,null,null,null,null,null,null,null,null,null,null,null,null,null,null,null,null,null,null,{"$f":"IF(COUNTIF(B913,\"*Virement*\"),\"VIR\"&COUNTIF($V$7:V912,\"VIR*\"),IF(COUNTIF($B$8:B913,B913)=1,\"AUT\"&COUNTIF($V$7:V912,\"AUT*\"),\"\"))","v":""},"",""]
[null,null,null,null,null,null,null,null,null,null,null,null,null,null,null,null,null,null,null,null,null,{"$f":"IF(COUNTIF(B914,\"*Virement*\"),\"VIR\"&COUNTIF($V$7:V913,\"VIR*\"),IF(COUNTIF($B$8:B914,B914)=1,\"AUT\"&COUNTIF($V$7:V913,\"AUT*\"),\"\"))","v":""},"",""]
[null,null,null,null,null,null,null,null,null,null,null,null,null,null,null,null,null,null,null,null,null,{"$f":"IF(COUNTIF(B915,\"*Virement*\"),\"VIR\"&COUNTIF($V$7:V914,\"VIR*\"),IF(COUNTIF($B$8:B915,B915)=1,\"AUT\"&COUNTIF($V$7:V914,\"AUT*\"),\"\"))","v":""},"",""]
[null,null,null,null,null,null,null,null,null,null,null,null,null,null,null,null,null,null,null,null,null,{"$f":"IF(COUNTIF(B916,\"*Virement*\"),\"VIR\"&COUNTIF($V$7:V915,\"VIR*\"),IF(COUNTIF($B$8:B916,B916)=1,\"AUT\"&COUNTIF($V$7:V915,\"AUT*\"),\"\"))","v":""},"",""]
[null,null,null,null,null,null,null,null,null,null,null,null,null,null,null,null,null,null,null,null,null,{"$f":"IF(COUNTIF(B917,\"*Virement*\"),\"VIR\"&COUNTIF($V$7:V916,\"VIR*\"),IF(COUNTIF($B$8:B917,B917)=1,\"AUT\"&COUNTIF($V$7:V916,\"AUT*\"),\"\"))","v":""},"",""]
[null,null,null,null,null,null,null,null,null,null,null,null,null,null,null,null,null,null,null,null,null,{"$f":"IF(COUNTIF(B918,\"*Virement*\"),\"VIR\"&COUNTIF($V$7:V917,\"VIR*\"),IF(COUNTIF($B$8:B918,B918)=1,\"AUT\"&COUNTIF($V$7:V917,\"AUT*\"),\"\"))","v":""},"",""]
[null,null,null,null,null,null,null,null,null,null,null,null,null,null,null,null,null,null,null,null,null,{"$f":"IF(COUNTIF(B919,\"*Virement*\"),\"VIR\"&COUNTIF($V$7:V918,\"VIR*\"),IF(COUNTIF($B$8:B919,B919)=1,\"AUT\"&COUNTIF($V$7:V918,\"AUT*\"),\"\"))","v":""},"",""]
[null,null,null,null,null,null,null,null,null,null,null,null,null,null,null,null,null,null,null,null,null,{"$f":"IF(COUNTIF(B920,\"*Virement*\"),\"VIR\"&COUNTIF($V$7:V919,\"VIR*\"),IF(COUNTIF($B$8:B920,B920)=1,\"AUT\"&COUNTIF($V$7:V919,\"AUT*\"),\"\"))","v":""},"",""]
[null,null,null,null,null,null,null,null,null,null,null,null,null,null,null,null,null,null,null,null,null,{"$f":"IF(COUNTIF(B921,\"*Virement*\"),\"VIR\"&COUNTIF($V$7:V920,\"VIR*\"),IF(COUNTIF($B$8:B921,B921)=1,\"AUT\"&COUNTIF($V$7:V920,\"AUT*\"),\"\"))","v":""},"",""]
[null,null,null,null,null,null,null,null,null,null,null,null,null,null,null,null,null,null,null,null,null,{"$f":"IF(COUNTIF(B922,\"*Virement*\"),\"VIR\"&COUNTIF($V$7:V921,\"VIR*\"),IF(COUNTIF($B$8:B922,B922)=1,\"AUT\"&COUNTIF($V$7:V921,\"AUT*\"),\"\"))","v":""},"",""]
[null,null,null,null,null,null,null,null,null,null,null,null,null,null,null,null,null,null,null,null,null,{"$f":"IF(COUNTIF(B923,\"*Virement*\"),\"VIR\"&COUNTIF($V$7:V922,\"VIR*\"),IF(COUNTIF($B$8:B923,B923)=1,\"AUT\"&COUNTIF($V$7:V922,\"AUT*\"),\"\"))","v":""},"",""]
[null,null,null,null,null,null,null,null,null,null,null,null,null,null,null,null,null,null,null,null,null,{"$f":"IF(COUNTIF(B924,\"*Virement*\"),\"VIR\"&COUNTIF($V$7:V923,\"VIR*\"),IF(COUNTIF($B$8:B924,B924)=1,\"AUT\"&COUNTIF($V$7:V923,\"AUT*\"),\"\"))","v":""},"",""]
[null,null,null,null,null,null,null,null,null,null,null,null,null,null,null,null,null,null,null,null,null,{"$f":"IF(COUNTIF(B925,\"*Virement*\"),\"VIR\"&COUNTIF($V$7:V924,\"VIR*\"),IF(COUNTIF($B$8:B925,B925)=1,\"AUT\"&COUNTIF($V$7:V924,\"AUT*\"),\"\"))","v":""},"",""]
[null,null,null,null,null,null,null,null,null,null,null,null,null,null,null,null,null,null,null,null,null,{"$f":"IF(COUNTIF(B926,\"*Virement*\"),\"VIR\"&COUNTIF($V$7:V925,\"VIR*\"),IF(COUNTIF($B$8:B926,B926)=1,\"AUT\"&COUNTIF($V$7:V925,\"AUT*\"),\"\"))","v":""},"",""]
[null,null,null,null,null,null,null,null,null,null,null,null,null,null,null,null,null,null,null,null,null,{"$f":"IF(COUNTIF(B927,\"*Virement*\"),\"VIR\"&COUNTIF($V$7:V926,\"VIR*\"),IF(COUNTIF($B$8:B927,B927)=1,\"AUT\"&COUNTIF($V$7:V926,\"AUT*\"),\"\"))","v":""},"",""]
[null,null,null,null,null,null,null,null,null,null,null,null,null,null,null,null,null,null,null,null,null,{"$f":"IF(COUNTIF(B928,\"*Virement*\"),\"VIR\"&COUNTIF($V$7:V927,\"VIR*\"),IF(COUNTIF($B$8:B928,B928)=1,\"AUT\"&COUNTIF($V$7:V927,\"AUT*\"),\"\"))","v":""},"",""]
[null,null,null,null,null,null,null,null,null,null,null,null,null,null,null,null,null,null,null,null,null,{"$f":"IF(COUNTIF(B929,\"*Virement*\"),\"VIR\"&COUNTIF($V$7:V928,\"VIR*\"),IF(COUNTIF($B$8:B929,B929)=1,\"AUT\"&COUNTIF($V$7:V928,\"AUT*\"),\"\"))","v":""},"",""]
[null,null,null,null,null,null,null,null,null,null,null,null,null,null,null,null,null,null,null,null,null,{"$f":"IF(COUNTIF(B930,\"*Virement*\"),\"VIR\"&COUNTIF($V$7:V929,\"VIR*\"),IF(COUNTIF($B$8:B930,B930)=1,\"AUT\"&COUNTIF($V$7:V929,\"AUT*\"),\"\"))","v":""},"",""]
[null,null,null,null,null,null,null,null,null,null,null,null,null,null,null,null,null,null,null,null,null,{"$f":"IF(COUNTIF(B931,\"*Virement*\"),\"VIR\"&COUNTIF($V$7:V930,\"VIR*\"),IF(COUNTIF($B$8:B931,B931)=1,\"AUT\"&COUNTIF($V$7:V930,\"AUT*\"),\"\"))","v":""},"",""]
[null,null,null,null,null,null,null,null,null,null,null,null,null,null,null,null,null,null,null,null,null,{"$f":"IF(COUNTIF(B932,\"*Virement*\"),\"VIR\"&COUNTIF($V$7:V931,\"VIR*\"),IF(COUNTIF($B$8:B932,B932)=1,\"AUT\"&COUNTIF($V$7:V931,\"AUT*\"),\"\"))","v":""},"",""]
[null,null,null,null,null,null,null,null,null,null,null,null,null,null,null,null,null,null,null,null,null,{"$f":"IF(COUNTIF(B933,\"*Virement*\"),\"VIR\"&COUNTIF($V$7:V932,\"VIR*\"),IF(COUNTIF($B$8:B933,B933)=1,\"AUT\"&COUNTIF($V$7:V932,\"AUT*\"),\"\"))","v":""},"",""]
[null,null,null,null,null,null,null,null,null,null,null,null,null,null,null,null,null,null,null,null,null,{"$f":"IF(COUNTIF(B934,\"*Virement*\"),\"VIR\"&COUNTIF($V$7:V933,\"VIR*\"),IF(COUNTIF($B$8:B934,B934)=1,\"AUT\"&COUNTIF($V$7:V933,\"AUT*\"),\"\"))","v":""},"",""]
[null,null,null,null,null,null,null,null,null,null,null,null,null,null,null,null,null,null,null,null,null,{"$f":"IF(COUNTIF(B935,\"*Virement*\"),\"VIR\"&COUNTIF($V$7:V934,\"VIR*\"),IF(COUNTIF($B$8:B935,B935)=1,\"AUT\"&COUNTIF($V$7:V934,\"AUT*\"),\"\"))","v":""},"",""]
[null,null,null,null,null,null,null,null,null,null,null,null,null,null,null,null,null,null,null,null,null,{"$f":"IF(COUNTIF(B936,\"*Virement*\"),\"VIR\"&COUNTIF($V$7:V935,\"VIR*\"),IF(COUNTIF($B$8:B936,B936)=1,\"AUT\"&COUNTIF($V$7:V935,\"AUT*\"),\"\"))","v":""},"",""]
[null,null,null,null,null,null,null,null,null,null,null,null,null,null,null,null,null,null,null,null,null,{"$f":"IF(COUNTIF(B937,\"*Virement*\"),\"VIR\"&COUNTIF($V$7:V936,\"VIR*\"),IF(COUNTIF($B$8:B937,B937)=1,\"AUT\"&COUNTIF($V$7:V936,\"AUT*\"),\"\"))","v":""},"",""]
[null,null,null,null,null,null,null,null,null,null,null,null,null,null,null,null,null,null,null,null,null,{"$f":"IF(COUNTIF(B938,\"*Virement*\"),\"VIR\"&COUNTIF($V$7:V937,\"VIR*\"),IF(COUNTIF($B$8:B938,B938)=1,\"AUT\"&COUNTIF($V$7:V937,\"AUT*\"),\"\"))","v":""},"",""]
[null,null,null,null,null,null,null,null,null,null,null,null,null,null,null,null,null,null,null,null,null,{"$f":"IF(COUNTIF(B939,\"*Virement*\"),\"VIR\"&COUNTIF($V$7:V938,\"VIR*\"),IF(COUNTIF($B$8:B939,B939)=1,\"AUT\"&COUNTIF($V$7:V938,\"AUT*\"),\"\"))","v":""},"",""]
[null,null,null,null,null,null,null,null,null,null,null,null,null,null,null,null,null,null,null,null,null,{"$f":"IF(COUNTIF(B940,\"*Virement*\"),\"VIR\"&COUNTIF($V$7:V939,\"VIR*\"),IF(COUNTIF($B$8:B940,B940)=1,\"AUT\"&COUNTIF($V$7:V939,\"AUT*\"),\"\"))","v":""},"",""]
[null,null,null,null,null,null,null,null,null,null,null,null,null,null,null,null,null,null,null,null,null,{"$f":"IF(COUNTIF(B941,\"*Virement*\"),\"VIR\"&COUNTIF($V$7:V940,\"VIR*\"),IF(COUNTIF($B$8:B941,B941)=1,\"AUT\"&COUNTIF($V$7:V940,\"AUT*\"),\"\"))","v":""},"",""]
[null,null,null,null,null,null,null,null,null,null,null,null,null,null,null,null,null,null,null,null,null,{"$f":"IF(COUNTIF(B942,\"*Virement*\"),\"VIR\"&COUNTIF($V$7:V941,\"VIR*\"),IF(COUNTIF($B$8:B942,B942)=1,\"AUT\"&COUNTIF($V$7:V941,\"AUT*\"),\"\"))","v":""},"",""]
[null,null,null,null,null,null,null,null,null,null,null,null,null,null,null,null,null,null,null,null,null,{"$f":"IF(COUNTIF(B943,\"*Virement*\"),\"VIR\"&COUNTIF($V$7:V942,\"VIR*\"),IF(COUNTIF($B$8:B943,B943)=1,\"AUT\"&COUNTIF($V$7:V942,\"AUT*\"),\"\"))","v":""},"",""]
[null,null,null,null,null,null,null,null,null,null,null,null,null,null,null,null,null,null,null,null,null,{"$f":"IF(COUNTIF(B944,\"*Virement*\"),\"VIR\"&COUNTIF($V$7:V943,\"VIR*\"),IF(COUNTIF($B$8:B944,B944)=1,\"AUT\"&COUNTIF($V$7:V943,\"AUT*\"),\"\"))","v":""},"",""]
[null,null,null,null,null,null,null,null,null,null,null,null,null,null,null,null,null,null,null,null,null,{"$f":"IF(COUNTIF(B945,\"*Virement*\"),\"VIR\"&COUNTIF($V$7:V944,\"VIR*\"),IF(COUNTIF($B$8:B945,B945)=1,\"AUT\"&COUNTIF($V$7:V944,\"AUT*\"),\"\"))","v":""},"",""]
[null,null,null,null,null,null,null,null,null,null,null,null,null,null,null,null,null,null,null,null,null,{"$f":"IF(COUNTIF(B946,\"*Virement*\"),\"VIR\"&COUNTIF($V$7:V945,\"VIR*\"),IF(COUNTIF($B$8:B946,B946)=1,\"AUT\"&COUNTIF($V$7:V945,\"AUT*\"),\"\"))","v":""},"",""]
[null,null,null,null,null,null,null,null,null,null,null,null,null,null,null,null,null,null,null,null,null,{"$f":"IF(COUNTIF(B947,\"*Virement*\"),\"VIR\"&COUNTIF($V$7:V946,\"VIR*\"),IF(COUNTIF($B$8:B947,B947)=1,\"AUT\"&COUNTIF($V$7:V946,\"AUT*\"),\"\"))","v":""},"",""]
[null,null,null,null,null,null,null,null,null,null,null,null,null,null,null,null,null,null,null,null,null,{"$f":"IF(COUNTIF(B948,\"*Virement*\"),\"VIR\"&COUNTIF($V$7:V947,\"VIR*\"),IF(COUNTIF($B$8:B948,B948)=1,\"AUT\"&COUNTIF($V$7:V947,\"AUT*\"),\"\"))","v":""},"",""]
[null,null,null,null,null,null,null,null,null,null,null,null,null,null,null,null,null,null,null,null,null,{"$f":"IF(COUNTIF(B949,\"*Virement*\"),\"VIR\"&COUNTIF($V$7:V948,\"VIR*\"),IF(COUNTIF($B$8:B949,B949)=1,\"AUT\"&COUNTIF($V$7:V948,\"AUT*\"),\"\"))","v":""},"",""]
[null,null,null,null,null,null,null,null,null,null,null,null,null,null,null,null,null,null,null,null,null,{"$f":"IF(COUNTIF(B950,\"*Virement*\"),\"VIR\"&COUNTIF($V$7:V949,\"VIR*\"),IF(COUNTIF($B$8:B950,B950)=1,\"AUT\"&COUNTIF($V$7:V949,\"AUT*\"),\"\"))","v":""},"",""]
[null,null,null,null,null,null,null,null,null,null,null,null,null,null,null,null,null,null,null,null,null,{"$f":"IF(COUNTIF(B951,\"*Virement*\"),\"VIR\"&COUNTIF($V$7:V950,\"VIR*\"),IF(COUNTIF($B$8:B951,B951)=1,\"AUT\"&COUNTIF($V$7:V950,\"AUT*\"),\"\"))","v":""},"",""]
[null,null,null,null,null,null,null,null,null,null,null,null,null,null,null,null,null,null,null,null,null,{"$f":"IF(COUNTIF(B952,\"*Virement*\"),\"VIR\"&COUNTIF($V$7:V951,\"VIR*\"),IF(COUNTIF($B$8:B952,B952)=1,\"AUT\"&COUNTIF($V$7:V951,\"AUT*\"),\"\"))","v":""},"",""]
[null,null,null,null,null,null,null,null,null,null,null,null,null,null,null,null,null,null,null,null,null,{"$f":"IF(COUNTIF(B953,\"*Virement*\"),\"VIR\"&COUNTIF($V$7:V952,\"VIR*\"),IF(COUNTIF($B$8:B953,B953)=1,\"AUT\"&COUNTIF($V$7:V952,\"AUT*\"),\"\"))","v":""},"",""]
[null,null,null,null,null,null,null,null,null,null,null,null,null,null,null,null,null,null,null,null,null,{"$f":"IF(COUNTIF(B954,\"*Virement*\"),\"VIR\"&COUNTIF($V$7:V953,\"VIR*\"),IF(COUNTIF($B$8:B954,B954)=1,\"AUT\"&COUNTIF($V$7:V953,\"AUT*\"),\"\"))","v":""},"",""]
[null,null,null,null,null,null,null,null,null,null,null,null,null,null,null,null,null,null,null,null,null,{"$f":"IF(COUNTIF(B955,\"*Virement*\"),\"VIR\"&COUNTIF($V$7:V954,\"VIR*\"),IF(COUNTIF($B$8:B955,B955)=1,\"AUT\"&COUNTIF($V$7:V954,\"AUT*\"),\"\"))","v":""},"",""]
[null,null,null,null,null,null,null,null,null,null,null,null,null,null,null,null,null,null,null,null,null,{"$f":"IF(COUNTIF(B956,\"*Virement*\"),\"VIR\"&COUNTIF($V$7:V955,\"VIR*\"),IF(COUNTIF($B$8:B956,B956)=1,\"AUT\"&COUNTIF($V$7:V955,\"AUT*\"),\"\"))","v":""},"",""]
[null,null,null,null,null,null,null,null,null,null,null,null,null,null,null,null,null,null,null,null,null,{"$f":"IF(COUNTIF(B957,\"*Virement*\"),\"VIR\"&COUNTIF($V$7:V956,\"VIR*\"),IF(COUNTIF($B$8:B957,B957)=1,\"AUT\"&COUNTIF($V$7:V956,\"AUT*\"),\"\"))","v":""},"",""]
[null,null,null,null,null,null,null,null,null,null,null,null,null,null,null,null,null,null,null,null,null,{"$f":"IF(COUNTIF(B958,\"*Virement*\"),\"VIR\"&COUNTIF($V$7:V957,\"VIR*\"),IF(COUNTIF($B$8:B958,B958)=1,\"AUT\"&COUNTIF($V$7:V957,\"AUT*\"),\"\"))","v":""},"",""]
[null,null,null,null,null,null,null,null,null,null,null,null,null,null,null,null,null,null,null,null,null,{"$f":"IF(COUNTIF(B959,\"*Virement*\"),\"VIR\"&COUNTIF($V$7:V958,\"VIR*\"),IF(COUNTIF($B$8:B959,B959)=1,\"AUT\"&COUNTIF($V$7:V958,\"AUT*\"),\"\"))","v":""},"",""]
[null,null,null,null,null,null,null,null,null,null,null,null,null,null,null,null,null,null,null,null,null,{"$f":"IF(COUNTIF(B960,\"*Virement*\"),\"VIR\"&COUNTIF($V$7:V959,\"VIR*\"),IF(COUNTIF($B$8:B960,B960)=1,\"AUT\"&COUNTIF($V$7:V959,\"AUT*\"),\"\"))","v":""},"",""]
[null,null,null,null,null,null,null,null,null,null,null,null,null,null,null,null,null,null,null,null,null,{"$f":"IF(COUNTIF(B961,\"*Virement*\"),\"VIR\"&COUNTIF($V$7:V960,\"VIR*\"),IF(COUNTIF($B$8:B961,B961)=1,\"AUT\"&COUNTIF($V$7:V960,\"AUT*\"),\"\"))","v":""},"",""]
[null,null,null,null,null,null,null,null,null,null,null,null,null,null,null,null,null,null,null,null,null,{"$f":"IF(COUNTIF(B962,\"*Virement*\"),\"VIR\"&COUNTIF($V$7:V961,\"VIR*\"),IF(COUNTIF($B$8:B962,B962)=1,\"AUT\"&COUNTIF($V$7:V961,\"AUT*\"),\"\"))","v":""},"",""]
[null,null,null,null,null,null,null,null,null,null,null,null,null,null,null,null,null,null,null,null,null,{"$f":"IF(COUNTIF(B963,\"*Virement*\"),\"VIR\"&COUNTIF($V$7:V962,\"VIR*\"),IF(COUNTIF($B$8:B963,B963)=1,\"AUT\"&COUNTIF($V$7:V962,\"AUT*\"),\"\"))","v":""},"",""]
[null,null,null,null,null,null,null,null,null,null,null,null,null,null,null,null,null,null,null,null,null,{"$f":"IF(COUNTIF(B964,\"*Virement*\"),\"VIR\"&COUNTIF($V$7:V963,\"VIR*\"),IF(COUNTIF($B$8:B964,B964)=1,\"AUT\"&COUNTIF($V$7:V963,\"AUT*\"),\"\"))","v":""},"",""]
[null,null,null,null,null,null,null,null,null,null,null,null,null,null,null,null,null,null,null,null,null,{"$f":"IF(COUNTIF(B965,\"*Virement*\"),\"VIR\"&COUNTIF($V$7:V964,\"VIR*\"),IF(COUNTIF($B$8:B965,B965)=1,\"AUT\"&COUNTIF($V$7:V964,\"AUT*\"),\"\"))","v":""},"",""]
[null,null,null,null,null,null,null,null,null,null,null,null,null,null,null,null,null,null,null,null,null,{"$f":"IF(COUNTIF(B966,\"*Virement*\"),\"VIR\"&COUNTIF($V$7:V965,\"VIR*\"),IF(COUNTIF($B$8:B966,B966)=1,\"AUT\"&COUNTIF($V$7:V965,\"AUT*\"),\"\"))","v":""},"",""]
[null,null,null,null,null,null,null,null,null,null,null,null,null,null,null,null,null,null,null,null,null,{"$f":"IF(COUNTIF(B967,\"*Virement*\"),\"VIR\"&COUNTIF($V$7:V966,\"VIR*\"),IF(COUNTIF($B$8:B967,B967)=1,\"AUT\"&COUNTIF($V$7:V966,\"AUT*\"),\"\"))","v":""},"",""]
[null,null,null,null,null,null,null,null,null,null,null,null,null,null,null,null,null,null,null,null,null,{"$f":"IF(COUNTIF(B968,\"*Virement*\"),\"VIR\"&COUNTIF($V$7:V967,\"VIR*\"),IF(COUNTIF($B$8:B968,B968)=1,\"AUT\"&COUNTIF($V$7:V967,\"AUT*\"),\"\"))","v":""},"",""]
[null,null,null,null,null,null,null,null,null,null,null,null,null,null,null,null,null,null,null,null,null,{"$f":"IF(COUNTIF(B969,\"*Virement*\"),\"VIR\"&COUNTIF($V$7:V968,\"VIR*\"),IF(COUNTIF($B$8:B969,B969)=1,\"AUT\"&COUNTIF($V$7:V968,\"AUT*\"),\"\"))","v":""},{"$f":"IFERROR(INDEX(B:B,MATCH(\"VIR\"&ROW()-8,V:V,0)),\"\")","v":""},{"$f":"IFERROR(INDEX($B:$B,MATCH(\"AUT\"&ROW()-8,$V:$V,0)),\"\")","v":""}]
[null,null,null,null,null,null,null,null,null,null,null,null,null,null,null,null,null,null,null,null,null,{"$f":"IF(COUNTIF(B970,\"*Virement*\"),\"VIR\"&COUNTIF($V$7:V969,\"VIR*\"),IF(COUNTIF($B$8:B970,B970)=1,\"AUT\"&COUNTIF($V$7:V969,\"AUT*\"),\"\"))","v":""},"",""]
[null,null,null,null,null,null,null,null,null,null,null,null,null,null,null,null,null,null,null,null,null,{"$f":"IF(COUNTIF(B971,\"*Virement*\"),\"VIR\"&COUNTIF($V$7:V970,\"VIR*\"),IF(COUNTIF($B$8:B971,B971)=1,\"AUT\"&COUNTIF($V$7:V970,\"AUT*\"),\"\"))","v":""},"",""]
[null,null,null,null,null,null,null,null,null,null,null,null,null,null,null,null,null,null,null,null,null,{"$f":"IF(COUNTIF(B972,\"*Virement*\"),\"VIR\"&COUNTIF($V$7:V971,\"VIR*\"),IF(COUNTIF($B$8:B972,B972)=1,\"AUT\"&COUNTIF($V$7:V971,\"AUT*\"),\"\"))","v":""},"",""]
[null,null,null,null,null,null,null,null,null,null,null,null,null,null,null,null,null,null,null,null,null,{"$f":"IF(COUNTIF(B973,\"*Virement*\"),\"VIR\"&COUNTIF($V$7:V972,\"VIR*\"),IF(COUNTIF($B$8:B973,B973)=1,\"AUT\"&COUNTIF($V$7:V972,\"AUT*\"),\"\"))","v":""},"",""]
[null,null,null,null,null,null,null,null,null,null,null,null,null,null,null,null,null,null,null,null,null,{"$f":"IF(COUNTIF(B974,\"*Virement*\"),\"VIR\"&COUNTIF($V$7:V973,\"VIR*\"),IF(COUNTIF($B$8:B974,B974)=1,\"AUT\"&COUNTIF($V$7:V973,\"AUT*\"),\"\"))","v":""},"",""]
[null,null,null,null,null,null,null,null,null,null,null,null,null,null,null,null,null,null,null,null,null,{"$f":"IF(COUNTIF(B975,\"*Virement*\"),\"VIR\"&COUNTIF($V$7:V974,\"VIR*\"),IF(COUNTIF($B$8:B975,B975)=1,\"AUT\"&COUNTIF($V$7:V974,\"AUT*\"),\"\"))","v":""},"",""]
[null,null,null,null,null,null,null,null,null,null,null,null,null,null,null,null,null,null,null,null,null,{"$f":"IF(COUNTIF(B976,\"*Virement*\"),\"VIR\"&COUNTIF($V$7:V975,\"VIR*\"),IF(COUNTIF($B$8:B976,B976)=1,\"AUT\"&COUNTIF($V$7:V975,\"AUT*\"),\"\"))","v":""},"",""]
[null,null,null,null,null,null,null,null,null,null,null,null,null,null,null,null,null,null,null,null,null,{"$f":"IF(COUNTIF(B977,\"*Virement*\"),\"VIR\"&COUNTIF($V$7:V976,\"VIR*\"),IF(COUNTIF($B$8:B977,B977)=1,\"AUT\"&COUNTIF($V$7:V976,\"AUT*\"),\"\"))","v":""},"",""]
[null,null,null,null,null,null,null,null,null,null,null,null,null,null,null,null,null,null,null,null,null,{"$f":"IF(COUNTIF(B978,\"*Virement*\"),\"VIR\"&COUNTIF($V$7:V977,\"VIR*\"),IF(COUNTIF($B$8:B978,B978)=1,\"AUT\"&COUNTIF($V$7:V977,\"AUT*\"),\"\"))","v":""},"",""]
[null,null,null,null,null,null,null,null,null,null,null,null,null,null,null,null,null,null,null,null,null,{"$f":"IF(COUNTIF(B979,\"*Virement*\"),\"VIR\"&COUNTIF($V$7:V978,\"VIR*\"),IF(COUNTIF($B$8:B979,B979)=1,\"AUT\"&COUNTIF($V$7:V978,\"AUT*\"),\"\"))","v":""},"",""]
[null,null,null,null,null,null,null,null,null,null,null,null,null,null,null,null,null,null,null,null,null,{"$f":"IF(COUNTIF(B980,\"*Virement*\"),\"VIR\"&COUNTIF($V$7:V979,\"VIR*\"),IF(COUNTIF($B$8:B980,B980)=1,\"AUT\"&COUNTIF($V$7:V979,\"AUT*\"),\"\"))","v":""},"",""]
[null,null,null,null,null,null,null,null,null,null,null,null,null,null,null,null,null,null,null,null,null,{"$f":"IF(COUNTIF(B981,\"*Virement*\"),\"VIR\"&COUNTIF($V$7:V980,\"VIR*\"),IF(COUNTIF($B$8:B981,B981)=1,\"AUT\"&COUNTIF($V$7:V980,\"AUT*\"),\"\"))","v":""},"",""]
[null,null,null,null,null,null,null,null,null,null,null,null,null,null,null,null,null,null,null,null,null,{"$f":"IF(COUNTIF(B982,\"*Virement*\"),\"VIR\"&COUNTIF($V$7:V981,\"VIR*\"),IF(COUNTIF($B$8:B982,B982)=1,\"AUT\"&COUNTIF($V$7:V981,\"AUT*\"),\"\"))","v":""},"",""]
[null,null,null,null,null,null,null,null,null,null,null,null,null,null,null,null,null,null,null,null,null,{"$f":"IF(COUNTIF(B983,\"*Virement*\"),\"VIR\"&COUNTIF($V$7:V982,\"VIR*\"),IF(COUNTIF($B$8:B983,B983)=1,\"AUT\"&COUNTIF($V$7:V982,\"AUT*\"),\"\"))","v":""},"",""]
[null,null,null,null,null,null,null,null,null,null,null,null,null,null,null,null,null,null,null,null,null,{"$f":"IF(COUNTIF(B984,\"*Virement*\"),\"VIR\"&COUNTIF($V$7:V983,\"VIR*\"),IF(COUNTIF($B$8:B984,B984)=1,\"AUT\"&COUNTIF($V$7:V983,\"AUT*\"),\"\"))","v":""},"",""]
[null,null,null,null,null,null,null,null,null,null,null,null,null,null,null,null,null,null,null,null,null,{"$f":"IF(COUNTIF(B985,\"*Virement*\"),\"VIR\"&COUNTIF($V$7:V984,\"VIR*\"),IF(COUNTIF($B$8:B985,B985)=1,\"AUT\"&COUNTIF($V$7:V984,\"AUT*\"),\"\"))","v":""},"",""]
[null,null,null,null,null,null,null,null,null,null,null,null,null,null,null,null,null,null,null,null,null,{"$f":"IF(COUNTIF(B986,\"*Virement*\"),\"VIR\"&COUNTIF($V$7:V985,\"VIR*\"),IF(COUNTIF($B$8:B986,B986)=1,\"AUT\"&COUNTIF($V$7:V985,\"AUT*\"),\"\"))","v":""},"",""]
[null,null,null,null,null,null,null,null,null,null,null,null,null,null,null,null,null,null,null,null,null,{"$f":"IF(COUNTIF(B987,\"*Virement*\"),\"VIR\"&COUNTIF($V$7:V986,\"VIR*\"),IF(COUNTIF($B$8:B987,B987)=1,\"AUT\"&COUNTIF($V$7:V986,\"AUT*\"),\"\"))","v":""},"",""]
[null,null,null,null,null,null,null,null,null,null,null,null,null,null,null,null,null,null,null,null,null,{"$f":"IF(COUNTIF(B988,\"*Virement*\"),\"VIR\"&COUNTIF($V$7:V987,\"VIR*\"),IF(COUNTIF($B$8:B988,B988)=1,\"AUT\"&COUNTIF($V$7:V987,\"AUT*\"),\"\"))","v":""},"",""]
[null,null,null,null,null,null,null,null,null,null,null,null,null,null,null,null,null,null,null,null,null,{"$f":"IF(COUNTIF(B989,\"*Virement*\"),\"VIR\"&COUNTIF($V$7:V988,\"VIR*\"),IF(COUNTIF($B$8:B989,B989)=1,\"AUT\"&COUNTIF($V$7:V988,\"AUT*\"),\"\"))","v":""},"",""]
[null,null,null,null,null,null,null,null,null,null,null,null,null,null,null,null,null,null,null,null,null,{"$f":"IF(COUNTIF(B990,\"*Virement*\"),\"VIR\"&COUNTIF($V$7:V989,\"VIR*\"),IF(COUNTIF($B$8:B990,B990)=1,\"AUT\"&COUNTIF($V$7:V989,\"AUT*\"),\"\"))","v":""},"",""]
[null,null,null,null,null,null,null,null,null,null,null,null,null,null,null,null,null,null,null,null,null,{"$f":"IF(COUNTIF(B991,\"*Virement*\"),\"VIR\"&COUNTIF($V$7:V990,\"VIR*\"),IF(COUNTIF($B$8:B991,B991)=1,\"AUT\"&COUNTIF($V$7:V990,\"AUT*\"),\"\"))","v":""},"",""]
[null,null,null,null,null,null,null,null,null,null,null,null,null,null,null,null,null,null,null,null,null,{"$f":"IF(COUNTIF(B992,\"*Virement*\"),\"VIR\"&COUNTIF($V$7:V991,\"VIR*\"),IF(COUNTIF($B$8:B992,B992)=1,\"AUT\"&COUNTIF($V$7:V991,\"AUT*\"),\"\"))","v":""},"",""]
[null,null,null,null,null,null,null,null,null,null,null,null,null,null,null,null,null,null,null,null,null,{"$f":"IF(COUNTIF(B993,\"*Virement*\"),\"VIR\"&COUNTIF($V$7:V992,\"VIR*\"),IF(COUNTIF($B$8:B993,B993)=1,\"AUT\"&COUNTIF($V$7:V992,\"AUT*\"),\"\"))","v":""},"",""]
[null,null,null,null,null,null,null,null,null,null,null,null,null,null,null,null,null,null,null,null,null,{"$f":"IF(COUNTIF(B994,\"*Virement*\"),\"VIR\"&COUNTIF($V$7:V993,\"VIR*\"),IF(COUNTIF($B$8:B994,B994)=1,\"AUT\"&COUNTIF($V$7:V993,\"AUT*\"),\"\"))","v":""},"",""]
[null,null,null,null,null,null,null,null,null,null,null,null,null,null,null,null,null,null,null,null,null,{"$f":"IF(COUNTIF(B995,\"*Virement*\"),\"VIR\"&COUNTIF($V$7:V994,\"VIR*\"),IF(COUNTIF($B$8:B995,B995)=1,\"AUT\"&COUNTIF($V$7:V994,\"AUT*\"),\"\"))","v":""},"",""]
[null,null,null,null,null,null,null,null,null,null,null,null,null,null,null,null,null,null,null,null,null,{"$f":"IF(COUNTIF(B996,\"*Virement*\"),\"VIR\"&COUNTIF($V$7:V995,\"VIR*\"),IF(COUNTIF($B$8:B996,B996)=1,\"AUT\"&COUNTIF($V$7:V995,\"AUT*\"),\"\"))","v":""},"",""]
[null,null,null,null,null,null,null,null,null,null,null,null,null,null,null,null,null,null,null,null,null,{"$f":"IF(COUNTIF(B997,\"*Virement*\"),\"VIR\"&COUNTIF($V$7:V996,\"VIR*\"),IF(COUNTIF($B$8:B997,B997)=1,\"AUT\"&COUNTIF($V$7:V996,\"AUT*\"),\"\"))","v":""},"",""]
[null,null,null,null,null,null,null,null,null,null,null,null,null,null,null,null,null,null,null,null,null,{"$f":"IF(COUNTIF(B998,\"*Virement*\"),\"VIR\"&COUNTIF($V$7:V997,\"VIR*\"),IF(COUNTIF($B$8:B998,B998)=1,\"AUT\"&COUNTIF($V$7:V997,\"AUT*\"),\"\"))","v":""},"",""]
[null,null,null,null,null,null,null,null,null,null,null,null,null,null,null,null,null,null,null,null,null,{"$f":"IF(COUNTIF(B999,\"*Virement*\"),\"VIR\"&COUNTIF($V$7:V998,\"VIR*\"),IF(COUNTIF($B$8:B999,B999)=1,\"AUT\"&COUNTIF($V$7:V998,\"AUT*\"),\"\"))","v":""},"",""]
[null,null,null,null,null,null,null,null,null,null,null,null,null,null,null,null,null,null,null,null,null,{"$f":"IF(COUNTIF(B1000,\"*Virement*\"),\"VIR\"&COUNTIF($V$7:V999,\"VIR*\"),IF(COUNTIF($B$8:B1000,B1000)=1,\"AUT\"&COUNTIF($V$7:V999,\"AUT*\"),\"\"))","v":""},"",""]
[]
[]
[]
[]
[]
[]
[]
[]
[]
[]
[]
[]
[]
[]
[]
[]
[]
[]
[]
[]
[]
[]
[]
[]
[]
[]
[]
[]
[]
[]
[]
[]
[]
[]
[]
[]
[]
[]
[]
[]
[]
[]
[]
[]
[]
[]
[]
[]
[]
[]
[]
[]
[]
[]
[]
[]
[]
[]
[]
[]
[]
[]
[]
[]
[]
[]
[]
[]
[]
[]
[]
[]
[]
[]
[]
[]
[]
[]
[]
[]
[]
[]
[]
[]
[null,null,null,null,null,null,null,null,null,null,null,null,null,null,null,null,null,null,null,null,null,{"$f":"IF(COUNTIF(B1085,\"*Virement*\"),\"VIR\"&COUNTIF($V$7:V1084,\"VIR*\"),IF(COUNTIF($B$8:B1085,B1085)=1,\"AUT\"&COUNTIF($V$7:V1084,\"AUT*\"),\"\"))","v":""},{"$f":"IFERROR(INDEX(B:B,MATCH(\"VIR\"&ROW()-8,V:V,0)),\"\")","v":""},{"$f":"IFERROR(INDEX($B:$B,MATCH(\"AUT\"&ROW()-8,$V:$V,0)),\"\")","v":""}]
[null,null,null,null,null,null,null,null,null,null,null,null,null,null,null,null,null,null,null,null,null,{"$f":"IF(COUNTIF(B1086,\"*Virement*\"),\"VIR\"&COUNTIF($V$7:V1085,\"VIR*\"),IF(COUNTIF($B$8:B1086,B1086)=1,\"AUT\"&COUNTIF($V$7:V1085,\"AUT*\"),\"\"))","v":""},""]
[null,null,null,null,null,null,null,null,null,null,null,null,null,null,null,null,null,null,null,null,null,{"$f":"IF(COUNTIF(B1087,\"*Virement*\"),\"VIR\"&COUNTIF($V$7:V1086,\"VIR*\"),IF(COUNTIF($B$8:B1087,B1087)=1,\"AUT\"&COUNTIF($V$7:V1086,\"AUT*\"),\"\"))","v":""},""]
[null,null,null,null,null,null,null,null,null,null,null,null,null,null,null,null,null,null,null,null,null,{"$f":"IF(COUNTIF(B1088,\"*Virement*\"),\"VIR\"&COUNTIF($V$7:V1087,\"VIR*\"),IF(COUNTIF($B$8:B1088,B1088)=1,\"AUT\"&COUNTIF($V$7:V1087,\"AUT*\"),\"\"))","v":""},""]
[null,null,null,null,null,null,null,null,null,null,null,null,null,null,null,null,null,null,null,null,null,{"$f":"IF(COUNTIF(B1089,\"*Virement*\"),\"VIR\"&COUNTIF($V$7:V1088,\"VIR*\"),IF(COUNTIF($B$8:B1089,B1089)=1,\"AUT\"&COUNTIF($V$7:V1088,\"AUT*\"),\"\"))","v":""},""]
[null,null,null,null,null,null,null,null,null,null,null,null,null,null,null,null,null,null,null,null,null,{"$f":"IF(COUNTIF(B1090,\"*Virement*\"),\"VIR\"&COUNTIF($V$7:V1089,\"VIR*\"),IF(COUNTIF($B$8:B1090,B1090)=1,\"AUT\"&COUNTIF($V$7:V1089,\"AUT*\"),\"\"))","v":""},""]
[null,null,null,null,null,null,null,null,null,null,null,null,null,null,null,null,null,null,null,null,null,{"$f":"IF(COUNTIF(B1091,\"*Virement*\"),\"VIR\"&COUNTIF($V$7:V1090,\"VIR*\"),IF(COUNTIF($B$8:B1091,B1091)=1,\"AUT\"&COUNTIF($V$7:V1090,\"AUT*\"),\"\"))","v":""},""]
[null,null,null,null,null,null,null,null,null,null,null,null,null,null,null,null,null,null,null,null,null,{"$f":"IF(COUNTIF(B1092,\"*Virement*\"),\"VIR\"&COUNTIF($V$7:V1091,\"VIR*\"),IF(COUNTIF($B$8:B1092,B1092)=1,\"AUT\"&COUNTIF($V$7:V1091,\"AUT*\"),\"\"))","v":""}]
[null,null,null,null,null,null,null,null,null,null,null,null,null,null,null,null,null,null,null,null,null,{"$f":"IF(COUNTIF(B1093,\"*Virement*\"),\"VIR\"&COUNTIF($V$7:V1092,\"VIR*\"),IF(COUNTIF($B$8:B1093,B1093)=1,\"AUT\"&COUNTIF($V$7:V1092,\"AUT*\"),\"\"))","v":""}]

{"sheet":"Virement","index":1,"n_rows":10,"n_cols":2,"rows_kept":10,"cut":false,"hidden":false,"merged":[]}
[]
[]
["Validation (liste = VIR)","Date"]
["Virement__AA66",{"$f":"IFERROR(INDEX(BdD!$A:$A,MATCH(A4,BdD!$B:$B,0)),\"\")","v":"2015-12-03"}]
["Virement__AA43",{"$f":"IFERROR(INDEX(BdD!$A:$A,MATCH(A5,BdD!$B:$B,0)),\"\")","v":"2015-10-11"}]
[null,{"$f":"IFERROR(INDEX(BdD!$A:$A,MATCH(A6,BdD!$B:$B,0)),\"\")","v":""}]
[null,{"$f":"IFERROR(INDEX(BdD!$A:$A,MATCH(A7,BdD!$B:$B,0)),\"\")","v":""}]
[null,{"$f":"IFERROR(INDEX(BdD!$A:$A,MATCH(A8,BdD!$B:$B,0)),\"\")","v":""}]
[null,{"$f":"IFERROR(INDEX(BdD!$A:$A,MATCH(A9,BdD!$B:$B,0)),\"\")","v":""}]
[null,{"$f":"IFERROR(INDEX(BdD!$A:$A,MATCH(A10,BdD!$B:$B,0)),\"\")","v":""}]

{"sheet":"Autres","index":2,"n_rows":10,"n_cols":4,"rows_kept":10,"cut":false,"hidden":false,"merged":[]}
[]
[]
["Validation liste =AUT",null,null,"ATTENTION pour date maxi selon le nom"]
["Lucas",{"$f":"MAX(IF(BdD!B:B=A4,BdD!A:A))","v":"2016-01-22"},null,"en B4:B10: formule matricielle à entrer:"]
["Léa",{"$f":"MAX(IF(BdD!B:B=A5,BdD!A:A))","v":"2015-12-31"},null,"avec  la touche enter en maintenant les touches ctrl et shift enfoncées"]
["Monique",{"$f":"MAX(IF(BdD!B:B=A6,BdD!A:A))","v":"2016-01-28"},null,"(elle se retrouve automatiquement entre accolades dans la barre de formule)"]
[null,{"$f":"MAX(IF(BdD!B:B=A7,BdD!A:A))","v":"00:00:00"}]
[null,{"$f":"MAX(IF(BdD!B:B=A8,BdD!A:A))","v":"00:00:00"}]
[null,{"$f":"MAX(IF(BdD!B:B=A9,BdD!A:A))","v":"00:00:00"}]
[null,{"$f":"MAX(IF(BdD!B:B=A10,BdD!A:A))","v":"00:00:00"}]